Workbook

Sheet Msg
B3: You need to activate macros before you can use this workbook
B5: Please switch on macros and try again

Sheet Title (hidden)
F2: Electronic Paediatric Growth Charts
F27: © 2014 - Dr Andrew Biggin - v2.4
F29: PO Box 330, Westmead, 2145
F30: andrew@drbiggin.com
F31: www.drbiggin.com

Sheet Help (hidden)
C4: Electronic Paediatric Growth Charts
C5: © 2014 - Dr Andrew Biggin - v2.4
C7: This software is under development and has undergone only limited testing. It is provided "as is" and is not a substitute for good clinical practice
C10: HELP TAB | D10: This page! Please report any questions or comments to me via email: andrew@drbiggin.com
C13: DATA TAB | D13: Enter unique ID (UID), patient name, date of birth and parental heights
D14: Click required gender
D15: Calculated MPH (in cm and percentile) will be displayed at the top of the screen
D16: Current age will be displayed at the top of the screen
D17: Subsequent measurements will be displayed on the appropriate growth chart
D19: Enter measurement date, height, weight and bone age (optional) on each line. Bone age needs to be decimal e.g. 10.5=10 years 6 months
D20: The following will be calculated based on the entered variables:
E21: Growth velocity (cm/year), based on 2 consecutive lines of data, take care if short time span between measurements or if non-sequential measurement dates
E22: Chronological age (CA) as a decimal age in years, based on measurement date and date of birth
E23: Body mass index (BMI)
E24: Body surface area (BSA) based on the Mosteller formula: squareroot((weightxheight)/3600)
E25: Percentile and Z-score for height based on chronological age (CDC data from birth to 20 years in monthly increments)
E26: Percentile and Z-score for height based on bone age, if entered
E27: Percentile and Z-score for weight based on chronological age (CDC data from birth to 20 years in monthly increments)
E28: Percentile and Z-score for BMI based on chronological age (CDC data from 2 to 20 years in monthly increments)
E29: Estimated mature height (EMH) if bone age and current height are within published limits (based on G&P data)
E30: Percentile and Z-score for growth velocity based on chronological age and bone age
C33: BIRTH TAB | D33: Enter number of weeks gestation in whole number of weeks (e.g. 27 for 27+2/40)
D34: Enter birth weight (g), length (cm) and head circumference (cm)
D35: The following will be calculated based on the entered variables (note, there is no sex difference for these calculations):
E36: Percentile and Z-score for birth weight (data available for 24-42 weeks gestation)
E37: Percentile and Z-score for birth length (data available for 26-42 weeks gestation)
E38: Percentile and Z-score for birth head circumference (data available for 27-42 weeks gestation)
C41: BP and HC TAB | D41: Enter measurement date, blood pressure and head circumference
D42: Ensure correct date of birth and gender are entered in Data tab
D43: Head circumference percentile and Z-score will be displayed for ages 0-36 months (based on CDC data)
D44: Blood pressure percentile and Z-score will be displayed for ages 0-18 years

Sheet Data (hidden)
A1: UID | B1: xxxxxxxx
A2: Name | B2: Patient name
A3: DOB | B3: 2002-10-01 | D3: Mother's Height | F3: =IF(E5="M","Male reference data selected",IF(E5="F","Female reference data selected","please select Male or Female reference data")) -> Male reference data selected | CT3: error if divided by 0 i.e. multiple of 0.25
A4: Today's date | B4: =TODAY() -> 2017-09-04 | D4: Father's Height | F4: MPH (cm) | G4: =IF(E3*E4=0,"",IF(E5="M",((E3+E4)/2)+6.5,IF(E5="F",((E3+E4)/2)-6.5,""))) -> 
A5: Age today | B5: =IF(B3="","",DATEDIF(B3,TODAY(),"Y")&" Years, "&DATEDIF(B3,TODAY(),"YM")&" Months, "&DATEDIF(B3,TODAY(),"MD")&" Days") -> 14 Years, 11 Months, 3 Days | E5: M | F5: MPH (%/Z) | G5: =IF(G4="","",IF(E5="M",lookup!AC9,IF(E5="F",lookup!AC13,""))) ->  | AU5: CA | AV5: CA | AW5: CA | AX5: CA | AY5: CA | AZ5: CA | BA5: CA | BB5: CA | BC5: CA | BD5: CA | BE5: CA | BF5: CA | BG5: CA | BH5: CA | BI5: CA | BJ5: CA | BK5: CA | BL5: CA | BM5: CA | BN5: CA | BO5: CA | BP5: CA | BQ5: CA | BR5: CA | BS5: CA | BT5: CA | BU5: CA | BV5: BA | BW5: BA | BX5: BA | BY5: BA | BZ5: BA | CA5: BA | CB5: BA | CC5: BA | CD5: BA | CE5: BA | CF5: BA | CG5: BA | CH5: BA | CI5: BA | CJ5: BA | CK5: BA | CL5: BA | CM5: BA | CN5: BA | CO5: BA | CP5: BA | CQ5: BA | CR5: BA | CS5: BA | CT5: BA | CU5: BA | CV5: BA | CW5: BA | CX5: BA in range | CY5: BA in range | CZ5: BA in range | DA5: BA in range | DB5: BA in range | DI5: BA | DJ5: BA | DK5: BA | DL5: BA | DM5: BA | DN5: BA | DO5: BA | DP5: BA
AA6: CA | AB6: CA | AC6: CA | AD6: CA | AE6: CA | AF6: CA | AG6: BA | AH6: BA | AI6: CA | AJ6: CA | AK6: CA | AL6: CA | AM6: CA | AN6: CA | AO6: CA | AP6: CA | AQ6: CA | AR6: BA | AS6: BA | AT6: BA | AU6: Prev | AV6: Prev | AW6: Prev | AX6: Prev | AY6: Prev | AZ6: Prev | BA6: Prev | BB6: Next | BC6: Next | BD6: Next | BE6: Next | BF6: Next | BG6: Next | BH6: Next | BJ6: meanparam | BK6: meanparam | BL6: meanparam | BM6: meanparam | BN6: meanparam | BO6: meanparam | BP6: SD to use | BQ6: SD to use | BR6: SD | BS6: SD | BV6: Prev | BW6: Prev | BX6: Prev | BY6: Prev | BZ6: Prev | CA6: Prev | CB6: Prev | CC6: Next | CD6: Next | CE6: Next | CF6: Next | CG6: Next | CH6: Next | CI6: Next | CK6: meanparam | CL6: meanparam | CM6: meanparam | CN6: meanparam | CO6: meanparam | CP6: meanparam | CQ6: SD to use | CR6: SD to use | CS6: SD | CT6: SD | CW6: BA/0.25 | CX6: ?integer | CY6: ?>9.9 | CZ6: ?<70.1 | DA6: ?all three | DB6: age lookup | DC6: MEAN male | DD6: LOW SDS male | DE6: HIGH SDS male | DF6: MEAN female | DG6: LOW SDS female | DH6: HIGH SDS female | DI6: SD to use | DJ6: SD to use | DK6: SD | DL6: SD | DO6: FINAL | DP6: FINAL
A7: Measurement Date | B7: Height (cm) | C7: Weight (kg) | D7: GV (cm/year) | E7: CA (yrs) | F7: BA (yrs) | G7: BMI | H7: BSA (m2) | I7: Ht (CA) %/Z | J7: Ht (BA) %/Z | K7: Wt %/Z | L7: BMI %/Z | M7: EMH | N7: GV (CA) %/Z | O7: GV (BA) %/Z | P7: EMH lookup | Q7: EMH column | R7: EMH factor | S7: CA lookup | T7: CA whole years to months | U7: extra months | V7: sum ca | W7: BA lookup | X7: BA whole years to months | Y7: extra months | Z7: sum ca | AA7: Height% | AB7: HeightZ | AC7: Weight% | AD7: WeightZ | AE7: BMI% | AF7: BMIZ | AG7: Height% | AH7: HeightZ | AI7: HeightL | AJ7: HeightM | AK7: HeightS | AL7: WeightL | AM7: WeightM | AN7: WeightS | AO7: BMIL | AP7: BMIM | AQ7: BMIS | AR7: HeightL | AS7: HeightM | AT7: HeightS | AU7: age lookup | AV7: MEAN male | AW7: LOW SDS male | AX7: HIGH SDS male | AY7: MEAN female | AZ7: LOW SDS female | BA7: HIGH SDS female | BB7: age lookup | BC7: MEAN male | BD7: LOW SDS male | BE7: HIGH SDS male | BF7: MEAN female | BG7: LOW SDS female | BH7: HIGH SDS female | BI7: proportion | BJ7: MEAN male | BK7: LOW SDS male | BL7: HIGH SDS male | BM7: MEAN female | BN7: LOW SDS female | BO7: HIGH SDS female | BP7: male | BQ7: female | BR7: male | BS7: female | BT7: Final Z | BU7: Final % | BV7: age lookup | BW7: MEAN male | BX7: LOW SDS male | BY7: HIGH SDS male | BZ7: MEAN female | CA7: LOW SDS female | CB7: HIGH SDS female | CC7: age lookup | CD7: MEAN male | CE7: LOW SDS male | CF7: HIGH SDS male | CG7: MEAN female | CH7: LOW SDS female | CI7: HIGH SDS female | CJ7: proportion | CK7: MEAN male | CL7: LOW SDS male | CM7: HIGH SDS male | CN7: MEAN female | CO7: LOW SDS female | CP7: HIGH SDS female | CQ7: male | CR7: female | CS7: male | CT7: female | CU7: Final Z | CV7: Final % | DB7: if score 3 | DI7: male | DJ7: female | DK7: male | DL7: female | DM7: Final Z | DN7: Final % | DO7: Z | DP7: %
A9: 2014-10-31 | B9: 135 | C9: 26 | D9: - | E9: =IF($B$3="","",IF(A9="","",(A9-$B$3)/365.25)) -> 12.08213552 | G9: =IF(B9*C9=0,"",C9/((B9/100)*(B9/100))) -> 14.26611797 | H9: =IF(B9*C9=0,"",SQRT(C9*B9/3600)) -> 0.9874208829 | I9: =IF(B9<10,"",IF(AA9*AB9=0,"",ROUND(AA9,1)&" / "&ROUND(AB9,1))) -> 2.1 / -2 | J9: =IF(F9<0.1,"",IF(AG9*AH9=0,"",ROUND(AG9,1)&" / "&ROUND(AH9,1))) ->  | K9: =IF(C9<1,"",IF(AC9*AD9=0,"",ROUND(AC9,1)&" / "&ROUND(AD9,1))) -> 0.2 / -2.8 | L9: =IF(B9<1,"",IF(AE9*AF9=0,"",ROUND(AE9,1)&" / "&ROUND(AF9,1))) -> 1.1 / -2.3 | M9: =IF(F9<0.1,"",IF(Q9*R9>0,B9/R9,"")) ->  | N9: - | O9: - | P9: =IF(F9="","",CONCATENATE($E$5&F9)) ->  | Q9: =IF(F9="","",IF(F9-E9<-1,1,IF(F9-E9<1,2,IF(F9-E9>1,3,"error")))) ->  | R9: =IF(F9="","",VLOOKUP(P9,lookup!$L$2:$O$103,Data!Q9+1,FALSE)) ->  | S9: =IF(E9="","",CONCATENATE($E$5&(ROUND(V9,0)))) -> M145 | T9: =12*INT(E9) -> 144 | U9: =12*MOD(E9,1) -> 0.9856262834 | V9: =SUM(T9:U9) -> 144.9856263 | W9: =IF(F9="","",CONCATENATE($E$5&(ROUND(Z9,0)))) ->  | X9: =12*INT(F9) -> 0 | Y9: =12*MOD(F9,1) -> 0 | Z9: =SUM(X9:Y9) -> 0 | AA9: =IF(AB9="","",100*NORMSDIST(AB9)) -> 2.072101907 | AB9: =IF(AI9*AJ9*AK9=0,"",((POWER(B9/AJ9,AI9))-1)/(AI9*AK9)) -> -2.039080058 | AC9: =IF(AD9="","",100*NORMSDIST(AD9)) -> 0.2382338885 | AD9: =IF(AL9*AM9*AN9=0,"",((POWER(C9/AM9,AL9))-1)/(AL9*AN9)) -> -2.822527216 | AE9: =IF(AF9="","",100*NORMSDIST(AF9)) -> 1.138430743 | AF9: =IF(AO9*AP9*AQ9=0,"",((POWER(G9/AP9,AO9))-1)/(AO9*AQ9)) -> -2.277295008 | AG9: =IF(AH9="","",100*NORMSDIST(AH9)) ->  | AH9: =IF(AR9*AS9*AT9=0,"",((POWER(B9/AS9,AR9))-1)/(AR9*AT9)) ->  | AI9: =VLOOKUP(S9,lookup!$A$1:$J$483,2,FALSE) -> 0.428606007 | AJ9: =VLOOKUP(S9,lookup!$A$1:$J$483,3,FALSE) -> 149.8376391 | AK9: =VLOOKUP(S9,lookup!$A$1:$J$483,4,FALSE) -> 0.050013518 | AL9: =VLOOKUP(S9,lookup!$A$1:$J$483,8,FALSE) -> -0.823315176 | AM9: =VLOOKUP(S9,lookup!$A$1:$J$483,9,FALSE) -> 41.08443363 | AN9: =VLOOKUP(S9,lookup!$A$1:$J$483,10,FALSE) -> 0.19685514 | AO9: =VLOOKUP(S9,lookup!$A$1:$J$483,5,FALSE) -> -2.436755595 | AP9: =VLOOKUP(S9,lookup!$A$1:$J$483,6,FALSE) -> 17.86794729 | AQ9: =VLOOKUP(S9,lookup!$A$1:$J$483,7,FALSE) -> 0.1316885791 | AR9: =VLOOKUP(W9,lookup!$A$1:$J$483,2,FALSE) ->  | AS9: =VLOOKUP(W9,lookup!$A$1:$J$483,3,FALSE) ->  | AT9: =VLOOKUP(W9,lookup!$A$1:$J$483,4,FALSE) ->  | AU9: =IF(E9>17.5,17.5,FLOOR(E9,0.25)) -> 12 | AV9: =VLOOKUP(AU9,lookup!$Q$2:$W$62,2,FALSE) -> 5.7 | AW9: =VLOOKUP(AU9,lookup!$Q$2:$W$62,3,FALSE) -> 0.77 | AX9: =VLOOKUP(AU9,lookup!$Q$2:$W$62,4,FALSE) -> 0.72 | AY9: =VLOOKUP(AU9,lookup!$Q$2:$W$62,5,FALSE) -> 7.5 | AZ9: =VLOOKUP(AU9,lookup!$Q$2:$W$62,6,FALSE) -> 0.97 | BA9: =VLOOKUP(AU9,lookup!$Q$2:$W$62,7,FALSE) -> 1.01 | BB9: =IF(E9>17.5,17.5,CEILING(E9,0.25)) -> 12.25 | BC9: =VLOOKUP(BB9,lookup!$Q$2:$W$62,2,FALSE) -> 6.1 | BD9: =VLOOKUP(BB9,lookup!$Q$2:$W$62,3,FALSE) -> 0.81 | BE9: =VLOOKUP(BB9,lookup!$Q$2:$W$62,4,FALSE) -> 0.79 | BF9: =VLOOKUP(BB9,lookup!$Q$2:$W$62,5,FALSE) -> 6.7 | BG9: =VLOOKUP(BB9,lookup!$Q$2:$W$62,6,FALSE) -> 0.98 | BH9: =VLOOKUP(BB9,lookup!$Q$2:$W$62,7,FALSE) -> 1.03 | BI9: =(E9-AU9)/(BB9-AU9) -> 0.3285420945 | BJ9: =(BI9*(BC9-AV9))+AV9 -> 5.831416838 | BK9: =(BI9*(BD9-AW9))+AW9 -> 0.7831416838 | BL9: =(BI9*(BE9-AX9))+AX9 -> 0.7429979466 | BM9: =(BI9*(BF9-AY9))+AY9 -> 7.237166324 | BN9: =(BI9*(BG9-AZ9))+AZ9 -> 0.9732854209 | BO9: =(BI9*(BH9-BA9))+BA9 -> 1.016570842 | BP9: =IF(D9<BJ9,BK9,BL9) -> 0.7429979466 | BQ9: =IF(D9<BM9,BN9,BO9) -> 1.016570842 | BR9: =(D9-BJ9)/BP9 ->  | BS9: =(D9-BM9)/BQ9 ->  | BT9: =IF($E$5="M",BR9,IF($E$5="F",BS9,"")) ->  | BU9: =IF(BT9="","",100*NORMSDIST(BT9)) ->  | BV9: =IF(F9>17.5,17.5,FLOOR(F9,0.25)) -> 0 | BW9: =VLOOKUP(BV9,lookup!$Q$2:$W$62,2,FALSE) ->  | BX9: =VLOOKUP(BV9,lookup!$Q$2:$W$62,3,FALSE) ->  | BY9: =VLOOKUP(BV9,lookup!$Q$2:$W$62,4,FALSE) ->  | BZ9: =VLOOKUP(BV9,lookup!$Q$2:$W$62,5,FALSE) ->  | CA9: =VLOOKUP(BV9,lookup!$Q$2:$W$62,6,FALSE) ->  | CB9: =VLOOKUP(BV9,lookup!$Q$2:$W$62,7,FALSE) ->  | CC9: =IF(F9>17.5,17.5,CEILING(F9,0.25)) -> 0 | CD9: =VLOOKUP(CC9,lookup!$Q$2:$W$62,2,FALSE) ->  | CE9: =VLOOKUP(CC9,lookup!$Q$2:$W$62,3,FALSE) ->  | CF9: =VLOOKUP(CC9,lookup!$Q$2:$W$62,4,FALSE) ->  | CG9: =VLOOKUP(CC9,lookup!$Q$2:$W$62,5,FALSE) ->  | CH9: =VLOOKUP(CC9,lookup!$Q$2:$W$62,6,FALSE) ->  | CI9: =VLOOKUP(CC9,lookup!$Q$2:$W$62,7,FALSE) ->  | CJ9: =(F9-BV9)/(CC9-BV9) ->  | CK9: =(CJ9*(CD9-BW9))+BW9 ->  | CL9: =(CJ9*(CE9-BX9))+BX9 ->  | CM9: =(CJ9*(CF9-BY9))+BY9 ->  | CN9: =(CJ9*(CG9-BZ9))+BZ9 ->  | CO9: =(CJ9*(CH9-CA9))+CA9 ->  | CP9: =(CJ9*(CI9-CB9))+CB9 ->  | CQ9: =IF(D9<CK9,CL9,CM9) ->  | CR9: =IF(D9<CN9,CO9,CP9) ->  | CS9: =(D9-CK9)/CQ9 ->  | CT9: =(D9-CN9)/CR9 ->  | CU9: =IF($E$5="M",CS9,IF($E$5="F",CT9,"")) ->  | CV9: =IF(CU9="","",100*NORMSDIST(CU9)) ->  | CW9: =F9/0.25 -> 0 | CX9: =IF(INT(CW9)=CW9,1,0) -> 1 | CY9: =IF(CW9>9.9,1,0) -> 0 | CZ9: =IF(CW9<70.1,1,0) -> 1 | DA9: =SUM(CX9:CZ9) -> 2 | DB9: =IF(DA9=3,F9,"") ->  | DC9: =VLOOKUP(DB9,lookup!$Q$2:$W$62,2,FALSE) ->  | DD9: =VLOOKUP(DB9,lookup!$Q$2:$W$62,3,FALSE) ->  | DE9: =VLOOKUP(DB9,lookup!$Q$2:$W$62,4,FALSE) ->  | DF9: =VLOOKUP(DB9,lookup!$Q$2:$W$62,5,FALSE) ->  | DG9: =VLOOKUP(DB9,lookup!$Q$2:$W$62,6,FALSE) ->  | DH9: =VLOOKUP(DB9,lookup!$Q$2:$W$62,7,FALSE) ->  | DI9: =IF(D9<DC9,DD9,DE9) ->  | DJ9: =IF(D9<DF9,DG9,DH9) ->  | DK9: =(D9-DC9)/DI9 ->  | DL9: =(D9-DF9)/DJ9 ->  | DM9: =IF($E$5="M",DK9,IF($E$5="F",DL9,"")) ->  | DN9: =IF(DM9="","",100*NORMSDIST(DM9)) ->  | DO9: =IF(DA9=3,DM9,CU9) ->  | DP9: =IF(DA9=3,DN9,CV9) -> 
D10: =IF(A10*A9*B10*B9=0,"",(365.25/(A10-A9))*(B10-B9)) ->  | E10: =IF($B$3="","",IF(A10="","",(A10-$B$3)/365.25)) ->  | H10: =IF(B10*C10=0,"",SQRT(C10*B10/3600)) ->  | I10: =IF(B10<10,"",IF(AA10*AB10=0,"",ROUND(AA10,1)&" / "&ROUND(AB10,1))) ->  | J10: =IF(F10<0.1,"",IF(AG10*AH10=0,"",ROUND(AG10,1)&" / "&ROUND(AH10,1))) ->  | K10: =IF(C10<1,"",IF(AC10*AD10=0,"",ROUND(AC10,1)&" / "&ROUND(AD10,1))) ->  | L10: =IF(B10<1,"",IF(AE10*AF10=0,"",ROUND(AE10,1)&" / "&ROUND(AF10,1))) ->  | M10: =IF(F10<0.1,"",IF(Q10*R10>0,B10/R10,"")) ->  | N10: =IF(E10="","",IF(E10<2.5,"",ROUND(BU10,1)&" / "&ROUND(BT10,1))) ->  | O10: =IF(F10="","",IF(F10<2.5,"",ROUND(DP10,1)&" / "&ROUND(DO10,1))) ->  | P10: =IF(F10="","",CONCATENATE($E$5&F10)) ->  | Q10: =IF(F10="","",IF(F10-E10<-1,1,IF(F10-E10<1,2,IF(F10-E10>1,3,"error")))) ->  | R10: =IF(F10="","",VLOOKUP(P10,lookup!$L$2:$O$103,Data!Q10+1,FALSE)) ->  | V10: =SUM(T10:U10) ->  | X10: 0 | Y10: 0 | Z10: =SUM(X10:Y10) -> 0 | AA10: =IF(AB10="","",100*NORMSDIST(AB10)) ->  | AB10: =IF(AI10*AJ10*AK10=0,"",((POWER(B10/AJ10,AI10))-1)/(AI10*AK10)) ->  | AC10: =IF(AD10="","",100*NORMSDIST(AD10)) ->  | AD10: =IF(AL10*AM10*AN10=0,"",((POWER(C10/AM10,AL10))-1)/(AL10*AN10)) ->  | AE10: =IF(AF10="","",100*NORMSDIST(AF10)) ->  | AF10: =IF(AO10*AP10*AQ10=0,"",((POWER(G10/AP10,AO10))-1)/(AO10*AQ10)) ->  | AG10: =IF(AH10="","",100*NORMSDIST(AH10)) ->  | AH10: =IF(AR10*AS10*AT10=0,"",((POWER(B10/AS10,AR10))-1)/(AR10*AT10)) ->  | AI10: =VLOOKUP(S10,lookup!$A$1:$J$483,2,FALSE) ->  | AJ10: =VLOOKUP(S10,lookup!$A$1:$J$483,3,FALSE) ->  | AK10: =VLOOKUP(S10,lookup!$A$1:$J$483,4,FALSE) ->  | AL10: =VLOOKUP(S10,lookup!$A$1:$J$483,8,FALSE) ->  | AM10: =VLOOKUP(S10,lookup!$A$1:$J$483,9,FALSE) ->  | AN10: =VLOOKUP(S10,lookup!$A$1:$J$483,10,FALSE) ->  | AO10: =VLOOKUP(S10,lookup!$A$1:$J$483,5,FALSE) ->  | AP10: =VLOOKUP(S10,lookup!$A$1:$J$483,6,FALSE) ->  | AQ10: =VLOOKUP(S10,lookup!$A$1:$J$483,7,FALSE) ->  | AR10: =VLOOKUP(W10,lookup!$A$1:$J$483,2,FALSE) ->  | AS10: =VLOOKUP(W10,lookup!$A$1:$J$483,3,FALSE) ->  | AT10: =VLOOKUP(W10,lookup!$A$1:$J$483,4,FALSE) ->  | AU10: =IF(E10>17.5,17.5,FLOOR(E10,0.25)) -> 17.5 | AV10: =VLOOKUP(AU10,lookup!$Q$2:$W$62,2,FALSE) -> 0.5 | AW10: =VLOOKUP(AU10,lookup!$Q$2:$W$62,3,FALSE) -> 0.49 | AX10: =VLOOKUP(AU10,lookup!$Q$2:$W$62,4,FALSE) -> 0.49 | AY10: =VLOOKUP(AU10,lookup!$Q$2:$W$62,5,FALSE) -> 1 | AZ10: =VLOOKUP(AU10,lookup!$Q$2:$W$62,6,FALSE) -> 0.5 | BA10: =VLOOKUP(AU10,lookup!$Q$2:$W$62,7,FALSE) -> 0.5 | BB10: =IF(E10>17.5,17.5,CEILING(E10,0.25)) -> 17.5 | BC10: =VLOOKUP(BB10,lookup!$Q$2:$W$62,2,FALSE) -> 0.5 | BD10: =VLOOKUP(BB10,lookup!$Q$2:$W$62,3,FALSE) -> 0.49 | BE10: =VLOOKUP(BB10,lookup!$Q$2:$W$62,4,FALSE) -> 0.49 | BF10: =VLOOKUP(BB10,lookup!$Q$2:$W$62,5,FALSE) -> 1 | BG10: =VLOOKUP(BB10,lookup!$Q$2:$W$62,6,FALSE) -> 0.5 | BH10: =VLOOKUP(BB10,lookup!$Q$2:$W$62,7,FALSE) -> 0.5 | BI10: =(E10-AU10)/(BB10-AU10) ->  | BJ10: =(BI10*(BC10-AV10))+AV10 ->  | BK10: =(BI10*(BD10-AW10))+AW10 ->  | BL10: =(BI10*(BE10-AX10))+AX10 ->  | BM10: =(BI10*(BF10-AY10))+AY10 ->  | BN10: =(BI10*(BG10-AZ10))+AZ10 ->  | BO10: =(BI10*(BH10-BA10))+BA10 ->  | BP10: =IF(D10<BJ10,BK10,BL10) ->  | BQ10: =IF(D10<BM10,BN10,BO10) ->  | BR10: =(D10-BJ10)/BP10 ->  | BS10: =(D10-BM10)/BQ10 ->  | BT10: =IF($E$5="M",BR10,IF($E$5="F",BS10,"")) ->  | BU10: =IF(BT10="","",100*NORMSDIST(BT10)) ->  | BV10: =IF(F10>17.5,17.5,FLOOR(F10,0.25)) -> 0 | BW10: =VLOOKUP(BV10,lookup!$Q$2:$W$62,2,FALSE) ->  | BX10: =VLOOKUP(BV10,lookup!$Q$2:$W$62,3,FALSE) ->  | BY10: =VLOOKUP(BV10,lookup!$Q$2:$W$62,4,FALSE) ->  | BZ10: =VLOOKUP(BV10,lookup!$Q$2:$W$62,5,FALSE) ->  | CA10: =VLOOKUP(BV10,lookup!$Q$2:$W$62,6,FALSE) ->  | CB10: =VLOOKUP(BV10,lookup!$Q$2:$W$62,7,FALSE) ->  | CC10: =IF(F10>17.5,17.5,CEILING(F10,0.25)) -> 0 | CD10: =VLOOKUP(CC10,lookup!$Q$2:$W$62,2,FALSE) ->  | CE10: =VLOOKUP(CC10,lookup!$Q$2:$W$62,3,FALSE) ->  | CF10: =VLOOKUP(CC10,lookup!$Q$2:$W$62,4,FALSE) ->  | CG10: =VLOOKUP(CC10,lookup!$Q$2:$W$62,5,FALSE) ->  | CH10: =VLOOKUP(CC10,lookup!$Q$2:$W$62,6,FALSE) ->  | CI10: =VLOOKUP(CC10,lookup!$Q$2:$W$62,7,FALSE) ->  | CJ10: =(F10-BV10)/(CC10-BV10) ->  | CK10: =(CJ10*(CD10-BW10))+BW10 ->  | CL10: =(CJ10*(CE10-BX10))+BX10 ->  | CM10: =(CJ10*(CF10-BY10))+BY10 ->  | CN10: =(CJ10*(CG10-BZ10))+BZ10 ->  | CO10: =(CJ10*(CH10-CA10))+CA10 ->  | CP10: =(CJ10*(CI10-CB10))+CB10 ->  | CQ10: =IF(D10<CK10,CL10,CM10) ->  | CR10: =IF(D10<CN10,CO10,CP10) ->  | CS10: =(D10-CK10)/CQ10 ->  | CT10: =(D10-CN10)/CR10 ->  | CU10: =IF($E$5="M",CS10,IF($E$5="F",CT10,"")) ->  | CV10: =IF(CU10="","",100*NORMSDIST(CU10)) ->  | CW10: =F10/0.25 -> 0 | CX10: =IF(INT(CW10)=CW10,1,0) -> 1 | CY10: =IF(CW10>9.9,1,0) -> 0 | CZ10: =IF(CW10<70.1,1,0) -> 1 | DA10: =SUM(CX10:CZ10) -> 2 | DB10: =IF(DA10=3,F10,"") ->  | DC10: =VLOOKUP(DB10,lookup!$Q$2:$W$62,2,FALSE) ->  | DD10: =VLOOKUP(DB10,lookup!$Q$2:$W$62,3,FALSE) ->  | DE10: =VLOOKUP(DB10,lookup!$Q$2:$W$62,4,FALSE) ->  | DF10: =VLOOKUP(DB10,lookup!$Q$2:$W$62,5,FALSE) ->  | DG10: =VLOOKUP(DB10,lookup!$Q$2:$W$62,6,FALSE) ->  | DH10: =VLOOKUP(DB10,lookup!$Q$2:$W$62,7,FALSE) ->  | DI10: =IF(D10<DC10,DD10,DE10) ->  | DJ10: =IF(D10<DF10,DG10,DH10) ->  | DK10: =(D10-DC10)/DI10 ->  | DL10: =(D10-DF10)/DJ10 ->  | DM10: =IF($E$5="M",DK10,IF($E$5="F",DL10,"")) ->  | DN10: =IF(DM10="","",100*NORMSDIST(DM10)) ->  | DO10: =IF(DA10=3,DM10,CU10) ->  | DP10: =IF(DA10=3,DN10,CV10) -> 
D11: =IF(A11*A10*B11*B10=0,"",(365.25/(A11-A10))*(B11-B10)) ->  | H11: =IF(B11*C11=0,"",SQRT(C11*B11/3600)) ->  | N11: =IF(E11="","",IF(E11<2.5,"",ROUND(BU11,1)&" / "&ROUND(BT11,1))) ->  | R11: =IF(F11="","",VLOOKUP(P11,lookup!$L$2:$O$103,Data!Q11+1,FALSE)) ->  | X11: 0 | Y11: 0 | Z11: 0 | AB11: =IF(AI11*AJ11*AK11=0,"",((POWER(B11/AJ11,AI11))-1)/(AI11*AK11)) ->  | AI11: =VLOOKUP(S11,lookup!$A$1:$J$483,2,FALSE) ->  | AJ11: =VLOOKUP(S11,lookup!$A$1:$J$483,3,FALSE) ->  | AK11: =VLOOKUP(S11,lookup!$A$1:$J$483,4,FALSE) ->  | AL11: =VLOOKUP(S11,lookup!$A$1:$J$483,8,FALSE) ->  | AM11: =VLOOKUP(S11,lookup!$A$1:$J$483,9,FALSE) ->  | AN11: =VLOOKUP(S11,lookup!$A$1:$J$483,10,FALSE) ->  | AO11: =VLOOKUP(S11,lookup!$A$1:$J$483,5,FALSE) ->  | AP11: =VLOOKUP(S11,lookup!$A$1:$J$483,6,FALSE) ->  | AQ11: =VLOOKUP(S11,lookup!$A$1:$J$483,7,FALSE) ->  | AR11: =VLOOKUP(W11,lookup!$A$1:$J$483,2,FALSE) ->  | AS11: =VLOOKUP(W11,lookup!$A$1:$J$483,3,FALSE) ->  | AT11: =VLOOKUP(W11,lookup!$A$1:$J$483,4,FALSE) ->  | AU11: 17.5 | AV11: =VLOOKUP(AU11,lookup!$Q$2:$W$62,2,FALSE) -> 0.5 | AW11: =VLOOKUP(AU11,lookup!$Q$2:$W$62,3,FALSE) -> 0.49 | AX11: =VLOOKUP(AU11,lookup!$Q$2:$W$62,4,FALSE) -> 0.49 | AY11: =VLOOKUP(AU11,lookup!$Q$2:$W$62,5,FALSE) -> 1 | AZ11: =VLOOKUP(AU11,lookup!$Q$2:$W$62,6,FALSE) -> 0.5 | BA11: =VLOOKUP(AU11,lookup!$Q$2:$W$62,7,FALSE) -> 0.5 | BB11: 17.5 | BC11: =VLOOKUP(BB11,lookup!$Q$2:$W$62,2,FALSE) -> 0.5 | BD11: =VLOOKUP(BB11,lookup!$Q$2:$W$62,3,FALSE) -> 0.49 | BE11: =VLOOKUP(BB11,lookup!$Q$2:$W$62,4,FALSE) -> 0.49 | BF11: =VLOOKUP(BB11,lookup!$Q$2:$W$62,5,FALSE) -> 1 | BG11: =VLOOKUP(BB11,lookup!$Q$2:$W$62,6,FALSE) -> 0.5 | BH11: =VLOOKUP(BB11,lookup!$Q$2:$W$62,7,FALSE) -> 0.5 | BR11: =(D11-BJ11)/BP11 ->  | BV11: 0 | BW11: =VLOOKUP(BV11,lookup!$Q$2:$W$62,2,FALSE) ->  | BX11: =VLOOKUP(BV11,lookup!$Q$2:$W$62,3,FALSE) ->  | BY11: =VLOOKUP(BV11,lookup!$Q$2:$W$62,4,FALSE) ->  | BZ11: =VLOOKUP(BV11,lookup!$Q$2:$W$62,5,FALSE) ->  | CA11: =VLOOKUP(BV11,lookup!$Q$2:$W$62,6,FALSE) ->  | CB11: =VLOOKUP(BV11,lookup!$Q$2:$W$62,7,FALSE) ->  | CC11: 0 | CD11: =VLOOKUP(CC11,lookup!$Q$2:$W$62,2,FALSE) ->  | CE11: =VLOOKUP(CC11,lookup!$Q$2:$W$62,3,FALSE) ->  | CF11: =VLOOKUP(CC11,lookup!$Q$2:$W$62,4,FALSE) ->  | CG11: =VLOOKUP(CC11,lookup!$Q$2:$W$62,5,FALSE) ->  | CH11: =VLOOKUP(CC11,lookup!$Q$2:$W$62,6,FALSE) ->  | CI11: =VLOOKUP(CC11,lookup!$Q$2:$W$62,7,FALSE) ->  | CW11: 0 | CX11: 1 | CY11: 0 | CZ11: 1 | DA11: 2 | DC11: =VLOOKUP(DB11,lookup!$Q$2:$W$62,2,FALSE) ->  | DD11: =VLOOKUP(DB11,lookup!$Q$2:$W$62,3,FALSE) ->  | DE11: =VLOOKUP(DB11,lookup!$Q$2:$W$62,4,FALSE) ->  | DF11: =VLOOKUP(DB11,lookup!$Q$2:$W$62,5,FALSE) ->  | DG11: =VLOOKUP(DB11,lookup!$Q$2:$W$62,6,FALSE) ->  | DH11: =VLOOKUP(DB11,lookup!$Q$2:$W$62,7,FALSE) -> 
D12: =IF(A12*A11*B12*B11=0,"",(365.25/(A12-A11))*(B12-B11)) ->  | R12: =IF(F12="","",VLOOKUP(P12,lookup!$L$2:$O$103,Data!Q12+1,FALSE)) ->  | X12: 0 | Y12: 0 | Z12: 0 | AI12: =VLOOKUP(S12,lookup!$A$1:$J$483,2,FALSE) ->  | AJ12: =VLOOKUP(S12,lookup!$A$1:$J$483,3,FALSE) ->  | AK12: =VLOOKUP(S12,lookup!$A$1:$J$483,4,FALSE) ->  | AL12: =VLOOKUP(S12,lookup!$A$1:$J$483,8,FALSE) ->  | AM12: =VLOOKUP(S12,lookup!$A$1:$J$483,9,FALSE) ->  | AN12: =VLOOKUP(S12,lookup!$A$1:$J$483,10,FALSE) ->  | AO12: =VLOOKUP(S12,lookup!$A$1:$J$483,5,FALSE) ->  | AP12: =VLOOKUP(S12,lookup!$A$1:$J$483,6,FALSE) ->  | AQ12: =VLOOKUP(S12,lookup!$A$1:$J$483,7,FALSE) ->  | AR12: =VLOOKUP(W12,lookup!$A$1:$J$483,2,FALSE) ->  | AS12: =VLOOKUP(W12,lookup!$A$1:$J$483,3,FALSE) ->  | AT12: =VLOOKUP(W12,lookup!$A$1:$J$483,4,FALSE) ->  | AU12: 17.5 | AV12: =VLOOKUP(AU12,lookup!$Q$2:$W$62,2,FALSE) -> 0.5 | AW12: =VLOOKUP(AU12,lookup!$Q$2:$W$62,3,FALSE) -> 0.49 | AX12: =VLOOKUP(AU12,lookup!$Q$2:$W$62,4,FALSE) -> 0.49 | AY12: =VLOOKUP(AU12,lookup!$Q$2:$W$62,5,FALSE) -> 1 | AZ12: =VLOOKUP(AU12,lookup!$Q$2:$W$62,6,FALSE) -> 0.5 | BA12: =VLOOKUP(AU12,lookup!$Q$2:$W$62,7,FALSE) -> 0.5 | BB12: 17.5 | BC12: =VLOOKUP(BB12,lookup!$Q$2:$W$62,2,FALSE) -> 0.5 | BD12: =VLOOKUP(BB12,lookup!$Q$2:$W$62,3,FALSE) -> 0.49 | BE12: =VLOOKUP(BB12,lookup!$Q$2:$W$62,4,FALSE) -> 0.49 | BF12: =VLOOKUP(BB12,lookup!$Q$2:$W$62,5,FALSE) -> 1 | BG12: =VLOOKUP(BB12,lookup!$Q$2:$W$62,6,FALSE) -> 0.5 | BH12: =VLOOKUP(BB12,lookup!$Q$2:$W$62,7,FALSE) -> 0.5 | BV12: 0 | BW12: =VLOOKUP(BV12,lookup!$Q$2:$W$62,2,FALSE) ->  | BX12: =VLOOKUP(BV12,lookup!$Q$2:$W$62,3,FALSE) ->  | BY12: =VLOOKUP(BV12,lookup!$Q$2:$W$62,4,FALSE) ->  | BZ12: =VLOOKUP(BV12,lookup!$Q$2:$W$62,5,FALSE) ->  | CA12: =VLOOKUP(BV12,lookup!$Q$2:$W$62,6,FALSE) ->  | CB12: =VLOOKUP(BV12,lookup!$Q$2:$W$62,7,FALSE) ->  | CC12: 0 | CD12: =VLOOKUP(CC12,lookup!$Q$2:$W$62,2,FALSE) ->  | CE12: =VLOOKUP(CC12,lookup!$Q$2:$W$62,3,FALSE) ->  | CF12: =VLOOKUP(CC12,lookup!$Q$2:$W$62,4,FALSE) ->  | CG12: =VLOOKUP(CC12,lookup!$Q$2:$W$62,5,FALSE) ->  | CH12: =VLOOKUP(CC12,lookup!$Q$2:$W$62,6,FALSE) ->  | CI12: =VLOOKUP(CC12,lookup!$Q$2:$W$62,7,FALSE) ->  | CW12: 0 | CX12: 1 | CY12: 0 | CZ12: 1 | DA12: 2 | DC12: =VLOOKUP(DB12,lookup!$Q$2:$W$62,2,FALSE) ->  | DD12: =VLOOKUP(DB12,lookup!$Q$2:$W$62,3,FALSE) ->  | DE12: =VLOOKUP(DB12,lookup!$Q$2:$W$62,4,FALSE) ->  | DF12: =VLOOKUP(DB12,lookup!$Q$2:$W$62,5,FALSE) ->  | DG12: =VLOOKUP(DB12,lookup!$Q$2:$W$62,6,FALSE) ->  | DH12: =VLOOKUP(DB12,lookup!$Q$2:$W$62,7,FALSE) -> 
R13: =IF(F13="","",VLOOKUP(P13,lookup!$L$2:$O$103,Data!Q13+1,FALSE)) ->  | X13: 0 | Y13: 0 | Z13: 0 | AI13: =VLOOKUP(S13,lookup!$A$1:$J$483,2,FALSE) ->  | AJ13: =VLOOKUP(S13,lookup!$A$1:$J$483,3,FALSE) ->  | AK13: =VLOOKUP(S13,lookup!$A$1:$J$483,4,FALSE) ->  | AL13: =VLOOKUP(S13,lookup!$A$1:$J$483,8,FALSE) ->  | AM13: =VLOOKUP(S13,lookup!$A$1:$J$483,9,FALSE) ->  | AN13: =VLOOKUP(S13,lookup!$A$1:$J$483,10,FALSE) ->  | AO13: =VLOOKUP(S13,lookup!$A$1:$J$483,5,FALSE) ->  | AP13: =VLOOKUP(S13,lookup!$A$1:$J$483,6,FALSE) ->  | AQ13: =VLOOKUP(S13,lookup!$A$1:$J$483,7,FALSE) ->  | AR13: =VLOOKUP(W13,lookup!$A$1:$J$483,2,FALSE) ->  | AS13: =VLOOKUP(W13,lookup!$A$1:$J$483,3,FALSE) ->  | AT13: =VLOOKUP(W13,lookup!$A$1:$J$483,4,FALSE) ->  | AU13: 17.5 | AV13: =VLOOKUP(AU13,lookup!$Q$2:$W$62,2,FALSE) -> 0.5 | AW13: =VLOOKUP(AU13,lookup!$Q$2:$W$62,3,FALSE) -> 0.49 | AX13: =VLOOKUP(AU13,lookup!$Q$2:$W$62,4,FALSE) -> 0.49 | AY13: =VLOOKUP(AU13,lookup!$Q$2:$W$62,5,FALSE) -> 1 | AZ13: =VLOOKUP(AU13,lookup!$Q$2:$W$62,6,FALSE) -> 0.5 | BA13: =VLOOKUP(AU13,lookup!$Q$2:$W$62,7,FALSE) -> 0.5 | BB13: 17.5 | BC13: =VLOOKUP(BB13,lookup!$Q$2:$W$62,2,FALSE) -> 0.5 | BD13: =VLOOKUP(BB13,lookup!$Q$2:$W$62,3,FALSE) -> 0.49 | BE13: =VLOOKUP(BB13,lookup!$Q$2:$W$62,4,FALSE) -> 0.49 | BF13: =VLOOKUP(BB13,lookup!$Q$2:$W$62,5,FALSE) -> 1 | BG13: =VLOOKUP(BB13,lookup!$Q$2:$W$62,6,FALSE) -> 0.5 | BH13: =VLOOKUP(BB13,lookup!$Q$2:$W$62,7,FALSE) -> 0.5 | BV13: 0 | BW13: =VLOOKUP(BV13,lookup!$Q$2:$W$62,2,FALSE) ->  | BX13: =VLOOKUP(BV13,lookup!$Q$2:$W$62,3,FALSE) ->  | BY13: =VLOOKUP(BV13,lookup!$Q$2:$W$62,4,FALSE) ->  | BZ13: =VLOOKUP(BV13,lookup!$Q$2:$W$62,5,FALSE) ->  | CA13: =VLOOKUP(BV13,lookup!$Q$2:$W$62,6,FALSE) ->  | CB13: =VLOOKUP(BV13,lookup!$Q$2:$W$62,7,FALSE) ->  | CC13: 0 | CD13: =VLOOKUP(CC13,lookup!$Q$2:$W$62,2,FALSE) ->  | CE13: =VLOOKUP(CC13,lookup!$Q$2:$W$62,3,FALSE) ->  | CF13: =VLOOKUP(CC13,lookup!$Q$2:$W$62,4,FALSE) ->  | CG13: =VLOOKUP(CC13,lookup!$Q$2:$W$62,5,FALSE) ->  | CH13: =VLOOKUP(CC13,lookup!$Q$2:$W$62,6,FALSE) ->  | CI13: =VLOOKUP(CC13,lookup!$Q$2:$W$62,7,FALSE) ->  | CW13: 0 | CX13: 1 | CY13: 0 | CZ13: 1 | DA13: 2 | DC13: =VLOOKUP(DB13,lookup!$Q$2:$W$62,2,FALSE) ->  | DD13: =VLOOKUP(DB13,lookup!$Q$2:$W$62,3,FALSE) ->  | DE13: =VLOOKUP(DB13,lookup!$Q$2:$W$62,4,FALSE) ->  | DF13: =VLOOKUP(DB13,lookup!$Q$2:$W$62,5,FALSE) ->  | DG13: =VLOOKUP(DB13,lookup!$Q$2:$W$62,6,FALSE) ->  | DH13: =VLOOKUP(DB13,lookup!$Q$2:$W$62,7,FALSE) -> 
R14: =IF(F14="","",VLOOKUP(P14,lookup!$L$2:$O$103,Data!Q14+1,FALSE)) ->  | X14: 0 | Y14: 0 | Z14: 0 | AI14: =VLOOKUP(S14,lookup!$A$1:$J$483,2,FALSE) ->  | AJ14: =VLOOKUP(S14,lookup!$A$1:$J$483,3,FALSE) ->  | AK14: =VLOOKUP(S14,lookup!$A$1:$J$483,4,FALSE) ->  | AL14: =VLOOKUP(S14,lookup!$A$1:$J$483,8,FALSE) ->  | AM14: =VLOOKUP(S14,lookup!$A$1:$J$483,9,FALSE) ->  | AN14: =VLOOKUP(S14,lookup!$A$1:$J$483,10,FALSE) ->  | AO14: =VLOOKUP(S14,lookup!$A$1:$J$483,5,FALSE) ->  | AP14: =VLOOKUP(S14,lookup!$A$1:$J$483,6,FALSE) ->  | AQ14: =VLOOKUP(S14,lookup!$A$1:$J$483,7,FALSE) ->  | AR14: =VLOOKUP(W14,lookup!$A$1:$J$483,2,FALSE) ->  | AS14: =VLOOKUP(W14,lookup!$A$1:$J$483,3,FALSE) ->  | AT14: =VLOOKUP(W14,lookup!$A$1:$J$483,4,FALSE) ->  | AU14: 17.5 | AV14: =VLOOKUP(AU14,lookup!$Q$2:$W$62,2,FALSE) -> 0.5 | AW14: =VLOOKUP(AU14,lookup!$Q$2:$W$62,3,FALSE) -> 0.49 | AX14: =VLOOKUP(AU14,lookup!$Q$2:$W$62,4,FALSE) -> 0.49 | AY14: =VLOOKUP(AU14,lookup!$Q$2:$W$62,5,FALSE) -> 1 | AZ14: =VLOOKUP(AU14,lookup!$Q$2:$W$62,6,FALSE) -> 0.5 | BA14: =VLOOKUP(AU14,lookup!$Q$2:$W$62,7,FALSE) -> 0.5 | BB14: 17.5 | BC14: =VLOOKUP(BB14,lookup!$Q$2:$W$62,2,FALSE) -> 0.5 | BD14: =VLOOKUP(BB14,lookup!$Q$2:$W$62,3,FALSE) -> 0.49 | BE14: =VLOOKUP(BB14,lookup!$Q$2:$W$62,4,FALSE) -> 0.49 | BF14: =VLOOKUP(BB14,lookup!$Q$2:$W$62,5,FALSE) -> 1 | BG14: =VLOOKUP(BB14,lookup!$Q$2:$W$62,6,FALSE) -> 0.5 | BH14: =VLOOKUP(BB14,lookup!$Q$2:$W$62,7,FALSE) -> 0.5 | BV14: 0 | BW14: =VLOOKUP(BV14,lookup!$Q$2:$W$62,2,FALSE) ->  | BX14: =VLOOKUP(BV14,lookup!$Q$2:$W$62,3,FALSE) ->  | BY14: =VLOOKUP(BV14,lookup!$Q$2:$W$62,4,FALSE) ->  | BZ14: =VLOOKUP(BV14,lookup!$Q$2:$W$62,5,FALSE) ->  | CA14: =VLOOKUP(BV14,lookup!$Q$2:$W$62,6,FALSE) ->  | CB14: =VLOOKUP(BV14,lookup!$Q$2:$W$62,7,FALSE) ->  | CC14: 0 | CD14: =VLOOKUP(CC14,lookup!$Q$2:$W$62,2,FALSE) ->  | CE14: =VLOOKUP(CC14,lookup!$Q$2:$W$62,3,FALSE) ->  | CF14: =VLOOKUP(CC14,lookup!$Q$2:$W$62,4,FALSE) ->  | CG14: =VLOOKUP(CC14,lookup!$Q$2:$W$62,5,FALSE) ->  | CH14: =VLOOKUP(CC14,lookup!$Q$2:$W$62,6,FALSE) ->  | CI14: =VLOOKUP(CC14,lookup!$Q$2:$W$62,7,FALSE) ->  | CW14: 0 | CX14: 1 | CY14: 0 | CZ14: 1 | DA14: 2 | DC14: =VLOOKUP(DB14,lookup!$Q$2:$W$62,2,FALSE) ->  | DD14: =VLOOKUP(DB14,lookup!$Q$2:$W$62,3,FALSE) ->  | DE14: =VLOOKUP(DB14,lookup!$Q$2:$W$62,4,FALSE) ->  | DF14: =VLOOKUP(DB14,lookup!$Q$2:$W$62,5,FALSE) ->  | DG14: =VLOOKUP(DB14,lookup!$Q$2:$W$62,6,FALSE) ->  | DH14: =VLOOKUP(DB14,lookup!$Q$2:$W$62,7,FALSE) -> 
R15: =IF(F15="","",VLOOKUP(P15,lookup!$L$2:$O$103,Data!Q15+1,FALSE)) ->  | X15: 0 | Y15: 0 | Z15: 0 | AI15: =VLOOKUP(S15,lookup!$A$1:$J$483,2,FALSE) ->  | AJ15: =VLOOKUP(S15,lookup!$A$1:$J$483,3,FALSE) ->  | AK15: =VLOOKUP(S15,lookup!$A$1:$J$483,4,FALSE) ->  | AL15: =VLOOKUP(S15,lookup!$A$1:$J$483,8,FALSE) ->  | AM15: =VLOOKUP(S15,lookup!$A$1:$J$483,9,FALSE) ->  | AN15: =VLOOKUP(S15,lookup!$A$1:$J$483,10,FALSE) ->  | AO15: =VLOOKUP(S15,lookup!$A$1:$J$483,5,FALSE) ->  | AP15: =VLOOKUP(S15,lookup!$A$1:$J$483,6,FALSE) ->  | AQ15: =VLOOKUP(S15,lookup!$A$1:$J$483,7,FALSE) ->  | AR15: =VLOOKUP(W15,lookup!$A$1:$J$483,2,FALSE) ->  | AS15: =VLOOKUP(W15,lookup!$A$1:$J$483,3,FALSE) ->  | AT15: =VLOOKUP(W15,lookup!$A$1:$J$483,4,FALSE) ->  | AU15: 17.5 | AV15: =VLOOKUP(AU15,lookup!$Q$2:$W$62,2,FALSE) -> 0.5 | AW15: =VLOOKUP(AU15,lookup!$Q$2:$W$62,3,FALSE) -> 0.49 | AX15: =VLOOKUP(AU15,lookup!$Q$2:$W$62,4,FALSE) -> 0.49 | AY15: =VLOOKUP(AU15,lookup!$Q$2:$W$62,5,FALSE) -> 1 | AZ15: =VLOOKUP(AU15,lookup!$Q$2:$W$62,6,FALSE) -> 0.5 | BA15: =VLOOKUP(AU15,lookup!$Q$2:$W$62,7,FALSE) -> 0.5 | BB15: 17.5 | BC15: =VLOOKUP(BB15,lookup!$Q$2:$W$62,2,FALSE) -> 0.5 | BD15: =VLOOKUP(BB15,lookup!$Q$2:$W$62,3,FALSE) -> 0.49 | BE15: =VLOOKUP(BB15,lookup!$Q$2:$W$62,4,FALSE) -> 0.49 | BF15: =VLOOKUP(BB15,lookup!$Q$2:$W$62,5,FALSE) -> 1 | BG15: =VLOOKUP(BB15,lookup!$Q$2:$W$62,6,FALSE) -> 0.5 | BH15: =VLOOKUP(BB15,lookup!$Q$2:$W$62,7,FALSE) -> 0.5 | BV15: 0 | BW15: =VLOOKUP(BV15,lookup!$Q$2:$W$62,2,FALSE) ->  | BX15: =VLOOKUP(BV15,lookup!$Q$2:$W$62,3,FALSE) ->  | BY15: =VLOOKUP(BV15,lookup!$Q$2:$W$62,4,FALSE) ->  | BZ15: =VLOOKUP(BV15,lookup!$Q$2:$W$62,5,FALSE) ->  | CA15: =VLOOKUP(BV15,lookup!$Q$2:$W$62,6,FALSE) ->  | CB15: =VLOOKUP(BV15,lookup!$Q$2:$W$62,7,FALSE) ->  | CC15: 0 | CD15: =VLOOKUP(CC15,lookup!$Q$2:$W$62,2,FALSE) ->  | CE15: =VLOOKUP(CC15,lookup!$Q$2:$W$62,3,FALSE) ->  | CF15: =VLOOKUP(CC15,lookup!$Q$2:$W$62,4,FALSE) ->  | CG15: =VLOOKUP(CC15,lookup!$Q$2:$W$62,5,FALSE) ->  | CH15: =VLOOKUP(CC15,lookup!$Q$2:$W$62,6,FALSE) ->  | CI15: =VLOOKUP(CC15,lookup!$Q$2:$W$62,7,FALSE) ->  | CW15: 0 | CX15: 1 | CY15: 0 | CZ15: 1 | DA15: 2 | DC15: =VLOOKUP(DB15,lookup!$Q$2:$W$62,2,FALSE) ->  | DD15: =VLOOKUP(DB15,lookup!$Q$2:$W$62,3,FALSE) ->  | DE15: =VLOOKUP(DB15,lookup!$Q$2:$W$62,4,FALSE) ->  | DF15: =VLOOKUP(DB15,lookup!$Q$2:$W$62,5,FALSE) ->  | DG15: =VLOOKUP(DB15,lookup!$Q$2:$W$62,6,FALSE) ->  | DH15: =VLOOKUP(DB15,lookup!$Q$2:$W$62,7,FALSE) -> 
R16: =IF(F16="","",VLOOKUP(P16,lookup!$L$2:$O$103,Data!Q16+1,FALSE)) ->  | X16: 0 | Y16: 0 | Z16: 0 | AI16: =VLOOKUP(S16,lookup!$A$1:$J$483,2,FALSE) ->  | AJ16: =VLOOKUP(S16,lookup!$A$1:$J$483,3,FALSE) ->  | AK16: =VLOOKUP(S16,lookup!$A$1:$J$483,4,FALSE) ->  | AL16: =VLOOKUP(S16,lookup!$A$1:$J$483,8,FALSE) ->  | AM16: =VLOOKUP(S16,lookup!$A$1:$J$483,9,FALSE) ->  | AN16: =VLOOKUP(S16,lookup!$A$1:$J$483,10,FALSE) ->  | AO16: =VLOOKUP(S16,lookup!$A$1:$J$483,5,FALSE) ->  | AP16: =VLOOKUP(S16,lookup!$A$1:$J$483,6,FALSE) ->  | AQ16: =VLOOKUP(S16,lookup!$A$1:$J$483,7,FALSE) ->  | AR16: =VLOOKUP(W16,lookup!$A$1:$J$483,2,FALSE) ->  | AS16: =VLOOKUP(W16,lookup!$A$1:$J$483,3,FALSE) ->  | AT16: =VLOOKUP(W16,lookup!$A$1:$J$483,4,FALSE) ->  | AU16: 17.5 | AV16: =VLOOKUP(AU16,lookup!$Q$2:$W$62,2,FALSE) -> 0.5 | AW16: =VLOOKUP(AU16,lookup!$Q$2:$W$62,3,FALSE) -> 0.49 | AX16: =VLOOKUP(AU16,lookup!$Q$2:$W$62,4,FALSE) -> 0.49 | AY16: =VLOOKUP(AU16,lookup!$Q$2:$W$62,5,FALSE) -> 1 | AZ16: =VLOOKUP(AU16,lookup!$Q$2:$W$62,6,FALSE) -> 0.5 | BA16: =VLOOKUP(AU16,lookup!$Q$2:$W$62,7,FALSE) -> 0.5 | BB16: 17.5 | BC16: =VLOOKUP(BB16,lookup!$Q$2:$W$62,2,FALSE) -> 0.5 | BD16: =VLOOKUP(BB16,lookup!$Q$2:$W$62,3,FALSE) -> 0.49 | BE16: =VLOOKUP(BB16,lookup!$Q$2:$W$62,4,FALSE) -> 0.49 | BF16: =VLOOKUP(BB16,lookup!$Q$2:$W$62,5,FALSE) -> 1 | BG16: =VLOOKUP(BB16,lookup!$Q$2:$W$62,6,FALSE) -> 0.5 | BH16: =VLOOKUP(BB16,lookup!$Q$2:$W$62,7,FALSE) -> 0.5 | BV16: 0 | BW16: =VLOOKUP(BV16,lookup!$Q$2:$W$62,2,FALSE) ->  | BX16: =VLOOKUP(BV16,lookup!$Q$2:$W$62,3,FALSE) ->  | BY16: =VLOOKUP(BV16,lookup!$Q$2:$W$62,4,FALSE) ->  | BZ16: =VLOOKUP(BV16,lookup!$Q$2:$W$62,5,FALSE) ->  | CA16: =VLOOKUP(BV16,lookup!$Q$2:$W$62,6,FALSE) ->  | CB16: =VLOOKUP(BV16,lookup!$Q$2:$W$62,7,FALSE) ->  | CC16: 0 | CD16: =VLOOKUP(CC16,lookup!$Q$2:$W$62,2,FALSE) ->  | CE16: =VLOOKUP(CC16,lookup!$Q$2:$W$62,3,FALSE) ->  | CF16: =VLOOKUP(CC16,lookup!$Q$2:$W$62,4,FALSE) ->  | CG16: =VLOOKUP(CC16,lookup!$Q$2:$W$62,5,FALSE) ->  | CH16: =VLOOKUP(CC16,lookup!$Q$2:$W$62,6,FALSE) ->  | CI16: =VLOOKUP(CC16,lookup!$Q$2:$W$62,7,FALSE) ->  | CW16: 0 | CX16: 1 | CY16: 0 | CZ16: 1 | DA16: 2 | DC16: =VLOOKUP(DB16,lookup!$Q$2:$W$62,2,FALSE) ->  | DD16: =VLOOKUP(DB16,lookup!$Q$2:$W$62,3,FALSE) ->  | DE16: =VLOOKUP(DB16,lookup!$Q$2:$W$62,4,FALSE) ->  | DF16: =VLOOKUP(DB16,lookup!$Q$2:$W$62,5,FALSE) ->  | DG16: =VLOOKUP(DB16,lookup!$Q$2:$W$62,6,FALSE) ->  | DH16: =VLOOKUP(DB16,lookup!$Q$2:$W$62,7,FALSE) -> 
R17: =IF(F17="","",VLOOKUP(P17,lookup!$L$2:$O$103,Data!Q17+1,FALSE)) ->  | X17: 0 | Y17: 0 | Z17: 0 | AI17: =VLOOKUP(S17,lookup!$A$1:$J$483,2,FALSE) ->  | AJ17: =VLOOKUP(S17,lookup!$A$1:$J$483,3,FALSE) ->  | AK17: =VLOOKUP(S17,lookup!$A$1:$J$483,4,FALSE) ->  | AL17: =VLOOKUP(S17,lookup!$A$1:$J$483,8,FALSE) ->  | AM17: =VLOOKUP(S17,lookup!$A$1:$J$483,9,FALSE) ->  | AN17: =VLOOKUP(S17,lookup!$A$1:$J$483,10,FALSE) ->  | AO17: =VLOOKUP(S17,lookup!$A$1:$J$483,5,FALSE) ->  | AP17: =VLOOKUP(S17,lookup!$A$1:$J$483,6,FALSE) ->  | AQ17: =VLOOKUP(S17,lookup!$A$1:$J$483,7,FALSE) ->  | AR17: =VLOOKUP(W17,lookup!$A$1:$J$483,2,FALSE) ->  | AS17: =VLOOKUP(W17,lookup!$A$1:$J$483,3,FALSE) ->  | AT17: =VLOOKUP(W17,lookup!$A$1:$J$483,4,FALSE) ->  | AU17: 17.5 | AV17: =VLOOKUP(AU17,lookup!$Q$2:$W$62,2,FALSE) -> 0.5 | AW17: =VLOOKUP(AU17,lookup!$Q$2:$W$62,3,FALSE) -> 0.49 | AX17: =VLOOKUP(AU17,lookup!$Q$2:$W$62,4,FALSE) -> 0.49 | AY17: =VLOOKUP(AU17,lookup!$Q$2:$W$62,5,FALSE) -> 1 | AZ17: =VLOOKUP(AU17,lookup!$Q$2:$W$62,6,FALSE) -> 0.5 | BA17: =VLOOKUP(AU17,lookup!$Q$2:$W$62,7,FALSE) -> 0.5 | BB17: 17.5 | BC17: =VLOOKUP(BB17,lookup!$Q$2:$W$62,2,FALSE) -> 0.5 | BD17: =VLOOKUP(BB17,lookup!$Q$2:$W$62,3,FALSE) -> 0.49 | BE17: =VLOOKUP(BB17,lookup!$Q$2:$W$62,4,FALSE) -> 0.49 | BF17: =VLOOKUP(BB17,lookup!$Q$2:$W$62,5,FALSE) -> 1 | BG17: =VLOOKUP(BB17,lookup!$Q$2:$W$62,6,FALSE) -> 0.5 | BH17: =VLOOKUP(BB17,lookup!$Q$2:$W$62,7,FALSE) -> 0.5 | BV17: 0 | BW17: =VLOOKUP(BV17,lookup!$Q$2:$W$62,2,FALSE) ->  | BX17: =VLOOKUP(BV17,lookup!$Q$2:$W$62,3,FALSE) ->  | BY17: =VLOOKUP(BV17,lookup!$Q$2:$W$62,4,FALSE) ->  | BZ17: =VLOOKUP(BV17,lookup!$Q$2:$W$62,5,FALSE) ->  | CA17: =VLOOKUP(BV17,lookup!$Q$2:$W$62,6,FALSE) ->  | CB17: =VLOOKUP(BV17,lookup!$Q$2:$W$62,7,FALSE) ->  | CC17: 0 | CD17: =VLOOKUP(CC17,lookup!$Q$2:$W$62,2,FALSE) ->  | CE17: =VLOOKUP(CC17,lookup!$Q$2:$W$62,3,FALSE) ->  | CF17: =VLOOKUP(CC17,lookup!$Q$2:$W$62,4,FALSE) ->  | CG17: =VLOOKUP(CC17,lookup!$Q$2:$W$62,5,FALSE) ->  | CH17: =VLOOKUP(CC17,lookup!$Q$2:$W$62,6,FALSE) ->  | CI17: =VLOOKUP(CC17,lookup!$Q$2:$W$62,7,FALSE) ->  | CW17: 0 | CX17: 1 | CY17: 0 | CZ17: 1 | DA17: 2 | DC17: =VLOOKUP(DB17,lookup!$Q$2:$W$62,2,FALSE) ->  | DD17: =VLOOKUP(DB17,lookup!$Q$2:$W$62,3,FALSE) ->  | DE17: =VLOOKUP(DB17,lookup!$Q$2:$W$62,4,FALSE) ->  | DF17: =VLOOKUP(DB17,lookup!$Q$2:$W$62,5,FALSE) ->  | DG17: =VLOOKUP(DB17,lookup!$Q$2:$W$62,6,FALSE) ->  | DH17: =VLOOKUP(DB17,lookup!$Q$2:$W$62,7,FALSE) -> 
R18: =IF(F18="","",VLOOKUP(P18,lookup!$L$2:$O$103,Data!Q18+1,FALSE)) ->  | X18: 0 | Y18: 0 | Z18: 0 | AI18: =VLOOKUP(S18,lookup!$A$1:$J$483,2,FALSE) ->  | AJ18: =VLOOKUP(S18,lookup!$A$1:$J$483,3,FALSE) ->  | AK18: =VLOOKUP(S18,lookup!$A$1:$J$483,4,FALSE) ->  | AL18: =VLOOKUP(S18,lookup!$A$1:$J$483,8,FALSE) ->  | AM18: =VLOOKUP(S18,lookup!$A$1:$J$483,9,FALSE) ->  | AN18: =VLOOKUP(S18,lookup!$A$1:$J$483,10,FALSE) ->  | AO18: =VLOOKUP(S18,lookup!$A$1:$J$483,5,FALSE) ->  | AP18: =VLOOKUP(S18,lookup!$A$1:$J$483,6,FALSE) ->  | AQ18: =VLOOKUP(S18,lookup!$A$1:$J$483,7,FALSE) ->  | AR18: =VLOOKUP(W18,lookup!$A$1:$J$483,2,FALSE) ->  | AS18: =VLOOKUP(W18,lookup!$A$1:$J$483,3,FALSE) ->  | AT18: =VLOOKUP(W18,lookup!$A$1:$J$483,4,FALSE) ->  | AU18: 17.5 | AV18: =VLOOKUP(AU18,lookup!$Q$2:$W$62,2,FALSE) -> 0.5 | AW18: =VLOOKUP(AU18,lookup!$Q$2:$W$62,3,FALSE) -> 0.49 | AX18: =VLOOKUP(AU18,lookup!$Q$2:$W$62,4,FALSE) -> 0.49 | AY18: =VLOOKUP(AU18,lookup!$Q$2:$W$62,5,FALSE) -> 1 | AZ18: =VLOOKUP(AU18,lookup!$Q$2:$W$62,6,FALSE) -> 0.5 | BA18: =VLOOKUP(AU18,lookup!$Q$2:$W$62,7,FALSE) -> 0.5 | BB18: 17.5 | BC18: =VLOOKUP(BB18,lookup!$Q$2:$W$62,2,FALSE) -> 0.5 | BD18: =VLOOKUP(BB18,lookup!$Q$2:$W$62,3,FALSE) -> 0.49 | BE18: =VLOOKUP(BB18,lookup!$Q$2:$W$62,4,FALSE) -> 0.49 | BF18: =VLOOKUP(BB18,lookup!$Q$2:$W$62,5,FALSE) -> 1 | BG18: =VLOOKUP(BB18,lookup!$Q$2:$W$62,6,FALSE) -> 0.5 | BH18: =VLOOKUP(BB18,lookup!$Q$2:$W$62,7,FALSE) -> 0.5 | BV18: 0 | BW18: =VLOOKUP(BV18,lookup!$Q$2:$W$62,2,FALSE) ->  | BX18: =VLOOKUP(BV18,lookup!$Q$2:$W$62,3,FALSE) ->  | BY18: =VLOOKUP(BV18,lookup!$Q$2:$W$62,4,FALSE) ->  | BZ18: =VLOOKUP(BV18,lookup!$Q$2:$W$62,5,FALSE) ->  | CA18: =VLOOKUP(BV18,lookup!$Q$2:$W$62,6,FALSE) ->  | CB18: =VLOOKUP(BV18,lookup!$Q$2:$W$62,7,FALSE) ->  | CC18: 0 | CD18: =VLOOKUP(CC18,lookup!$Q$2:$W$62,2,FALSE) ->  | CE18: =VLOOKUP(CC18,lookup!$Q$2:$W$62,3,FALSE) ->  | CF18: =VLOOKUP(CC18,lookup!$Q$2:$W$62,4,FALSE) ->  | CG18: =VLOOKUP(CC18,lookup!$Q$2:$W$62,5,FALSE) ->  | CH18: =VLOOKUP(CC18,lookup!$Q$2:$W$62,6,FALSE) ->  | CI18: =VLOOKUP(CC18,lookup!$Q$2:$W$62,7,FALSE) ->  | CW18: 0 | CX18: 1 | CY18: 0 | CZ18: 1 | DA18: 2 | DC18: =VLOOKUP(DB18,lookup!$Q$2:$W$62,2,FALSE) ->  | DD18: =VLOOKUP(DB18,lookup!$Q$2:$W$62,3,FALSE) ->  | DE18: =VLOOKUP(DB18,lookup!$Q$2:$W$62,4,FALSE) ->  | DF18: =VLOOKUP(DB18,lookup!$Q$2:$W$62,5,FALSE) ->  | DG18: =VLOOKUP(DB18,lookup!$Q$2:$W$62,6,FALSE) ->  | DH18: =VLOOKUP(DB18,lookup!$Q$2:$W$62,7,FALSE) -> 
R19: =IF(F19="","",VLOOKUP(P19,lookup!$L$2:$O$103,Data!Q19+1,FALSE)) ->  | X19: 0 | Y19: 0 | Z19: 0 | AI19: =VLOOKUP(S19,lookup!$A$1:$J$483,2,FALSE) ->  | AJ19: =VLOOKUP(S19,lookup!$A$1:$J$483,3,FALSE) ->  | AK19: =VLOOKUP(S19,lookup!$A$1:$J$483,4,FALSE) ->  | AL19: =VLOOKUP(S19,lookup!$A$1:$J$483,8,FALSE) ->  | AM19: =VLOOKUP(S19,lookup!$A$1:$J$483,9,FALSE) ->  | AN19: =VLOOKUP(S19,lookup!$A$1:$J$483,10,FALSE) ->  | AO19: =VLOOKUP(S19,lookup!$A$1:$J$483,5,FALSE) ->  | AP19: =VLOOKUP(S19,lookup!$A$1:$J$483,6,FALSE) ->  | AQ19: =VLOOKUP(S19,lookup!$A$1:$J$483,7,FALSE) ->  | AR19: =VLOOKUP(W19,lookup!$A$1:$J$483,2,FALSE) ->  | AS19: =VLOOKUP(W19,lookup!$A$1:$J$483,3,FALSE) ->  | AT19: =VLOOKUP(W19,lookup!$A$1:$J$483,4,FALSE) ->  | AU19: 17.5 | AV19: =VLOOKUP(AU19,lookup!$Q$2:$W$62,2,FALSE) -> 0.5 | AW19: =VLOOKUP(AU19,lookup!$Q$2:$W$62,3,FALSE) -> 0.49 | AX19: =VLOOKUP(AU19,lookup!$Q$2:$W$62,4,FALSE) -> 0.49 | AY19: =VLOOKUP(AU19,lookup!$Q$2:$W$62,5,FALSE) -> 1 | AZ19: =VLOOKUP(AU19,lookup!$Q$2:$W$62,6,FALSE) -> 0.5 | BA19: =VLOOKUP(AU19,lookup!$Q$2:$W$62,7,FALSE) -> 0.5 | BB19: 17.5 | BC19: =VLOOKUP(BB19,lookup!$Q$2:$W$62,2,FALSE) -> 0.5 | BD19: =VLOOKUP(BB19,lookup!$Q$2:$W$62,3,FALSE) -> 0.49 | BE19: =VLOOKUP(BB19,lookup!$Q$2:$W$62,4,FALSE) -> 0.49 | BF19: =VLOOKUP(BB19,lookup!$Q$2:$W$62,5,FALSE) -> 1 | BG19: =VLOOKUP(BB19,lookup!$Q$2:$W$62,6,FALSE) -> 0.5 | BH19: =VLOOKUP(BB19,lookup!$Q$2:$W$62,7,FALSE) -> 0.5 | BV19: 0 | BW19: =VLOOKUP(BV19,lookup!$Q$2:$W$62,2,FALSE) ->  | BX19: =VLOOKUP(BV19,lookup!$Q$2:$W$62,3,FALSE) ->  | BY19: =VLOOKUP(BV19,lookup!$Q$2:$W$62,4,FALSE) ->  | BZ19: =VLOOKUP(BV19,lookup!$Q$2:$W$62,5,FALSE) ->  | CA19: =VLOOKUP(BV19,lookup!$Q$2:$W$62,6,FALSE) ->  | CB19: =VLOOKUP(BV19,lookup!$Q$2:$W$62,7,FALSE) ->  | CC19: 0 | CD19: =VLOOKUP(CC19,lookup!$Q$2:$W$62,2,FALSE) ->  | CE19: =VLOOKUP(CC19,lookup!$Q$2:$W$62,3,FALSE) ->  | CF19: =VLOOKUP(CC19,lookup!$Q$2:$W$62,4,FALSE) ->  | CG19: =VLOOKUP(CC19,lookup!$Q$2:$W$62,5,FALSE) ->  | CH19: =VLOOKUP(CC19,lookup!$Q$2:$W$62,6,FALSE) ->  | CI19: =VLOOKUP(CC19,lookup!$Q$2:$W$62,7,FALSE) ->  | CW19: 0 | CX19: 1 | CY19: 0 | CZ19: 1 | DA19: 2 | DC19: =VLOOKUP(DB19,lookup!$Q$2:$W$62,2,FALSE) ->  | DD19: =VLOOKUP(DB19,lookup!$Q$2:$W$62,3,FALSE) ->  | DE19: =VLOOKUP(DB19,lookup!$Q$2:$W$62,4,FALSE) ->  | DF19: =VLOOKUP(DB19,lookup!$Q$2:$W$62,5,FALSE) ->  | DG19: =VLOOKUP(DB19,lookup!$Q$2:$W$62,6,FALSE) ->  | DH19: =VLOOKUP(DB19,lookup!$Q$2:$W$62,7,FALSE) -> 
R20: =IF(F20="","",VLOOKUP(P20,lookup!$L$2:$O$103,Data!Q20+1,FALSE)) ->  | X20: 0 | Y20: 0 | Z20: 0 | AI20: =VLOOKUP(S20,lookup!$A$1:$J$483,2,FALSE) ->  | AJ20: =VLOOKUP(S20,lookup!$A$1:$J$483,3,FALSE) ->  | AK20: =VLOOKUP(S20,lookup!$A$1:$J$483,4,FALSE) ->  | AL20: =VLOOKUP(S20,lookup!$A$1:$J$483,8,FALSE) ->  | AM20: =VLOOKUP(S20,lookup!$A$1:$J$483,9,FALSE) ->  | AN20: =VLOOKUP(S20,lookup!$A$1:$J$483,10,FALSE) ->  | AO20: =VLOOKUP(S20,lookup!$A$1:$J$483,5,FALSE) ->  | AP20: =VLOOKUP(S20,lookup!$A$1:$J$483,6,FALSE) ->  | AQ20: =VLOOKUP(S20,lookup!$A$1:$J$483,7,FALSE) ->  | AR20: =VLOOKUP(W20,lookup!$A$1:$J$483,2,FALSE) ->  | AS20: =VLOOKUP(W20,lookup!$A$1:$J$483,3,FALSE) ->  | AT20: =VLOOKUP(W20,lookup!$A$1:$J$483,4,FALSE) ->  | AU20: 17.5 | AV20: =VLOOKUP(AU20,lookup!$Q$2:$W$62,2,FALSE) -> 0.5 | AW20: =VLOOKUP(AU20,lookup!$Q$2:$W$62,3,FALSE) -> 0.49 | AX20: =VLOOKUP(AU20,lookup!$Q$2:$W$62,4,FALSE) -> 0.49 | AY20: =VLOOKUP(AU20,lookup!$Q$2:$W$62,5,FALSE) -> 1 | AZ20: =VLOOKUP(AU20,lookup!$Q$2:$W$62,6,FALSE) -> 0.5 | BA20: =VLOOKUP(AU20,lookup!$Q$2:$W$62,7,FALSE) -> 0.5 | BB20: 17.5 | BC20: =VLOOKUP(BB20,lookup!$Q$2:$W$62,2,FALSE) -> 0.5 | BD20: =VLOOKUP(BB20,lookup!$Q$2:$W$62,3,FALSE) -> 0.49 | BE20: =VLOOKUP(BB20,lookup!$Q$2:$W$62,4,FALSE) -> 0.49 | BF20: =VLOOKUP(BB20,lookup!$Q$2:$W$62,5,FALSE) -> 1 | BG20: =VLOOKUP(BB20,lookup!$Q$2:$W$62,6,FALSE) -> 0.5 | BH20: =VLOOKUP(BB20,lookup!$Q$2:$W$62,7,FALSE) -> 0.5 | BV20: 0 | BW20: =VLOOKUP(BV20,lookup!$Q$2:$W$62,2,FALSE) ->  | BX20: =VLOOKUP(BV20,lookup!$Q$2:$W$62,3,FALSE) ->  | BY20: =VLOOKUP(BV20,lookup!$Q$2:$W$62,4,FALSE) ->  | BZ20: =VLOOKUP(BV20,lookup!$Q$2:$W$62,5,FALSE) ->  | CA20: =VLOOKUP(BV20,lookup!$Q$2:$W$62,6,FALSE) ->  | CB20: =VLOOKUP(BV20,lookup!$Q$2:$W$62,7,FALSE) ->  | CC20: 0 | CD20: =VLOOKUP(CC20,lookup!$Q$2:$W$62,2,FALSE) ->  | CE20: =VLOOKUP(CC20,lookup!$Q$2:$W$62,3,FALSE) ->  | CF20: =VLOOKUP(CC20,lookup!$Q$2:$W$62,4,FALSE) ->  | CG20: =VLOOKUP(CC20,lookup!$Q$2:$W$62,5,FALSE) ->  | CH20: =VLOOKUP(CC20,lookup!$Q$2:$W$62,6,FALSE) ->  | CI20: =VLOOKUP(CC20,lookup!$Q$2:$W$62,7,FALSE) ->  | CW20: 0 | CX20: 1 | CY20: 0 | CZ20: 1 | DA20: 2 | DC20: =VLOOKUP(DB20,lookup!$Q$2:$W$62,2,FALSE) ->  | DD20: =VLOOKUP(DB20,lookup!$Q$2:$W$62,3,FALSE) ->  | DE20: =VLOOKUP(DB20,lookup!$Q$2:$W$62,4,FALSE) ->  | DF20: =VLOOKUP(DB20,lookup!$Q$2:$W$62,5,FALSE) ->  | DG20: =VLOOKUP(DB20,lookup!$Q$2:$W$62,6,FALSE) ->  | DH20: =VLOOKUP(DB20,lookup!$Q$2:$W$62,7,FALSE) -> 
R21: =IF(F21="","",VLOOKUP(P21,lookup!$L$2:$O$103,Data!Q21+1,FALSE)) ->  | X21: 0 | Y21: 0 | Z21: 0 | AI21: =VLOOKUP(S21,lookup!$A$1:$J$483,2,FALSE) ->  | AJ21: =VLOOKUP(S21,lookup!$A$1:$J$483,3,FALSE) ->  | AK21: =VLOOKUP(S21,lookup!$A$1:$J$483,4,FALSE) ->  | AL21: =VLOOKUP(S21,lookup!$A$1:$J$483,8,FALSE) ->  | AM21: =VLOOKUP(S21,lookup!$A$1:$J$483,9,FALSE) ->  | AN21: =VLOOKUP(S21,lookup!$A$1:$J$483,10,FALSE) ->  | AO21: =VLOOKUP(S21,lookup!$A$1:$J$483,5,FALSE) ->  | AP21: =VLOOKUP(S21,lookup!$A$1:$J$483,6,FALSE) ->  | AQ21: =VLOOKUP(S21,lookup!$A$1:$J$483,7,FALSE) ->  | AR21: =VLOOKUP(W21,lookup!$A$1:$J$483,2,FALSE) ->  | AS21: =VLOOKUP(W21,lookup!$A$1:$J$483,3,FALSE) ->  | AT21: =VLOOKUP(W21,lookup!$A$1:$J$483,4,FALSE) ->  | AU21: 17.5 | AV21: =VLOOKUP(AU21,lookup!$Q$2:$W$62,2,FALSE) -> 0.5 | AW21: =VLOOKUP(AU21,lookup!$Q$2:$W$62,3,FALSE) -> 0.49 | AX21: =VLOOKUP(AU21,lookup!$Q$2:$W$62,4,FALSE) -> 0.49 | AY21: =VLOOKUP(AU21,lookup!$Q$2:$W$62,5,FALSE) -> 1 | AZ21: =VLOOKUP(AU21,lookup!$Q$2:$W$62,6,FALSE) -> 0.5 | BA21: =VLOOKUP(AU21,lookup!$Q$2:$W$62,7,FALSE) -> 0.5 | BB21: 17.5 | BC21: =VLOOKUP(BB21,lookup!$Q$2:$W$62,2,FALSE) -> 0.5 | BD21: =VLOOKUP(BB21,lookup!$Q$2:$W$62,3,FALSE) -> 0.49 | BE21: =VLOOKUP(BB21,lookup!$Q$2:$W$62,4,FALSE) -> 0.49 | BF21: =VLOOKUP(BB21,lookup!$Q$2:$W$62,5,FALSE) -> 1 | BG21: =VLOOKUP(BB21,lookup!$Q$2:$W$62,6,FALSE) -> 0.5 | BH21: =VLOOKUP(BB21,lookup!$Q$2:$W$62,7,FALSE) -> 0.5 | BV21: 0 | BW21: =VLOOKUP(BV21,lookup!$Q$2:$W$62,2,FALSE) ->  | BX21: =VLOOKUP(BV21,lookup!$Q$2:$W$62,3,FALSE) ->  | BY21: =VLOOKUP(BV21,lookup!$Q$2:$W$62,4,FALSE) ->  | BZ21: =VLOOKUP(BV21,lookup!$Q$2:$W$62,5,FALSE) ->  | CA21: =VLOOKUP(BV21,lookup!$Q$2:$W$62,6,FALSE) ->  | CB21: =VLOOKUP(BV21,lookup!$Q$2:$W$62,7,FALSE) ->  | CC21: 0 | CD21: =VLOOKUP(CC21,lookup!$Q$2:$W$62,2,FALSE) ->  | CE21: =VLOOKUP(CC21,lookup!$Q$2:$W$62,3,FALSE) ->  | CF21: =VLOOKUP(CC21,lookup!$Q$2:$W$62,4,FALSE) ->  | CG21: =VLOOKUP(CC21,lookup!$Q$2:$W$62,5,FALSE) ->  | CH21: =VLOOKUP(CC21,lookup!$Q$2:$W$62,6,FALSE) ->  | CI21: =VLOOKUP(CC21,lookup!$Q$2:$W$62,7,FALSE) ->  | CW21: 0 | CX21: 1 | CY21: 0 | CZ21: 1 | DA21: 2 | DC21: =VLOOKUP(DB21,lookup!$Q$2:$W$62,2,FALSE) ->  | DD21: =VLOOKUP(DB21,lookup!$Q$2:$W$62,3,FALSE) ->  | DE21: =VLOOKUP(DB21,lookup!$Q$2:$W$62,4,FALSE) ->  | DF21: =VLOOKUP(DB21,lookup!$Q$2:$W$62,5,FALSE) ->  | DG21: =VLOOKUP(DB21,lookup!$Q$2:$W$62,6,FALSE) ->  | DH21: =VLOOKUP(DB21,lookup!$Q$2:$W$62,7,FALSE) -> 
R22: =IF(F22="","",VLOOKUP(P22,lookup!$L$2:$O$103,Data!Q22+1,FALSE)) ->  | X22: 0 | Y22: 0 | Z22: 0 | AI22: =VLOOKUP(S22,lookup!$A$1:$J$483,2,FALSE) ->  | AJ22: =VLOOKUP(S22,lookup!$A$1:$J$483,3,FALSE) ->  | AK22: =VLOOKUP(S22,lookup!$A$1:$J$483,4,FALSE) ->  | AL22: =VLOOKUP(S22,lookup!$A$1:$J$483,8,FALSE) ->  | AM22: =VLOOKUP(S22,lookup!$A$1:$J$483,9,FALSE) ->  | AN22: =VLOOKUP(S22,lookup!$A$1:$J$483,10,FALSE) ->  | AO22: =VLOOKUP(S22,lookup!$A$1:$J$483,5,FALSE) ->  | AP22: =VLOOKUP(S22,lookup!$A$1:$J$483,6,FALSE) ->  | AQ22: =VLOOKUP(S22,lookup!$A$1:$J$483,7,FALSE) ->  | AR22: =VLOOKUP(W22,lookup!$A$1:$J$483,2,FALSE) ->  | AS22: =VLOOKUP(W22,lookup!$A$1:$J$483,3,FALSE) ->  | AT22: =VLOOKUP(W22,lookup!$A$1:$J$483,4,FALSE) ->  | AU22: 17.5 | AV22: =VLOOKUP(AU22,lookup!$Q$2:$W$62,2,FALSE) -> 0.5 | AW22: =VLOOKUP(AU22,lookup!$Q$2:$W$62,3,FALSE) -> 0.49 | AX22: =VLOOKUP(AU22,lookup!$Q$2:$W$62,4,FALSE) -> 0.49 | AY22: =VLOOKUP(AU22,lookup!$Q$2:$W$62,5,FALSE) -> 1 | AZ22: =VLOOKUP(AU22,lookup!$Q$2:$W$62,6,FALSE) -> 0.5 | BA22: =VLOOKUP(AU22,lookup!$Q$2:$W$62,7,FALSE) -> 0.5 | BB22: 17.5 | BC22: =VLOOKUP(BB22,lookup!$Q$2:$W$62,2,FALSE) -> 0.5 | BD22: =VLOOKUP(BB22,lookup!$Q$2:$W$62,3,FALSE) -> 0.49 | BE22: =VLOOKUP(BB22,lookup!$Q$2:$W$62,4,FALSE) -> 0.49 | BF22: =VLOOKUP(BB22,lookup!$Q$2:$W$62,5,FALSE) -> 1 | BG22: =VLOOKUP(BB22,lookup!$Q$2:$W$62,6,FALSE) -> 0.5 | BH22: =VLOOKUP(BB22,lookup!$Q$2:$W$62,7,FALSE) -> 0.5 | BV22: 0 | BW22: =VLOOKUP(BV22,lookup!$Q$2:$W$62,2,FALSE) ->  | BX22: =VLOOKUP(BV22,lookup!$Q$2:$W$62,3,FALSE) ->  | BY22: =VLOOKUP(BV22,lookup!$Q$2:$W$62,4,FALSE) ->  | BZ22: =VLOOKUP(BV22,lookup!$Q$2:$W$62,5,FALSE) ->  | CA22: =VLOOKUP(BV22,lookup!$Q$2:$W$62,6,FALSE) ->  | CB22: =VLOOKUP(BV22,lookup!$Q$2:$W$62,7,FALSE) ->  | CC22: 0 | CD22: =VLOOKUP(CC22,lookup!$Q$2:$W$62,2,FALSE) ->  | CE22: =VLOOKUP(CC22,lookup!$Q$2:$W$62,3,FALSE) ->  | CF22: =VLOOKUP(CC22,lookup!$Q$2:$W$62,4,FALSE) ->  | CG22: =VLOOKUP(CC22,lookup!$Q$2:$W$62,5,FALSE) ->  | CH22: =VLOOKUP(CC22,lookup!$Q$2:$W$62,6,FALSE) ->  | CI22: =VLOOKUP(CC22,lookup!$Q$2:$W$62,7,FALSE) ->  | CW22: 0 | CX22: 1 | CY22: 0 | CZ22: 1 | DA22: 2 | DC22: =VLOOKUP(DB22,lookup!$Q$2:$W$62,2,FALSE) ->  | DD22: =VLOOKUP(DB22,lookup!$Q$2:$W$62,3,FALSE) ->  | DE22: =VLOOKUP(DB22,lookup!$Q$2:$W$62,4,FALSE) ->  | DF22: =VLOOKUP(DB22,lookup!$Q$2:$W$62,5,FALSE) ->  | DG22: =VLOOKUP(DB22,lookup!$Q$2:$W$62,6,FALSE) ->  | DH22: =VLOOKUP(DB22,lookup!$Q$2:$W$62,7,FALSE) -> 
R23: =IF(F23="","",VLOOKUP(P23,lookup!$L$2:$O$103,Data!Q23+1,FALSE)) ->  | X23: 0 | Y23: 0 | Z23: 0 | AI23: =VLOOKUP(S23,lookup!$A$1:$J$483,2,FALSE) ->  | AJ23: =VLOOKUP(S23,lookup!$A$1:$J$483,3,FALSE) ->  | AK23: =VLOOKUP(S23,lookup!$A$1:$J$483,4,FALSE) ->  | AL23: =VLOOKUP(S23,lookup!$A$1:$J$483,8,FALSE) ->  | AM23: =VLOOKUP(S23,lookup!$A$1:$J$483,9,FALSE) ->  | AN23: =VLOOKUP(S23,lookup!$A$1:$J$483,10,FALSE) ->  | AO23: =VLOOKUP(S23,lookup!$A$1:$J$483,5,FALSE) ->  | AP23: =VLOOKUP(S23,lookup!$A$1:$J$483,6,FALSE) ->  | AQ23: =VLOOKUP(S23,lookup!$A$1:$J$483,7,FALSE) ->  | AR23: =VLOOKUP(W23,lookup!$A$1:$J$483,2,FALSE) ->  | AS23: =VLOOKUP(W23,lookup!$A$1:$J$483,3,FALSE) ->  | AT23: =VLOOKUP(W23,lookup!$A$1:$J$483,4,FALSE) ->  | AU23: 17.5 | AV23: =VLOOKUP(AU23,lookup!$Q$2:$W$62,2,FALSE) -> 0.5 | AW23: =VLOOKUP(AU23,lookup!$Q$2:$W$62,3,FALSE) -> 0.49 | AX23: =VLOOKUP(AU23,lookup!$Q$2:$W$62,4,FALSE) -> 0.49 | AY23: =VLOOKUP(AU23,lookup!$Q$2:$W$62,5,FALSE) -> 1 | AZ23: =VLOOKUP(AU23,lookup!$Q$2:$W$62,6,FALSE) -> 0.5 | BA23: =VLOOKUP(AU23,lookup!$Q$2:$W$62,7,FALSE) -> 0.5 | BB23: 17.5 | BC23: =VLOOKUP(BB23,lookup!$Q$2:$W$62,2,FALSE) -> 0.5 | BD23: =VLOOKUP(BB23,lookup!$Q$2:$W$62,3,FALSE) -> 0.49 | BE23: =VLOOKUP(BB23,lookup!$Q$2:$W$62,4,FALSE) -> 0.49 | BF23: =VLOOKUP(BB23,lookup!$Q$2:$W$62,5,FALSE) -> 1 | BG23: =VLOOKUP(BB23,lookup!$Q$2:$W$62,6,FALSE) -> 0.5 | BH23: =VLOOKUP(BB23,lookup!$Q$2:$W$62,7,FALSE) -> 0.5 | BV23: 0 | BW23: =VLOOKUP(BV23,lookup!$Q$2:$W$62,2,FALSE) ->  | BX23: =VLOOKUP(BV23,lookup!$Q$2:$W$62,3,FALSE) ->  | BY23: =VLOOKUP(BV23,lookup!$Q$2:$W$62,4,FALSE) ->  | BZ23: =VLOOKUP(BV23,lookup!$Q$2:$W$62,5,FALSE) ->  | CA23: =VLOOKUP(BV23,lookup!$Q$2:$W$62,6,FALSE) ->  | CB23: =VLOOKUP(BV23,lookup!$Q$2:$W$62,7,FALSE) ->  | CC23: 0 | CD23: =VLOOKUP(CC23,lookup!$Q$2:$W$62,2,FALSE) ->  | CE23: =VLOOKUP(CC23,lookup!$Q$2:$W$62,3,FALSE) ->  | CF23: =VLOOKUP(CC23,lookup!$Q$2:$W$62,4,FALSE) ->  | CG23: =VLOOKUP(CC23,lookup!$Q$2:$W$62,5,FALSE) ->  | CH23: =VLOOKUP(CC23,lookup!$Q$2:$W$62,6,FALSE) ->  | CI23: =VLOOKUP(CC23,lookup!$Q$2:$W$62,7,FALSE) ->  | CW23: 0 | CX23: 1 | CY23: 0 | CZ23: 1 | DA23: 2 | DC23: =VLOOKUP(DB23,lookup!$Q$2:$W$62,2,FALSE) ->  | DD23: =VLOOKUP(DB23,lookup!$Q$2:$W$62,3,FALSE) ->  | DE23: =VLOOKUP(DB23,lookup!$Q$2:$W$62,4,FALSE) ->  | DF23: =VLOOKUP(DB23,lookup!$Q$2:$W$62,5,FALSE) ->  | DG23: =VLOOKUP(DB23,lookup!$Q$2:$W$62,6,FALSE) ->  | DH23: =VLOOKUP(DB23,lookup!$Q$2:$W$62,7,FALSE) -> 
R24: =IF(F24="","",VLOOKUP(P24,lookup!$L$2:$O$103,Data!Q24+1,FALSE)) ->  | X24: 0 | Y24: 0 | Z24: 0 | AI24: =VLOOKUP(S24,lookup!$A$1:$J$483,2,FALSE) ->  | AJ24: =VLOOKUP(S24,lookup!$A$1:$J$483,3,FALSE) ->  | AK24: =VLOOKUP(S24,lookup!$A$1:$J$483,4,FALSE) ->  | AL24: =VLOOKUP(S24,lookup!$A$1:$J$483,8,FALSE) ->  | AM24: =VLOOKUP(S24,lookup!$A$1:$J$483,9,FALSE) ->  | AN24: =VLOOKUP(S24,lookup!$A$1:$J$483,10,FALSE) ->  | AO24: =VLOOKUP(S24,lookup!$A$1:$J$483,5,FALSE) ->  | AP24: =VLOOKUP(S24,lookup!$A$1:$J$483,6,FALSE) ->  | AQ24: =VLOOKUP(S24,lookup!$A$1:$J$483,7,FALSE) ->  | AR24: =VLOOKUP(W24,lookup!$A$1:$J$483,2,FALSE) ->  | AS24: =VLOOKUP(W24,lookup!$A$1:$J$483,3,FALSE) ->  | AT24: =VLOOKUP(W24,lookup!$A$1:$J$483,4,FALSE) ->  | AU24: 17.5 | AV24: =VLOOKUP(AU24,lookup!$Q$2:$W$62,2,FALSE) -> 0.5 | AW24: =VLOOKUP(AU24,lookup!$Q$2:$W$62,3,FALSE) -> 0.49 | AX24: =VLOOKUP(AU24,lookup!$Q$2:$W$62,4,FALSE) -> 0.49 | AY24: =VLOOKUP(AU24,lookup!$Q$2:$W$62,5,FALSE) -> 1 | AZ24: =VLOOKUP(AU24,lookup!$Q$2:$W$62,6,FALSE) -> 0.5 | BA24: =VLOOKUP(AU24,lookup!$Q$2:$W$62,7,FALSE) -> 0.5 | BB24: 17.5 | BC24: =VLOOKUP(BB24,lookup!$Q$2:$W$62,2,FALSE) -> 0.5 | BD24: =VLOOKUP(BB24,lookup!$Q$2:$W$62,3,FALSE) -> 0.49 | BE24: =VLOOKUP(BB24,lookup!$Q$2:$W$62,4,FALSE) -> 0.49 | BF24: =VLOOKUP(BB24,lookup!$Q$2:$W$62,5,FALSE) -> 1 | BG24: =VLOOKUP(BB24,lookup!$Q$2:$W$62,6,FALSE) -> 0.5 | BH24: =VLOOKUP(BB24,lookup!$Q$2:$W$62,7,FALSE) -> 0.5 | BV24: 0 | BW24: =VLOOKUP(BV24,lookup!$Q$2:$W$62,2,FALSE) ->  | BX24: =VLOOKUP(BV24,lookup!$Q$2:$W$62,3,FALSE) ->  | BY24: =VLOOKUP(BV24,lookup!$Q$2:$W$62,4,FALSE) ->  | BZ24: =VLOOKUP(BV24,lookup!$Q$2:$W$62,5,FALSE) ->  | CA24: =VLOOKUP(BV24,lookup!$Q$2:$W$62,6,FALSE) ->  | CB24: =VLOOKUP(BV24,lookup!$Q$2:$W$62,7,FALSE) ->  | CC24: 0 | CD24: =VLOOKUP(CC24,lookup!$Q$2:$W$62,2,FALSE) ->  | CE24: =VLOOKUP(CC24,lookup!$Q$2:$W$62,3,FALSE) ->  | CF24: =VLOOKUP(CC24,lookup!$Q$2:$W$62,4,FALSE) ->  | CG24: =VLOOKUP(CC24,lookup!$Q$2:$W$62,5,FALSE) ->  | CH24: =VLOOKUP(CC24,lookup!$Q$2:$W$62,6,FALSE) ->  | CI24: =VLOOKUP(CC24,lookup!$Q$2:$W$62,7,FALSE) ->  | CW24: 0 | CX24: 1 | CY24: 0 | CZ24: 1 | DA24: 2 | DC24: =VLOOKUP(DB24,lookup!$Q$2:$W$62,2,FALSE) ->  | DD24: =VLOOKUP(DB24,lookup!$Q$2:$W$62,3,FALSE) ->  | DE24: =VLOOKUP(DB24,lookup!$Q$2:$W$62,4,FALSE) ->  | DF24: =VLOOKUP(DB24,lookup!$Q$2:$W$62,5,FALSE) ->  | DG24: =VLOOKUP(DB24,lookup!$Q$2:$W$62,6,FALSE) ->  | DH24: =VLOOKUP(DB24,lookup!$Q$2:$W$62,7,FALSE) -> 
R25: =IF(F25="","",VLOOKUP(P25,lookup!$L$2:$O$103,Data!Q25+1,FALSE)) ->  | X25: 0 | Y25: 0 | Z25: 0 | AI25: =VLOOKUP(S25,lookup!$A$1:$J$483,2,FALSE) ->  | AJ25: =VLOOKUP(S25,lookup!$A$1:$J$483,3,FALSE) ->  | AK25: =VLOOKUP(S25,lookup!$A$1:$J$483,4,FALSE) ->  | AL25: =VLOOKUP(S25,lookup!$A$1:$J$483,8,FALSE) ->  | AM25: =VLOOKUP(S25,lookup!$A$1:$J$483,9,FALSE) ->  | AN25: =VLOOKUP(S25,lookup!$A$1:$J$483,10,FALSE) ->  | AO25: =VLOOKUP(S25,lookup!$A$1:$J$483,5,FALSE) ->  | AP25: =VLOOKUP(S25,lookup!$A$1:$J$483,6,FALSE) ->  | AQ25: =VLOOKUP(S25,lookup!$A$1:$J$483,7,FALSE) ->  | AR25: =VLOOKUP(W25,lookup!$A$1:$J$483,2,FALSE) ->  | AS25: =VLOOKUP(W25,lookup!$A$1:$J$483,3,FALSE) ->  | AT25: =VLOOKUP(W25,lookup!$A$1:$J$483,4,FALSE) ->  | AU25: 17.5 | AV25: =VLOOKUP(AU25,lookup!$Q$2:$W$62,2,FALSE) -> 0.5 | AW25: =VLOOKUP(AU25,lookup!$Q$2:$W$62,3,FALSE) -> 0.49 | AX25: =VLOOKUP(AU25,lookup!$Q$2:$W$62,4,FALSE) -> 0.49 | AY25: =VLOOKUP(AU25,lookup!$Q$2:$W$62,5,FALSE) -> 1 | AZ25: =VLOOKUP(AU25,lookup!$Q$2:$W$62,6,FALSE) -> 0.5 | BA25: =VLOOKUP(AU25,lookup!$Q$2:$W$62,7,FALSE) -> 0.5 | BB25: 17.5 | BC25: =VLOOKUP(BB25,lookup!$Q$2:$W$62,2,FALSE) -> 0.5 | BD25: =VLOOKUP(BB25,lookup!$Q$2:$W$62,3,FALSE) -> 0.49 | BE25: =VLOOKUP(BB25,lookup!$Q$2:$W$62,4,FALSE) -> 0.49 | BF25: =VLOOKUP(BB25,lookup!$Q$2:$W$62,5,FALSE) -> 1 | BG25: =VLOOKUP(BB25,lookup!$Q$2:$W$62,6,FALSE) -> 0.5 | BH25: =VLOOKUP(BB25,lookup!$Q$2:$W$62,7,FALSE) -> 0.5 | BV25: 0 | BW25: =VLOOKUP(BV25,lookup!$Q$2:$W$62,2,FALSE) ->  | BX25: =VLOOKUP(BV25,lookup!$Q$2:$W$62,3,FALSE) ->  | BY25: =VLOOKUP(BV25,lookup!$Q$2:$W$62,4,FALSE) ->  | BZ25: =VLOOKUP(BV25,lookup!$Q$2:$W$62,5,FALSE) ->  | CA25: =VLOOKUP(BV25,lookup!$Q$2:$W$62,6,FALSE) ->  | CB25: =VLOOKUP(BV25,lookup!$Q$2:$W$62,7,FALSE) ->  | CC25: 0 | CD25: =VLOOKUP(CC25,lookup!$Q$2:$W$62,2,FALSE) ->  | CE25: =VLOOKUP(CC25,lookup!$Q$2:$W$62,3,FALSE) ->  | CF25: =VLOOKUP(CC25,lookup!$Q$2:$W$62,4,FALSE) ->  | CG25: =VLOOKUP(CC25,lookup!$Q$2:$W$62,5,FALSE) ->  | CH25: =VLOOKUP(CC25,lookup!$Q$2:$W$62,6,FALSE) ->  | CI25: =VLOOKUP(CC25,lookup!$Q$2:$W$62,7,FALSE) ->  | CW25: 0 | CX25: 1 | CY25: 0 | CZ25: 1 | DA25: 2 | DC25: =VLOOKUP(DB25,lookup!$Q$2:$W$62,2,FALSE) ->  | DD25: =VLOOKUP(DB25,lookup!$Q$2:$W$62,3,FALSE) ->  | DE25: =VLOOKUP(DB25,lookup!$Q$2:$W$62,4,FALSE) ->  | DF25: =VLOOKUP(DB25,lookup!$Q$2:$W$62,5,FALSE) ->  | DG25: =VLOOKUP(DB25,lookup!$Q$2:$W$62,6,FALSE) ->  | DH25: =VLOOKUP(DB25,lookup!$Q$2:$W$62,7,FALSE) -> 
R26: =IF(F26="","",VLOOKUP(P26,lookup!$L$2:$O$103,Data!Q26+1,FALSE)) ->  | X26: 0 | Y26: 0 | Z26: 0 | AI26: =VLOOKUP(S26,lookup!$A$1:$J$483,2,FALSE) ->  | AJ26: =VLOOKUP(S26,lookup!$A$1:$J$483,3,FALSE) ->  | AK26: =VLOOKUP(S26,lookup!$A$1:$J$483,4,FALSE) ->  | AL26: =VLOOKUP(S26,lookup!$A$1:$J$483,8,FALSE) ->  | AM26: =VLOOKUP(S26,lookup!$A$1:$J$483,9,FALSE) ->  | AN26: =VLOOKUP(S26,lookup!$A$1:$J$483,10,FALSE) ->  | AO26: =VLOOKUP(S26,lookup!$A$1:$J$483,5,FALSE) ->  | AP26: =VLOOKUP(S26,lookup!$A$1:$J$483,6,FALSE) ->  | AQ26: =VLOOKUP(S26,lookup!$A$1:$J$483,7,FALSE) ->  | AR26: =VLOOKUP(W26,lookup!$A$1:$J$483,2,FALSE) ->  | AS26: =VLOOKUP(W26,lookup!$A$1:$J$483,3,FALSE) ->  | AT26: =VLOOKUP(W26,lookup!$A$1:$J$483,4,FALSE) ->  | AU26: 17.5 | AV26: =VLOOKUP(AU26,lookup!$Q$2:$W$62,2,FALSE) -> 0.5 | AW26: =VLOOKUP(AU26,lookup!$Q$2:$W$62,3,FALSE) -> 0.49 | AX26: =VLOOKUP(AU26,lookup!$Q$2:$W$62,4,FALSE) -> 0.49 | AY26: =VLOOKUP(AU26,lookup!$Q$2:$W$62,5,FALSE) -> 1 | AZ26: =VLOOKUP(AU26,lookup!$Q$2:$W$62,6,FALSE) -> 0.5 | BA26: =VLOOKUP(AU26,lookup!$Q$2:$W$62,7,FALSE) -> 0.5 | BB26: 17.5 | BC26: =VLOOKUP(BB26,lookup!$Q$2:$W$62,2,FALSE) -> 0.5 | BD26: =VLOOKUP(BB26,lookup!$Q$2:$W$62,3,FALSE) -> 0.49 | BE26: =VLOOKUP(BB26,lookup!$Q$2:$W$62,4,FALSE) -> 0.49 | BF26: =VLOOKUP(BB26,lookup!$Q$2:$W$62,5,FALSE) -> 1 | BG26: =VLOOKUP(BB26,lookup!$Q$2:$W$62,6,FALSE) -> 0.5 | BH26: =VLOOKUP(BB26,lookup!$Q$2:$W$62,7,FALSE) -> 0.5 | BV26: 0 | BW26: =VLOOKUP(BV26,lookup!$Q$2:$W$62,2,FALSE) ->  | BX26: =VLOOKUP(BV26,lookup!$Q$2:$W$62,3,FALSE) ->  | BY26: =VLOOKUP(BV26,lookup!$Q$2:$W$62,4,FALSE) ->  | BZ26: =VLOOKUP(BV26,lookup!$Q$2:$W$62,5,FALSE) ->  | CA26: =VLOOKUP(BV26,lookup!$Q$2:$W$62,6,FALSE) ->  | CB26: =VLOOKUP(BV26,lookup!$Q$2:$W$62,7,FALSE) ->  | CC26: 0 | CD26: =VLOOKUP(CC26,lookup!$Q$2:$W$62,2,FALSE) ->  | CE26: =VLOOKUP(CC26,lookup!$Q$2:$W$62,3,FALSE) ->  | CF26: =VLOOKUP(CC26,lookup!$Q$2:$W$62,4,FALSE) ->  | CG26: =VLOOKUP(CC26,lookup!$Q$2:$W$62,5,FALSE) ->  | CH26: =VLOOKUP(CC26,lookup!$Q$2:$W$62,6,FALSE) ->  | CI26: =VLOOKUP(CC26,lookup!$Q$2:$W$62,7,FALSE) ->  | CW26: 0 | CX26: 1 | CY26: 0 | CZ26: 1 | DA26: 2 | DC26: =VLOOKUP(DB26,lookup!$Q$2:$W$62,2,FALSE) ->  | DD26: =VLOOKUP(DB26,lookup!$Q$2:$W$62,3,FALSE) ->  | DE26: =VLOOKUP(DB26,lookup!$Q$2:$W$62,4,FALSE) ->  | DF26: =VLOOKUP(DB26,lookup!$Q$2:$W$62,5,FALSE) ->  | DG26: =VLOOKUP(DB26,lookup!$Q$2:$W$62,6,FALSE) ->  | DH26: =VLOOKUP(DB26,lookup!$Q$2:$W$62,7,FALSE) -> 
R27: =IF(F27="","",VLOOKUP(P27,lookup!$L$2:$O$103,Data!Q27+1,FALSE)) ->  | X27: 0 | Y27: 0 | Z27: 0 | AI27: =VLOOKUP(S27,lookup!$A$1:$J$483,2,FALSE) ->  | AJ27: =VLOOKUP(S27,lookup!$A$1:$J$483,3,FALSE) ->  | AK27: =VLOOKUP(S27,lookup!$A$1:$J$483,4,FALSE) ->  | AL27: =VLOOKUP(S27,lookup!$A$1:$J$483,8,FALSE) ->  | AM27: =VLOOKUP(S27,lookup!$A$1:$J$483,9,FALSE) ->  | AN27: =VLOOKUP(S27,lookup!$A$1:$J$483,10,FALSE) ->  | AO27: =VLOOKUP(S27,lookup!$A$1:$J$483,5,FALSE) ->  | AP27: =VLOOKUP(S27,lookup!$A$1:$J$483,6,FALSE) ->  | AQ27: =VLOOKUP(S27,lookup!$A$1:$J$483,7,FALSE) ->  | AR27: =VLOOKUP(W27,lookup!$A$1:$J$483,2,FALSE) ->  | AS27: =VLOOKUP(W27,lookup!$A$1:$J$483,3,FALSE) ->  | AT27: =VLOOKUP(W27,lookup!$A$1:$J$483,4,FALSE) ->  | AU27: 17.5 | AV27: =VLOOKUP(AU27,lookup!$Q$2:$W$62,2,FALSE) -> 0.5 | AW27: =VLOOKUP(AU27,lookup!$Q$2:$W$62,3,FALSE) -> 0.49 | AX27: =VLOOKUP(AU27,lookup!$Q$2:$W$62,4,FALSE) -> 0.49 | AY27: =VLOOKUP(AU27,lookup!$Q$2:$W$62,5,FALSE) -> 1 | AZ27: =VLOOKUP(AU27,lookup!$Q$2:$W$62,6,FALSE) -> 0.5 | BA27: =VLOOKUP(AU27,lookup!$Q$2:$W$62,7,FALSE) -> 0.5 | BB27: 17.5 | BC27: =VLOOKUP(BB27,lookup!$Q$2:$W$62,2,FALSE) -> 0.5 | BD27: =VLOOKUP(BB27,lookup!$Q$2:$W$62,3,FALSE) -> 0.49 | BE27: =VLOOKUP(BB27,lookup!$Q$2:$W$62,4,FALSE) -> 0.49 | BF27: =VLOOKUP(BB27,lookup!$Q$2:$W$62,5,FALSE) -> 1 | BG27: =VLOOKUP(BB27,lookup!$Q$2:$W$62,6,FALSE) -> 0.5 | BH27: =VLOOKUP(BB27,lookup!$Q$2:$W$62,7,FALSE) -> 0.5 | BV27: 0 | BW27: =VLOOKUP(BV27,lookup!$Q$2:$W$62,2,FALSE) ->  | BX27: =VLOOKUP(BV27,lookup!$Q$2:$W$62,3,FALSE) ->  | BY27: =VLOOKUP(BV27,lookup!$Q$2:$W$62,4,FALSE) ->  | BZ27: =VLOOKUP(BV27,lookup!$Q$2:$W$62,5,FALSE) ->  | CA27: =VLOOKUP(BV27,lookup!$Q$2:$W$62,6,FALSE) ->  | CB27: =VLOOKUP(BV27,lookup!$Q$2:$W$62,7,FALSE) ->  | CC27: 0 | CD27: =VLOOKUP(CC27,lookup!$Q$2:$W$62,2,FALSE) ->  | CE27: =VLOOKUP(CC27,lookup!$Q$2:$W$62,3,FALSE) ->  | CF27: =VLOOKUP(CC27,lookup!$Q$2:$W$62,4,FALSE) ->  | CG27: =VLOOKUP(CC27,lookup!$Q$2:$W$62,5,FALSE) ->  | CH27: =VLOOKUP(CC27,lookup!$Q$2:$W$62,6,FALSE) ->  | CI27: =VLOOKUP(CC27,lookup!$Q$2:$W$62,7,FALSE) ->  | CW27: 0 | CX27: 1 | CY27: 0 | CZ27: 1 | DA27: 2 | DC27: =VLOOKUP(DB27,lookup!$Q$2:$W$62,2,FALSE) ->  | DD27: =VLOOKUP(DB27,lookup!$Q$2:$W$62,3,FALSE) ->  | DE27: =VLOOKUP(DB27,lookup!$Q$2:$W$62,4,FALSE) ->  | DF27: =VLOOKUP(DB27,lookup!$Q$2:$W$62,5,FALSE) ->  | DG27: =VLOOKUP(DB27,lookup!$Q$2:$W$62,6,FALSE) ->  | DH27: =VLOOKUP(DB27,lookup!$Q$2:$W$62,7,FALSE) -> 
R28: =IF(F28="","",VLOOKUP(P28,lookup!$L$2:$O$103,Data!Q28+1,FALSE)) ->  | X28: 0 | Y28: 0 | Z28: 0 | AI28: =VLOOKUP(S28,lookup!$A$1:$J$483,2,FALSE) ->  | AJ28: =VLOOKUP(S28,lookup!$A$1:$J$483,3,FALSE) ->  | AK28: =VLOOKUP(S28,lookup!$A$1:$J$483,4,FALSE) ->  | AL28: =VLOOKUP(S28,lookup!$A$1:$J$483,8,FALSE) ->  | AM28: =VLOOKUP(S28,lookup!$A$1:$J$483,9,FALSE) ->  | AN28: =VLOOKUP(S28,lookup!$A$1:$J$483,10,FALSE) ->  | AO28: =VLOOKUP(S28,lookup!$A$1:$J$483,5,FALSE) ->  | AP28: =VLOOKUP(S28,lookup!$A$1:$J$483,6,FALSE) ->  | AQ28: =VLOOKUP(S28,lookup!$A$1:$J$483,7,FALSE) ->  | AR28: =VLOOKUP(W28,lookup!$A$1:$J$483,2,FALSE) ->  | AS28: =VLOOKUP(W28,lookup!$A$1:$J$483,3,FALSE) ->  | AT28: =VLOOKUP(W28,lookup!$A$1:$J$483,4,FALSE) ->  | AU28: 17.5 | AV28: =VLOOKUP(AU28,lookup!$Q$2:$W$62,2,FALSE) -> 0.5 | AW28: =VLOOKUP(AU28,lookup!$Q$2:$W$62,3,FALSE) -> 0.49 | AX28: =VLOOKUP(AU28,lookup!$Q$2:$W$62,4,FALSE) -> 0.49 | AY28: =VLOOKUP(AU28,lookup!$Q$2:$W$62,5,FALSE) -> 1 | AZ28: =VLOOKUP(AU28,lookup!$Q$2:$W$62,6,FALSE) -> 0.5 | BA28: =VLOOKUP(AU28,lookup!$Q$2:$W$62,7,FALSE) -> 0.5 | BB28: 17.5 | BC28: =VLOOKUP(BB28,lookup!$Q$2:$W$62,2,FALSE) -> 0.5 | BD28: =VLOOKUP(BB28,lookup!$Q$2:$W$62,3,FALSE) -> 0.49 | BE28: =VLOOKUP(BB28,lookup!$Q$2:$W$62,4,FALSE) -> 0.49 | BF28: =VLOOKUP(BB28,lookup!$Q$2:$W$62,5,FALSE) -> 1 | BG28: =VLOOKUP(BB28,lookup!$Q$2:$W$62,6,FALSE) -> 0.5 | BH28: =VLOOKUP(BB28,lookup!$Q$2:$W$62,7,FALSE) -> 0.5 | BV28: 0 | BW28: =VLOOKUP(BV28,lookup!$Q$2:$W$62,2,FALSE) ->  | BX28: =VLOOKUP(BV28,lookup!$Q$2:$W$62,3,FALSE) ->  | BY28: =VLOOKUP(BV28,lookup!$Q$2:$W$62,4,FALSE) ->  | BZ28: =VLOOKUP(BV28,lookup!$Q$2:$W$62,5,FALSE) ->  | CA28: =VLOOKUP(BV28,lookup!$Q$2:$W$62,6,FALSE) ->  | CB28: =VLOOKUP(BV28,lookup!$Q$2:$W$62,7,FALSE) ->  | CC28: 0 | CD28: =VLOOKUP(CC28,lookup!$Q$2:$W$62,2,FALSE) ->  | CE28: =VLOOKUP(CC28,lookup!$Q$2:$W$62,3,FALSE) ->  | CF28: =VLOOKUP(CC28,lookup!$Q$2:$W$62,4,FALSE) ->  | CG28: =VLOOKUP(CC28,lookup!$Q$2:$W$62,5,FALSE) ->  | CH28: =VLOOKUP(CC28,lookup!$Q$2:$W$62,6,FALSE) ->  | CI28: =VLOOKUP(CC28,lookup!$Q$2:$W$62,7,FALSE) ->  | CW28: 0 | CX28: 1 | CY28: 0 | CZ28: 1 | DA28: 2 | DC28: =VLOOKUP(DB28,lookup!$Q$2:$W$62,2,FALSE) ->  | DD28: =VLOOKUP(DB28,lookup!$Q$2:$W$62,3,FALSE) ->  | DE28: =VLOOKUP(DB28,lookup!$Q$2:$W$62,4,FALSE) ->  | DF28: =VLOOKUP(DB28,lookup!$Q$2:$W$62,5,FALSE) ->  | DG28: =VLOOKUP(DB28,lookup!$Q$2:$W$62,6,FALSE) ->  | DH28: =VLOOKUP(DB28,lookup!$Q$2:$W$62,7,FALSE) -> 
R29: =IF(F29="","",VLOOKUP(P29,lookup!$L$2:$O$103,Data!Q29+1,FALSE)) ->  | X29: 0 | Y29: 0 | Z29: 0 | AI29: =VLOOKUP(S29,lookup!$A$1:$J$483,2,FALSE) ->  | AJ29: =VLOOKUP(S29,lookup!$A$1:$J$483,3,FALSE) ->  | AK29: =VLOOKUP(S29,lookup!$A$1:$J$483,4,FALSE) ->  | AL29: =VLOOKUP(S29,lookup!$A$1:$J$483,8,FALSE) ->  | AM29: =VLOOKUP(S29,lookup!$A$1:$J$483,9,FALSE) ->  | AN29: =VLOOKUP(S29,lookup!$A$1:$J$483,10,FALSE) ->  | AO29: =VLOOKUP(S29,lookup!$A$1:$J$483,5,FALSE) ->  | AP29: =VLOOKUP(S29,lookup!$A$1:$J$483,6,FALSE) ->  | AQ29: =VLOOKUP(S29,lookup!$A$1:$J$483,7,FALSE) ->  | AR29: =VLOOKUP(W29,lookup!$A$1:$J$483,2,FALSE) ->  | AS29: =VLOOKUP(W29,lookup!$A$1:$J$483,3,FALSE) ->  | AT29: =VLOOKUP(W29,lookup!$A$1:$J$483,4,FALSE) ->  | AU29: 17.5 | AV29: =VLOOKUP(AU29,lookup!$Q$2:$W$62,2,FALSE) -> 0.5 | AW29: =VLOOKUP(AU29,lookup!$Q$2:$W$62,3,FALSE) -> 0.49 | AX29: =VLOOKUP(AU29,lookup!$Q$2:$W$62,4,FALSE) -> 0.49 | AY29: =VLOOKUP(AU29,lookup!$Q$2:$W$62,5,FALSE) -> 1 | AZ29: =VLOOKUP(AU29,lookup!$Q$2:$W$62,6,FALSE) -> 0.5 | BA29: =VLOOKUP(AU29,lookup!$Q$2:$W$62,7,FALSE) -> 0.5 | BB29: 17.5 | BC29: =VLOOKUP(BB29,lookup!$Q$2:$W$62,2,FALSE) -> 0.5 | BD29: =VLOOKUP(BB29,lookup!$Q$2:$W$62,3,FALSE) -> 0.49 | BE29: =VLOOKUP(BB29,lookup!$Q$2:$W$62,4,FALSE) -> 0.49 | BF29: =VLOOKUP(BB29,lookup!$Q$2:$W$62,5,FALSE) -> 1 | BG29: =VLOOKUP(BB29,lookup!$Q$2:$W$62,6,FALSE) -> 0.5 | BH29: =VLOOKUP(BB29,lookup!$Q$2:$W$62,7,FALSE) -> 0.5 | BV29: 0 | BW29: =VLOOKUP(BV29,lookup!$Q$2:$W$62,2,FALSE) ->  | BX29: =VLOOKUP(BV29,lookup!$Q$2:$W$62,3,FALSE) ->  | BY29: =VLOOKUP(BV29,lookup!$Q$2:$W$62,4,FALSE) ->  | BZ29: =VLOOKUP(BV29,lookup!$Q$2:$W$62,5,FALSE) ->  | CA29: =VLOOKUP(BV29,lookup!$Q$2:$W$62,6,FALSE) ->  | CB29: =VLOOKUP(BV29,lookup!$Q$2:$W$62,7,FALSE) ->  | CC29: 0 | CD29: =VLOOKUP(CC29,lookup!$Q$2:$W$62,2,FALSE) ->  | CE29: =VLOOKUP(CC29,lookup!$Q$2:$W$62,3,FALSE) ->  | CF29: =VLOOKUP(CC29,lookup!$Q$2:$W$62,4,FALSE) ->  | CG29: =VLOOKUP(CC29,lookup!$Q$2:$W$62,5,FALSE) ->  | CH29: =VLOOKUP(CC29,lookup!$Q$2:$W$62,6,FALSE) ->  | CI29: =VLOOKUP(CC29,lookup!$Q$2:$W$62,7,FALSE) ->  | CW29: 0 | CX29: 1 | CY29: 0 | CZ29: 1 | DA29: 2 | DC29: =VLOOKUP(DB29,lookup!$Q$2:$W$62,2,FALSE) ->  | DD29: =VLOOKUP(DB29,lookup!$Q$2:$W$62,3,FALSE) ->  | DE29: =VLOOKUP(DB29,lookup!$Q$2:$W$62,4,FALSE) ->  | DF29: =VLOOKUP(DB29,lookup!$Q$2:$W$62,5,FALSE) ->  | DG29: =VLOOKUP(DB29,lookup!$Q$2:$W$62,6,FALSE) ->  | DH29: =VLOOKUP(DB29,lookup!$Q$2:$W$62,7,FALSE) -> 
R30: =IF(F30="","",VLOOKUP(P30,lookup!$L$2:$O$103,Data!Q30+1,FALSE)) ->  | X30: 0 | Y30: 0 | Z30: 0 | AI30: =VLOOKUP(S30,lookup!$A$1:$J$483,2,FALSE) ->  | AJ30: =VLOOKUP(S30,lookup!$A$1:$J$483,3,FALSE) ->  | AK30: =VLOOKUP(S30,lookup!$A$1:$J$483,4,FALSE) ->  | AL30: =VLOOKUP(S30,lookup!$A$1:$J$483,8,FALSE) ->  | AM30: =VLOOKUP(S30,lookup!$A$1:$J$483,9,FALSE) ->  | AN30: =VLOOKUP(S30,lookup!$A$1:$J$483,10,FALSE) ->  | AO30: =VLOOKUP(S30,lookup!$A$1:$J$483,5,FALSE) ->  | AP30: =VLOOKUP(S30,lookup!$A$1:$J$483,6,FALSE) ->  | AQ30: =VLOOKUP(S30,lookup!$A$1:$J$483,7,FALSE) ->  | AR30: =VLOOKUP(W30,lookup!$A$1:$J$483,2,FALSE) ->  | AS30: =VLOOKUP(W30,lookup!$A$1:$J$483,3,FALSE) ->  | AT30: =VLOOKUP(W30,lookup!$A$1:$J$483,4,FALSE) ->  | AU30: 17.5 | AV30: =VLOOKUP(AU30,lookup!$Q$2:$W$62,2,FALSE) -> 0.5 | AW30: =VLOOKUP(AU30,lookup!$Q$2:$W$62,3,FALSE) -> 0.49 | AX30: =VLOOKUP(AU30,lookup!$Q$2:$W$62,4,FALSE) -> 0.49 | AY30: =VLOOKUP(AU30,lookup!$Q$2:$W$62,5,FALSE) -> 1 | AZ30: =VLOOKUP(AU30,lookup!$Q$2:$W$62,6,FALSE) -> 0.5 | BA30: =VLOOKUP(AU30,lookup!$Q$2:$W$62,7,FALSE) -> 0.5 | BB30: 17.5 | BC30: =VLOOKUP(BB30,lookup!$Q$2:$W$62,2,FALSE) -> 0.5 | BD30: =VLOOKUP(BB30,lookup!$Q$2:$W$62,3,FALSE) -> 0.49 | BE30: =VLOOKUP(BB30,lookup!$Q$2:$W$62,4,FALSE) -> 0.49 | BF30: =VLOOKUP(BB30,lookup!$Q$2:$W$62,5,FALSE) -> 1 | BG30: =VLOOKUP(BB30,lookup!$Q$2:$W$62,6,FALSE) -> 0.5 | BH30: =VLOOKUP(BB30,lookup!$Q$2:$W$62,7,FALSE) -> 0.5 | BV30: 0 | BW30: =VLOOKUP(BV30,lookup!$Q$2:$W$62,2,FALSE) ->  | BX30: =VLOOKUP(BV30,lookup!$Q$2:$W$62,3,FALSE) ->  | BY30: =VLOOKUP(BV30,lookup!$Q$2:$W$62,4,FALSE) ->  | BZ30: =VLOOKUP(BV30,lookup!$Q$2:$W$62,5,FALSE) ->  | CA30: =VLOOKUP(BV30,lookup!$Q$2:$W$62,6,FALSE) ->  | CB30: =VLOOKUP(BV30,lookup!$Q$2:$W$62,7,FALSE) ->  | CC30: 0 | CD30: =VLOOKUP(CC30,lookup!$Q$2:$W$62,2,FALSE) ->  | CE30: =VLOOKUP(CC30,lookup!$Q$2:$W$62,3,FALSE) ->  | CF30: =VLOOKUP(CC30,lookup!$Q$2:$W$62,4,FALSE) ->  | CG30: =VLOOKUP(CC30,lookup!$Q$2:$W$62,5,FALSE) ->  | CH30: =VLOOKUP(CC30,lookup!$Q$2:$W$62,6,FALSE) ->  | CI30: =VLOOKUP(CC30,lookup!$Q$2:$W$62,7,FALSE) ->  | CW30: 0 | CX30: 1 | CY30: 0 | CZ30: 1 | DA30: 2 | DC30: =VLOOKUP(DB30,lookup!$Q$2:$W$62,2,FALSE) ->  | DD30: =VLOOKUP(DB30,lookup!$Q$2:$W$62,3,FALSE) ->  | DE30: =VLOOKUP(DB30,lookup!$Q$2:$W$62,4,FALSE) ->  | DF30: =VLOOKUP(DB30,lookup!$Q$2:$W$62,5,FALSE) ->  | DG30: =VLOOKUP(DB30,lookup!$Q$2:$W$62,6,FALSE) ->  | DH30: =VLOOKUP(DB30,lookup!$Q$2:$W$62,7,FALSE) -> 
R31: =IF(F31="","",VLOOKUP(P31,lookup!$L$2:$O$103,Data!Q31+1,FALSE)) ->  | X31: 0 | Y31: 0 | Z31: 0 | AI31: =VLOOKUP(S31,lookup!$A$1:$J$483,2,FALSE) ->  | AJ31: =VLOOKUP(S31,lookup!$A$1:$J$483,3,FALSE) ->  | AK31: =VLOOKUP(S31,lookup!$A$1:$J$483,4,FALSE) ->  | AL31: =VLOOKUP(S31,lookup!$A$1:$J$483,8,FALSE) ->  | AM31: =VLOOKUP(S31,lookup!$A$1:$J$483,9,FALSE) ->  | AN31: =VLOOKUP(S31,lookup!$A$1:$J$483,10,FALSE) ->  | AO31: =VLOOKUP(S31,lookup!$A$1:$J$483,5,FALSE) ->  | AP31: =VLOOKUP(S31,lookup!$A$1:$J$483,6,FALSE) ->  | AQ31: =VLOOKUP(S31,lookup!$A$1:$J$483,7,FALSE) ->  | AR31: =VLOOKUP(W31,lookup!$A$1:$J$483,2,FALSE) ->  | AS31: =VLOOKUP(W31,lookup!$A$1:$J$483,3,FALSE) ->  | AT31: =VLOOKUP(W31,lookup!$A$1:$J$483,4,FALSE) ->  | AU31: 17.5 | AV31: =VLOOKUP(AU31,lookup!$Q$2:$W$62,2,FALSE) -> 0.5 | AW31: =VLOOKUP(AU31,lookup!$Q$2:$W$62,3,FALSE) -> 0.49 | AX31: =VLOOKUP(AU31,lookup!$Q$2:$W$62,4,FALSE) -> 0.49 | AY31: =VLOOKUP(AU31,lookup!$Q$2:$W$62,5,FALSE) -> 1 | AZ31: =VLOOKUP(AU31,lookup!$Q$2:$W$62,6,FALSE) -> 0.5 | BA31: =VLOOKUP(AU31,lookup!$Q$2:$W$62,7,FALSE) -> 0.5 | BB31: 17.5 | BC31: =VLOOKUP(BB31,lookup!$Q$2:$W$62,2,FALSE) -> 0.5 | BD31: =VLOOKUP(BB31,lookup!$Q$2:$W$62,3,FALSE) -> 0.49 | BE31: =VLOOKUP(BB31,lookup!$Q$2:$W$62,4,FALSE) -> 0.49 | BF31: =VLOOKUP(BB31,lookup!$Q$2:$W$62,5,FALSE) -> 1 | BG31: =VLOOKUP(BB31,lookup!$Q$2:$W$62,6,FALSE) -> 0.5 | BH31: =VLOOKUP(BB31,lookup!$Q$2:$W$62,7,FALSE) -> 0.5 | BV31: 0 | BW31: =VLOOKUP(BV31,lookup!$Q$2:$W$62,2,FALSE) ->  | BX31: =VLOOKUP(BV31,lookup!$Q$2:$W$62,3,FALSE) ->  | BY31: =VLOOKUP(BV31,lookup!$Q$2:$W$62,4,FALSE) ->  | BZ31: =VLOOKUP(BV31,lookup!$Q$2:$W$62,5,FALSE) ->  | CA31: =VLOOKUP(BV31,lookup!$Q$2:$W$62,6,FALSE) ->  | CB31: =VLOOKUP(BV31,lookup!$Q$2:$W$62,7,FALSE) ->  | CC31: 0 | CD31: =VLOOKUP(CC31,lookup!$Q$2:$W$62,2,FALSE) ->  | CE31: =VLOOKUP(CC31,lookup!$Q$2:$W$62,3,FALSE) ->  | CF31: =VLOOKUP(CC31,lookup!$Q$2:$W$62,4,FALSE) ->  | CG31: =VLOOKUP(CC31,lookup!$Q$2:$W$62,5,FALSE) ->  | CH31: =VLOOKUP(CC31,lookup!$Q$2:$W$62,6,FALSE) ->  | CI31: =VLOOKUP(CC31,lookup!$Q$2:$W$62,7,FALSE) ->  | CW31: 0 | CX31: 1 | CY31: 0 | CZ31: 1 | DA31: 2 | DC31: =VLOOKUP(DB31,lookup!$Q$2:$W$62,2,FALSE) ->  | DD31: =VLOOKUP(DB31,lookup!$Q$2:$W$62,3,FALSE) ->  | DE31: =VLOOKUP(DB31,lookup!$Q$2:$W$62,4,FALSE) ->  | DF31: =VLOOKUP(DB31,lookup!$Q$2:$W$62,5,FALSE) ->  | DG31: =VLOOKUP(DB31,lookup!$Q$2:$W$62,6,FALSE) ->  | DH31: =VLOOKUP(DB31,lookup!$Q$2:$W$62,7,FALSE) -> 
R32: =IF(F32="","",VLOOKUP(P32,lookup!$L$2:$O$103,Data!Q32+1,FALSE)) ->  | X32: 0 | Y32: 0 | Z32: 0 | AI32: =VLOOKUP(S32,lookup!$A$1:$J$483,2,FALSE) ->  | AJ32: =VLOOKUP(S32,lookup!$A$1:$J$483,3,FALSE) ->  | AK32: =VLOOKUP(S32,lookup!$A$1:$J$483,4,FALSE) ->  | AL32: =VLOOKUP(S32,lookup!$A$1:$J$483,8,FALSE) ->  | AM32: =VLOOKUP(S32,lookup!$A$1:$J$483,9,FALSE) ->  | AN32: =VLOOKUP(S32,lookup!$A$1:$J$483,10,FALSE) ->  | AO32: =VLOOKUP(S32,lookup!$A$1:$J$483,5,FALSE) ->  | AP32: =VLOOKUP(S32,lookup!$A$1:$J$483,6,FALSE) ->  | AQ32: =VLOOKUP(S32,lookup!$A$1:$J$483,7,FALSE) ->  | AR32: =VLOOKUP(W32,lookup!$A$1:$J$483,2,FALSE) ->  | AS32: =VLOOKUP(W32,lookup!$A$1:$J$483,3,FALSE) ->  | AT32: =VLOOKUP(W32,lookup!$A$1:$J$483,4,FALSE) ->  | AU32: 17.5 | AV32: =VLOOKUP(AU32,lookup!$Q$2:$W$62,2,FALSE) -> 0.5 | AW32: =VLOOKUP(AU32,lookup!$Q$2:$W$62,3,FALSE) -> 0.49 | AX32: =VLOOKUP(AU32,lookup!$Q$2:$W$62,4,FALSE) -> 0.49 | AY32: =VLOOKUP(AU32,lookup!$Q$2:$W$62,5,FALSE) -> 1 | AZ32: =VLOOKUP(AU32,lookup!$Q$2:$W$62,6,FALSE) -> 0.5 | BA32: =VLOOKUP(AU32,lookup!$Q$2:$W$62,7,FALSE) -> 0.5 | BB32: 17.5 | BC32: =VLOOKUP(BB32,lookup!$Q$2:$W$62,2,FALSE) -> 0.5 | BD32: =VLOOKUP(BB32,lookup!$Q$2:$W$62,3,FALSE) -> 0.49 | BE32: =VLOOKUP(BB32,lookup!$Q$2:$W$62,4,FALSE) -> 0.49 | BF32: =VLOOKUP(BB32,lookup!$Q$2:$W$62,5,FALSE) -> 1 | BG32: =VLOOKUP(BB32,lookup!$Q$2:$W$62,6,FALSE) -> 0.5 | BH32: =VLOOKUP(BB32,lookup!$Q$2:$W$62,7,FALSE) -> 0.5 | BV32: 0 | BW32: =VLOOKUP(BV32,lookup!$Q$2:$W$62,2,FALSE) ->  | BX32: =VLOOKUP(BV32,lookup!$Q$2:$W$62,3,FALSE) ->  | BY32: =VLOOKUP(BV32,lookup!$Q$2:$W$62,4,FALSE) ->  | BZ32: =VLOOKUP(BV32,lookup!$Q$2:$W$62,5,FALSE) ->  | CA32: =VLOOKUP(BV32,lookup!$Q$2:$W$62,6,FALSE) ->  | CB32: =VLOOKUP(BV32,lookup!$Q$2:$W$62,7,FALSE) ->  | CC32: 0 | CD32: =VLOOKUP(CC32,lookup!$Q$2:$W$62,2,FALSE) ->  | CE32: =VLOOKUP(CC32,lookup!$Q$2:$W$62,3,FALSE) ->  | CF32: =VLOOKUP(CC32,lookup!$Q$2:$W$62,4,FALSE) ->  | CG32: =VLOOKUP(CC32,lookup!$Q$2:$W$62,5,FALSE) ->  | CH32: =VLOOKUP(CC32,lookup!$Q$2:$W$62,6,FALSE) ->  | CI32: =VLOOKUP(CC32,lookup!$Q$2:$W$62,7,FALSE) ->  | CW32: 0 | CX32: 1 | CY32: 0 | CZ32: 1 | DA32: 2 | DC32: =VLOOKUP(DB32,lookup!$Q$2:$W$62,2,FALSE) ->  | DD32: =VLOOKUP(DB32,lookup!$Q$2:$W$62,3,FALSE) ->  | DE32: =VLOOKUP(DB32,lookup!$Q$2:$W$62,4,FALSE) ->  | DF32: =VLOOKUP(DB32,lookup!$Q$2:$W$62,5,FALSE) ->  | DG32: =VLOOKUP(DB32,lookup!$Q$2:$W$62,6,FALSE) ->  | DH32: =VLOOKUP(DB32,lookup!$Q$2:$W$62,7,FALSE) -> 
R33: =IF(F33="","",VLOOKUP(P33,lookup!$L$2:$O$103,Data!Q33+1,FALSE)) ->  | X33: 0 | Y33: 0 | Z33: 0 | AI33: =VLOOKUP(S33,lookup!$A$1:$J$483,2,FALSE) ->  | AJ33: =VLOOKUP(S33,lookup!$A$1:$J$483,3,FALSE) ->  | AK33: =VLOOKUP(S33,lookup!$A$1:$J$483,4,FALSE) ->  | AL33: =VLOOKUP(S33,lookup!$A$1:$J$483,8,FALSE) ->  | AM33: =VLOOKUP(S33,lookup!$A$1:$J$483,9,FALSE) ->  | AN33: =VLOOKUP(S33,lookup!$A$1:$J$483,10,FALSE) ->  | AO33: =VLOOKUP(S33,lookup!$A$1:$J$483,5,FALSE) ->  | AP33: =VLOOKUP(S33,lookup!$A$1:$J$483,6,FALSE) ->  | AQ33: =VLOOKUP(S33,lookup!$A$1:$J$483,7,FALSE) ->  | AR33: =VLOOKUP(W33,lookup!$A$1:$J$483,2,FALSE) ->  | AS33: =VLOOKUP(W33,lookup!$A$1:$J$483,3,FALSE) ->  | AT33: =VLOOKUP(W33,lookup!$A$1:$J$483,4,FALSE) ->  | AU33: 17.5 | AV33: =VLOOKUP(AU33,lookup!$Q$2:$W$62,2,FALSE) -> 0.5 | AW33: =VLOOKUP(AU33,lookup!$Q$2:$W$62,3,FALSE) -> 0.49 | AX33: =VLOOKUP(AU33,lookup!$Q$2:$W$62,4,FALSE) -> 0.49 | AY33: =VLOOKUP(AU33,lookup!$Q$2:$W$62,5,FALSE) -> 1 | AZ33: =VLOOKUP(AU33,lookup!$Q$2:$W$62,6,FALSE) -> 0.5 | BA33: =VLOOKUP(AU33,lookup!$Q$2:$W$62,7,FALSE) -> 0.5 | BB33: 17.5 | BC33: =VLOOKUP(BB33,lookup!$Q$2:$W$62,2,FALSE) -> 0.5 | BD33: =VLOOKUP(BB33,lookup!$Q$2:$W$62,3,FALSE) -> 0.49 | BE33: =VLOOKUP(BB33,lookup!$Q$2:$W$62,4,FALSE) -> 0.49 | BF33: =VLOOKUP(BB33,lookup!$Q$2:$W$62,5,FALSE) -> 1 | BG33: =VLOOKUP(BB33,lookup!$Q$2:$W$62,6,FALSE) -> 0.5 | BH33: =VLOOKUP(BB33,lookup!$Q$2:$W$62,7,FALSE) -> 0.5 | BV33: 0 | BW33: =VLOOKUP(BV33,lookup!$Q$2:$W$62,2,FALSE) ->  | BX33: =VLOOKUP(BV33,lookup!$Q$2:$W$62,3,FALSE) ->  | BY33: =VLOOKUP(BV33,lookup!$Q$2:$W$62,4,FALSE) ->  | BZ33: =VLOOKUP(BV33,lookup!$Q$2:$W$62,5,FALSE) ->  | CA33: =VLOOKUP(BV33,lookup!$Q$2:$W$62,6,FALSE) ->  | CB33: =VLOOKUP(BV33,lookup!$Q$2:$W$62,7,FALSE) ->  | CC33: 0 | CD33: =VLOOKUP(CC33,lookup!$Q$2:$W$62,2,FALSE) ->  | CE33: =VLOOKUP(CC33,lookup!$Q$2:$W$62,3,FALSE) ->  | CF33: =VLOOKUP(CC33,lookup!$Q$2:$W$62,4,FALSE) ->  | CG33: =VLOOKUP(CC33,lookup!$Q$2:$W$62,5,FALSE) ->  | CH33: =VLOOKUP(CC33,lookup!$Q$2:$W$62,6,FALSE) ->  | CI33: =VLOOKUP(CC33,lookup!$Q$2:$W$62,7,FALSE) ->  | CW33: 0 | CX33: 1 | CY33: 0 | CZ33: 1 | DA33: 2 | DC33: =VLOOKUP(DB33,lookup!$Q$2:$W$62,2,FALSE) ->  | DD33: =VLOOKUP(DB33,lookup!$Q$2:$W$62,3,FALSE) ->  | DE33: =VLOOKUP(DB33,lookup!$Q$2:$W$62,4,FALSE) ->  | DF33: =VLOOKUP(DB33,lookup!$Q$2:$W$62,5,FALSE) ->  | DG33: =VLOOKUP(DB33,lookup!$Q$2:$W$62,6,FALSE) ->  | DH33: =VLOOKUP(DB33,lookup!$Q$2:$W$62,7,FALSE) -> 
R34: =IF(F34="","",VLOOKUP(P34,lookup!$L$2:$O$103,Data!Q34+1,FALSE)) ->  | X34: 0 | Y34: 0 | Z34: 0 | AI34: =VLOOKUP(S34,lookup!$A$1:$J$483,2,FALSE) ->  | AJ34: =VLOOKUP(S34,lookup!$A$1:$J$483,3,FALSE) ->  | AK34: =VLOOKUP(S34,lookup!$A$1:$J$483,4,FALSE) ->  | AL34: =VLOOKUP(S34,lookup!$A$1:$J$483,8,FALSE) ->  | AM34: =VLOOKUP(S34,lookup!$A$1:$J$483,9,FALSE) ->  | AN34: =VLOOKUP(S34,lookup!$A$1:$J$483,10,FALSE) ->  | AO34: =VLOOKUP(S34,lookup!$A$1:$J$483,5,FALSE) ->  | AP34: =VLOOKUP(S34,lookup!$A$1:$J$483,6,FALSE) ->  | AQ34: =VLOOKUP(S34,lookup!$A$1:$J$483,7,FALSE) ->  | AR34: =VLOOKUP(W34,lookup!$A$1:$J$483,2,FALSE) ->  | AS34: =VLOOKUP(W34,lookup!$A$1:$J$483,3,FALSE) ->  | AT34: =VLOOKUP(W34,lookup!$A$1:$J$483,4,FALSE) ->  | AU34: 17.5 | AV34: =VLOOKUP(AU34,lookup!$Q$2:$W$62,2,FALSE) -> 0.5 | AW34: =VLOOKUP(AU34,lookup!$Q$2:$W$62,3,FALSE) -> 0.49 | AX34: =VLOOKUP(AU34,lookup!$Q$2:$W$62,4,FALSE) -> 0.49 | AY34: =VLOOKUP(AU34,lookup!$Q$2:$W$62,5,FALSE) -> 1 | AZ34: =VLOOKUP(AU34,lookup!$Q$2:$W$62,6,FALSE) -> 0.5 | BA34: =VLOOKUP(AU34,lookup!$Q$2:$W$62,7,FALSE) -> 0.5 | BB34: 17.5 | BC34: =VLOOKUP(BB34,lookup!$Q$2:$W$62,2,FALSE) -> 0.5 | BD34: =VLOOKUP(BB34,lookup!$Q$2:$W$62,3,FALSE) -> 0.49 | BE34: =VLOOKUP(BB34,lookup!$Q$2:$W$62,4,FALSE) -> 0.49 | BF34: =VLOOKUP(BB34,lookup!$Q$2:$W$62,5,FALSE) -> 1 | BG34: =VLOOKUP(BB34,lookup!$Q$2:$W$62,6,FALSE) -> 0.5 | BH34: =VLOOKUP(BB34,lookup!$Q$2:$W$62,7,FALSE) -> 0.5 | BV34: 0 | BW34: =VLOOKUP(BV34,lookup!$Q$2:$W$62,2,FALSE) ->  | BX34: =VLOOKUP(BV34,lookup!$Q$2:$W$62,3,FALSE) ->  | BY34: =VLOOKUP(BV34,lookup!$Q$2:$W$62,4,FALSE) ->  | BZ34: =VLOOKUP(BV34,lookup!$Q$2:$W$62,5,FALSE) ->  | CA34: =VLOOKUP(BV34,lookup!$Q$2:$W$62,6,FALSE) ->  | CB34: =VLOOKUP(BV34,lookup!$Q$2:$W$62,7,FALSE) ->  | CC34: 0 | CD34: =VLOOKUP(CC34,lookup!$Q$2:$W$62,2,FALSE) ->  | CE34: =VLOOKUP(CC34,lookup!$Q$2:$W$62,3,FALSE) ->  | CF34: =VLOOKUP(CC34,lookup!$Q$2:$W$62,4,FALSE) ->  | CG34: =VLOOKUP(CC34,lookup!$Q$2:$W$62,5,FALSE) ->  | CH34: =VLOOKUP(CC34,lookup!$Q$2:$W$62,6,FALSE) ->  | CI34: =VLOOKUP(CC34,lookup!$Q$2:$W$62,7,FALSE) ->  | CW34: 0 | CX34: 1 | CY34: 0 | CZ34: 1 | DA34: 2 | DC34: =VLOOKUP(DB34,lookup!$Q$2:$W$62,2,FALSE) ->  | DD34: =VLOOKUP(DB34,lookup!$Q$2:$W$62,3,FALSE) ->  | DE34: =VLOOKUP(DB34,lookup!$Q$2:$W$62,4,FALSE) ->  | DF34: =VLOOKUP(DB34,lookup!$Q$2:$W$62,5,FALSE) ->  | DG34: =VLOOKUP(DB34,lookup!$Q$2:$W$62,6,FALSE) ->  | DH34: =VLOOKUP(DB34,lookup!$Q$2:$W$62,7,FALSE) -> 
R35: =IF(F35="","",VLOOKUP(P35,lookup!$L$2:$O$103,Data!Q35+1,FALSE)) ->  | X35: 0 | Y35: 0 | Z35: 0 | AI35: =VLOOKUP(S35,lookup!$A$1:$J$483,2,FALSE) ->  | AJ35: =VLOOKUP(S35,lookup!$A$1:$J$483,3,FALSE) ->  | AK35: =VLOOKUP(S35,lookup!$A$1:$J$483,4,FALSE) ->  | AL35: =VLOOKUP(S35,lookup!$A$1:$J$483,8,FALSE) ->  | AM35: =VLOOKUP(S35,lookup!$A$1:$J$483,9,FALSE) ->  | AN35: =VLOOKUP(S35,lookup!$A$1:$J$483,10,FALSE) ->  | AO35: =VLOOKUP(S35,lookup!$A$1:$J$483,5,FALSE) ->  | AP35: =VLOOKUP(S35,lookup!$A$1:$J$483,6,FALSE) ->  | AQ35: =VLOOKUP(S35,lookup!$A$1:$J$483,7,FALSE) ->  | AR35: =VLOOKUP(W35,lookup!$A$1:$J$483,2,FALSE) ->  | AS35: =VLOOKUP(W35,lookup!$A$1:$J$483,3,FALSE) ->  | AT35: =VLOOKUP(W35,lookup!$A$1:$J$483,4,FALSE) ->  | AU35: 17.5 | AV35: =VLOOKUP(AU35,lookup!$Q$2:$W$62,2,FALSE) -> 0.5 | AW35: =VLOOKUP(AU35,lookup!$Q$2:$W$62,3,FALSE) -> 0.49 | AX35: =VLOOKUP(AU35,lookup!$Q$2:$W$62,4,FALSE) -> 0.49 | AY35: =VLOOKUP(AU35,lookup!$Q$2:$W$62,5,FALSE) -> 1 | AZ35: =VLOOKUP(AU35,lookup!$Q$2:$W$62,6,FALSE) -> 0.5 | BA35: =VLOOKUP(AU35,lookup!$Q$2:$W$62,7,FALSE) -> 0.5 | BB35: 17.5 | BC35: =VLOOKUP(BB35,lookup!$Q$2:$W$62,2,FALSE) -> 0.5 | BD35: =VLOOKUP(BB35,lookup!$Q$2:$W$62,3,FALSE) -> 0.49 | BE35: =VLOOKUP(BB35,lookup!$Q$2:$W$62,4,FALSE) -> 0.49 | BF35: =VLOOKUP(BB35,lookup!$Q$2:$W$62,5,FALSE) -> 1 | BG35: =VLOOKUP(BB35,lookup!$Q$2:$W$62,6,FALSE) -> 0.5 | BH35: =VLOOKUP(BB35,lookup!$Q$2:$W$62,7,FALSE) -> 0.5 | BV35: 0 | BW35: =VLOOKUP(BV35,lookup!$Q$2:$W$62,2,FALSE) ->  | BX35: =VLOOKUP(BV35,lookup!$Q$2:$W$62,3,FALSE) ->  | BY35: =VLOOKUP(BV35,lookup!$Q$2:$W$62,4,FALSE) ->  | BZ35: =VLOOKUP(BV35,lookup!$Q$2:$W$62,5,FALSE) ->  | CA35: =VLOOKUP(BV35,lookup!$Q$2:$W$62,6,FALSE) ->  | CB35: =VLOOKUP(BV35,lookup!$Q$2:$W$62,7,FALSE) ->  | CC35: 0 | CD35: =VLOOKUP(CC35,lookup!$Q$2:$W$62,2,FALSE) ->  | CE35: =VLOOKUP(CC35,lookup!$Q$2:$W$62,3,FALSE) ->  | CF35: =VLOOKUP(CC35,lookup!$Q$2:$W$62,4,FALSE) ->  | CG35: =VLOOKUP(CC35,lookup!$Q$2:$W$62,5,FALSE) ->  | CH35: =VLOOKUP(CC35,lookup!$Q$2:$W$62,6,FALSE) ->  | CI35: =VLOOKUP(CC35,lookup!$Q$2:$W$62,7,FALSE) ->  | CW35: 0 | CX35: 1 | CY35: 0 | CZ35: 1 | DA35: 2 | DC35: =VLOOKUP(DB35,lookup!$Q$2:$W$62,2,FALSE) ->  | DD35: =VLOOKUP(DB35,lookup!$Q$2:$W$62,3,FALSE) ->  | DE35: =VLOOKUP(DB35,lookup!$Q$2:$W$62,4,FALSE) ->  | DF35: =VLOOKUP(DB35,lookup!$Q$2:$W$62,5,FALSE) ->  | DG35: =VLOOKUP(DB35,lookup!$Q$2:$W$62,6,FALSE) ->  | DH35: =VLOOKUP(DB35,lookup!$Q$2:$W$62,7,FALSE) -> 
R36: =IF(F36="","",VLOOKUP(P36,lookup!$L$2:$O$103,Data!Q36+1,FALSE)) ->  | X36: 0 | Y36: 0 | Z36: 0 | AI36: =VLOOKUP(S36,lookup!$A$1:$J$483,2,FALSE) ->  | AJ36: =VLOOKUP(S36,lookup!$A$1:$J$483,3,FALSE) ->  | AK36: =VLOOKUP(S36,lookup!$A$1:$J$483,4,FALSE) ->  | AL36: =VLOOKUP(S36,lookup!$A$1:$J$483,8,FALSE) ->  | AM36: =VLOOKUP(S36,lookup!$A$1:$J$483,9,FALSE) ->  | AN36: =VLOOKUP(S36,lookup!$A$1:$J$483,10,FALSE) ->  | AO36: =VLOOKUP(S36,lookup!$A$1:$J$483,5,FALSE) ->  | AP36: =VLOOKUP(S36,lookup!$A$1:$J$483,6,FALSE) ->  | AQ36: =VLOOKUP(S36,lookup!$A$1:$J$483,7,FALSE) ->  | AR36: =VLOOKUP(W36,lookup!$A$1:$J$483,2,FALSE) ->  | AS36: =VLOOKUP(W36,lookup!$A$1:$J$483,3,FALSE) ->  | AT36: =VLOOKUP(W36,lookup!$A$1:$J$483,4,FALSE) ->  | AU36: 17.5 | AV36: =VLOOKUP(AU36,lookup!$Q$2:$W$62,2,FALSE) -> 0.5 | AW36: =VLOOKUP(AU36,lookup!$Q$2:$W$62,3,FALSE) -> 0.49 | AX36: =VLOOKUP(AU36,lookup!$Q$2:$W$62,4,FALSE) -> 0.49 | AY36: =VLOOKUP(AU36,lookup!$Q$2:$W$62,5,FALSE) -> 1 | AZ36: =VLOOKUP(AU36,lookup!$Q$2:$W$62,6,FALSE) -> 0.5 | BA36: =VLOOKUP(AU36,lookup!$Q$2:$W$62,7,FALSE) -> 0.5 | BB36: 17.5 | BC36: =VLOOKUP(BB36,lookup!$Q$2:$W$62,2,FALSE) -> 0.5 | BD36: =VLOOKUP(BB36,lookup!$Q$2:$W$62,3,FALSE) -> 0.49 | BE36: =VLOOKUP(BB36,lookup!$Q$2:$W$62,4,FALSE) -> 0.49 | BF36: =VLOOKUP(BB36,lookup!$Q$2:$W$62,5,FALSE) -> 1 | BG36: =VLOOKUP(BB36,lookup!$Q$2:$W$62,6,FALSE) -> 0.5 | BH36: =VLOOKUP(BB36,lookup!$Q$2:$W$62,7,FALSE) -> 0.5 | BV36: 0 | BW36: =VLOOKUP(BV36,lookup!$Q$2:$W$62,2,FALSE) ->  | BX36: =VLOOKUP(BV36,lookup!$Q$2:$W$62,3,FALSE) ->  | BY36: =VLOOKUP(BV36,lookup!$Q$2:$W$62,4,FALSE) ->  | BZ36: =VLOOKUP(BV36,lookup!$Q$2:$W$62,5,FALSE) ->  | CA36: =VLOOKUP(BV36,lookup!$Q$2:$W$62,6,FALSE) ->  | CB36: =VLOOKUP(BV36,lookup!$Q$2:$W$62,7,FALSE) ->  | CC36: 0 | CD36: =VLOOKUP(CC36,lookup!$Q$2:$W$62,2,FALSE) ->  | CE36: =VLOOKUP(CC36,lookup!$Q$2:$W$62,3,FALSE) ->  | CF36: =VLOOKUP(CC36,lookup!$Q$2:$W$62,4,FALSE) ->  | CG36: =VLOOKUP(CC36,lookup!$Q$2:$W$62,5,FALSE) ->  | CH36: =VLOOKUP(CC36,lookup!$Q$2:$W$62,6,FALSE) ->  | CI36: =VLOOKUP(CC36,lookup!$Q$2:$W$62,7,FALSE) ->  | CW36: 0 | CX36: 1 | CY36: 0 | CZ36: 1 | DA36: 2 | DC36: =VLOOKUP(DB36,lookup!$Q$2:$W$62,2,FALSE) ->  | DD36: =VLOOKUP(DB36,lookup!$Q$2:$W$62,3,FALSE) ->  | DE36: =VLOOKUP(DB36,lookup!$Q$2:$W$62,4,FALSE) ->  | DF36: =VLOOKUP(DB36,lookup!$Q$2:$W$62,5,FALSE) ->  | DG36: =VLOOKUP(DB36,lookup!$Q$2:$W$62,6,FALSE) ->  | DH36: =VLOOKUP(DB36,lookup!$Q$2:$W$62,7,FALSE) -> 
R37: =IF(F37="","",VLOOKUP(P37,lookup!$L$2:$O$103,Data!Q37+1,FALSE)) ->  | X37: 0 | Y37: 0 | Z37: 0 | AI37: =VLOOKUP(S37,lookup!$A$1:$J$483,2,FALSE) ->  | AJ37: =VLOOKUP(S37,lookup!$A$1:$J$483,3,FALSE) ->  | AK37: =VLOOKUP(S37,lookup!$A$1:$J$483,4,FALSE) ->  | AL37: =VLOOKUP(S37,lookup!$A$1:$J$483,8,FALSE) ->  | AM37: =VLOOKUP(S37,lookup!$A$1:$J$483,9,FALSE) ->  | AN37: =VLOOKUP(S37,lookup!$A$1:$J$483,10,FALSE) ->  | AO37: =VLOOKUP(S37,lookup!$A$1:$J$483,5,FALSE) ->  | AP37: =VLOOKUP(S37,lookup!$A$1:$J$483,6,FALSE) ->  | AQ37: =VLOOKUP(S37,lookup!$A$1:$J$483,7,FALSE) ->  | AR37: =VLOOKUP(W37,lookup!$A$1:$J$483,2,FALSE) ->  | AS37: =VLOOKUP(W37,lookup!$A$1:$J$483,3,FALSE) ->  | AT37: =VLOOKUP(W37,lookup!$A$1:$J$483,4,FALSE) ->  | AU37: 17.5 | AV37: =VLOOKUP(AU37,lookup!$Q$2:$W$62,2,FALSE) -> 0.5 | AW37: =VLOOKUP(AU37,lookup!$Q$2:$W$62,3,FALSE) -> 0.49 | AX37: =VLOOKUP(AU37,lookup!$Q$2:$W$62,4,FALSE) -> 0.49 | AY37: =VLOOKUP(AU37,lookup!$Q$2:$W$62,5,FALSE) -> 1 | AZ37: =VLOOKUP(AU37,lookup!$Q$2:$W$62,6,FALSE) -> 0.5 | BA37: =VLOOKUP(AU37,lookup!$Q$2:$W$62,7,FALSE) -> 0.5 | BB37: 17.5 | BC37: =VLOOKUP(BB37,lookup!$Q$2:$W$62,2,FALSE) -> 0.5 | BD37: =VLOOKUP(BB37,lookup!$Q$2:$W$62,3,FALSE) -> 0.49 | BE37: =VLOOKUP(BB37,lookup!$Q$2:$W$62,4,FALSE) -> 0.49 | BF37: =VLOOKUP(BB37,lookup!$Q$2:$W$62,5,FALSE) -> 1 | BG37: =VLOOKUP(BB37,lookup!$Q$2:$W$62,6,FALSE) -> 0.5 | BH37: =VLOOKUP(BB37,lookup!$Q$2:$W$62,7,FALSE) -> 0.5 | BV37: 0 | BW37: =VLOOKUP(BV37,lookup!$Q$2:$W$62,2,FALSE) ->  | BX37: =VLOOKUP(BV37,lookup!$Q$2:$W$62,3,FALSE) ->  | BY37: =VLOOKUP(BV37,lookup!$Q$2:$W$62,4,FALSE) ->  | BZ37: =VLOOKUP(BV37,lookup!$Q$2:$W$62,5,FALSE) ->  | CA37: =VLOOKUP(BV37,lookup!$Q$2:$W$62,6,FALSE) ->  | CB37: =VLOOKUP(BV37,lookup!$Q$2:$W$62,7,FALSE) ->  | CC37: 0 | CD37: =VLOOKUP(CC37,lookup!$Q$2:$W$62,2,FALSE) ->  | CE37: =VLOOKUP(CC37,lookup!$Q$2:$W$62,3,FALSE) ->  | CF37: =VLOOKUP(CC37,lookup!$Q$2:$W$62,4,FALSE) ->  | CG37: =VLOOKUP(CC37,lookup!$Q$2:$W$62,5,FALSE) ->  | CH37: =VLOOKUP(CC37,lookup!$Q$2:$W$62,6,FALSE) ->  | CI37: =VLOOKUP(CC37,lookup!$Q$2:$W$62,7,FALSE) ->  | CW37: 0 | CX37: 1 | CY37: 0 | CZ37: 1 | DA37: 2 | DC37: =VLOOKUP(DB37,lookup!$Q$2:$W$62,2,FALSE) ->  | DD37: =VLOOKUP(DB37,lookup!$Q$2:$W$62,3,FALSE) ->  | DE37: =VLOOKUP(DB37,lookup!$Q$2:$W$62,4,FALSE) ->  | DF37: =VLOOKUP(DB37,lookup!$Q$2:$W$62,5,FALSE) ->  | DG37: =VLOOKUP(DB37,lookup!$Q$2:$W$62,6,FALSE) ->  | DH37: =VLOOKUP(DB37,lookup!$Q$2:$W$62,7,FALSE) -> 
R38: =IF(F38="","",VLOOKUP(P38,lookup!$L$2:$O$103,Data!Q38+1,FALSE)) ->  | X38: 0 | Y38: 0 | Z38: 0 | AI38: =VLOOKUP(S38,lookup!$A$1:$J$483,2,FALSE) ->  | AJ38: =VLOOKUP(S38,lookup!$A$1:$J$483,3,FALSE) ->  | AK38: =VLOOKUP(S38,lookup!$A$1:$J$483,4,FALSE) ->  | AL38: =VLOOKUP(S38,lookup!$A$1:$J$483,8,FALSE) ->  | AM38: =VLOOKUP(S38,lookup!$A$1:$J$483,9,FALSE) ->  | AN38: =VLOOKUP(S38,lookup!$A$1:$J$483,10,FALSE) ->  | AO38: =VLOOKUP(S38,lookup!$A$1:$J$483,5,FALSE) ->  | AP38: =VLOOKUP(S38,lookup!$A$1:$J$483,6,FALSE) ->  | AQ38: =VLOOKUP(S38,lookup!$A$1:$J$483,7,FALSE) ->  | AR38: =VLOOKUP(W38,lookup!$A$1:$J$483,2,FALSE) ->  | AS38: =VLOOKUP(W38,lookup!$A$1:$J$483,3,FALSE) ->  | AT38: =VLOOKUP(W38,lookup!$A$1:$J$483,4,FALSE) ->  | AU38: 17.5 | AV38: =VLOOKUP(AU38,lookup!$Q$2:$W$62,2,FALSE) -> 0.5 | AW38: =VLOOKUP(AU38,lookup!$Q$2:$W$62,3,FALSE) -> 0.49 | AX38: =VLOOKUP(AU38,lookup!$Q$2:$W$62,4,FALSE) -> 0.49 | AY38: =VLOOKUP(AU38,lookup!$Q$2:$W$62,5,FALSE) -> 1 | AZ38: =VLOOKUP(AU38,lookup!$Q$2:$W$62,6,FALSE) -> 0.5 | BA38: =VLOOKUP(AU38,lookup!$Q$2:$W$62,7,FALSE) -> 0.5 | BB38: 17.5 | BC38: =VLOOKUP(BB38,lookup!$Q$2:$W$62,2,FALSE) -> 0.5 | BD38: =VLOOKUP(BB38,lookup!$Q$2:$W$62,3,FALSE) -> 0.49 | BE38: =VLOOKUP(BB38,lookup!$Q$2:$W$62,4,FALSE) -> 0.49 | BF38: =VLOOKUP(BB38,lookup!$Q$2:$W$62,5,FALSE) -> 1 | BG38: =VLOOKUP(BB38,lookup!$Q$2:$W$62,6,FALSE) -> 0.5 | BH38: =VLOOKUP(BB38,lookup!$Q$2:$W$62,7,FALSE) -> 0.5 | BV38: 0 | BW38: =VLOOKUP(BV38,lookup!$Q$2:$W$62,2,FALSE) ->  | BX38: =VLOOKUP(BV38,lookup!$Q$2:$W$62,3,FALSE) ->  | BY38: =VLOOKUP(BV38,lookup!$Q$2:$W$62,4,FALSE) ->  | BZ38: =VLOOKUP(BV38,lookup!$Q$2:$W$62,5,FALSE) ->  | CA38: =VLOOKUP(BV38,lookup!$Q$2:$W$62,6,FALSE) ->  | CB38: =VLOOKUP(BV38,lookup!$Q$2:$W$62,7,FALSE) ->  | CC38: 0 | CD38: =VLOOKUP(CC38,lookup!$Q$2:$W$62,2,FALSE) ->  | CE38: =VLOOKUP(CC38,lookup!$Q$2:$W$62,3,FALSE) ->  | CF38: =VLOOKUP(CC38,lookup!$Q$2:$W$62,4,FALSE) ->  | CG38: =VLOOKUP(CC38,lookup!$Q$2:$W$62,5,FALSE) ->  | CH38: =VLOOKUP(CC38,lookup!$Q$2:$W$62,6,FALSE) ->  | CI38: =VLOOKUP(CC38,lookup!$Q$2:$W$62,7,FALSE) ->  | CW38: 0 | CX38: 1 | CY38: 0 | CZ38: 1 | DA38: 2 | DC38: =VLOOKUP(DB38,lookup!$Q$2:$W$62,2,FALSE) ->  | DD38: =VLOOKUP(DB38,lookup!$Q$2:$W$62,3,FALSE) ->  | DE38: =VLOOKUP(DB38,lookup!$Q$2:$W$62,4,FALSE) ->  | DF38: =VLOOKUP(DB38,lookup!$Q$2:$W$62,5,FALSE) ->  | DG38: =VLOOKUP(DB38,lookup!$Q$2:$W$62,6,FALSE) ->  | DH38: =VLOOKUP(DB38,lookup!$Q$2:$W$62,7,FALSE) -> 
R39: =IF(F39="","",VLOOKUP(P39,lookup!$L$2:$O$103,Data!Q39+1,FALSE)) ->  | X39: 0 | Y39: 0 | Z39: 0 | AI39: =VLOOKUP(S39,lookup!$A$1:$J$483,2,FALSE) ->  | AJ39: =VLOOKUP(S39,lookup!$A$1:$J$483,3,FALSE) ->  | AK39: =VLOOKUP(S39,lookup!$A$1:$J$483,4,FALSE) ->  | AL39: =VLOOKUP(S39,lookup!$A$1:$J$483,8,FALSE) ->  | AM39: =VLOOKUP(S39,lookup!$A$1:$J$483,9,FALSE) ->  | AN39: =VLOOKUP(S39,lookup!$A$1:$J$483,10,FALSE) ->  | AO39: =VLOOKUP(S39,lookup!$A$1:$J$483,5,FALSE) ->  | AP39: =VLOOKUP(S39,lookup!$A$1:$J$483,6,FALSE) ->  | AQ39: =VLOOKUP(S39,lookup!$A$1:$J$483,7,FALSE) ->  | AR39: =VLOOKUP(W39,lookup!$A$1:$J$483,2,FALSE) ->  | AS39: =VLOOKUP(W39,lookup!$A$1:$J$483,3,FALSE) ->  | AT39: =VLOOKUP(W39,lookup!$A$1:$J$483,4,FALSE) ->  | AU39: 17.5 | AV39: =VLOOKUP(AU39,lookup!$Q$2:$W$62,2,FALSE) -> 0.5 | AW39: =VLOOKUP(AU39,lookup!$Q$2:$W$62,3,FALSE) -> 0.49 | AX39: =VLOOKUP(AU39,lookup!$Q$2:$W$62,4,FALSE) -> 0.49 | AY39: =VLOOKUP(AU39,lookup!$Q$2:$W$62,5,FALSE) -> 1 | AZ39: =VLOOKUP(AU39,lookup!$Q$2:$W$62,6,FALSE) -> 0.5 | BA39: =VLOOKUP(AU39,lookup!$Q$2:$W$62,7,FALSE) -> 0.5 | BB39: 17.5 | BC39: =VLOOKUP(BB39,lookup!$Q$2:$W$62,2,FALSE) -> 0.5 | BD39: =VLOOKUP(BB39,lookup!$Q$2:$W$62,3,FALSE) -> 0.49 | BE39: =VLOOKUP(BB39,lookup!$Q$2:$W$62,4,FALSE) -> 0.49 | BF39: =VLOOKUP(BB39,lookup!$Q$2:$W$62,5,FALSE) -> 1 | BG39: =VLOOKUP(BB39,lookup!$Q$2:$W$62,6,FALSE) -> 0.5 | BH39: =VLOOKUP(BB39,lookup!$Q$2:$W$62,7,FALSE) -> 0.5 | BV39: 0 | BW39: =VLOOKUP(BV39,lookup!$Q$2:$W$62,2,FALSE) ->  | BX39: =VLOOKUP(BV39,lookup!$Q$2:$W$62,3,FALSE) ->  | BY39: =VLOOKUP(BV39,lookup!$Q$2:$W$62,4,FALSE) ->  | BZ39: =VLOOKUP(BV39,lookup!$Q$2:$W$62,5,FALSE) ->  | CA39: =VLOOKUP(BV39,lookup!$Q$2:$W$62,6,FALSE) ->  | CB39: =VLOOKUP(BV39,lookup!$Q$2:$W$62,7,FALSE) ->  | CC39: 0 | CD39: =VLOOKUP(CC39,lookup!$Q$2:$W$62,2,FALSE) ->  | CE39: =VLOOKUP(CC39,lookup!$Q$2:$W$62,3,FALSE) ->  | CF39: =VLOOKUP(CC39,lookup!$Q$2:$W$62,4,FALSE) ->  | CG39: =VLOOKUP(CC39,lookup!$Q$2:$W$62,5,FALSE) ->  | CH39: =VLOOKUP(CC39,lookup!$Q$2:$W$62,6,FALSE) ->  | CI39: =VLOOKUP(CC39,lookup!$Q$2:$W$62,7,FALSE) ->  | CW39: 0 | CX39: 1 | CY39: 0 | CZ39: 1 | DA39: 2 | DC39: =VLOOKUP(DB39,lookup!$Q$2:$W$62,2,FALSE) ->  | DD39: =VLOOKUP(DB39,lookup!$Q$2:$W$62,3,FALSE) ->  | DE39: =VLOOKUP(DB39,lookup!$Q$2:$W$62,4,FALSE) ->  | DF39: =VLOOKUP(DB39,lookup!$Q$2:$W$62,5,FALSE) ->  | DG39: =VLOOKUP(DB39,lookup!$Q$2:$W$62,6,FALSE) ->  | DH39: =VLOOKUP(DB39,lookup!$Q$2:$W$62,7,FALSE) -> 
R40: =IF(F40="","",VLOOKUP(P40,lookup!$L$2:$O$103,Data!Q40+1,FALSE)) ->  | X40: 0 | Y40: 0 | Z40: 0 | AI40: =VLOOKUP(S40,lookup!$A$1:$J$483,2,FALSE) ->  | AJ40: =VLOOKUP(S40,lookup!$A$1:$J$483,3,FALSE) ->  | AK40: =VLOOKUP(S40,lookup!$A$1:$J$483,4,FALSE) ->  | AL40: =VLOOKUP(S40,lookup!$A$1:$J$483,8,FALSE) ->  | AM40: =VLOOKUP(S40,lookup!$A$1:$J$483,9,FALSE) ->  | AN40: =VLOOKUP(S40,lookup!$A$1:$J$483,10,FALSE) ->  | AO40: =VLOOKUP(S40,lookup!$A$1:$J$483,5,FALSE) ->  | AP40: =VLOOKUP(S40,lookup!$A$1:$J$483,6,FALSE) ->  | AQ40: =VLOOKUP(S40,lookup!$A$1:$J$483,7,FALSE) ->  | AR40: =VLOOKUP(W40,lookup!$A$1:$J$483,2,FALSE) ->  | AS40: =VLOOKUP(W40,lookup!$A$1:$J$483,3,FALSE) ->  | AT40: =VLOOKUP(W40,lookup!$A$1:$J$483,4,FALSE) ->  | AU40: 17.5 | AV40: =VLOOKUP(AU40,lookup!$Q$2:$W$62,2,FALSE) -> 0.5 | AW40: =VLOOKUP(AU40,lookup!$Q$2:$W$62,3,FALSE) -> 0.49 | AX40: =VLOOKUP(AU40,lookup!$Q$2:$W$62,4,FALSE) -> 0.49 | AY40: =VLOOKUP(AU40,lookup!$Q$2:$W$62,5,FALSE) -> 1 | AZ40: =VLOOKUP(AU40,lookup!$Q$2:$W$62,6,FALSE) -> 0.5 | BA40: =VLOOKUP(AU40,lookup!$Q$2:$W$62,7,FALSE) -> 0.5 | BB40: 17.5 | BC40: =VLOOKUP(BB40,lookup!$Q$2:$W$62,2,FALSE) -> 0.5 | BD40: =VLOOKUP(BB40,lookup!$Q$2:$W$62,3,FALSE) -> 0.49 | BE40: =VLOOKUP(BB40,lookup!$Q$2:$W$62,4,FALSE) -> 0.49 | BF40: =VLOOKUP(BB40,lookup!$Q$2:$W$62,5,FALSE) -> 1 | BG40: =VLOOKUP(BB40,lookup!$Q$2:$W$62,6,FALSE) -> 0.5 | BH40: =VLOOKUP(BB40,lookup!$Q$2:$W$62,7,FALSE) -> 0.5 | BV40: 0 | BW40: =VLOOKUP(BV40,lookup!$Q$2:$W$62,2,FALSE) ->  | BX40: =VLOOKUP(BV40,lookup!$Q$2:$W$62,3,FALSE) ->  | BY40: =VLOOKUP(BV40,lookup!$Q$2:$W$62,4,FALSE) ->  | BZ40: =VLOOKUP(BV40,lookup!$Q$2:$W$62,5,FALSE) ->  | CA40: =VLOOKUP(BV40,lookup!$Q$2:$W$62,6,FALSE) ->  | CB40: =VLOOKUP(BV40,lookup!$Q$2:$W$62,7,FALSE) ->  | CC40: 0 | CD40: =VLOOKUP(CC40,lookup!$Q$2:$W$62,2,FALSE) ->  | CE40: =VLOOKUP(CC40,lookup!$Q$2:$W$62,3,FALSE) ->  | CF40: =VLOOKUP(CC40,lookup!$Q$2:$W$62,4,FALSE) ->  | CG40: =VLOOKUP(CC40,lookup!$Q$2:$W$62,5,FALSE) ->  | CH40: =VLOOKUP(CC40,lookup!$Q$2:$W$62,6,FALSE) ->  | CI40: =VLOOKUP(CC40,lookup!$Q$2:$W$62,7,FALSE) ->  | CW40: 0 | CX40: 1 | CY40: 0 | CZ40: 1 | DA40: 2 | DC40: =VLOOKUP(DB40,lookup!$Q$2:$W$62,2,FALSE) ->  | DD40: =VLOOKUP(DB40,lookup!$Q$2:$W$62,3,FALSE) ->  | DE40: =VLOOKUP(DB40,lookup!$Q$2:$W$62,4,FALSE) ->  | DF40: =VLOOKUP(DB40,lookup!$Q$2:$W$62,5,FALSE) ->  | DG40: =VLOOKUP(DB40,lookup!$Q$2:$W$62,6,FALSE) ->  | DH40: =VLOOKUP(DB40,lookup!$Q$2:$W$62,7,FALSE) -> 
R41: =IF(F41="","",VLOOKUP(P41,lookup!$L$2:$O$103,Data!Q41+1,FALSE)) ->  | S41: =IF(E41="","",CONCATENATE($E$5&(ROUND(V41,0)))) ->  | X41: 0 | Y41: 0 | Z41: 0 | AI41: =VLOOKUP(S41,lookup!$A$1:$J$483,2,FALSE) ->  | AJ41: =VLOOKUP(S41,lookup!$A$1:$J$483,3,FALSE) ->  | AK41: =VLOOKUP(S41,lookup!$A$1:$J$483,4,FALSE) ->  | AL41: =VLOOKUP(S41,lookup!$A$1:$J$483,8,FALSE) ->  | AM41: =VLOOKUP(S41,lookup!$A$1:$J$483,9,FALSE) ->  | AN41: =VLOOKUP(S41,lookup!$A$1:$J$483,10,FALSE) ->  | AO41: =VLOOKUP(S41,lookup!$A$1:$J$483,5,FALSE) ->  | AP41: =VLOOKUP(S41,lookup!$A$1:$J$483,6,FALSE) ->  | AQ41: =VLOOKUP(S41,lookup!$A$1:$J$483,7,FALSE) ->  | AR41: =VLOOKUP(W41,lookup!$A$1:$J$483,2,FALSE) ->  | AS41: =VLOOKUP(W41,lookup!$A$1:$J$483,3,FALSE) ->  | AT41: =VLOOKUP(W41,lookup!$A$1:$J$483,4,FALSE) ->  | AU41: 17.5 | AV41: =VLOOKUP(AU41,lookup!$Q$2:$W$62,2,FALSE) -> 0.5 | AW41: =VLOOKUP(AU41,lookup!$Q$2:$W$62,3,FALSE) -> 0.49 | AX41: =VLOOKUP(AU41,lookup!$Q$2:$W$62,4,FALSE) -> 0.49 | AY41: =VLOOKUP(AU41,lookup!$Q$2:$W$62,5,FALSE) -> 1 | AZ41: =VLOOKUP(AU41,lookup!$Q$2:$W$62,6,FALSE) -> 0.5 | BA41: =VLOOKUP(AU41,lookup!$Q$2:$W$62,7,FALSE) -> 0.5 | BB41: 17.5 | BC41: =VLOOKUP(BB41,lookup!$Q$2:$W$62,2,FALSE) -> 0.5 | BD41: =VLOOKUP(BB41,lookup!$Q$2:$W$62,3,FALSE) -> 0.49 | BE41: =VLOOKUP(BB41,lookup!$Q$2:$W$62,4,FALSE) -> 0.49 | BF41: =VLOOKUP(BB41,lookup!$Q$2:$W$62,5,FALSE) -> 1 | BG41: =VLOOKUP(BB41,lookup!$Q$2:$W$62,6,FALSE) -> 0.5 | BH41: =VLOOKUP(BB41,lookup!$Q$2:$W$62,7,FALSE) -> 0.5 | BV41: 0 | BW41: =VLOOKUP(BV41,lookup!$Q$2:$W$62,2,FALSE) ->  | BX41: =VLOOKUP(BV41,lookup!$Q$2:$W$62,3,FALSE) ->  | BY41: =VLOOKUP(BV41,lookup!$Q$2:$W$62,4,FALSE) ->  | BZ41: =VLOOKUP(BV41,lookup!$Q$2:$W$62,5,FALSE) ->  | CA41: =VLOOKUP(BV41,lookup!$Q$2:$W$62,6,FALSE) ->  | CB41: =VLOOKUP(BV41,lookup!$Q$2:$W$62,7,FALSE) ->  | CC41: 0 | CD41: =VLOOKUP(CC41,lookup!$Q$2:$W$62,2,FALSE) ->  | CE41: =VLOOKUP(CC41,lookup!$Q$2:$W$62,3,FALSE) ->  | CF41: =VLOOKUP(CC41,lookup!$Q$2:$W$62,4,FALSE) ->  | CG41: =VLOOKUP(CC41,lookup!$Q$2:$W$62,5,FALSE) ->  | CH41: =VLOOKUP(CC41,lookup!$Q$2:$W$62,6,FALSE) ->  | CI41: =VLOOKUP(CC41,lookup!$Q$2:$W$62,7,FALSE) ->  | CW41: 0 | CX41: 1 | CY41: 0 | CZ41: 1 | DA41: 2 | DC41: =VLOOKUP(DB41,lookup!$Q$2:$W$62,2,FALSE) ->  | DD41: =VLOOKUP(DB41,lookup!$Q$2:$W$62,3,FALSE) ->  | DE41: =VLOOKUP(DB41,lookup!$Q$2:$W$62,4,FALSE) ->  | DF41: =VLOOKUP(DB41,lookup!$Q$2:$W$62,5,FALSE) ->  | DG41: =VLOOKUP(DB41,lookup!$Q$2:$W$62,6,FALSE) ->  | DH41: =VLOOKUP(DB41,lookup!$Q$2:$W$62,7,FALSE) -> 
R42: =IF(F42="","",VLOOKUP(P42,lookup!$L$2:$O$103,Data!Q42+1,FALSE)) ->  | X42: 0 | Y42: 0 | Z42: 0 | AI42: =VLOOKUP(S42,lookup!$A$1:$J$483,2,FALSE) ->  | AJ42: =VLOOKUP(S42,lookup!$A$1:$J$483,3,FALSE) ->  | AK42: =VLOOKUP(S42,lookup!$A$1:$J$483,4,FALSE) ->  | AL42: =VLOOKUP(S42,lookup!$A$1:$J$483,8,FALSE) ->  | AM42: =VLOOKUP(S42,lookup!$A$1:$J$483,9,FALSE) ->  | AN42: =VLOOKUP(S42,lookup!$A$1:$J$483,10,FALSE) ->  | AO42: =VLOOKUP(S42,lookup!$A$1:$J$483,5,FALSE) ->  | AP42: =VLOOKUP(S42,lookup!$A$1:$J$483,6,FALSE) ->  | AQ42: =VLOOKUP(S42,lookup!$A$1:$J$483,7,FALSE) ->  | AR42: =VLOOKUP(W42,lookup!$A$1:$J$483,2,FALSE) ->  | AS42: =VLOOKUP(W42,lookup!$A$1:$J$483,3,FALSE) ->  | AT42: =VLOOKUP(W42,lookup!$A$1:$J$483,4,FALSE) ->  | AU42: 17.5 | AV42: =VLOOKUP(AU42,lookup!$Q$2:$W$62,2,FALSE) -> 0.5 | AW42: =VLOOKUP(AU42,lookup!$Q$2:$W$62,3,FALSE) -> 0.49 | AX42: =VLOOKUP(AU42,lookup!$Q$2:$W$62,4,FALSE) -> 0.49 | AY42: =VLOOKUP(AU42,lookup!$Q$2:$W$62,5,FALSE) -> 1 | AZ42: =VLOOKUP(AU42,lookup!$Q$2:$W$62,6,FALSE) -> 0.5 | BA42: =VLOOKUP(AU42,lookup!$Q$2:$W$62,7,FALSE) -> 0.5 | BB42: 17.5 | BC42: =VLOOKUP(BB42,lookup!$Q$2:$W$62,2,FALSE) -> 0.5 | BD42: =VLOOKUP(BB42,lookup!$Q$2:$W$62,3,FALSE) -> 0.49 | BE42: =VLOOKUP(BB42,lookup!$Q$2:$W$62,4,FALSE) -> 0.49 | BF42: =VLOOKUP(BB42,lookup!$Q$2:$W$62,5,FALSE) -> 1 | BG42: =VLOOKUP(BB42,lookup!$Q$2:$W$62,6,FALSE) -> 0.5 | BH42: =VLOOKUP(BB42,lookup!$Q$2:$W$62,7,FALSE) -> 0.5 | BV42: 0 | BW42: =VLOOKUP(BV42,lookup!$Q$2:$W$62,2,FALSE) ->  | BX42: =VLOOKUP(BV42,lookup!$Q$2:$W$62,3,FALSE) ->  | BY42: =VLOOKUP(BV42,lookup!$Q$2:$W$62,4,FALSE) ->  | BZ42: =VLOOKUP(BV42,lookup!$Q$2:$W$62,5,FALSE) ->  | CA42: =VLOOKUP(BV42,lookup!$Q$2:$W$62,6,FALSE) ->  | CB42: =VLOOKUP(BV42,lookup!$Q$2:$W$62,7,FALSE) ->  | CC42: 0 | CD42: =VLOOKUP(CC42,lookup!$Q$2:$W$62,2,FALSE) ->  | CE42: =VLOOKUP(CC42,lookup!$Q$2:$W$62,3,FALSE) ->  | CF42: =VLOOKUP(CC42,lookup!$Q$2:$W$62,4,FALSE) ->  | CG42: =VLOOKUP(CC42,lookup!$Q$2:$W$62,5,FALSE) ->  | CH42: =VLOOKUP(CC42,lookup!$Q$2:$W$62,6,FALSE) ->  | CI42: =VLOOKUP(CC42,lookup!$Q$2:$W$62,7,FALSE) ->  | CW42: 0 | CX42: 1 | CY42: 0 | CZ42: 1 | DA42: 2 | DC42: =VLOOKUP(DB42,lookup!$Q$2:$W$62,2,FALSE) ->  | DD42: =VLOOKUP(DB42,lookup!$Q$2:$W$62,3,FALSE) ->  | DE42: =VLOOKUP(DB42,lookup!$Q$2:$W$62,4,FALSE) ->  | DF42: =VLOOKUP(DB42,lookup!$Q$2:$W$62,5,FALSE) ->  | DG42: =VLOOKUP(DB42,lookup!$Q$2:$W$62,6,FALSE) ->  | DH42: =VLOOKUP(DB42,lookup!$Q$2:$W$62,7,FALSE) -> 
R43: =IF(F43="","",VLOOKUP(P43,lookup!$L$2:$O$103,Data!Q43+1,FALSE)) ->  | X43: 0 | Y43: 0 | Z43: 0 | AI43: =VLOOKUP(S43,lookup!$A$1:$J$483,2,FALSE) ->  | AJ43: =VLOOKUP(S43,lookup!$A$1:$J$483,3,FALSE) ->  | AK43: =VLOOKUP(S43,lookup!$A$1:$J$483,4,FALSE) ->  | AL43: =VLOOKUP(S43,lookup!$A$1:$J$483,8,FALSE) ->  | AM43: =VLOOKUP(S43,lookup!$A$1:$J$483,9,FALSE) ->  | AN43: =VLOOKUP(S43,lookup!$A$1:$J$483,10,FALSE) ->  | AO43: =VLOOKUP(S43,lookup!$A$1:$J$483,5,FALSE) ->  | AP43: =VLOOKUP(S43,lookup!$A$1:$J$483,6,FALSE) ->  | AQ43: =VLOOKUP(S43,lookup!$A$1:$J$483,7,FALSE) ->  | AR43: =VLOOKUP(W43,lookup!$A$1:$J$483,2,FALSE) ->  | AS43: =VLOOKUP(W43,lookup!$A$1:$J$483,3,FALSE) ->  | AT43: =VLOOKUP(W43,lookup!$A$1:$J$483,4,FALSE) ->  | AU43: 17.5 | AV43: =VLOOKUP(AU43,lookup!$Q$2:$W$62,2,FALSE) -> 0.5 | AW43: =VLOOKUP(AU43,lookup!$Q$2:$W$62,3,FALSE) -> 0.49 | AX43: =VLOOKUP(AU43,lookup!$Q$2:$W$62,4,FALSE) -> 0.49 | AY43: =VLOOKUP(AU43,lookup!$Q$2:$W$62,5,FALSE) -> 1 | AZ43: =VLOOKUP(AU43,lookup!$Q$2:$W$62,6,FALSE) -> 0.5 | BA43: =VLOOKUP(AU43,lookup!$Q$2:$W$62,7,FALSE) -> 0.5 | BB43: 17.5 | BC43: =VLOOKUP(BB43,lookup!$Q$2:$W$62,2,FALSE) -> 0.5 | BD43: =VLOOKUP(BB43,lookup!$Q$2:$W$62,3,FALSE) -> 0.49 | BE43: =VLOOKUP(BB43,lookup!$Q$2:$W$62,4,FALSE) -> 0.49 | BF43: =VLOOKUP(BB43,lookup!$Q$2:$W$62,5,FALSE) -> 1 | BG43: =VLOOKUP(BB43,lookup!$Q$2:$W$62,6,FALSE) -> 0.5 | BH43: =VLOOKUP(BB43,lookup!$Q$2:$W$62,7,FALSE) -> 0.5 | BV43: 0 | BW43: =VLOOKUP(BV43,lookup!$Q$2:$W$62,2,FALSE) ->  | BX43: =VLOOKUP(BV43,lookup!$Q$2:$W$62,3,FALSE) ->  | BY43: =VLOOKUP(BV43,lookup!$Q$2:$W$62,4,FALSE) ->  | BZ43: =VLOOKUP(BV43,lookup!$Q$2:$W$62,5,FALSE) ->  | CA43: =VLOOKUP(BV43,lookup!$Q$2:$W$62,6,FALSE) ->  | CB43: =VLOOKUP(BV43,lookup!$Q$2:$W$62,7,FALSE) ->  | CC43: 0 | CD43: =VLOOKUP(CC43,lookup!$Q$2:$W$62,2,FALSE) ->  | CE43: =VLOOKUP(CC43,lookup!$Q$2:$W$62,3,FALSE) ->  | CF43: =VLOOKUP(CC43,lookup!$Q$2:$W$62,4,FALSE) ->  | CG43: =VLOOKUP(CC43,lookup!$Q$2:$W$62,5,FALSE) ->  | CH43: =VLOOKUP(CC43,lookup!$Q$2:$W$62,6,FALSE) ->  | CI43: =VLOOKUP(CC43,lookup!$Q$2:$W$62,7,FALSE) ->  | CW43: 0 | CX43: 1 | CY43: 0 | CZ43: 1 | DA43: 2 | DC43: =VLOOKUP(DB43,lookup!$Q$2:$W$62,2,FALSE) ->  | DD43: =VLOOKUP(DB43,lookup!$Q$2:$W$62,3,FALSE) ->  | DE43: =VLOOKUP(DB43,lookup!$Q$2:$W$62,4,FALSE) ->  | DF43: =VLOOKUP(DB43,lookup!$Q$2:$W$62,5,FALSE) ->  | DG43: =VLOOKUP(DB43,lookup!$Q$2:$W$62,6,FALSE) ->  | DH43: =VLOOKUP(DB43,lookup!$Q$2:$W$62,7,FALSE) -> 
R44: =IF(F44="","",VLOOKUP(P44,lookup!$L$2:$O$103,Data!Q44+1,FALSE)) ->  | X44: 0 | Y44: 0 | Z44: 0 | AI44: =VLOOKUP(S44,lookup!$A$1:$J$483,2,FALSE) ->  | AJ44: =VLOOKUP(S44,lookup!$A$1:$J$483,3,FALSE) ->  | AK44: =VLOOKUP(S44,lookup!$A$1:$J$483,4,FALSE) ->  | AL44: =VLOOKUP(S44,lookup!$A$1:$J$483,8,FALSE) ->  | AM44: =VLOOKUP(S44,lookup!$A$1:$J$483,9,FALSE) ->  | AN44: =VLOOKUP(S44,lookup!$A$1:$J$483,10,FALSE) ->  | AO44: =VLOOKUP(S44,lookup!$A$1:$J$483,5,FALSE) ->  | AP44: =VLOOKUP(S44,lookup!$A$1:$J$483,6,FALSE) ->  | AQ44: =VLOOKUP(S44,lookup!$A$1:$J$483,7,FALSE) ->  | AR44: =VLOOKUP(W44,lookup!$A$1:$J$483,2,FALSE) ->  | AS44: =VLOOKUP(W44,lookup!$A$1:$J$483,3,FALSE) ->  | AT44: =VLOOKUP(W44,lookup!$A$1:$J$483,4,FALSE) ->  | AU44: 17.5 | AV44: =VLOOKUP(AU44,lookup!$Q$2:$W$62,2,FALSE) -> 0.5 | AW44: =VLOOKUP(AU44,lookup!$Q$2:$W$62,3,FALSE) -> 0.49 | AX44: =VLOOKUP(AU44,lookup!$Q$2:$W$62,4,FALSE) -> 0.49 | AY44: =VLOOKUP(AU44,lookup!$Q$2:$W$62,5,FALSE) -> 1 | AZ44: =VLOOKUP(AU44,lookup!$Q$2:$W$62,6,FALSE) -> 0.5 | BA44: =VLOOKUP(AU44,lookup!$Q$2:$W$62,7,FALSE) -> 0.5 | BB44: 17.5 | BC44: =VLOOKUP(BB44,lookup!$Q$2:$W$62,2,FALSE) -> 0.5 | BD44: =VLOOKUP(BB44,lookup!$Q$2:$W$62,3,FALSE) -> 0.49 | BE44: =VLOOKUP(BB44,lookup!$Q$2:$W$62,4,FALSE) -> 0.49 | BF44: =VLOOKUP(BB44,lookup!$Q$2:$W$62,5,FALSE) -> 1 | BG44: =VLOOKUP(BB44,lookup!$Q$2:$W$62,6,FALSE) -> 0.5 | BH44: =VLOOKUP(BB44,lookup!$Q$2:$W$62,7,FALSE) -> 0.5 | BV44: 0 | BW44: =VLOOKUP(BV44,lookup!$Q$2:$W$62,2,FALSE) ->  | BX44: =VLOOKUP(BV44,lookup!$Q$2:$W$62,3,FALSE) ->  | BY44: =VLOOKUP(BV44,lookup!$Q$2:$W$62,4,FALSE) ->  | BZ44: =VLOOKUP(BV44,lookup!$Q$2:$W$62,5,FALSE) ->  | CA44: =VLOOKUP(BV44,lookup!$Q$2:$W$62,6,FALSE) ->  | CB44: =VLOOKUP(BV44,lookup!$Q$2:$W$62,7,FALSE) ->  | CC44: 0 | CD44: =VLOOKUP(CC44,lookup!$Q$2:$W$62,2,FALSE) ->  | CE44: =VLOOKUP(CC44,lookup!$Q$2:$W$62,3,FALSE) ->  | CF44: =VLOOKUP(CC44,lookup!$Q$2:$W$62,4,FALSE) ->  | CG44: =VLOOKUP(CC44,lookup!$Q$2:$W$62,5,FALSE) ->  | CH44: =VLOOKUP(CC44,lookup!$Q$2:$W$62,6,FALSE) ->  | CI44: =VLOOKUP(CC44,lookup!$Q$2:$W$62,7,FALSE) ->  | CW44: 0 | CX44: 1 | CY44: 0 | CZ44: 1 | DA44: 2 | DC44: =VLOOKUP(DB44,lookup!$Q$2:$W$62,2,FALSE) ->  | DD44: =VLOOKUP(DB44,lookup!$Q$2:$W$62,3,FALSE) ->  | DE44: =VLOOKUP(DB44,lookup!$Q$2:$W$62,4,FALSE) ->  | DF44: =VLOOKUP(DB44,lookup!$Q$2:$W$62,5,FALSE) ->  | DG44: =VLOOKUP(DB44,lookup!$Q$2:$W$62,6,FALSE) ->  | DH44: =VLOOKUP(DB44,lookup!$Q$2:$W$62,7,FALSE) -> 
R45: =IF(F45="","",VLOOKUP(P45,lookup!$L$2:$O$103,Data!Q45+1,FALSE)) ->  | X45: 0 | Y45: 0 | Z45: 0 | AI45: =VLOOKUP(S45,lookup!$A$1:$J$483,2,FALSE) ->  | AJ45: =VLOOKUP(S45,lookup!$A$1:$J$483,3,FALSE) ->  | AK45: =VLOOKUP(S45,lookup!$A$1:$J$483,4,FALSE) ->  | AL45: =VLOOKUP(S45,lookup!$A$1:$J$483,8,FALSE) ->  | AM45: =VLOOKUP(S45,lookup!$A$1:$J$483,9,FALSE) ->  | AN45: =VLOOKUP(S45,lookup!$A$1:$J$483,10,FALSE) ->  | AO45: =VLOOKUP(S45,lookup!$A$1:$J$483,5,FALSE) ->  | AP45: =VLOOKUP(S45,lookup!$A$1:$J$483,6,FALSE) ->  | AQ45: =VLOOKUP(S45,lookup!$A$1:$J$483,7,FALSE) ->  | AR45: =VLOOKUP(W45,lookup!$A$1:$J$483,2,FALSE) ->  | AS45: =VLOOKUP(W45,lookup!$A$1:$J$483,3,FALSE) ->  | AT45: =VLOOKUP(W45,lookup!$A$1:$J$483,4,FALSE) ->  | AU45: 17.5 | AV45: =VLOOKUP(AU45,lookup!$Q$2:$W$62,2,FALSE) -> 0.5 | AW45: =VLOOKUP(AU45,lookup!$Q$2:$W$62,3,FALSE) -> 0.49 | AX45: =VLOOKUP(AU45,lookup!$Q$2:$W$62,4,FALSE) -> 0.49 | AY45: =VLOOKUP(AU45,lookup!$Q$2:$W$62,5,FALSE) -> 1 | AZ45: =VLOOKUP(AU45,lookup!$Q$2:$W$62,6,FALSE) -> 0.5 | BA45: =VLOOKUP(AU45,lookup!$Q$2:$W$62,7,FALSE) -> 0.5 | BB45: 17.5 | BC45: =VLOOKUP(BB45,lookup!$Q$2:$W$62,2,FALSE) -> 0.5 | BD45: =VLOOKUP(BB45,lookup!$Q$2:$W$62,3,FALSE) -> 0.49 | BE45: =VLOOKUP(BB45,lookup!$Q$2:$W$62,4,FALSE) -> 0.49 | BF45: =VLOOKUP(BB45,lookup!$Q$2:$W$62,5,FALSE) -> 1 | BG45: =VLOOKUP(BB45,lookup!$Q$2:$W$62,6,FALSE) -> 0.5 | BH45: =VLOOKUP(BB45,lookup!$Q$2:$W$62,7,FALSE) -> 0.5 | BV45: 0 | BW45: =VLOOKUP(BV45,lookup!$Q$2:$W$62,2,FALSE) ->  | BX45: =VLOOKUP(BV45,lookup!$Q$2:$W$62,3,FALSE) ->  | BY45: =VLOOKUP(BV45,lookup!$Q$2:$W$62,4,FALSE) ->  | BZ45: =VLOOKUP(BV45,lookup!$Q$2:$W$62,5,FALSE) ->  | CA45: =VLOOKUP(BV45,lookup!$Q$2:$W$62,6,FALSE) ->  | CB45: =VLOOKUP(BV45,lookup!$Q$2:$W$62,7,FALSE) ->  | CC45: 0 | CD45: =VLOOKUP(CC45,lookup!$Q$2:$W$62,2,FALSE) ->  | CE45: =VLOOKUP(CC45,lookup!$Q$2:$W$62,3,FALSE) ->  | CF45: =VLOOKUP(CC45,lookup!$Q$2:$W$62,4,FALSE) ->  | CG45: =VLOOKUP(CC45,lookup!$Q$2:$W$62,5,FALSE) ->  | CH45: =VLOOKUP(CC45,lookup!$Q$2:$W$62,6,FALSE) ->  | CI45: =VLOOKUP(CC45,lookup!$Q$2:$W$62,7,FALSE) ->  | CW45: 0 | CX45: 1 | CY45: 0 | CZ45: 1 | DA45: 2 | DC45: =VLOOKUP(DB45,lookup!$Q$2:$W$62,2,FALSE) ->  | DD45: =VLOOKUP(DB45,lookup!$Q$2:$W$62,3,FALSE) ->  | DE45: =VLOOKUP(DB45,lookup!$Q$2:$W$62,4,FALSE) ->  | DF45: =VLOOKUP(DB45,lookup!$Q$2:$W$62,5,FALSE) ->  | DG45: =VLOOKUP(DB45,lookup!$Q$2:$W$62,6,FALSE) ->  | DH45: =VLOOKUP(DB45,lookup!$Q$2:$W$62,7,FALSE) -> 
R46: =IF(F46="","",VLOOKUP(P46,lookup!$L$2:$O$103,Data!Q46+1,FALSE)) ->  | X46: 0 | Y46: 0 | Z46: 0 | AI46: =VLOOKUP(S46,lookup!$A$1:$J$483,2,FALSE) ->  | AJ46: =VLOOKUP(S46,lookup!$A$1:$J$483,3,FALSE) ->  | AK46: =VLOOKUP(S46,lookup!$A$1:$J$483,4,FALSE) ->  | AL46: =VLOOKUP(S46,lookup!$A$1:$J$483,8,FALSE) ->  | AM46: =VLOOKUP(S46,lookup!$A$1:$J$483,9,FALSE) ->  | AN46: =VLOOKUP(S46,lookup!$A$1:$J$483,10,FALSE) ->  | AO46: =VLOOKUP(S46,lookup!$A$1:$J$483,5,FALSE) ->  | AP46: =VLOOKUP(S46,lookup!$A$1:$J$483,6,FALSE) ->  | AQ46: =VLOOKUP(S46,lookup!$A$1:$J$483,7,FALSE) ->  | AR46: =VLOOKUP(W46,lookup!$A$1:$J$483,2,FALSE) ->  | AS46: =VLOOKUP(W46,lookup!$A$1:$J$483,3,FALSE) ->  | AT46: =VLOOKUP(W46,lookup!$A$1:$J$483,4,FALSE) ->  | AU46: 17.5 | AV46: =VLOOKUP(AU46,lookup!$Q$2:$W$62,2,FALSE) -> 0.5 | AW46: =VLOOKUP(AU46,lookup!$Q$2:$W$62,3,FALSE) -> 0.49 | AX46: =VLOOKUP(AU46,lookup!$Q$2:$W$62,4,FALSE) -> 0.49 | AY46: =VLOOKUP(AU46,lookup!$Q$2:$W$62,5,FALSE) -> 1 | AZ46: =VLOOKUP(AU46,lookup!$Q$2:$W$62,6,FALSE) -> 0.5 | BA46: =VLOOKUP(AU46,lookup!$Q$2:$W$62,7,FALSE) -> 0.5 | BB46: 17.5 | BC46: =VLOOKUP(BB46,lookup!$Q$2:$W$62,2,FALSE) -> 0.5 | BD46: =VLOOKUP(BB46,lookup!$Q$2:$W$62,3,FALSE) -> 0.49 | BE46: =VLOOKUP(BB46,lookup!$Q$2:$W$62,4,FALSE) -> 0.49 | BF46: =VLOOKUP(BB46,lookup!$Q$2:$W$62,5,FALSE) -> 1 | BG46: =VLOOKUP(BB46,lookup!$Q$2:$W$62,6,FALSE) -> 0.5 | BH46: =VLOOKUP(BB46,lookup!$Q$2:$W$62,7,FALSE) -> 0.5 | BV46: 0 | BW46: =VLOOKUP(BV46,lookup!$Q$2:$W$62,2,FALSE) ->  | BX46: =VLOOKUP(BV46,lookup!$Q$2:$W$62,3,FALSE) ->  | BY46: =VLOOKUP(BV46,lookup!$Q$2:$W$62,4,FALSE) ->  | BZ46: =VLOOKUP(BV46,lookup!$Q$2:$W$62,5,FALSE) ->  | CA46: =VLOOKUP(BV46,lookup!$Q$2:$W$62,6,FALSE) ->  | CB46: =VLOOKUP(BV46,lookup!$Q$2:$W$62,7,FALSE) ->  | CC46: 0 | CD46: =VLOOKUP(CC46,lookup!$Q$2:$W$62,2,FALSE) ->  | CE46: =VLOOKUP(CC46,lookup!$Q$2:$W$62,3,FALSE) ->  | CF46: =VLOOKUP(CC46,lookup!$Q$2:$W$62,4,FALSE) ->  | CG46: =VLOOKUP(CC46,lookup!$Q$2:$W$62,5,FALSE) ->  | CH46: =VLOOKUP(CC46,lookup!$Q$2:$W$62,6,FALSE) ->  | CI46: =VLOOKUP(CC46,lookup!$Q$2:$W$62,7,FALSE) ->  | CW46: 0 | CX46: 1 | CY46: 0 | CZ46: 1 | DA46: 2 | DC46: =VLOOKUP(DB46,lookup!$Q$2:$W$62,2,FALSE) ->  | DD46: =VLOOKUP(DB46,lookup!$Q$2:$W$62,3,FALSE) ->  | DE46: =VLOOKUP(DB46,lookup!$Q$2:$W$62,4,FALSE) ->  | DF46: =VLOOKUP(DB46,lookup!$Q$2:$W$62,5,FALSE) ->  | DG46: =VLOOKUP(DB46,lookup!$Q$2:$W$62,6,FALSE) ->  | DH46: =VLOOKUP(DB46,lookup!$Q$2:$W$62,7,FALSE) -> 
R47: =IF(F47="","",VLOOKUP(P47,lookup!$L$2:$O$103,Data!Q47+1,FALSE)) ->  | X47: 0 | Y47: 0 | Z47: 0 | AI47: =VLOOKUP(S47,lookup!$A$1:$J$483,2,FALSE) ->  | AJ47: =VLOOKUP(S47,lookup!$A$1:$J$483,3,FALSE) ->  | AK47: =VLOOKUP(S47,lookup!$A$1:$J$483,4,FALSE) ->  | AL47: =VLOOKUP(S47,lookup!$A$1:$J$483,8,FALSE) ->  | AM47: =VLOOKUP(S47,lookup!$A$1:$J$483,9,FALSE) ->  | AN47: =VLOOKUP(S47,lookup!$A$1:$J$483,10,FALSE) ->  | AO47: =VLOOKUP(S47,lookup!$A$1:$J$483,5,FALSE) ->  | AP47: =VLOOKUP(S47,lookup!$A$1:$J$483,6,FALSE) ->  | AQ47: =VLOOKUP(S47,lookup!$A$1:$J$483,7,FALSE) ->  | AR47: =VLOOKUP(W47,lookup!$A$1:$J$483,2,FALSE) ->  | AS47: =VLOOKUP(W47,lookup!$A$1:$J$483,3,FALSE) ->  | AT47: =VLOOKUP(W47,lookup!$A$1:$J$483,4,FALSE) ->  | AU47: 17.5 | AV47: =VLOOKUP(AU47,lookup!$Q$2:$W$62,2,FALSE) -> 0.5 | AW47: =VLOOKUP(AU47,lookup!$Q$2:$W$62,3,FALSE) -> 0.49 | AX47: =VLOOKUP(AU47,lookup!$Q$2:$W$62,4,FALSE) -> 0.49 | AY47: =VLOOKUP(AU47,lookup!$Q$2:$W$62,5,FALSE) -> 1 | AZ47: =VLOOKUP(AU47,lookup!$Q$2:$W$62,6,FALSE) -> 0.5 | BA47: =VLOOKUP(AU47,lookup!$Q$2:$W$62,7,FALSE) -> 0.5 | BB47: 17.5 | BC47: =VLOOKUP(BB47,lookup!$Q$2:$W$62,2,FALSE) -> 0.5 | BD47: =VLOOKUP(BB47,lookup!$Q$2:$W$62,3,FALSE) -> 0.49 | BE47: =VLOOKUP(BB47,lookup!$Q$2:$W$62,4,FALSE) -> 0.49 | BF47: =VLOOKUP(BB47,lookup!$Q$2:$W$62,5,FALSE) -> 1 | BG47: =VLOOKUP(BB47,lookup!$Q$2:$W$62,6,FALSE) -> 0.5 | BH47: =VLOOKUP(BB47,lookup!$Q$2:$W$62,7,FALSE) -> 0.5 | BV47: 0 | BW47: =VLOOKUP(BV47,lookup!$Q$2:$W$62,2,FALSE) ->  | BX47: =VLOOKUP(BV47,lookup!$Q$2:$W$62,3,FALSE) ->  | BY47: =VLOOKUP(BV47,lookup!$Q$2:$W$62,4,FALSE) ->  | BZ47: =VLOOKUP(BV47,lookup!$Q$2:$W$62,5,FALSE) ->  | CA47: =VLOOKUP(BV47,lookup!$Q$2:$W$62,6,FALSE) ->  | CB47: =VLOOKUP(BV47,lookup!$Q$2:$W$62,7,FALSE) ->  | CC47: 0 | CD47: =VLOOKUP(CC47,lookup!$Q$2:$W$62,2,FALSE) ->  | CE47: =VLOOKUP(CC47,lookup!$Q$2:$W$62,3,FALSE) ->  | CF47: =VLOOKUP(CC47,lookup!$Q$2:$W$62,4,FALSE) ->  | CG47: =VLOOKUP(CC47,lookup!$Q$2:$W$62,5,FALSE) ->  | CH47: =VLOOKUP(CC47,lookup!$Q$2:$W$62,6,FALSE) ->  | CI47: =VLOOKUP(CC47,lookup!$Q$2:$W$62,7,FALSE) ->  | CW47: 0 | CX47: 1 | CY47: 0 | CZ47: 1 | DA47: 2 | DC47: =VLOOKUP(DB47,lookup!$Q$2:$W$62,2,FALSE) ->  | DD47: =VLOOKUP(DB47,lookup!$Q$2:$W$62,3,FALSE) ->  | DE47: =VLOOKUP(DB47,lookup!$Q$2:$W$62,4,FALSE) ->  | DF47: =VLOOKUP(DB47,lookup!$Q$2:$W$62,5,FALSE) ->  | DG47: =VLOOKUP(DB47,lookup!$Q$2:$W$62,6,FALSE) ->  | DH47: =VLOOKUP(DB47,lookup!$Q$2:$W$62,7,FALSE) -> 
R48: =IF(F48="","",VLOOKUP(P48,lookup!$L$2:$O$103,Data!Q48+1,FALSE)) ->  | X48: 0 | Y48: 0 | Z48: 0 | AI48: =VLOOKUP(S48,lookup!$A$1:$J$483,2,FALSE) ->  | AJ48: =VLOOKUP(S48,lookup!$A$1:$J$483,3,FALSE) ->  | AK48: =VLOOKUP(S48,lookup!$A$1:$J$483,4,FALSE) ->  | AL48: =VLOOKUP(S48,lookup!$A$1:$J$483,8,FALSE) ->  | AM48: =VLOOKUP(S48,lookup!$A$1:$J$483,9,FALSE) ->  | AN48: =VLOOKUP(S48,lookup!$A$1:$J$483,10,FALSE) ->  | AO48: =VLOOKUP(S48,lookup!$A$1:$J$483,5,FALSE) ->  | AP48: =VLOOKUP(S48,lookup!$A$1:$J$483,6,FALSE) ->  | AQ48: =VLOOKUP(S48,lookup!$A$1:$J$483,7,FALSE) ->  | AR48: =VLOOKUP(W48,lookup!$A$1:$J$483,2,FALSE) ->  | AS48: =VLOOKUP(W48,lookup!$A$1:$J$483,3,FALSE) ->  | AT48: =VLOOKUP(W48,lookup!$A$1:$J$483,4,FALSE) ->  | AU48: 17.5 | AV48: =VLOOKUP(AU48,lookup!$Q$2:$W$62,2,FALSE) -> 0.5 | AW48: =VLOOKUP(AU48,lookup!$Q$2:$W$62,3,FALSE) -> 0.49 | AX48: =VLOOKUP(AU48,lookup!$Q$2:$W$62,4,FALSE) -> 0.49 | AY48: =VLOOKUP(AU48,lookup!$Q$2:$W$62,5,FALSE) -> 1 | AZ48: =VLOOKUP(AU48,lookup!$Q$2:$W$62,6,FALSE) -> 0.5 | BA48: =VLOOKUP(AU48,lookup!$Q$2:$W$62,7,FALSE) -> 0.5 | BB48: 17.5 | BC48: =VLOOKUP(BB48,lookup!$Q$2:$W$62,2,FALSE) -> 0.5 | BD48: =VLOOKUP(BB48,lookup!$Q$2:$W$62,3,FALSE) -> 0.49 | BE48: =VLOOKUP(BB48,lookup!$Q$2:$W$62,4,FALSE) -> 0.49 | BF48: =VLOOKUP(BB48,lookup!$Q$2:$W$62,5,FALSE) -> 1 | BG48: =VLOOKUP(BB48,lookup!$Q$2:$W$62,6,FALSE) -> 0.5 | BH48: =VLOOKUP(BB48,lookup!$Q$2:$W$62,7,FALSE) -> 0.5 | BV48: 0 | BW48: =VLOOKUP(BV48,lookup!$Q$2:$W$62,2,FALSE) ->  | BX48: =VLOOKUP(BV48,lookup!$Q$2:$W$62,3,FALSE) ->  | BY48: =VLOOKUP(BV48,lookup!$Q$2:$W$62,4,FALSE) ->  | BZ48: =VLOOKUP(BV48,lookup!$Q$2:$W$62,5,FALSE) ->  | CA48: =VLOOKUP(BV48,lookup!$Q$2:$W$62,6,FALSE) ->  | CB48: =VLOOKUP(BV48,lookup!$Q$2:$W$62,7,FALSE) ->  | CC48: 0 | CD48: =VLOOKUP(CC48,lookup!$Q$2:$W$62,2,FALSE) ->  | CE48: =VLOOKUP(CC48,lookup!$Q$2:$W$62,3,FALSE) ->  | CF48: =VLOOKUP(CC48,lookup!$Q$2:$W$62,4,FALSE) ->  | CG48: =VLOOKUP(CC48,lookup!$Q$2:$W$62,5,FALSE) ->  | CH48: =VLOOKUP(CC48,lookup!$Q$2:$W$62,6,FALSE) ->  | CI48: =VLOOKUP(CC48,lookup!$Q$2:$W$62,7,FALSE) ->  | CW48: 0 | CX48: 1 | CY48: 0 | CZ48: 1 | DA48: 2 | DC48: =VLOOKUP(DB48,lookup!$Q$2:$W$62,2,FALSE) ->  | DD48: =VLOOKUP(DB48,lookup!$Q$2:$W$62,3,FALSE) ->  | DE48: =VLOOKUP(DB48,lookup!$Q$2:$W$62,4,FALSE) ->  | DF48: =VLOOKUP(DB48,lookup!$Q$2:$W$62,5,FALSE) ->  | DG48: =VLOOKUP(DB48,lookup!$Q$2:$W$62,6,FALSE) ->  | DH48: =VLOOKUP(DB48,lookup!$Q$2:$W$62,7,FALSE) -> 
R49: =IF(F49="","",VLOOKUP(P49,lookup!$L$2:$O$103,Data!Q49+1,FALSE)) ->  | X49: 0 | Y49: 0 | Z49: 0 | AI49: =VLOOKUP(S49,lookup!$A$1:$J$483,2,FALSE) ->  | AJ49: =VLOOKUP(S49,lookup!$A$1:$J$483,3,FALSE) ->  | AK49: =VLOOKUP(S49,lookup!$A$1:$J$483,4,FALSE) ->  | AL49: =VLOOKUP(S49,lookup!$A$1:$J$483,8,FALSE) ->  | AM49: =VLOOKUP(S49,lookup!$A$1:$J$483,9,FALSE) ->  | AN49: =VLOOKUP(S49,lookup!$A$1:$J$483,10,FALSE) ->  | AO49: =VLOOKUP(S49,lookup!$A$1:$J$483,5,FALSE) ->  | AP49: =VLOOKUP(S49,lookup!$A$1:$J$483,6,FALSE) ->  | AQ49: =VLOOKUP(S49,lookup!$A$1:$J$483,7,FALSE) ->  | AR49: =VLOOKUP(W49,lookup!$A$1:$J$483,2,FALSE) ->  | AS49: =VLOOKUP(W49,lookup!$A$1:$J$483,3,FALSE) ->  | AT49: =VLOOKUP(W49,lookup!$A$1:$J$483,4,FALSE) ->  | AU49: 17.5 | AV49: =VLOOKUP(AU49,lookup!$Q$2:$W$62,2,FALSE) -> 0.5 | AW49: =VLOOKUP(AU49,lookup!$Q$2:$W$62,3,FALSE) -> 0.49 | AX49: =VLOOKUP(AU49,lookup!$Q$2:$W$62,4,FALSE) -> 0.49 | AY49: =VLOOKUP(AU49,lookup!$Q$2:$W$62,5,FALSE) -> 1 | AZ49: =VLOOKUP(AU49,lookup!$Q$2:$W$62,6,FALSE) -> 0.5 | BA49: =VLOOKUP(AU49,lookup!$Q$2:$W$62,7,FALSE) -> 0.5 | BB49: 17.5 | BC49: =VLOOKUP(BB49,lookup!$Q$2:$W$62,2,FALSE) -> 0.5 | BD49: =VLOOKUP(BB49,lookup!$Q$2:$W$62,3,FALSE) -> 0.49 | BE49: =VLOOKUP(BB49,lookup!$Q$2:$W$62,4,FALSE) -> 0.49 | BF49: =VLOOKUP(BB49,lookup!$Q$2:$W$62,5,FALSE) -> 1 | BG49: =VLOOKUP(BB49,lookup!$Q$2:$W$62,6,FALSE) -> 0.5 | BH49: =VLOOKUP(BB49,lookup!$Q$2:$W$62,7,FALSE) -> 0.5 | BV49: 0 | BW49: =VLOOKUP(BV49,lookup!$Q$2:$W$62,2,FALSE) ->  | BX49: =VLOOKUP(BV49,lookup!$Q$2:$W$62,3,FALSE) ->  | BY49: =VLOOKUP(BV49,lookup!$Q$2:$W$62,4,FALSE) ->  | BZ49: =VLOOKUP(BV49,lookup!$Q$2:$W$62,5,FALSE) ->  | CA49: =VLOOKUP(BV49,lookup!$Q$2:$W$62,6,FALSE) ->  | CB49: =VLOOKUP(BV49,lookup!$Q$2:$W$62,7,FALSE) ->  | CC49: 0 | CD49: =VLOOKUP(CC49,lookup!$Q$2:$W$62,2,FALSE) ->  | CE49: =VLOOKUP(CC49,lookup!$Q$2:$W$62,3,FALSE) ->  | CF49: =VLOOKUP(CC49,lookup!$Q$2:$W$62,4,FALSE) ->  | CG49: =VLOOKUP(CC49,lookup!$Q$2:$W$62,5,FALSE) ->  | CH49: =VLOOKUP(CC49,lookup!$Q$2:$W$62,6,FALSE) ->  | CI49: =VLOOKUP(CC49,lookup!$Q$2:$W$62,7,FALSE) ->  | CW49: 0 | CX49: 1 | CY49: 0 | CZ49: 1 | DA49: 2 | DC49: =VLOOKUP(DB49,lookup!$Q$2:$W$62,2,FALSE) ->  | DD49: =VLOOKUP(DB49,lookup!$Q$2:$W$62,3,FALSE) ->  | DE49: =VLOOKUP(DB49,lookup!$Q$2:$W$62,4,FALSE) ->  | DF49: =VLOOKUP(DB49,lookup!$Q$2:$W$62,5,FALSE) ->  | DG49: =VLOOKUP(DB49,lookup!$Q$2:$W$62,6,FALSE) ->  | DH49: =VLOOKUP(DB49,lookup!$Q$2:$W$62,7,FALSE) -> 
R50: =IF(F50="","",VLOOKUP(P50,lookup!$L$2:$O$103,Data!Q50+1,FALSE)) ->  | X50: 0 | Y50: 0 | Z50: 0 | AI50: =VLOOKUP(S50,lookup!$A$1:$J$483,2,FALSE) ->  | AJ50: =VLOOKUP(S50,lookup!$A$1:$J$483,3,FALSE) ->  | AK50: =VLOOKUP(S50,lookup!$A$1:$J$483,4,FALSE) ->  | AL50: =VLOOKUP(S50,lookup!$A$1:$J$483,8,FALSE) ->  | AM50: =VLOOKUP(S50,lookup!$A$1:$J$483,9,FALSE) ->  | AN50: =VLOOKUP(S50,lookup!$A$1:$J$483,10,FALSE) ->  | AO50: =VLOOKUP(S50,lookup!$A$1:$J$483,5,FALSE) ->  | AP50: =VLOOKUP(S50,lookup!$A$1:$J$483,6,FALSE) ->  | AQ50: =VLOOKUP(S50,lookup!$A$1:$J$483,7,FALSE) ->  | AR50: =VLOOKUP(W50,lookup!$A$1:$J$483,2,FALSE) ->  | AS50: =VLOOKUP(W50,lookup!$A$1:$J$483,3,FALSE) ->  | AT50: =VLOOKUP(W50,lookup!$A$1:$J$483,4,FALSE) ->  | AU50: 17.5 | AV50: =VLOOKUP(AU50,lookup!$Q$2:$W$62,2,FALSE) -> 0.5 | AW50: =VLOOKUP(AU50,lookup!$Q$2:$W$62,3,FALSE) -> 0.49 | AX50: =VLOOKUP(AU50,lookup!$Q$2:$W$62,4,FALSE) -> 0.49 | AY50: =VLOOKUP(AU50,lookup!$Q$2:$W$62,5,FALSE) -> 1 | AZ50: =VLOOKUP(AU50,lookup!$Q$2:$W$62,6,FALSE) -> 0.5 | BA50: =VLOOKUP(AU50,lookup!$Q$2:$W$62,7,FALSE) -> 0.5 | BB50: 17.5 | BC50: =VLOOKUP(BB50,lookup!$Q$2:$W$62,2,FALSE) -> 0.5 | BD50: =VLOOKUP(BB50,lookup!$Q$2:$W$62,3,FALSE) -> 0.49 | BE50: =VLOOKUP(BB50,lookup!$Q$2:$W$62,4,FALSE) -> 0.49 | BF50: =VLOOKUP(BB50,lookup!$Q$2:$W$62,5,FALSE) -> 1 | BG50: =VLOOKUP(BB50,lookup!$Q$2:$W$62,6,FALSE) -> 0.5 | BH50: =VLOOKUP(BB50,lookup!$Q$2:$W$62,7,FALSE) -> 0.5 | BV50: 0 | BW50: =VLOOKUP(BV50,lookup!$Q$2:$W$62,2,FALSE) ->  | BX50: =VLOOKUP(BV50,lookup!$Q$2:$W$62,3,FALSE) ->  | BY50: =VLOOKUP(BV50,lookup!$Q$2:$W$62,4,FALSE) ->  | BZ50: =VLOOKUP(BV50,lookup!$Q$2:$W$62,5,FALSE) ->  | CA50: =VLOOKUP(BV50,lookup!$Q$2:$W$62,6,FALSE) ->  | CB50: =VLOOKUP(BV50,lookup!$Q$2:$W$62,7,FALSE) ->  | CC50: 0 | CD50: =VLOOKUP(CC50,lookup!$Q$2:$W$62,2,FALSE) ->  | CE50: =VLOOKUP(CC50,lookup!$Q$2:$W$62,3,FALSE) ->  | CF50: =VLOOKUP(CC50,lookup!$Q$2:$W$62,4,FALSE) ->  | CG50: =VLOOKUP(CC50,lookup!$Q$2:$W$62,5,FALSE) ->  | CH50: =VLOOKUP(CC50,lookup!$Q$2:$W$62,6,FALSE) ->  | CI50: =VLOOKUP(CC50,lookup!$Q$2:$W$62,7,FALSE) ->  | CW50: 0 | CX50: 1 | CY50: 0 | CZ50: 1 | DA50: 2 | DC50: =VLOOKUP(DB50,lookup!$Q$2:$W$62,2,FALSE) ->  | DD50: =VLOOKUP(DB50,lookup!$Q$2:$W$62,3,FALSE) ->  | DE50: =VLOOKUP(DB50,lookup!$Q$2:$W$62,4,FALSE) ->  | DF50: =VLOOKUP(DB50,lookup!$Q$2:$W$62,5,FALSE) ->  | DG50: =VLOOKUP(DB50,lookup!$Q$2:$W$62,6,FALSE) ->  | DH50: =VLOOKUP(DB50,lookup!$Q$2:$W$62,7,FALSE) -> 
R51: =IF(F51="","",VLOOKUP(P51,lookup!$L$2:$O$103,Data!Q51+1,FALSE)) ->  | X51: 0 | Y51: 0 | Z51: 0 | AI51: =VLOOKUP(S51,lookup!$A$1:$J$483,2,FALSE) ->  | AJ51: =VLOOKUP(S51,lookup!$A$1:$J$483,3,FALSE) ->  | AK51: =VLOOKUP(S51,lookup!$A$1:$J$483,4,FALSE) ->  | AL51: =VLOOKUP(S51,lookup!$A$1:$J$483,8,FALSE) ->  | AM51: =VLOOKUP(S51,lookup!$A$1:$J$483,9,FALSE) ->  | AN51: =VLOOKUP(S51,lookup!$A$1:$J$483,10,FALSE) ->  | AO51: =VLOOKUP(S51,lookup!$A$1:$J$483,5,FALSE) ->  | AP51: =VLOOKUP(S51,lookup!$A$1:$J$483,6,FALSE) ->  | AQ51: =VLOOKUP(S51,lookup!$A$1:$J$483,7,FALSE) ->  | AR51: =VLOOKUP(W51,lookup!$A$1:$J$483,2,FALSE) ->  | AS51: =VLOOKUP(W51,lookup!$A$1:$J$483,3,FALSE) ->  | AT51: =VLOOKUP(W51,lookup!$A$1:$J$483,4,FALSE) ->  | AU51: 17.5 | AV51: =VLOOKUP(AU51,lookup!$Q$2:$W$62,2,FALSE) -> 0.5 | AW51: =VLOOKUP(AU51,lookup!$Q$2:$W$62,3,FALSE) -> 0.49 | AX51: =VLOOKUP(AU51,lookup!$Q$2:$W$62,4,FALSE) -> 0.49 | AY51: =VLOOKUP(AU51,lookup!$Q$2:$W$62,5,FALSE) -> 1 | AZ51: =VLOOKUP(AU51,lookup!$Q$2:$W$62,6,FALSE) -> 0.5 | BA51: =VLOOKUP(AU51,lookup!$Q$2:$W$62,7,FALSE) -> 0.5 | BB51: 17.5 | BC51: =VLOOKUP(BB51,lookup!$Q$2:$W$62,2,FALSE) -> 0.5 | BD51: =VLOOKUP(BB51,lookup!$Q$2:$W$62,3,FALSE) -> 0.49 | BE51: =VLOOKUP(BB51,lookup!$Q$2:$W$62,4,FALSE) -> 0.49 | BF51: =VLOOKUP(BB51,lookup!$Q$2:$W$62,5,FALSE) -> 1 | BG51: =VLOOKUP(BB51,lookup!$Q$2:$W$62,6,FALSE) -> 0.5 | BH51: =VLOOKUP(BB51,lookup!$Q$2:$W$62,7,FALSE) -> 0.5 | BV51: 0 | BW51: =VLOOKUP(BV51,lookup!$Q$2:$W$62,2,FALSE) ->  | BX51: =VLOOKUP(BV51,lookup!$Q$2:$W$62,3,FALSE) ->  | BY51: =VLOOKUP(BV51,lookup!$Q$2:$W$62,4,FALSE) ->  | BZ51: =VLOOKUP(BV51,lookup!$Q$2:$W$62,5,FALSE) ->  | CA51: =VLOOKUP(BV51,lookup!$Q$2:$W$62,6,FALSE) ->  | CB51: =VLOOKUP(BV51,lookup!$Q$2:$W$62,7,FALSE) ->  | CC51: 0 | CD51: =VLOOKUP(CC51,lookup!$Q$2:$W$62,2,FALSE) ->  | CE51: =VLOOKUP(CC51,lookup!$Q$2:$W$62,3,FALSE) ->  | CF51: =VLOOKUP(CC51,lookup!$Q$2:$W$62,4,FALSE) ->  | CG51: =VLOOKUP(CC51,lookup!$Q$2:$W$62,5,FALSE) ->  | CH51: =VLOOKUP(CC51,lookup!$Q$2:$W$62,6,FALSE) ->  | CI51: =VLOOKUP(CC51,lookup!$Q$2:$W$62,7,FALSE) ->  | CW51: 0 | CX51: 1 | CY51: 0 | CZ51: 1 | DA51: 2 | DC51: =VLOOKUP(DB51,lookup!$Q$2:$W$62,2,FALSE) ->  | DD51: =VLOOKUP(DB51,lookup!$Q$2:$W$62,3,FALSE) ->  | DE51: =VLOOKUP(DB51,lookup!$Q$2:$W$62,4,FALSE) ->  | DF51: =VLOOKUP(DB51,lookup!$Q$2:$W$62,5,FALSE) ->  | DG51: =VLOOKUP(DB51,lookup!$Q$2:$W$62,6,FALSE) ->  | DH51: =VLOOKUP(DB51,lookup!$Q$2:$W$62,7,FALSE) -> 
R52: =IF(F52="","",VLOOKUP(P52,lookup!$L$2:$O$103,Data!Q52+1,FALSE)) ->  | X52: 0 | Y52: 0 | Z52: 0 | AI52: =VLOOKUP(S52,lookup!$A$1:$J$483,2,FALSE) ->  | AJ52: =VLOOKUP(S52,lookup!$A$1:$J$483,3,FALSE) ->  | AK52: =VLOOKUP(S52,lookup!$A$1:$J$483,4,FALSE) ->  | AL52: =VLOOKUP(S52,lookup!$A$1:$J$483,8,FALSE) ->  | AM52: =VLOOKUP(S52,lookup!$A$1:$J$483,9,FALSE) ->  | AN52: =VLOOKUP(S52,lookup!$A$1:$J$483,10,FALSE) ->  | AO52: =VLOOKUP(S52,lookup!$A$1:$J$483,5,FALSE) ->  | AP52: =VLOOKUP(S52,lookup!$A$1:$J$483,6,FALSE) ->  | AQ52: =VLOOKUP(S52,lookup!$A$1:$J$483,7,FALSE) ->  | AR52: =VLOOKUP(W52,lookup!$A$1:$J$483,2,FALSE) ->  | AS52: =VLOOKUP(W52,lookup!$A$1:$J$483,3,FALSE) ->  | AT52: =VLOOKUP(W52,lookup!$A$1:$J$483,4,FALSE) ->  | AU52: 17.5 | AV52: =VLOOKUP(AU52,lookup!$Q$2:$W$62,2,FALSE) -> 0.5 | AW52: =VLOOKUP(AU52,lookup!$Q$2:$W$62,3,FALSE) -> 0.49 | AX52: =VLOOKUP(AU52,lookup!$Q$2:$W$62,4,FALSE) -> 0.49 | AY52: =VLOOKUP(AU52,lookup!$Q$2:$W$62,5,FALSE) -> 1 | AZ52: =VLOOKUP(AU52,lookup!$Q$2:$W$62,6,FALSE) -> 0.5 | BA52: =VLOOKUP(AU52,lookup!$Q$2:$W$62,7,FALSE) -> 0.5 | BB52: 17.5 | BC52: =VLOOKUP(BB52,lookup!$Q$2:$W$62,2,FALSE) -> 0.5 | BD52: =VLOOKUP(BB52,lookup!$Q$2:$W$62,3,FALSE) -> 0.49 | BE52: =VLOOKUP(BB52,lookup!$Q$2:$W$62,4,FALSE) -> 0.49 | BF52: =VLOOKUP(BB52,lookup!$Q$2:$W$62,5,FALSE) -> 1 | BG52: =VLOOKUP(BB52,lookup!$Q$2:$W$62,6,FALSE) -> 0.5 | BH52: =VLOOKUP(BB52,lookup!$Q$2:$W$62,7,FALSE) -> 0.5 | BV52: 0 | BW52: =VLOOKUP(BV52,lookup!$Q$2:$W$62,2,FALSE) ->  | BX52: =VLOOKUP(BV52,lookup!$Q$2:$W$62,3,FALSE) ->  | BY52: =VLOOKUP(BV52,lookup!$Q$2:$W$62,4,FALSE) ->  | BZ52: =VLOOKUP(BV52,lookup!$Q$2:$W$62,5,FALSE) ->  | CA52: =VLOOKUP(BV52,lookup!$Q$2:$W$62,6,FALSE) ->  | CB52: =VLOOKUP(BV52,lookup!$Q$2:$W$62,7,FALSE) ->  | CC52: 0 | CD52: =VLOOKUP(CC52,lookup!$Q$2:$W$62,2,FALSE) ->  | CE52: =VLOOKUP(CC52,lookup!$Q$2:$W$62,3,FALSE) ->  | CF52: =VLOOKUP(CC52,lookup!$Q$2:$W$62,4,FALSE) ->  | CG52: =VLOOKUP(CC52,lookup!$Q$2:$W$62,5,FALSE) ->  | CH52: =VLOOKUP(CC52,lookup!$Q$2:$W$62,6,FALSE) ->  | CI52: =VLOOKUP(CC52,lookup!$Q$2:$W$62,7,FALSE) ->  | CW52: 0 | CX52: 1 | CY52: 0 | CZ52: 1 | DA52: 2 | DC52: =VLOOKUP(DB52,lookup!$Q$2:$W$62,2,FALSE) ->  | DD52: =VLOOKUP(DB52,lookup!$Q$2:$W$62,3,FALSE) ->  | DE52: =VLOOKUP(DB52,lookup!$Q$2:$W$62,4,FALSE) ->  | DF52: =VLOOKUP(DB52,lookup!$Q$2:$W$62,5,FALSE) ->  | DG52: =VLOOKUP(DB52,lookup!$Q$2:$W$62,6,FALSE) ->  | DH52: =VLOOKUP(DB52,lookup!$Q$2:$W$62,7,FALSE) -> 
R53: =IF(F53="","",VLOOKUP(P53,lookup!$L$2:$O$103,Data!Q53+1,FALSE)) ->  | X53: 0 | Y53: 0 | Z53: 0 | AI53: =VLOOKUP(S53,lookup!$A$1:$J$483,2,FALSE) ->  | AJ53: =VLOOKUP(S53,lookup!$A$1:$J$483,3,FALSE) ->  | AK53: =VLOOKUP(S53,lookup!$A$1:$J$483,4,FALSE) ->  | AL53: =VLOOKUP(S53,lookup!$A$1:$J$483,8,FALSE) ->  | AM53: =VLOOKUP(S53,lookup!$A$1:$J$483,9,FALSE) ->  | AN53: =VLOOKUP(S53,lookup!$A$1:$J$483,10,FALSE) ->  | AO53: =VLOOKUP(S53,lookup!$A$1:$J$483,5,FALSE) ->  | AP53: =VLOOKUP(S53,lookup!$A$1:$J$483,6,FALSE) ->  | AQ53: =VLOOKUP(S53,lookup!$A$1:$J$483,7,FALSE) ->  | AR53: =VLOOKUP(W53,lookup!$A$1:$J$483,2,FALSE) ->  | AS53: =VLOOKUP(W53,lookup!$A$1:$J$483,3,FALSE) ->  | AT53: =VLOOKUP(W53,lookup!$A$1:$J$483,4,FALSE) ->  | AU53: 17.5 | AV53: =VLOOKUP(AU53,lookup!$Q$2:$W$62,2,FALSE) -> 0.5 | AW53: =VLOOKUP(AU53,lookup!$Q$2:$W$62,3,FALSE) -> 0.49 | AX53: =VLOOKUP(AU53,lookup!$Q$2:$W$62,4,FALSE) -> 0.49 | AY53: =VLOOKUP(AU53,lookup!$Q$2:$W$62,5,FALSE) -> 1 | AZ53: =VLOOKUP(AU53,lookup!$Q$2:$W$62,6,FALSE) -> 0.5 | BA53: =VLOOKUP(AU53,lookup!$Q$2:$W$62,7,FALSE) -> 0.5 | BB53: 17.5 | BC53: =VLOOKUP(BB53,lookup!$Q$2:$W$62,2,FALSE) -> 0.5 | BD53: =VLOOKUP(BB53,lookup!$Q$2:$W$62,3,FALSE) -> 0.49 | BE53: =VLOOKUP(BB53,lookup!$Q$2:$W$62,4,FALSE) -> 0.49 | BF53: =VLOOKUP(BB53,lookup!$Q$2:$W$62,5,FALSE) -> 1 | BG53: =VLOOKUP(BB53,lookup!$Q$2:$W$62,6,FALSE) -> 0.5 | BH53: =VLOOKUP(BB53,lookup!$Q$2:$W$62,7,FALSE) -> 0.5 | BV53: 0 | BW53: =VLOOKUP(BV53,lookup!$Q$2:$W$62,2,FALSE) ->  | BX53: =VLOOKUP(BV53,lookup!$Q$2:$W$62,3,FALSE) ->  | BY53: =VLOOKUP(BV53,lookup!$Q$2:$W$62,4,FALSE) ->  | BZ53: =VLOOKUP(BV53,lookup!$Q$2:$W$62,5,FALSE) ->  | CA53: =VLOOKUP(BV53,lookup!$Q$2:$W$62,6,FALSE) ->  | CB53: =VLOOKUP(BV53,lookup!$Q$2:$W$62,7,FALSE) ->  | CC53: 0 | CD53: =VLOOKUP(CC53,lookup!$Q$2:$W$62,2,FALSE) ->  | CE53: =VLOOKUP(CC53,lookup!$Q$2:$W$62,3,FALSE) ->  | CF53: =VLOOKUP(CC53,lookup!$Q$2:$W$62,4,FALSE) ->  | CG53: =VLOOKUP(CC53,lookup!$Q$2:$W$62,5,FALSE) ->  | CH53: =VLOOKUP(CC53,lookup!$Q$2:$W$62,6,FALSE) ->  | CI53: =VLOOKUP(CC53,lookup!$Q$2:$W$62,7,FALSE) ->  | CW53: 0 | CX53: 1 | CY53: 0 | CZ53: 1 | DA53: 2 | DC53: =VLOOKUP(DB53,lookup!$Q$2:$W$62,2,FALSE) ->  | DD53: =VLOOKUP(DB53,lookup!$Q$2:$W$62,3,FALSE) ->  | DE53: =VLOOKUP(DB53,lookup!$Q$2:$W$62,4,FALSE) ->  | DF53: =VLOOKUP(DB53,lookup!$Q$2:$W$62,5,FALSE) ->  | DG53: =VLOOKUP(DB53,lookup!$Q$2:$W$62,6,FALSE) ->  | DH53: =VLOOKUP(DB53,lookup!$Q$2:$W$62,7,FALSE) -> 
R54: =IF(F54="","",VLOOKUP(P54,lookup!$L$2:$O$103,Data!Q54+1,FALSE)) ->  | X54: 0 | Y54: 0 | Z54: 0 | AI54: =VLOOKUP(S54,lookup!$A$1:$J$483,2,FALSE) ->  | AJ54: =VLOOKUP(S54,lookup!$A$1:$J$483,3,FALSE) ->  | AK54: =VLOOKUP(S54,lookup!$A$1:$J$483,4,FALSE) ->  | AL54: =VLOOKUP(S54,lookup!$A$1:$J$483,8,FALSE) ->  | AM54: =VLOOKUP(S54,lookup!$A$1:$J$483,9,FALSE) ->  | AN54: =VLOOKUP(S54,lookup!$A$1:$J$483,10,FALSE) ->  | AO54: =VLOOKUP(S54,lookup!$A$1:$J$483,5,FALSE) ->  | AP54: =VLOOKUP(S54,lookup!$A$1:$J$483,6,FALSE) ->  | AQ54: =VLOOKUP(S54,lookup!$A$1:$J$483,7,FALSE) ->  | AR54: =VLOOKUP(W54,lookup!$A$1:$J$483,2,FALSE) ->  | AS54: =VLOOKUP(W54,lookup!$A$1:$J$483,3,FALSE) ->  | AT54: =VLOOKUP(W54,lookup!$A$1:$J$483,4,FALSE) ->  | AU54: 17.5 | AV54: =VLOOKUP(AU54,lookup!$Q$2:$W$62,2,FALSE) -> 0.5 | AW54: =VLOOKUP(AU54,lookup!$Q$2:$W$62,3,FALSE) -> 0.49 | AX54: =VLOOKUP(AU54,lookup!$Q$2:$W$62,4,FALSE) -> 0.49 | AY54: =VLOOKUP(AU54,lookup!$Q$2:$W$62,5,FALSE) -> 1 | AZ54: =VLOOKUP(AU54,lookup!$Q$2:$W$62,6,FALSE) -> 0.5 | BA54: =VLOOKUP(AU54,lookup!$Q$2:$W$62,7,FALSE) -> 0.5 | BB54: 17.5 | BC54: =VLOOKUP(BB54,lookup!$Q$2:$W$62,2,FALSE) -> 0.5 | BD54: =VLOOKUP(BB54,lookup!$Q$2:$W$62,3,FALSE) -> 0.49 | BE54: =VLOOKUP(BB54,lookup!$Q$2:$W$62,4,FALSE) -> 0.49 | BF54: =VLOOKUP(BB54,lookup!$Q$2:$W$62,5,FALSE) -> 1 | BG54: =VLOOKUP(BB54,lookup!$Q$2:$W$62,6,FALSE) -> 0.5 | BH54: =VLOOKUP(BB54,lookup!$Q$2:$W$62,7,FALSE) -> 0.5 | BV54: 0 | BW54: =VLOOKUP(BV54,lookup!$Q$2:$W$62,2,FALSE) ->  | BX54: =VLOOKUP(BV54,lookup!$Q$2:$W$62,3,FALSE) ->  | BY54: =VLOOKUP(BV54,lookup!$Q$2:$W$62,4,FALSE) ->  | BZ54: =VLOOKUP(BV54,lookup!$Q$2:$W$62,5,FALSE) ->  | CA54: =VLOOKUP(BV54,lookup!$Q$2:$W$62,6,FALSE) ->  | CB54: =VLOOKUP(BV54,lookup!$Q$2:$W$62,7,FALSE) ->  | CC54: 0 | CD54: =VLOOKUP(CC54,lookup!$Q$2:$W$62,2,FALSE) ->  | CE54: =VLOOKUP(CC54,lookup!$Q$2:$W$62,3,FALSE) ->  | CF54: =VLOOKUP(CC54,lookup!$Q$2:$W$62,4,FALSE) ->  | CG54: =VLOOKUP(CC54,lookup!$Q$2:$W$62,5,FALSE) ->  | CH54: =VLOOKUP(CC54,lookup!$Q$2:$W$62,6,FALSE) ->  | CI54: =VLOOKUP(CC54,lookup!$Q$2:$W$62,7,FALSE) ->  | CW54: 0 | CX54: 1 | CY54: 0 | CZ54: 1 | DA54: 2 | DC54: =VLOOKUP(DB54,lookup!$Q$2:$W$62,2,FALSE) ->  | DD54: =VLOOKUP(DB54,lookup!$Q$2:$W$62,3,FALSE) ->  | DE54: =VLOOKUP(DB54,lookup!$Q$2:$W$62,4,FALSE) ->  | DF54: =VLOOKUP(DB54,lookup!$Q$2:$W$62,5,FALSE) ->  | DG54: =VLOOKUP(DB54,lookup!$Q$2:$W$62,6,FALSE) ->  | DH54: =VLOOKUP(DB54,lookup!$Q$2:$W$62,7,FALSE) -> 
R55: =IF(F55="","",VLOOKUP(P55,lookup!$L$2:$O$103,Data!Q55+1,FALSE)) ->  | X55: 0 | Y55: 0 | Z55: 0 | AI55: =VLOOKUP(S55,lookup!$A$1:$J$483,2,FALSE) ->  | AJ55: =VLOOKUP(S55,lookup!$A$1:$J$483,3,FALSE) ->  | AK55: =VLOOKUP(S55,lookup!$A$1:$J$483,4,FALSE) ->  | AL55: =VLOOKUP(S55,lookup!$A$1:$J$483,8,FALSE) ->  | AM55: =VLOOKUP(S55,lookup!$A$1:$J$483,9,FALSE) ->  | AN55: =VLOOKUP(S55,lookup!$A$1:$J$483,10,FALSE) ->  | AO55: =VLOOKUP(S55,lookup!$A$1:$J$483,5,FALSE) ->  | AP55: =VLOOKUP(S55,lookup!$A$1:$J$483,6,FALSE) ->  | AQ55: =VLOOKUP(S55,lookup!$A$1:$J$483,7,FALSE) ->  | AR55: =VLOOKUP(W55,lookup!$A$1:$J$483,2,FALSE) ->  | AS55: =VLOOKUP(W55,lookup!$A$1:$J$483,3,FALSE) ->  | AT55: =VLOOKUP(W55,lookup!$A$1:$J$483,4,FALSE) ->  | AU55: 17.5 | AV55: =VLOOKUP(AU55,lookup!$Q$2:$W$62,2,FALSE) -> 0.5 | AW55: =VLOOKUP(AU55,lookup!$Q$2:$W$62,3,FALSE) -> 0.49 | AX55: =VLOOKUP(AU55,lookup!$Q$2:$W$62,4,FALSE) -> 0.49 | AY55: =VLOOKUP(AU55,lookup!$Q$2:$W$62,5,FALSE) -> 1 | AZ55: =VLOOKUP(AU55,lookup!$Q$2:$W$62,6,FALSE) -> 0.5 | BA55: =VLOOKUP(AU55,lookup!$Q$2:$W$62,7,FALSE) -> 0.5 | BB55: 17.5 | BC55: =VLOOKUP(BB55,lookup!$Q$2:$W$62,2,FALSE) -> 0.5 | BD55: =VLOOKUP(BB55,lookup!$Q$2:$W$62,3,FALSE) -> 0.49 | BE55: =VLOOKUP(BB55,lookup!$Q$2:$W$62,4,FALSE) -> 0.49 | BF55: =VLOOKUP(BB55,lookup!$Q$2:$W$62,5,FALSE) -> 1 | BG55: =VLOOKUP(BB55,lookup!$Q$2:$W$62,6,FALSE) -> 0.5 | BH55: =VLOOKUP(BB55,lookup!$Q$2:$W$62,7,FALSE) -> 0.5 | BV55: 0 | BW55: =VLOOKUP(BV55,lookup!$Q$2:$W$62,2,FALSE) ->  | BX55: =VLOOKUP(BV55,lookup!$Q$2:$W$62,3,FALSE) ->  | BY55: =VLOOKUP(BV55,lookup!$Q$2:$W$62,4,FALSE) ->  | BZ55: =VLOOKUP(BV55,lookup!$Q$2:$W$62,5,FALSE) ->  | CA55: =VLOOKUP(BV55,lookup!$Q$2:$W$62,6,FALSE) ->  | CB55: =VLOOKUP(BV55,lookup!$Q$2:$W$62,7,FALSE) ->  | CC55: 0 | CD55: =VLOOKUP(CC55,lookup!$Q$2:$W$62,2,FALSE) ->  | CE55: =VLOOKUP(CC55,lookup!$Q$2:$W$62,3,FALSE) ->  | CF55: =VLOOKUP(CC55,lookup!$Q$2:$W$62,4,FALSE) ->  | CG55: =VLOOKUP(CC55,lookup!$Q$2:$W$62,5,FALSE) ->  | CH55: =VLOOKUP(CC55,lookup!$Q$2:$W$62,6,FALSE) ->  | CI55: =VLOOKUP(CC55,lookup!$Q$2:$W$62,7,FALSE) ->  | CW55: 0 | CX55: 1 | CY55: 0 | CZ55: 1 | DA55: 2 | DC55: =VLOOKUP(DB55,lookup!$Q$2:$W$62,2,FALSE) ->  | DD55: =VLOOKUP(DB55,lookup!$Q$2:$W$62,3,FALSE) ->  | DE55: =VLOOKUP(DB55,lookup!$Q$2:$W$62,4,FALSE) ->  | DF55: =VLOOKUP(DB55,lookup!$Q$2:$W$62,5,FALSE) ->  | DG55: =VLOOKUP(DB55,lookup!$Q$2:$W$62,6,FALSE) ->  | DH55: =VLOOKUP(DB55,lookup!$Q$2:$W$62,7,FALSE) -> 
R56: =IF(F56="","",VLOOKUP(P56,lookup!$L$2:$O$103,Data!Q56+1,FALSE)) ->  | X56: 0 | Y56: 0 | Z56: 0 | AI56: =VLOOKUP(S56,lookup!$A$1:$J$483,2,FALSE) ->  | AJ56: =VLOOKUP(S56,lookup!$A$1:$J$483,3,FALSE) ->  | AK56: =VLOOKUP(S56,lookup!$A$1:$J$483,4,FALSE) ->  | AL56: =VLOOKUP(S56,lookup!$A$1:$J$483,8,FALSE) ->  | AM56: =VLOOKUP(S56,lookup!$A$1:$J$483,9,FALSE) ->  | AN56: =VLOOKUP(S56,lookup!$A$1:$J$483,10,FALSE) ->  | AO56: =VLOOKUP(S56,lookup!$A$1:$J$483,5,FALSE) ->  | AP56: =VLOOKUP(S56,lookup!$A$1:$J$483,6,FALSE) ->  | AQ56: =VLOOKUP(S56,lookup!$A$1:$J$483,7,FALSE) ->  | AR56: =VLOOKUP(W56,lookup!$A$1:$J$483,2,FALSE) ->  | AS56: =VLOOKUP(W56,lookup!$A$1:$J$483,3,FALSE) ->  | AT56: =VLOOKUP(W56,lookup!$A$1:$J$483,4,FALSE) ->  | AU56: 17.5 | AV56: =VLOOKUP(AU56,lookup!$Q$2:$W$62,2,FALSE) -> 0.5 | AW56: =VLOOKUP(AU56,lookup!$Q$2:$W$62,3,FALSE) -> 0.49 | AX56: =VLOOKUP(AU56,lookup!$Q$2:$W$62,4,FALSE) -> 0.49 | AY56: =VLOOKUP(AU56,lookup!$Q$2:$W$62,5,FALSE) -> 1 | AZ56: =VLOOKUP(AU56,lookup!$Q$2:$W$62,6,FALSE) -> 0.5 | BA56: =VLOOKUP(AU56,lookup!$Q$2:$W$62,7,FALSE) -> 0.5 | BB56: 17.5 | BC56: =VLOOKUP(BB56,lookup!$Q$2:$W$62,2,FALSE) -> 0.5 | BD56: =VLOOKUP(BB56,lookup!$Q$2:$W$62,3,FALSE) -> 0.49 | BE56: =VLOOKUP(BB56,lookup!$Q$2:$W$62,4,FALSE) -> 0.49 | BF56: =VLOOKUP(BB56,lookup!$Q$2:$W$62,5,FALSE) -> 1 | BG56: =VLOOKUP(BB56,lookup!$Q$2:$W$62,6,FALSE) -> 0.5 | BH56: =VLOOKUP(BB56,lookup!$Q$2:$W$62,7,FALSE) -> 0.5 | BV56: 0 | BW56: =VLOOKUP(BV56,lookup!$Q$2:$W$62,2,FALSE) ->  | BX56: =VLOOKUP(BV56,lookup!$Q$2:$W$62,3,FALSE) ->  | BY56: =VLOOKUP(BV56,lookup!$Q$2:$W$62,4,FALSE) ->  | BZ56: =VLOOKUP(BV56,lookup!$Q$2:$W$62,5,FALSE) ->  | CA56: =VLOOKUP(BV56,lookup!$Q$2:$W$62,6,FALSE) ->  | CB56: =VLOOKUP(BV56,lookup!$Q$2:$W$62,7,FALSE) ->  | CC56: 0 | CD56: =VLOOKUP(CC56,lookup!$Q$2:$W$62,2,FALSE) ->  | CE56: =VLOOKUP(CC56,lookup!$Q$2:$W$62,3,FALSE) ->  | CF56: =VLOOKUP(CC56,lookup!$Q$2:$W$62,4,FALSE) ->  | CG56: =VLOOKUP(CC56,lookup!$Q$2:$W$62,5,FALSE) ->  | CH56: =VLOOKUP(CC56,lookup!$Q$2:$W$62,6,FALSE) ->  | CI56: =VLOOKUP(CC56,lookup!$Q$2:$W$62,7,FALSE) ->  | CW56: 0 | CX56: 1 | CY56: 0 | CZ56: 1 | DA56: 2 | DC56: =VLOOKUP(DB56,lookup!$Q$2:$W$62,2,FALSE) ->  | DD56: =VLOOKUP(DB56,lookup!$Q$2:$W$62,3,FALSE) ->  | DE56: =VLOOKUP(DB56,lookup!$Q$2:$W$62,4,FALSE) ->  | DF56: =VLOOKUP(DB56,lookup!$Q$2:$W$62,5,FALSE) ->  | DG56: =VLOOKUP(DB56,lookup!$Q$2:$W$62,6,FALSE) ->  | DH56: =VLOOKUP(DB56,lookup!$Q$2:$W$62,7,FALSE) -> 
R57: =IF(F57="","",VLOOKUP(P57,lookup!$L$2:$O$103,Data!Q57+1,FALSE)) ->  | X57: 0 | Y57: 0 | Z57: 0 | AI57: =VLOOKUP(S57,lookup!$A$1:$J$483,2,FALSE) ->  | AJ57: =VLOOKUP(S57,lookup!$A$1:$J$483,3,FALSE) ->  | AK57: =VLOOKUP(S57,lookup!$A$1:$J$483,4,FALSE) ->  | AL57: =VLOOKUP(S57,lookup!$A$1:$J$483,8,FALSE) ->  | AM57: =VLOOKUP(S57,lookup!$A$1:$J$483,9,FALSE) ->  | AN57: =VLOOKUP(S57,lookup!$A$1:$J$483,10,FALSE) ->  | AO57: =VLOOKUP(S57,lookup!$A$1:$J$483,5,FALSE) ->  | AP57: =VLOOKUP(S57,lookup!$A$1:$J$483,6,FALSE) ->  | AQ57: =VLOOKUP(S57,lookup!$A$1:$J$483,7,FALSE) ->  | AR57: =VLOOKUP(W57,lookup!$A$1:$J$483,2,FALSE) ->  | AS57: =VLOOKUP(W57,lookup!$A$1:$J$483,3,FALSE) ->  | AT57: =VLOOKUP(W57,lookup!$A$1:$J$483,4,FALSE) ->  | AU57: 17.5 | AV57: =VLOOKUP(AU57,lookup!$Q$2:$W$62,2,FALSE) -> 0.5 | AW57: =VLOOKUP(AU57,lookup!$Q$2:$W$62,3,FALSE) -> 0.49 | AX57: =VLOOKUP(AU57,lookup!$Q$2:$W$62,4,FALSE) -> 0.49 | AY57: =VLOOKUP(AU57,lookup!$Q$2:$W$62,5,FALSE) -> 1 | AZ57: =VLOOKUP(AU57,lookup!$Q$2:$W$62,6,FALSE) -> 0.5 | BA57: =VLOOKUP(AU57,lookup!$Q$2:$W$62,7,FALSE) -> 0.5 | BB57: 17.5 | BC57: =VLOOKUP(BB57,lookup!$Q$2:$W$62,2,FALSE) -> 0.5 | BD57: =VLOOKUP(BB57,lookup!$Q$2:$W$62,3,FALSE) -> 0.49 | BE57: =VLOOKUP(BB57,lookup!$Q$2:$W$62,4,FALSE) -> 0.49 | BF57: =VLOOKUP(BB57,lookup!$Q$2:$W$62,5,FALSE) -> 1 | BG57: =VLOOKUP(BB57,lookup!$Q$2:$W$62,6,FALSE) -> 0.5 | BH57: =VLOOKUP(BB57,lookup!$Q$2:$W$62,7,FALSE) -> 0.5 | BV57: 0 | BW57: =VLOOKUP(BV57,lookup!$Q$2:$W$62,2,FALSE) ->  | BX57: =VLOOKUP(BV57,lookup!$Q$2:$W$62,3,FALSE) ->  | BY57: =VLOOKUP(BV57,lookup!$Q$2:$W$62,4,FALSE) ->  | BZ57: =VLOOKUP(BV57,lookup!$Q$2:$W$62,5,FALSE) ->  | CA57: =VLOOKUP(BV57,lookup!$Q$2:$W$62,6,FALSE) ->  | CB57: =VLOOKUP(BV57,lookup!$Q$2:$W$62,7,FALSE) ->  | CC57: 0 | CD57: =VLOOKUP(CC57,lookup!$Q$2:$W$62,2,FALSE) ->  | CE57: =VLOOKUP(CC57,lookup!$Q$2:$W$62,3,FALSE) ->  | CF57: =VLOOKUP(CC57,lookup!$Q$2:$W$62,4,FALSE) ->  | CG57: =VLOOKUP(CC57,lookup!$Q$2:$W$62,5,FALSE) ->  | CH57: =VLOOKUP(CC57,lookup!$Q$2:$W$62,6,FALSE) ->  | CI57: =VLOOKUP(CC57,lookup!$Q$2:$W$62,7,FALSE) ->  | CW57: 0 | CX57: 1 | CY57: 0 | CZ57: 1 | DA57: 2 | DC57: =VLOOKUP(DB57,lookup!$Q$2:$W$62,2,FALSE) ->  | DD57: =VLOOKUP(DB57,lookup!$Q$2:$W$62,3,FALSE) ->  | DE57: =VLOOKUP(DB57,lookup!$Q$2:$W$62,4,FALSE) ->  | DF57: =VLOOKUP(DB57,lookup!$Q$2:$W$62,5,FALSE) ->  | DG57: =VLOOKUP(DB57,lookup!$Q$2:$W$62,6,FALSE) ->  | DH57: =VLOOKUP(DB57,lookup!$Q$2:$W$62,7,FALSE) -> 
R58: =IF(F58="","",VLOOKUP(P58,lookup!$L$2:$O$103,Data!Q58+1,FALSE)) ->  | X58: 0 | Y58: 0 | Z58: 0 | AI58: =VLOOKUP(S58,lookup!$A$1:$J$483,2,FALSE) ->  | AJ58: =VLOOKUP(S58,lookup!$A$1:$J$483,3,FALSE) ->  | AK58: =VLOOKUP(S58,lookup!$A$1:$J$483,4,FALSE) ->  | AL58: =VLOOKUP(S58,lookup!$A$1:$J$483,8,FALSE) ->  | AM58: =VLOOKUP(S58,lookup!$A$1:$J$483,9,FALSE) ->  | AN58: =VLOOKUP(S58,lookup!$A$1:$J$483,10,FALSE) ->  | AO58: =VLOOKUP(S58,lookup!$A$1:$J$483,5,FALSE) ->  | AP58: =VLOOKUP(S58,lookup!$A$1:$J$483,6,FALSE) ->  | AQ58: =VLOOKUP(S58,lookup!$A$1:$J$483,7,FALSE) ->  | AR58: =VLOOKUP(W58,lookup!$A$1:$J$483,2,FALSE) ->  | AS58: =VLOOKUP(W58,lookup!$A$1:$J$483,3,FALSE) ->  | AT58: =VLOOKUP(W58,lookup!$A$1:$J$483,4,FALSE) ->  | AU58: 17.5 | AV58: =VLOOKUP(AU58,lookup!$Q$2:$W$62,2,FALSE) -> 0.5 | AW58: =VLOOKUP(AU58,lookup!$Q$2:$W$62,3,FALSE) -> 0.49 | AX58: =VLOOKUP(AU58,lookup!$Q$2:$W$62,4,FALSE) -> 0.49 | AY58: =VLOOKUP(AU58,lookup!$Q$2:$W$62,5,FALSE) -> 1 | AZ58: =VLOOKUP(AU58,lookup!$Q$2:$W$62,6,FALSE) -> 0.5 | BA58: =VLOOKUP(AU58,lookup!$Q$2:$W$62,7,FALSE) -> 0.5 | BB58: 17.5 | BC58: =VLOOKUP(BB58,lookup!$Q$2:$W$62,2,FALSE) -> 0.5 | BD58: =VLOOKUP(BB58,lookup!$Q$2:$W$62,3,FALSE) -> 0.49 | BE58: =VLOOKUP(BB58,lookup!$Q$2:$W$62,4,FALSE) -> 0.49 | BF58: =VLOOKUP(BB58,lookup!$Q$2:$W$62,5,FALSE) -> 1 | BG58: =VLOOKUP(BB58,lookup!$Q$2:$W$62,6,FALSE) -> 0.5 | BH58: =VLOOKUP(BB58,lookup!$Q$2:$W$62,7,FALSE) -> 0.5 | BV58: 0 | BW58: =VLOOKUP(BV58,lookup!$Q$2:$W$62,2,FALSE) ->  | BX58: =VLOOKUP(BV58,lookup!$Q$2:$W$62,3,FALSE) ->  | BY58: =VLOOKUP(BV58,lookup!$Q$2:$W$62,4,FALSE) ->  | BZ58: =VLOOKUP(BV58,lookup!$Q$2:$W$62,5,FALSE) ->  | CA58: =VLOOKUP(BV58,lookup!$Q$2:$W$62,6,FALSE) ->  | CB58: =VLOOKUP(BV58,lookup!$Q$2:$W$62,7,FALSE) ->  | CC58: 0 | CD58: =VLOOKUP(CC58,lookup!$Q$2:$W$62,2,FALSE) ->  | CE58: =VLOOKUP(CC58,lookup!$Q$2:$W$62,3,FALSE) ->  | CF58: =VLOOKUP(CC58,lookup!$Q$2:$W$62,4,FALSE) ->  | CG58: =VLOOKUP(CC58,lookup!$Q$2:$W$62,5,FALSE) ->  | CH58: =VLOOKUP(CC58,lookup!$Q$2:$W$62,6,FALSE) ->  | CI58: =VLOOKUP(CC58,lookup!$Q$2:$W$62,7,FALSE) ->  | CW58: 0 | CX58: 1 | CY58: 0 | CZ58: 1 | DA58: 2 | DC58: =VLOOKUP(DB58,lookup!$Q$2:$W$62,2,FALSE) ->  | DD58: =VLOOKUP(DB58,lookup!$Q$2:$W$62,3,FALSE) ->  | DE58: =VLOOKUP(DB58,lookup!$Q$2:$W$62,4,FALSE) ->  | DF58: =VLOOKUP(DB58,lookup!$Q$2:$W$62,5,FALSE) ->  | DG58: =VLOOKUP(DB58,lookup!$Q$2:$W$62,6,FALSE) ->  | DH58: =VLOOKUP(DB58,lookup!$Q$2:$W$62,7,FALSE) -> 
R59: =IF(F59="","",VLOOKUP(P59,lookup!$L$2:$O$103,Data!Q59+1,FALSE)) ->  | X59: 0 | Y59: 0 | Z59: 0 | AI59: =VLOOKUP(S59,lookup!$A$1:$J$483,2,FALSE) ->  | AJ59: =VLOOKUP(S59,lookup!$A$1:$J$483,3,FALSE) ->  | AK59: =VLOOKUP(S59,lookup!$A$1:$J$483,4,FALSE) ->  | AL59: =VLOOKUP(S59,lookup!$A$1:$J$483,8,FALSE) ->  | AM59: =VLOOKUP(S59,lookup!$A$1:$J$483,9,FALSE) ->  | AN59: =VLOOKUP(S59,lookup!$A$1:$J$483,10,FALSE) ->  | AO59: =VLOOKUP(S59,lookup!$A$1:$J$483,5,FALSE) ->  | AP59: =VLOOKUP(S59,lookup!$A$1:$J$483,6,FALSE) ->  | AQ59: =VLOOKUP(S59,lookup!$A$1:$J$483,7,FALSE) ->  | AR59: =VLOOKUP(W59,lookup!$A$1:$J$483,2,FALSE) ->  | AS59: =VLOOKUP(W59,lookup!$A$1:$J$483,3,FALSE) ->  | AT59: =VLOOKUP(W59,lookup!$A$1:$J$483,4,FALSE) ->  | AU59: 17.5 | AV59: =VLOOKUP(AU59,lookup!$Q$2:$W$62,2,FALSE) -> 0.5 | AW59: =VLOOKUP(AU59,lookup!$Q$2:$W$62,3,FALSE) -> 0.49 | AX59: =VLOOKUP(AU59,lookup!$Q$2:$W$62,4,FALSE) -> 0.49 | AY59: =VLOOKUP(AU59,lookup!$Q$2:$W$62,5,FALSE) -> 1 | AZ59: =VLOOKUP(AU59,lookup!$Q$2:$W$62,6,FALSE) -> 0.5 | BA59: =VLOOKUP(AU59,lookup!$Q$2:$W$62,7,FALSE) -> 0.5 | BB59: 17.5 | BC59: =VLOOKUP(BB59,lookup!$Q$2:$W$62,2,FALSE) -> 0.5 | BD59: =VLOOKUP(BB59,lookup!$Q$2:$W$62,3,FALSE) -> 0.49 | BE59: =VLOOKUP(BB59,lookup!$Q$2:$W$62,4,FALSE) -> 0.49 | BF59: =VLOOKUP(BB59,lookup!$Q$2:$W$62,5,FALSE) -> 1 | BG59: =VLOOKUP(BB59,lookup!$Q$2:$W$62,6,FALSE) -> 0.5 | BH59: =VLOOKUP(BB59,lookup!$Q$2:$W$62,7,FALSE) -> 0.5 | BV59: 0 | BW59: =VLOOKUP(BV59,lookup!$Q$2:$W$62,2,FALSE) ->  | BX59: =VLOOKUP(BV59,lookup!$Q$2:$W$62,3,FALSE) ->  | BY59: =VLOOKUP(BV59,lookup!$Q$2:$W$62,4,FALSE) ->  | BZ59: =VLOOKUP(BV59,lookup!$Q$2:$W$62,5,FALSE) ->  | CA59: =VLOOKUP(BV59,lookup!$Q$2:$W$62,6,FALSE) ->  | CB59: =VLOOKUP(BV59,lookup!$Q$2:$W$62,7,FALSE) ->  | CC59: 0 | CD59: =VLOOKUP(CC59,lookup!$Q$2:$W$62,2,FALSE) ->  | CE59: =VLOOKUP(CC59,lookup!$Q$2:$W$62,3,FALSE) ->  | CF59: =VLOOKUP(CC59,lookup!$Q$2:$W$62,4,FALSE) ->  | CG59: =VLOOKUP(CC59,lookup!$Q$2:$W$62,5,FALSE) ->  | CH59: =VLOOKUP(CC59,lookup!$Q$2:$W$62,6,FALSE) ->  | CI59: =VLOOKUP(CC59,lookup!$Q$2:$W$62,7,FALSE) ->  | CW59: 0 | CX59: 1 | CY59: 0 | CZ59: 1 | DA59: 2 | DC59: =VLOOKUP(DB59,lookup!$Q$2:$W$62,2,FALSE) ->  | DD59: =VLOOKUP(DB59,lookup!$Q$2:$W$62,3,FALSE) ->  | DE59: =VLOOKUP(DB59,lookup!$Q$2:$W$62,4,FALSE) ->  | DF59: =VLOOKUP(DB59,lookup!$Q$2:$W$62,5,FALSE) ->  | DG59: =VLOOKUP(DB59,lookup!$Q$2:$W$62,6,FALSE) ->  | DH59: =VLOOKUP(DB59,lookup!$Q$2:$W$62,7,FALSE) -> 
R60: =IF(F60="","",VLOOKUP(P60,lookup!$L$2:$O$103,Data!Q60+1,FALSE)) ->  | X60: 0 | Y60: 0 | Z60: 0 | AI60: =VLOOKUP(S60,lookup!$A$1:$J$483,2,FALSE) ->  | AJ60: =VLOOKUP(S60,lookup!$A$1:$J$483,3,FALSE) ->  | AK60: =VLOOKUP(S60,lookup!$A$1:$J$483,4,FALSE) ->  | AL60: =VLOOKUP(S60,lookup!$A$1:$J$483,8,FALSE) ->  | AM60: =VLOOKUP(S60,lookup!$A$1:$J$483,9,FALSE) ->  | AN60: =VLOOKUP(S60,lookup!$A$1:$J$483,10,FALSE) ->  | AO60: =VLOOKUP(S60,lookup!$A$1:$J$483,5,FALSE) ->  | AP60: =VLOOKUP(S60,lookup!$A$1:$J$483,6,FALSE) ->  | AQ60: =VLOOKUP(S60,lookup!$A$1:$J$483,7,FALSE) ->  | AR60: =VLOOKUP(W60,lookup!$A$1:$J$483,2,FALSE) ->  | AS60: =VLOOKUP(W60,lookup!$A$1:$J$483,3,FALSE) ->  | AT60: =VLOOKUP(W60,lookup!$A$1:$J$483,4,FALSE) ->  | AU60: 17.5 | AV60: =VLOOKUP(AU60,lookup!$Q$2:$W$62,2,FALSE) -> 0.5 | AW60: =VLOOKUP(AU60,lookup!$Q$2:$W$62,3,FALSE) -> 0.49 | AX60: =VLOOKUP(AU60,lookup!$Q$2:$W$62,4,FALSE) -> 0.49 | AY60: =VLOOKUP(AU60,lookup!$Q$2:$W$62,5,FALSE) -> 1 | AZ60: =VLOOKUP(AU60,lookup!$Q$2:$W$62,6,FALSE) -> 0.5 | BA60: =VLOOKUP(AU60,lookup!$Q$2:$W$62,7,FALSE) -> 0.5 | BB60: 17.5 | BC60: =VLOOKUP(BB60,lookup!$Q$2:$W$62,2,FALSE) -> 0.5 | BD60: =VLOOKUP(BB60,lookup!$Q$2:$W$62,3,FALSE) -> 0.49 | BE60: =VLOOKUP(BB60,lookup!$Q$2:$W$62,4,FALSE) -> 0.49 | BF60: =VLOOKUP(BB60,lookup!$Q$2:$W$62,5,FALSE) -> 1 | BG60: =VLOOKUP(BB60,lookup!$Q$2:$W$62,6,FALSE) -> 0.5 | BH60: =VLOOKUP(BB60,lookup!$Q$2:$W$62,7,FALSE) -> 0.5 | BV60: 0 | BW60: =VLOOKUP(BV60,lookup!$Q$2:$W$62,2,FALSE) ->  | BX60: =VLOOKUP(BV60,lookup!$Q$2:$W$62,3,FALSE) ->  | BY60: =VLOOKUP(BV60,lookup!$Q$2:$W$62,4,FALSE) ->  | BZ60: =VLOOKUP(BV60,lookup!$Q$2:$W$62,5,FALSE) ->  | CA60: =VLOOKUP(BV60,lookup!$Q$2:$W$62,6,FALSE) ->  | CB60: =VLOOKUP(BV60,lookup!$Q$2:$W$62,7,FALSE) ->  | CC60: 0 | CD60: =VLOOKUP(CC60,lookup!$Q$2:$W$62,2,FALSE) ->  | CE60: =VLOOKUP(CC60,lookup!$Q$2:$W$62,3,FALSE) ->  | CF60: =VLOOKUP(CC60,lookup!$Q$2:$W$62,4,FALSE) ->  | CG60: =VLOOKUP(CC60,lookup!$Q$2:$W$62,5,FALSE) ->  | CH60: =VLOOKUP(CC60,lookup!$Q$2:$W$62,6,FALSE) ->  | CI60: =VLOOKUP(CC60,lookup!$Q$2:$W$62,7,FALSE) ->  | CW60: 0 | CX60: 1 | CY60: 0 | CZ60: 1 | DA60: 2 | DC60: =VLOOKUP(DB60,lookup!$Q$2:$W$62,2,FALSE) ->  | DD60: =VLOOKUP(DB60,lookup!$Q$2:$W$62,3,FALSE) ->  | DE60: =VLOOKUP(DB60,lookup!$Q$2:$W$62,4,FALSE) ->  | DF60: =VLOOKUP(DB60,lookup!$Q$2:$W$62,5,FALSE) ->  | DG60: =VLOOKUP(DB60,lookup!$Q$2:$W$62,6,FALSE) ->  | DH60: =VLOOKUP(DB60,lookup!$Q$2:$W$62,7,FALSE) -> 
R61: =IF(F61="","",VLOOKUP(P61,lookup!$L$2:$O$103,Data!Q61+1,FALSE)) ->  | X61: 0 | Y61: 0 | Z61: 0 | AI61: =VLOOKUP(S61,lookup!$A$1:$J$483,2,FALSE) ->  | AJ61: =VLOOKUP(S61,lookup!$A$1:$J$483,3,FALSE) ->  | AK61: =VLOOKUP(S61,lookup!$A$1:$J$483,4,FALSE) ->  | AL61: =VLOOKUP(S61,lookup!$A$1:$J$483,8,FALSE) ->  | AM61: =VLOOKUP(S61,lookup!$A$1:$J$483,9,FALSE) ->  | AN61: =VLOOKUP(S61,lookup!$A$1:$J$483,10,FALSE) ->  | AO61: =VLOOKUP(S61,lookup!$A$1:$J$483,5,FALSE) ->  | AP61: =VLOOKUP(S61,lookup!$A$1:$J$483,6,FALSE) ->  | AQ61: =VLOOKUP(S61,lookup!$A$1:$J$483,7,FALSE) ->  | AR61: =VLOOKUP(W61,lookup!$A$1:$J$483,2,FALSE) ->  | AS61: =VLOOKUP(W61,lookup!$A$1:$J$483,3,FALSE) ->  | AT61: =VLOOKUP(W61,lookup!$A$1:$J$483,4,FALSE) ->  | AU61: 17.5 | AV61: =VLOOKUP(AU61,lookup!$Q$2:$W$62,2,FALSE) -> 0.5 | AW61: =VLOOKUP(AU61,lookup!$Q$2:$W$62,3,FALSE) -> 0.49 | AX61: =VLOOKUP(AU61,lookup!$Q$2:$W$62,4,FALSE) -> 0.49 | AY61: =VLOOKUP(AU61,lookup!$Q$2:$W$62,5,FALSE) -> 1 | AZ61: =VLOOKUP(AU61,lookup!$Q$2:$W$62,6,FALSE) -> 0.5 | BA61: =VLOOKUP(AU61,lookup!$Q$2:$W$62,7,FALSE) -> 0.5 | BB61: 17.5 | BC61: =VLOOKUP(BB61,lookup!$Q$2:$W$62,2,FALSE) -> 0.5 | BD61: =VLOOKUP(BB61,lookup!$Q$2:$W$62,3,FALSE) -> 0.49 | BE61: =VLOOKUP(BB61,lookup!$Q$2:$W$62,4,FALSE) -> 0.49 | BF61: =VLOOKUP(BB61,lookup!$Q$2:$W$62,5,FALSE) -> 1 | BG61: =VLOOKUP(BB61,lookup!$Q$2:$W$62,6,FALSE) -> 0.5 | BH61: =VLOOKUP(BB61,lookup!$Q$2:$W$62,7,FALSE) -> 0.5 | BV61: 0 | BW61: =VLOOKUP(BV61,lookup!$Q$2:$W$62,2,FALSE) ->  | BX61: =VLOOKUP(BV61,lookup!$Q$2:$W$62,3,FALSE) ->  | BY61: =VLOOKUP(BV61,lookup!$Q$2:$W$62,4,FALSE) ->  | BZ61: =VLOOKUP(BV61,lookup!$Q$2:$W$62,5,FALSE) ->  | CA61: =VLOOKUP(BV61,lookup!$Q$2:$W$62,6,FALSE) ->  | CB61: =VLOOKUP(BV61,lookup!$Q$2:$W$62,7,FALSE) ->  | CC61: 0 | CD61: =VLOOKUP(CC61,lookup!$Q$2:$W$62,2,FALSE) ->  | CE61: =VLOOKUP(CC61,lookup!$Q$2:$W$62,3,FALSE) ->  | CF61: =VLOOKUP(CC61,lookup!$Q$2:$W$62,4,FALSE) ->  | CG61: =VLOOKUP(CC61,lookup!$Q$2:$W$62,5,FALSE) ->  | CH61: =VLOOKUP(CC61,lookup!$Q$2:$W$62,6,FALSE) ->  | CI61: =VLOOKUP(CC61,lookup!$Q$2:$W$62,7,FALSE) ->  | CW61: 0 | CX61: 1 | CY61: 0 | CZ61: 1 | DA61: 2 | DC61: =VLOOKUP(DB61,lookup!$Q$2:$W$62,2,FALSE) ->  | DD61: =VLOOKUP(DB61,lookup!$Q$2:$W$62,3,FALSE) ->  | DE61: =VLOOKUP(DB61,lookup!$Q$2:$W$62,4,FALSE) ->  | DF61: =VLOOKUP(DB61,lookup!$Q$2:$W$62,5,FALSE) ->  | DG61: =VLOOKUP(DB61,lookup!$Q$2:$W$62,6,FALSE) ->  | DH61: =VLOOKUP(DB61,lookup!$Q$2:$W$62,7,FALSE) -> 
R62: =IF(F62="","",VLOOKUP(P62,lookup!$L$2:$O$103,Data!Q62+1,FALSE)) ->  | X62: 0 | Y62: 0 | Z62: 0 | AI62: =VLOOKUP(S62,lookup!$A$1:$J$483,2,FALSE) ->  | AJ62: =VLOOKUP(S62,lookup!$A$1:$J$483,3,FALSE) ->  | AK62: =VLOOKUP(S62,lookup!$A$1:$J$483,4,FALSE) ->  | AL62: =VLOOKUP(S62,lookup!$A$1:$J$483,8,FALSE) ->  | AM62: =VLOOKUP(S62,lookup!$A$1:$J$483,9,FALSE) ->  | AN62: =VLOOKUP(S62,lookup!$A$1:$J$483,10,FALSE) ->  | AO62: =VLOOKUP(S62,lookup!$A$1:$J$483,5,FALSE) ->  | AP62: =VLOOKUP(S62,lookup!$A$1:$J$483,6,FALSE) ->  | AQ62: =VLOOKUP(S62,lookup!$A$1:$J$483,7,FALSE) ->  | AR62: =VLOOKUP(W62,lookup!$A$1:$J$483,2,FALSE) ->  | AS62: =VLOOKUP(W62,lookup!$A$1:$J$483,3,FALSE) ->  | AT62: =VLOOKUP(W62,lookup!$A$1:$J$483,4,FALSE) ->  | AU62: 17.5 | AV62: =VLOOKUP(AU62,lookup!$Q$2:$W$62,2,FALSE) -> 0.5 | AW62: =VLOOKUP(AU62,lookup!$Q$2:$W$62,3,FALSE) -> 0.49 | AX62: =VLOOKUP(AU62,lookup!$Q$2:$W$62,4,FALSE) -> 0.49 | AY62: =VLOOKUP(AU62,lookup!$Q$2:$W$62,5,FALSE) -> 1 | AZ62: =VLOOKUP(AU62,lookup!$Q$2:$W$62,6,FALSE) -> 0.5 | BA62: =VLOOKUP(AU62,lookup!$Q$2:$W$62,7,FALSE) -> 0.5 | BB62: 17.5 | BC62: =VLOOKUP(BB62,lookup!$Q$2:$W$62,2,FALSE) -> 0.5 | BD62: =VLOOKUP(BB62,lookup!$Q$2:$W$62,3,FALSE) -> 0.49 | BE62: =VLOOKUP(BB62,lookup!$Q$2:$W$62,4,FALSE) -> 0.49 | BF62: =VLOOKUP(BB62,lookup!$Q$2:$W$62,5,FALSE) -> 1 | BG62: =VLOOKUP(BB62,lookup!$Q$2:$W$62,6,FALSE) -> 0.5 | BH62: =VLOOKUP(BB62,lookup!$Q$2:$W$62,7,FALSE) -> 0.5 | BV62: 0 | BW62: =VLOOKUP(BV62,lookup!$Q$2:$W$62,2,FALSE) ->  | BX62: =VLOOKUP(BV62,lookup!$Q$2:$W$62,3,FALSE) ->  | BY62: =VLOOKUP(BV62,lookup!$Q$2:$W$62,4,FALSE) ->  | BZ62: =VLOOKUP(BV62,lookup!$Q$2:$W$62,5,FALSE) ->  | CA62: =VLOOKUP(BV62,lookup!$Q$2:$W$62,6,FALSE) ->  | CB62: =VLOOKUP(BV62,lookup!$Q$2:$W$62,7,FALSE) ->  | CC62: 0 | CD62: =VLOOKUP(CC62,lookup!$Q$2:$W$62,2,FALSE) ->  | CE62: =VLOOKUP(CC62,lookup!$Q$2:$W$62,3,FALSE) ->  | CF62: =VLOOKUP(CC62,lookup!$Q$2:$W$62,4,FALSE) ->  | CG62: =VLOOKUP(CC62,lookup!$Q$2:$W$62,5,FALSE) ->  | CH62: =VLOOKUP(CC62,lookup!$Q$2:$W$62,6,FALSE) ->  | CI62: =VLOOKUP(CC62,lookup!$Q$2:$W$62,7,FALSE) ->  | CW62: 0 | CX62: 1 | CY62: 0 | CZ62: 1 | DA62: 2 | DC62: =VLOOKUP(DB62,lookup!$Q$2:$W$62,2,FALSE) ->  | DD62: =VLOOKUP(DB62,lookup!$Q$2:$W$62,3,FALSE) ->  | DE62: =VLOOKUP(DB62,lookup!$Q$2:$W$62,4,FALSE) ->  | DF62: =VLOOKUP(DB62,lookup!$Q$2:$W$62,5,FALSE) ->  | DG62: =VLOOKUP(DB62,lookup!$Q$2:$W$62,6,FALSE) ->  | DH62: =VLOOKUP(DB62,lookup!$Q$2:$W$62,7,FALSE) -> 
R63: =IF(F63="","",VLOOKUP(P63,lookup!$L$2:$O$103,Data!Q63+1,FALSE)) ->  | X63: 0 | Y63: 0 | Z63: 0 | AI63: =VLOOKUP(S63,lookup!$A$1:$J$483,2,FALSE) ->  | AJ63: =VLOOKUP(S63,lookup!$A$1:$J$483,3,FALSE) ->  | AK63: =VLOOKUP(S63,lookup!$A$1:$J$483,4,FALSE) ->  | AL63: =VLOOKUP(S63,lookup!$A$1:$J$483,8,FALSE) ->  | AM63: =VLOOKUP(S63,lookup!$A$1:$J$483,9,FALSE) ->  | AN63: =VLOOKUP(S63,lookup!$A$1:$J$483,10,FALSE) ->  | AO63: =VLOOKUP(S63,lookup!$A$1:$J$483,5,FALSE) ->  | AP63: =VLOOKUP(S63,lookup!$A$1:$J$483,6,FALSE) ->  | AQ63: =VLOOKUP(S63,lookup!$A$1:$J$483,7,FALSE) ->  | AR63: =VLOOKUP(W63,lookup!$A$1:$J$483,2,FALSE) ->  | AS63: =VLOOKUP(W63,lookup!$A$1:$J$483,3,FALSE) ->  | AT63: =VLOOKUP(W63,lookup!$A$1:$J$483,4,FALSE) ->  | AU63: 17.5 | AV63: =VLOOKUP(AU63,lookup!$Q$2:$W$62,2,FALSE) -> 0.5 | AW63: =VLOOKUP(AU63,lookup!$Q$2:$W$62,3,FALSE) -> 0.49 | AX63: =VLOOKUP(AU63,lookup!$Q$2:$W$62,4,FALSE) -> 0.49 | AY63: =VLOOKUP(AU63,lookup!$Q$2:$W$62,5,FALSE) -> 1 | AZ63: =VLOOKUP(AU63,lookup!$Q$2:$W$62,6,FALSE) -> 0.5 | BA63: =VLOOKUP(AU63,lookup!$Q$2:$W$62,7,FALSE) -> 0.5 | BB63: 17.5 | BC63: =VLOOKUP(BB63,lookup!$Q$2:$W$62,2,FALSE) -> 0.5 | BD63: =VLOOKUP(BB63,lookup!$Q$2:$W$62,3,FALSE) -> 0.49 | BE63: =VLOOKUP(BB63,lookup!$Q$2:$W$62,4,FALSE) -> 0.49 | BF63: =VLOOKUP(BB63,lookup!$Q$2:$W$62,5,FALSE) -> 1 | BG63: =VLOOKUP(BB63,lookup!$Q$2:$W$62,6,FALSE) -> 0.5 | BH63: =VLOOKUP(BB63,lookup!$Q$2:$W$62,7,FALSE) -> 0.5 | BV63: 0 | BW63: =VLOOKUP(BV63,lookup!$Q$2:$W$62,2,FALSE) ->  | BX63: =VLOOKUP(BV63,lookup!$Q$2:$W$62,3,FALSE) ->  | BY63: =VLOOKUP(BV63,lookup!$Q$2:$W$62,4,FALSE) ->  | BZ63: =VLOOKUP(BV63,lookup!$Q$2:$W$62,5,FALSE) ->  | CA63: =VLOOKUP(BV63,lookup!$Q$2:$W$62,6,FALSE) ->  | CB63: =VLOOKUP(BV63,lookup!$Q$2:$W$62,7,FALSE) ->  | CC63: 0 | CD63: =VLOOKUP(CC63,lookup!$Q$2:$W$62,2,FALSE) ->  | CE63: =VLOOKUP(CC63,lookup!$Q$2:$W$62,3,FALSE) ->  | CF63: =VLOOKUP(CC63,lookup!$Q$2:$W$62,4,FALSE) ->  | CG63: =VLOOKUP(CC63,lookup!$Q$2:$W$62,5,FALSE) ->  | CH63: =VLOOKUP(CC63,lookup!$Q$2:$W$62,6,FALSE) ->  | CI63: =VLOOKUP(CC63,lookup!$Q$2:$W$62,7,FALSE) ->  | CW63: 0 | CX63: 1 | CY63: 0 | CZ63: 1 | DA63: 2 | DC63: =VLOOKUP(DB63,lookup!$Q$2:$W$62,2,FALSE) ->  | DD63: =VLOOKUP(DB63,lookup!$Q$2:$W$62,3,FALSE) ->  | DE63: =VLOOKUP(DB63,lookup!$Q$2:$W$62,4,FALSE) ->  | DF63: =VLOOKUP(DB63,lookup!$Q$2:$W$62,5,FALSE) ->  | DG63: =VLOOKUP(DB63,lookup!$Q$2:$W$62,6,FALSE) ->  | DH63: =VLOOKUP(DB63,lookup!$Q$2:$W$62,7,FALSE) -> 
R64: =IF(F64="","",VLOOKUP(P64,lookup!$L$2:$O$103,Data!Q64+1,FALSE)) ->  | X64: 0 | Y64: 0 | Z64: 0 | AI64: =VLOOKUP(S64,lookup!$A$1:$J$483,2,FALSE) ->  | AJ64: =VLOOKUP(S64,lookup!$A$1:$J$483,3,FALSE) ->  | AK64: =VLOOKUP(S64,lookup!$A$1:$J$483,4,FALSE) ->  | AL64: =VLOOKUP(S64,lookup!$A$1:$J$483,8,FALSE) ->  | AM64: =VLOOKUP(S64,lookup!$A$1:$J$483,9,FALSE) ->  | AN64: =VLOOKUP(S64,lookup!$A$1:$J$483,10,FALSE) ->  | AO64: =VLOOKUP(S64,lookup!$A$1:$J$483,5,FALSE) ->  | AP64: =VLOOKUP(S64,lookup!$A$1:$J$483,6,FALSE) ->  | AQ64: =VLOOKUP(S64,lookup!$A$1:$J$483,7,FALSE) ->  | AR64: =VLOOKUP(W64,lookup!$A$1:$J$483,2,FALSE) ->  | AS64: =VLOOKUP(W64,lookup!$A$1:$J$483,3,FALSE) ->  | AT64: =VLOOKUP(W64,lookup!$A$1:$J$483,4,FALSE) ->  | AU64: 17.5 | AV64: =VLOOKUP(AU64,lookup!$Q$2:$W$62,2,FALSE) -> 0.5 | AW64: =VLOOKUP(AU64,lookup!$Q$2:$W$62,3,FALSE) -> 0.49 | AX64: =VLOOKUP(AU64,lookup!$Q$2:$W$62,4,FALSE) -> 0.49 | AY64: =VLOOKUP(AU64,lookup!$Q$2:$W$62,5,FALSE) -> 1 | AZ64: =VLOOKUP(AU64,lookup!$Q$2:$W$62,6,FALSE) -> 0.5 | BA64: =VLOOKUP(AU64,lookup!$Q$2:$W$62,7,FALSE) -> 0.5 | BB64: 17.5 | BC64: =VLOOKUP(BB64,lookup!$Q$2:$W$62,2,FALSE) -> 0.5 | BD64: =VLOOKUP(BB64,lookup!$Q$2:$W$62,3,FALSE) -> 0.49 | BE64: =VLOOKUP(BB64,lookup!$Q$2:$W$62,4,FALSE) -> 0.49 | BF64: =VLOOKUP(BB64,lookup!$Q$2:$W$62,5,FALSE) -> 1 | BG64: =VLOOKUP(BB64,lookup!$Q$2:$W$62,6,FALSE) -> 0.5 | BH64: =VLOOKUP(BB64,lookup!$Q$2:$W$62,7,FALSE) -> 0.5 | BV64: 0 | BW64: =VLOOKUP(BV64,lookup!$Q$2:$W$62,2,FALSE) ->  | BX64: =VLOOKUP(BV64,lookup!$Q$2:$W$62,3,FALSE) ->  | BY64: =VLOOKUP(BV64,lookup!$Q$2:$W$62,4,FALSE) ->  | BZ64: =VLOOKUP(BV64,lookup!$Q$2:$W$62,5,FALSE) ->  | CA64: =VLOOKUP(BV64,lookup!$Q$2:$W$62,6,FALSE) ->  | CB64: =VLOOKUP(BV64,lookup!$Q$2:$W$62,7,FALSE) ->  | CC64: 0 | CD64: =VLOOKUP(CC64,lookup!$Q$2:$W$62,2,FALSE) ->  | CE64: =VLOOKUP(CC64,lookup!$Q$2:$W$62,3,FALSE) ->  | CF64: =VLOOKUP(CC64,lookup!$Q$2:$W$62,4,FALSE) ->  | CG64: =VLOOKUP(CC64,lookup!$Q$2:$W$62,5,FALSE) ->  | CH64: =VLOOKUP(CC64,lookup!$Q$2:$W$62,6,FALSE) ->  | CI64: =VLOOKUP(CC64,lookup!$Q$2:$W$62,7,FALSE) ->  | CW64: 0 | CX64: 1 | CY64: 0 | CZ64: 1 | DA64: 2 | DC64: =VLOOKUP(DB64,lookup!$Q$2:$W$62,2,FALSE) ->  | DD64: =VLOOKUP(DB64,lookup!$Q$2:$W$62,3,FALSE) ->  | DE64: =VLOOKUP(DB64,lookup!$Q$2:$W$62,4,FALSE) ->  | DF64: =VLOOKUP(DB64,lookup!$Q$2:$W$62,5,FALSE) ->  | DG64: =VLOOKUP(DB64,lookup!$Q$2:$W$62,6,FALSE) ->  | DH64: =VLOOKUP(DB64,lookup!$Q$2:$W$62,7,FALSE) -> 
R65: =IF(F65="","",VLOOKUP(P65,lookup!$L$2:$O$103,Data!Q65+1,FALSE)) ->  | X65: 0 | Y65: 0 | Z65: 0 | AI65: =VLOOKUP(S65,lookup!$A$1:$J$483,2,FALSE) ->  | AJ65: =VLOOKUP(S65,lookup!$A$1:$J$483,3,FALSE) ->  | AK65: =VLOOKUP(S65,lookup!$A$1:$J$483,4,FALSE) ->  | AL65: =VLOOKUP(S65,lookup!$A$1:$J$483,8,FALSE) ->  | AM65: =VLOOKUP(S65,lookup!$A$1:$J$483,9,FALSE) ->  | AN65: =VLOOKUP(S65,lookup!$A$1:$J$483,10,FALSE) ->  | AO65: =VLOOKUP(S65,lookup!$A$1:$J$483,5,FALSE) ->  | AP65: =VLOOKUP(S65,lookup!$A$1:$J$483,6,FALSE) ->  | AQ65: =VLOOKUP(S65,lookup!$A$1:$J$483,7,FALSE) ->  | AR65: =VLOOKUP(W65,lookup!$A$1:$J$483,2,FALSE) ->  | AS65: =VLOOKUP(W65,lookup!$A$1:$J$483,3,FALSE) ->  | AT65: =VLOOKUP(W65,lookup!$A$1:$J$483,4,FALSE) ->  | AU65: 17.5 | AV65: =VLOOKUP(AU65,lookup!$Q$2:$W$62,2,FALSE) -> 0.5 | AW65: =VLOOKUP(AU65,lookup!$Q$2:$W$62,3,FALSE) -> 0.49 | AX65: =VLOOKUP(AU65,lookup!$Q$2:$W$62,4,FALSE) -> 0.49 | AY65: =VLOOKUP(AU65,lookup!$Q$2:$W$62,5,FALSE) -> 1 | AZ65: =VLOOKUP(AU65,lookup!$Q$2:$W$62,6,FALSE) -> 0.5 | BA65: =VLOOKUP(AU65,lookup!$Q$2:$W$62,7,FALSE) -> 0.5 | BB65: 17.5 | BC65: =VLOOKUP(BB65,lookup!$Q$2:$W$62,2,FALSE) -> 0.5 | BD65: =VLOOKUP(BB65,lookup!$Q$2:$W$62,3,FALSE) -> 0.49 | BE65: =VLOOKUP(BB65,lookup!$Q$2:$W$62,4,FALSE) -> 0.49 | BF65: =VLOOKUP(BB65,lookup!$Q$2:$W$62,5,FALSE) -> 1 | BG65: =VLOOKUP(BB65,lookup!$Q$2:$W$62,6,FALSE) -> 0.5 | BH65: =VLOOKUP(BB65,lookup!$Q$2:$W$62,7,FALSE) -> 0.5 | BV65: 0 | BW65: =VLOOKUP(BV65,lookup!$Q$2:$W$62,2,FALSE) ->  | BX65: =VLOOKUP(BV65,lookup!$Q$2:$W$62,3,FALSE) ->  | BY65: =VLOOKUP(BV65,lookup!$Q$2:$W$62,4,FALSE) ->  | BZ65: =VLOOKUP(BV65,lookup!$Q$2:$W$62,5,FALSE) ->  | CA65: =VLOOKUP(BV65,lookup!$Q$2:$W$62,6,FALSE) ->  | CB65: =VLOOKUP(BV65,lookup!$Q$2:$W$62,7,FALSE) ->  | CC65: 0 | CD65: =VLOOKUP(CC65,lookup!$Q$2:$W$62,2,FALSE) ->  | CE65: =VLOOKUP(CC65,lookup!$Q$2:$W$62,3,FALSE) ->  | CF65: =VLOOKUP(CC65,lookup!$Q$2:$W$62,4,FALSE) ->  | CG65: =VLOOKUP(CC65,lookup!$Q$2:$W$62,5,FALSE) ->  | CH65: =VLOOKUP(CC65,lookup!$Q$2:$W$62,6,FALSE) ->  | CI65: =VLOOKUP(CC65,lookup!$Q$2:$W$62,7,FALSE) ->  | CW65: 0 | CX65: 1 | CY65: 0 | CZ65: 1 | DA65: 2 | DC65: =VLOOKUP(DB65,lookup!$Q$2:$W$62,2,FALSE) ->  | DD65: =VLOOKUP(DB65,lookup!$Q$2:$W$62,3,FALSE) ->  | DE65: =VLOOKUP(DB65,lookup!$Q$2:$W$62,4,FALSE) ->  | DF65: =VLOOKUP(DB65,lookup!$Q$2:$W$62,5,FALSE) ->  | DG65: =VLOOKUP(DB65,lookup!$Q$2:$W$62,6,FALSE) ->  | DH65: =VLOOKUP(DB65,lookup!$Q$2:$W$62,7,FALSE) -> 
R66: =IF(F66="","",VLOOKUP(P66,lookup!$L$2:$O$103,Data!Q66+1,FALSE)) ->  | X66: 0 | Y66: 0 | Z66: 0 | AI66: =VLOOKUP(S66,lookup!$A$1:$J$483,2,FALSE) ->  | AJ66: =VLOOKUP(S66,lookup!$A$1:$J$483,3,FALSE) ->  | AK66: =VLOOKUP(S66,lookup!$A$1:$J$483,4,FALSE) ->  | AL66: =VLOOKUP(S66,lookup!$A$1:$J$483,8,FALSE) ->  | AM66: =VLOOKUP(S66,lookup!$A$1:$J$483,9,FALSE) ->  | AN66: =VLOOKUP(S66,lookup!$A$1:$J$483,10,FALSE) ->  | AO66: =VLOOKUP(S66,lookup!$A$1:$J$483,5,FALSE) ->  | AP66: =VLOOKUP(S66,lookup!$A$1:$J$483,6,FALSE) ->  | AQ66: =VLOOKUP(S66,lookup!$A$1:$J$483,7,FALSE) ->  | AR66: =VLOOKUP(W66,lookup!$A$1:$J$483,2,FALSE) ->  | AS66: =VLOOKUP(W66,lookup!$A$1:$J$483,3,FALSE) ->  | AT66: =VLOOKUP(W66,lookup!$A$1:$J$483,4,FALSE) ->  | AU66: 17.5 | AV66: =VLOOKUP(AU66,lookup!$Q$2:$W$62,2,FALSE) -> 0.5 | AW66: =VLOOKUP(AU66,lookup!$Q$2:$W$62,3,FALSE) -> 0.49 | AX66: =VLOOKUP(AU66,lookup!$Q$2:$W$62,4,FALSE) -> 0.49 | AY66: =VLOOKUP(AU66,lookup!$Q$2:$W$62,5,FALSE) -> 1 | AZ66: =VLOOKUP(AU66,lookup!$Q$2:$W$62,6,FALSE) -> 0.5 | BA66: =VLOOKUP(AU66,lookup!$Q$2:$W$62,7,FALSE) -> 0.5 | BB66: 17.5 | BC66: =VLOOKUP(BB66,lookup!$Q$2:$W$62,2,FALSE) -> 0.5 | BD66: =VLOOKUP(BB66,lookup!$Q$2:$W$62,3,FALSE) -> 0.49 | BE66: =VLOOKUP(BB66,lookup!$Q$2:$W$62,4,FALSE) -> 0.49 | BF66: =VLOOKUP(BB66,lookup!$Q$2:$W$62,5,FALSE) -> 1 | BG66: =VLOOKUP(BB66,lookup!$Q$2:$W$62,6,FALSE) -> 0.5 | BH66: =VLOOKUP(BB66,lookup!$Q$2:$W$62,7,FALSE) -> 0.5 | BV66: 0 | BW66: =VLOOKUP(BV66,lookup!$Q$2:$W$62,2,FALSE) ->  | BX66: =VLOOKUP(BV66,lookup!$Q$2:$W$62,3,FALSE) ->  | BY66: =VLOOKUP(BV66,lookup!$Q$2:$W$62,4,FALSE) ->  | BZ66: =VLOOKUP(BV66,lookup!$Q$2:$W$62,5,FALSE) ->  | CA66: =VLOOKUP(BV66,lookup!$Q$2:$W$62,6,FALSE) ->  | CB66: =VLOOKUP(BV66,lookup!$Q$2:$W$62,7,FALSE) ->  | CC66: 0 | CD66: =VLOOKUP(CC66,lookup!$Q$2:$W$62,2,FALSE) ->  | CE66: =VLOOKUP(CC66,lookup!$Q$2:$W$62,3,FALSE) ->  | CF66: =VLOOKUP(CC66,lookup!$Q$2:$W$62,4,FALSE) ->  | CG66: =VLOOKUP(CC66,lookup!$Q$2:$W$62,5,FALSE) ->  | CH66: =VLOOKUP(CC66,lookup!$Q$2:$W$62,6,FALSE) ->  | CI66: =VLOOKUP(CC66,lookup!$Q$2:$W$62,7,FALSE) ->  | CW66: 0 | CX66: 1 | CY66: 0 | CZ66: 1 | DA66: 2 | DC66: =VLOOKUP(DB66,lookup!$Q$2:$W$62,2,FALSE) ->  | DD66: =VLOOKUP(DB66,lookup!$Q$2:$W$62,3,FALSE) ->  | DE66: =VLOOKUP(DB66,lookup!$Q$2:$W$62,4,FALSE) ->  | DF66: =VLOOKUP(DB66,lookup!$Q$2:$W$62,5,FALSE) ->  | DG66: =VLOOKUP(DB66,lookup!$Q$2:$W$62,6,FALSE) ->  | DH66: =VLOOKUP(DB66,lookup!$Q$2:$W$62,7,FALSE) -> 
R67: =IF(F67="","",VLOOKUP(P67,lookup!$L$2:$O$103,Data!Q67+1,FALSE)) ->  | X67: 0 | Y67: 0 | Z67: 0 | AI67: =VLOOKUP(S67,lookup!$A$1:$J$483,2,FALSE) ->  | AJ67: =VLOOKUP(S67,lookup!$A$1:$J$483,3,FALSE) ->  | AK67: =VLOOKUP(S67,lookup!$A$1:$J$483,4,FALSE) ->  | AL67: =VLOOKUP(S67,lookup!$A$1:$J$483,8,FALSE) ->  | AM67: =VLOOKUP(S67,lookup!$A$1:$J$483,9,FALSE) ->  | AN67: =VLOOKUP(S67,lookup!$A$1:$J$483,10,FALSE) ->  | AO67: =VLOOKUP(S67,lookup!$A$1:$J$483,5,FALSE) ->  | AP67: =VLOOKUP(S67,lookup!$A$1:$J$483,6,FALSE) ->  | AQ67: =VLOOKUP(S67,lookup!$A$1:$J$483,7,FALSE) ->  | AR67: =VLOOKUP(W67,lookup!$A$1:$J$483,2,FALSE) ->  | AS67: =VLOOKUP(W67,lookup!$A$1:$J$483,3,FALSE) ->  | AT67: =VLOOKUP(W67,lookup!$A$1:$J$483,4,FALSE) ->  | AU67: 17.5 | AV67: =VLOOKUP(AU67,lookup!$Q$2:$W$62,2,FALSE) -> 0.5 | AW67: =VLOOKUP(AU67,lookup!$Q$2:$W$62,3,FALSE) -> 0.49 | AX67: =VLOOKUP(AU67,lookup!$Q$2:$W$62,4,FALSE) -> 0.49 | AY67: =VLOOKUP(AU67,lookup!$Q$2:$W$62,5,FALSE) -> 1 | AZ67: =VLOOKUP(AU67,lookup!$Q$2:$W$62,6,FALSE) -> 0.5 | BA67: =VLOOKUP(AU67,lookup!$Q$2:$W$62,7,FALSE) -> 0.5 | BB67: 17.5 | BC67: =VLOOKUP(BB67,lookup!$Q$2:$W$62,2,FALSE) -> 0.5 | BD67: =VLOOKUP(BB67,lookup!$Q$2:$W$62,3,FALSE) -> 0.49 | BE67: =VLOOKUP(BB67,lookup!$Q$2:$W$62,4,FALSE) -> 0.49 | BF67: =VLOOKUP(BB67,lookup!$Q$2:$W$62,5,FALSE) -> 1 | BG67: =VLOOKUP(BB67,lookup!$Q$2:$W$62,6,FALSE) -> 0.5 | BH67: =VLOOKUP(BB67,lookup!$Q$2:$W$62,7,FALSE) -> 0.5 | BV67: 0 | BW67: =VLOOKUP(BV67,lookup!$Q$2:$W$62,2,FALSE) ->  | BX67: =VLOOKUP(BV67,lookup!$Q$2:$W$62,3,FALSE) ->  | BY67: =VLOOKUP(BV67,lookup!$Q$2:$W$62,4,FALSE) ->  | BZ67: =VLOOKUP(BV67,lookup!$Q$2:$W$62,5,FALSE) ->  | CA67: =VLOOKUP(BV67,lookup!$Q$2:$W$62,6,FALSE) ->  | CB67: =VLOOKUP(BV67,lookup!$Q$2:$W$62,7,FALSE) ->  | CC67: 0 | CD67: =VLOOKUP(CC67,lookup!$Q$2:$W$62,2,FALSE) ->  | CE67: =VLOOKUP(CC67,lookup!$Q$2:$W$62,3,FALSE) ->  | CF67: =VLOOKUP(CC67,lookup!$Q$2:$W$62,4,FALSE) ->  | CG67: =VLOOKUP(CC67,lookup!$Q$2:$W$62,5,FALSE) ->  | CH67: =VLOOKUP(CC67,lookup!$Q$2:$W$62,6,FALSE) ->  | CI67: =VLOOKUP(CC67,lookup!$Q$2:$W$62,7,FALSE) ->  | CW67: 0 | CX67: 1 | CY67: 0 | CZ67: 1 | DA67: 2 | DC67: =VLOOKUP(DB67,lookup!$Q$2:$W$62,2,FALSE) ->  | DD67: =VLOOKUP(DB67,lookup!$Q$2:$W$62,3,FALSE) ->  | DE67: =VLOOKUP(DB67,lookup!$Q$2:$W$62,4,FALSE) ->  | DF67: =VLOOKUP(DB67,lookup!$Q$2:$W$62,5,FALSE) ->  | DG67: =VLOOKUP(DB67,lookup!$Q$2:$W$62,6,FALSE) ->  | DH67: =VLOOKUP(DB67,lookup!$Q$2:$W$62,7,FALSE) -> 
R68: =IF(F68="","",VLOOKUP(P68,lookup!$L$2:$O$103,Data!Q68+1,FALSE)) ->  | X68: 0 | Y68: 0 | Z68: 0 | AI68: =VLOOKUP(S68,lookup!$A$1:$J$483,2,FALSE) ->  | AJ68: =VLOOKUP(S68,lookup!$A$1:$J$483,3,FALSE) ->  | AK68: =VLOOKUP(S68,lookup!$A$1:$J$483,4,FALSE) ->  | AL68: =VLOOKUP(S68,lookup!$A$1:$J$483,8,FALSE) ->  | AM68: =VLOOKUP(S68,lookup!$A$1:$J$483,9,FALSE) ->  | AN68: =VLOOKUP(S68,lookup!$A$1:$J$483,10,FALSE) ->  | AO68: =VLOOKUP(S68,lookup!$A$1:$J$483,5,FALSE) ->  | AP68: =VLOOKUP(S68,lookup!$A$1:$J$483,6,FALSE) ->  | AQ68: =VLOOKUP(S68,lookup!$A$1:$J$483,7,FALSE) ->  | AR68: =VLOOKUP(W68,lookup!$A$1:$J$483,2,FALSE) ->  | AS68: =VLOOKUP(W68,lookup!$A$1:$J$483,3,FALSE) ->  | AT68: =VLOOKUP(W68,lookup!$A$1:$J$483,4,FALSE) ->  | AU68: 17.5 | AV68: =VLOOKUP(AU68,lookup!$Q$2:$W$62,2,FALSE) -> 0.5 | AW68: =VLOOKUP(AU68,lookup!$Q$2:$W$62,3,FALSE) -> 0.49 | AX68: =VLOOKUP(AU68,lookup!$Q$2:$W$62,4,FALSE) -> 0.49 | AY68: =VLOOKUP(AU68,lookup!$Q$2:$W$62,5,FALSE) -> 1 | AZ68: =VLOOKUP(AU68,lookup!$Q$2:$W$62,6,FALSE) -> 0.5 | BA68: =VLOOKUP(AU68,lookup!$Q$2:$W$62,7,FALSE) -> 0.5 | BB68: 17.5 | BC68: =VLOOKUP(BB68,lookup!$Q$2:$W$62,2,FALSE) -> 0.5 | BD68: =VLOOKUP(BB68,lookup!$Q$2:$W$62,3,FALSE) -> 0.49 | BE68: =VLOOKUP(BB68,lookup!$Q$2:$W$62,4,FALSE) -> 0.49 | BF68: =VLOOKUP(BB68,lookup!$Q$2:$W$62,5,FALSE) -> 1 | BG68: =VLOOKUP(BB68,lookup!$Q$2:$W$62,6,FALSE) -> 0.5 | BH68: =VLOOKUP(BB68,lookup!$Q$2:$W$62,7,FALSE) -> 0.5 | BV68: 0 | BW68: =VLOOKUP(BV68,lookup!$Q$2:$W$62,2,FALSE) ->  | BX68: =VLOOKUP(BV68,lookup!$Q$2:$W$62,3,FALSE) ->  | BY68: =VLOOKUP(BV68,lookup!$Q$2:$W$62,4,FALSE) ->  | BZ68: =VLOOKUP(BV68,lookup!$Q$2:$W$62,5,FALSE) ->  | CA68: =VLOOKUP(BV68,lookup!$Q$2:$W$62,6,FALSE) ->  | CB68: =VLOOKUP(BV68,lookup!$Q$2:$W$62,7,FALSE) ->  | CC68: 0 | CD68: =VLOOKUP(CC68,lookup!$Q$2:$W$62,2,FALSE) ->  | CE68: =VLOOKUP(CC68,lookup!$Q$2:$W$62,3,FALSE) ->  | CF68: =VLOOKUP(CC68,lookup!$Q$2:$W$62,4,FALSE) ->  | CG68: =VLOOKUP(CC68,lookup!$Q$2:$W$62,5,FALSE) ->  | CH68: =VLOOKUP(CC68,lookup!$Q$2:$W$62,6,FALSE) ->  | CI68: =VLOOKUP(CC68,lookup!$Q$2:$W$62,7,FALSE) ->  | CW68: 0 | CX68: 1 | CY68: 0 | CZ68: 1 | DA68: 2 | DC68: =VLOOKUP(DB68,lookup!$Q$2:$W$62,2,FALSE) ->  | DD68: =VLOOKUP(DB68,lookup!$Q$2:$W$62,3,FALSE) ->  | DE68: =VLOOKUP(DB68,lookup!$Q$2:$W$62,4,FALSE) ->  | DF68: =VLOOKUP(DB68,lookup!$Q$2:$W$62,5,FALSE) ->  | DG68: =VLOOKUP(DB68,lookup!$Q$2:$W$62,6,FALSE) ->  | DH68: =VLOOKUP(DB68,lookup!$Q$2:$W$62,7,FALSE) -> 
R69: =IF(F69="","",VLOOKUP(P69,lookup!$L$2:$O$103,Data!Q69+1,FALSE)) ->  | X69: 0 | Y69: 0 | Z69: 0 | AI69: =VLOOKUP(S69,lookup!$A$1:$J$483,2,FALSE) ->  | AJ69: =VLOOKUP(S69,lookup!$A$1:$J$483,3,FALSE) ->  | AK69: =VLOOKUP(S69,lookup!$A$1:$J$483,4,FALSE) ->  | AL69: =VLOOKUP(S69,lookup!$A$1:$J$483,8,FALSE) ->  | AM69: =VLOOKUP(S69,lookup!$A$1:$J$483,9,FALSE) ->  | AN69: =VLOOKUP(S69,lookup!$A$1:$J$483,10,FALSE) ->  | AO69: =VLOOKUP(S69,lookup!$A$1:$J$483,5,FALSE) ->  | AP69: =VLOOKUP(S69,lookup!$A$1:$J$483,6,FALSE) ->  | AQ69: =VLOOKUP(S69,lookup!$A$1:$J$483,7,FALSE) ->  | AR69: =VLOOKUP(W69,lookup!$A$1:$J$483,2,FALSE) ->  | AS69: =VLOOKUP(W69,lookup!$A$1:$J$483,3,FALSE) ->  | AT69: =VLOOKUP(W69,lookup!$A$1:$J$483,4,FALSE) ->  | AU69: 17.5 | AV69: =VLOOKUP(AU69,lookup!$Q$2:$W$62,2,FALSE) -> 0.5 | AW69: =VLOOKUP(AU69,lookup!$Q$2:$W$62,3,FALSE) -> 0.49 | AX69: =VLOOKUP(AU69,lookup!$Q$2:$W$62,4,FALSE) -> 0.49 | AY69: =VLOOKUP(AU69,lookup!$Q$2:$W$62,5,FALSE) -> 1 | AZ69: =VLOOKUP(AU69,lookup!$Q$2:$W$62,6,FALSE) -> 0.5 | BA69: =VLOOKUP(AU69,lookup!$Q$2:$W$62,7,FALSE) -> 0.5 | BB69: 17.5 | BC69: =VLOOKUP(BB69,lookup!$Q$2:$W$62,2,FALSE) -> 0.5 | BD69: =VLOOKUP(BB69,lookup!$Q$2:$W$62,3,FALSE) -> 0.49 | BE69: =VLOOKUP(BB69,lookup!$Q$2:$W$62,4,FALSE) -> 0.49 | BF69: =VLOOKUP(BB69,lookup!$Q$2:$W$62,5,FALSE) -> 1 | BG69: =VLOOKUP(BB69,lookup!$Q$2:$W$62,6,FALSE) -> 0.5 | BH69: =VLOOKUP(BB69,lookup!$Q$2:$W$62,7,FALSE) -> 0.5 | BV69: 0 | BW69: =VLOOKUP(BV69,lookup!$Q$2:$W$62,2,FALSE) ->  | BX69: =VLOOKUP(BV69,lookup!$Q$2:$W$62,3,FALSE) ->  | BY69: =VLOOKUP(BV69,lookup!$Q$2:$W$62,4,FALSE) ->  | BZ69: =VLOOKUP(BV69,lookup!$Q$2:$W$62,5,FALSE) ->  | CA69: =VLOOKUP(BV69,lookup!$Q$2:$W$62,6,FALSE) ->  | CB69: =VLOOKUP(BV69,lookup!$Q$2:$W$62,7,FALSE) ->  | CC69: 0 | CD69: =VLOOKUP(CC69,lookup!$Q$2:$W$62,2,FALSE) ->  | CE69: =VLOOKUP(CC69,lookup!$Q$2:$W$62,3,FALSE) ->  | CF69: =VLOOKUP(CC69,lookup!$Q$2:$W$62,4,FALSE) ->  | CG69: =VLOOKUP(CC69,lookup!$Q$2:$W$62,5,FALSE) ->  | CH69: =VLOOKUP(CC69,lookup!$Q$2:$W$62,6,FALSE) ->  | CI69: =VLOOKUP(CC69,lookup!$Q$2:$W$62,7,FALSE) ->  | CW69: 0 | CX69: 1 | CY69: 0 | CZ69: 1 | DA69: 2 | DC69: =VLOOKUP(DB69,lookup!$Q$2:$W$62,2,FALSE) ->  | DD69: =VLOOKUP(DB69,lookup!$Q$2:$W$62,3,FALSE) ->  | DE69: =VLOOKUP(DB69,lookup!$Q$2:$W$62,4,FALSE) ->  | DF69: =VLOOKUP(DB69,lookup!$Q$2:$W$62,5,FALSE) ->  | DG69: =VLOOKUP(DB69,lookup!$Q$2:$W$62,6,FALSE) ->  | DH69: =VLOOKUP(DB69,lookup!$Q$2:$W$62,7,FALSE) -> 
R70: =IF(F70="","",VLOOKUP(P70,lookup!$L$2:$O$103,Data!Q70+1,FALSE)) ->  | X70: 0 | Y70: 0 | Z70: 0 | AI70: =VLOOKUP(S70,lookup!$A$1:$J$483,2,FALSE) ->  | AJ70: =VLOOKUP(S70,lookup!$A$1:$J$483,3,FALSE) ->  | AK70: =VLOOKUP(S70,lookup!$A$1:$J$483,4,FALSE) ->  | AL70: =VLOOKUP(S70,lookup!$A$1:$J$483,8,FALSE) ->  | AM70: =VLOOKUP(S70,lookup!$A$1:$J$483,9,FALSE) ->  | AN70: =VLOOKUP(S70,lookup!$A$1:$J$483,10,FALSE) ->  | AO70: =VLOOKUP(S70,lookup!$A$1:$J$483,5,FALSE) ->  | AP70: =VLOOKUP(S70,lookup!$A$1:$J$483,6,FALSE) ->  | AQ70: =VLOOKUP(S70,lookup!$A$1:$J$483,7,FALSE) ->  | AR70: =VLOOKUP(W70,lookup!$A$1:$J$483,2,FALSE) ->  | AS70: =VLOOKUP(W70,lookup!$A$1:$J$483,3,FALSE) ->  | AT70: =VLOOKUP(W70,lookup!$A$1:$J$483,4,FALSE) ->  | AU70: 17.5 | AV70: =VLOOKUP(AU70,lookup!$Q$2:$W$62,2,FALSE) -> 0.5 | AW70: =VLOOKUP(AU70,lookup!$Q$2:$W$62,3,FALSE) -> 0.49 | AX70: =VLOOKUP(AU70,lookup!$Q$2:$W$62,4,FALSE) -> 0.49 | AY70: =VLOOKUP(AU70,lookup!$Q$2:$W$62,5,FALSE) -> 1 | AZ70: =VLOOKUP(AU70,lookup!$Q$2:$W$62,6,FALSE) -> 0.5 | BA70: =VLOOKUP(AU70,lookup!$Q$2:$W$62,7,FALSE) -> 0.5 | BB70: 17.5 | BC70: =VLOOKUP(BB70,lookup!$Q$2:$W$62,2,FALSE) -> 0.5 | BD70: =VLOOKUP(BB70,lookup!$Q$2:$W$62,3,FALSE) -> 0.49 | BE70: =VLOOKUP(BB70,lookup!$Q$2:$W$62,4,FALSE) -> 0.49 | BF70: =VLOOKUP(BB70,lookup!$Q$2:$W$62,5,FALSE) -> 1 | BG70: =VLOOKUP(BB70,lookup!$Q$2:$W$62,6,FALSE) -> 0.5 | BH70: =VLOOKUP(BB70,lookup!$Q$2:$W$62,7,FALSE) -> 0.5 | BV70: 0 | BW70: =VLOOKUP(BV70,lookup!$Q$2:$W$62,2,FALSE) ->  | BX70: =VLOOKUP(BV70,lookup!$Q$2:$W$62,3,FALSE) ->  | BY70: =VLOOKUP(BV70,lookup!$Q$2:$W$62,4,FALSE) ->  | BZ70: =VLOOKUP(BV70,lookup!$Q$2:$W$62,5,FALSE) ->  | CA70: =VLOOKUP(BV70,lookup!$Q$2:$W$62,6,FALSE) ->  | CB70: =VLOOKUP(BV70,lookup!$Q$2:$W$62,7,FALSE) ->  | CC70: 0 | CD70: =VLOOKUP(CC70,lookup!$Q$2:$W$62,2,FALSE) ->  | CE70: =VLOOKUP(CC70,lookup!$Q$2:$W$62,3,FALSE) ->  | CF70: =VLOOKUP(CC70,lookup!$Q$2:$W$62,4,FALSE) ->  | CG70: =VLOOKUP(CC70,lookup!$Q$2:$W$62,5,FALSE) ->  | CH70: =VLOOKUP(CC70,lookup!$Q$2:$W$62,6,FALSE) ->  | CI70: =VLOOKUP(CC70,lookup!$Q$2:$W$62,7,FALSE) ->  | CW70: 0 | CX70: 1 | CY70: 0 | CZ70: 1 | DA70: 2 | DC70: =VLOOKUP(DB70,lookup!$Q$2:$W$62,2,FALSE) ->  | DD70: =VLOOKUP(DB70,lookup!$Q$2:$W$62,3,FALSE) ->  | DE70: =VLOOKUP(DB70,lookup!$Q$2:$W$62,4,FALSE) ->  | DF70: =VLOOKUP(DB70,lookup!$Q$2:$W$62,5,FALSE) ->  | DG70: =VLOOKUP(DB70,lookup!$Q$2:$W$62,6,FALSE) ->  | DH70: =VLOOKUP(DB70,lookup!$Q$2:$W$62,7,FALSE) -> 
R71: =IF(F71="","",VLOOKUP(P71,lookup!$L$2:$O$103,Data!Q71+1,FALSE)) ->  | X71: 0 | Y71: 0 | Z71: 0 | AI71: =VLOOKUP(S71,lookup!$A$1:$J$483,2,FALSE) ->  | AJ71: =VLOOKUP(S71,lookup!$A$1:$J$483,3,FALSE) ->  | AK71: =VLOOKUP(S71,lookup!$A$1:$J$483,4,FALSE) ->  | AL71: =VLOOKUP(S71,lookup!$A$1:$J$483,8,FALSE) ->  | AM71: =VLOOKUP(S71,lookup!$A$1:$J$483,9,FALSE) ->  | AN71: =VLOOKUP(S71,lookup!$A$1:$J$483,10,FALSE) ->  | AO71: =VLOOKUP(S71,lookup!$A$1:$J$483,5,FALSE) ->  | AP71: =VLOOKUP(S71,lookup!$A$1:$J$483,6,FALSE) ->  | AQ71: =VLOOKUP(S71,lookup!$A$1:$J$483,7,FALSE) ->  | AR71: =VLOOKUP(W71,lookup!$A$1:$J$483,2,FALSE) ->  | AS71: =VLOOKUP(W71,lookup!$A$1:$J$483,3,FALSE) ->  | AT71: =VLOOKUP(W71,lookup!$A$1:$J$483,4,FALSE) ->  | AU71: 17.5 | AV71: =VLOOKUP(AU71,lookup!$Q$2:$W$62,2,FALSE) -> 0.5 | AW71: =VLOOKUP(AU71,lookup!$Q$2:$W$62,3,FALSE) -> 0.49 | AX71: =VLOOKUP(AU71,lookup!$Q$2:$W$62,4,FALSE) -> 0.49 | AY71: =VLOOKUP(AU71,lookup!$Q$2:$W$62,5,FALSE) -> 1 | AZ71: =VLOOKUP(AU71,lookup!$Q$2:$W$62,6,FALSE) -> 0.5 | BA71: =VLOOKUP(AU71,lookup!$Q$2:$W$62,7,FALSE) -> 0.5 | BB71: 17.5 | BC71: =VLOOKUP(BB71,lookup!$Q$2:$W$62,2,FALSE) -> 0.5 | BD71: =VLOOKUP(BB71,lookup!$Q$2:$W$62,3,FALSE) -> 0.49 | BE71: =VLOOKUP(BB71,lookup!$Q$2:$W$62,4,FALSE) -> 0.49 | BF71: =VLOOKUP(BB71,lookup!$Q$2:$W$62,5,FALSE) -> 1 | BG71: =VLOOKUP(BB71,lookup!$Q$2:$W$62,6,FALSE) -> 0.5 | BH71: =VLOOKUP(BB71,lookup!$Q$2:$W$62,7,FALSE) -> 0.5 | BV71: 0 | BW71: =VLOOKUP(BV71,lookup!$Q$2:$W$62,2,FALSE) ->  | BX71: =VLOOKUP(BV71,lookup!$Q$2:$W$62,3,FALSE) ->  | BY71: =VLOOKUP(BV71,lookup!$Q$2:$W$62,4,FALSE) ->  | BZ71: =VLOOKUP(BV71,lookup!$Q$2:$W$62,5,FALSE) ->  | CA71: =VLOOKUP(BV71,lookup!$Q$2:$W$62,6,FALSE) ->  | CB71: =VLOOKUP(BV71,lookup!$Q$2:$W$62,7,FALSE) ->  | CC71: 0 | CD71: =VLOOKUP(CC71,lookup!$Q$2:$W$62,2,FALSE) ->  | CE71: =VLOOKUP(CC71,lookup!$Q$2:$W$62,3,FALSE) ->  | CF71: =VLOOKUP(CC71,lookup!$Q$2:$W$62,4,FALSE) ->  | CG71: =VLOOKUP(CC71,lookup!$Q$2:$W$62,5,FALSE) ->  | CH71: =VLOOKUP(CC71,lookup!$Q$2:$W$62,6,FALSE) ->  | CI71: =VLOOKUP(CC71,lookup!$Q$2:$W$62,7,FALSE) ->  | CW71: 0 | CX71: 1 | CY71: 0 | CZ71: 1 | DA71: 2 | DC71: =VLOOKUP(DB71,lookup!$Q$2:$W$62,2,FALSE) ->  | DD71: =VLOOKUP(DB71,lookup!$Q$2:$W$62,3,FALSE) ->  | DE71: =VLOOKUP(DB71,lookup!$Q$2:$W$62,4,FALSE) ->  | DF71: =VLOOKUP(DB71,lookup!$Q$2:$W$62,5,FALSE) ->  | DG71: =VLOOKUP(DB71,lookup!$Q$2:$W$62,6,FALSE) ->  | DH71: =VLOOKUP(DB71,lookup!$Q$2:$W$62,7,FALSE) -> 
R72: =IF(F72="","",VLOOKUP(P72,lookup!$L$2:$O$103,Data!Q72+1,FALSE)) ->  | X72: 0 | Y72: 0 | Z72: 0 | AI72: =VLOOKUP(S72,lookup!$A$1:$J$483,2,FALSE) ->  | AJ72: =VLOOKUP(S72,lookup!$A$1:$J$483,3,FALSE) ->  | AK72: =VLOOKUP(S72,lookup!$A$1:$J$483,4,FALSE) ->  | AL72: =VLOOKUP(S72,lookup!$A$1:$J$483,8,FALSE) ->  | AM72: =VLOOKUP(S72,lookup!$A$1:$J$483,9,FALSE) ->  | AN72: =VLOOKUP(S72,lookup!$A$1:$J$483,10,FALSE) ->  | AO72: =VLOOKUP(S72,lookup!$A$1:$J$483,5,FALSE) ->  | AP72: =VLOOKUP(S72,lookup!$A$1:$J$483,6,FALSE) ->  | AQ72: =VLOOKUP(S72,lookup!$A$1:$J$483,7,FALSE) ->  | AR72: =VLOOKUP(W72,lookup!$A$1:$J$483,2,FALSE) ->  | AS72: =VLOOKUP(W72,lookup!$A$1:$J$483,3,FALSE) ->  | AT72: =VLOOKUP(W72,lookup!$A$1:$J$483,4,FALSE) ->  | AU72: 17.5 | AV72: =VLOOKUP(AU72,lookup!$Q$2:$W$62,2,FALSE) -> 0.5 | AW72: =VLOOKUP(AU72,lookup!$Q$2:$W$62,3,FALSE) -> 0.49 | AX72: =VLOOKUP(AU72,lookup!$Q$2:$W$62,4,FALSE) -> 0.49 | AY72: =VLOOKUP(AU72,lookup!$Q$2:$W$62,5,FALSE) -> 1 | AZ72: =VLOOKUP(AU72,lookup!$Q$2:$W$62,6,FALSE) -> 0.5 | BA72: =VLOOKUP(AU72,lookup!$Q$2:$W$62,7,FALSE) -> 0.5 | BB72: 17.5 | BC72: =VLOOKUP(BB72,lookup!$Q$2:$W$62,2,FALSE) -> 0.5 | BD72: =VLOOKUP(BB72,lookup!$Q$2:$W$62,3,FALSE) -> 0.49 | BE72: =VLOOKUP(BB72,lookup!$Q$2:$W$62,4,FALSE) -> 0.49 | BF72: =VLOOKUP(BB72,lookup!$Q$2:$W$62,5,FALSE) -> 1 | BG72: =VLOOKUP(BB72,lookup!$Q$2:$W$62,6,FALSE) -> 0.5 | BH72: =VLOOKUP(BB72,lookup!$Q$2:$W$62,7,FALSE) -> 0.5 | BV72: 0 | BW72: =VLOOKUP(BV72,lookup!$Q$2:$W$62,2,FALSE) ->  | BX72: =VLOOKUP(BV72,lookup!$Q$2:$W$62,3,FALSE) ->  | BY72: =VLOOKUP(BV72,lookup!$Q$2:$W$62,4,FALSE) ->  | BZ72: =VLOOKUP(BV72,lookup!$Q$2:$W$62,5,FALSE) ->  | CA72: =VLOOKUP(BV72,lookup!$Q$2:$W$62,6,FALSE) ->  | CB72: =VLOOKUP(BV72,lookup!$Q$2:$W$62,7,FALSE) ->  | CC72: 0 | CD72: =VLOOKUP(CC72,lookup!$Q$2:$W$62,2,FALSE) ->  | CE72: =VLOOKUP(CC72,lookup!$Q$2:$W$62,3,FALSE) ->  | CF72: =VLOOKUP(CC72,lookup!$Q$2:$W$62,4,FALSE) ->  | CG72: =VLOOKUP(CC72,lookup!$Q$2:$W$62,5,FALSE) ->  | CH72: =VLOOKUP(CC72,lookup!$Q$2:$W$62,6,FALSE) ->  | CI72: =VLOOKUP(CC72,lookup!$Q$2:$W$62,7,FALSE) ->  | CW72: 0 | CX72: 1 | CY72: 0 | CZ72: 1 | DA72: 2 | DC72: =VLOOKUP(DB72,lookup!$Q$2:$W$62,2,FALSE) ->  | DD72: =VLOOKUP(DB72,lookup!$Q$2:$W$62,3,FALSE) ->  | DE72: =VLOOKUP(DB72,lookup!$Q$2:$W$62,4,FALSE) ->  | DF72: =VLOOKUP(DB72,lookup!$Q$2:$W$62,5,FALSE) ->  | DG72: =VLOOKUP(DB72,lookup!$Q$2:$W$62,6,FALSE) ->  | DH72: =VLOOKUP(DB72,lookup!$Q$2:$W$62,7,FALSE) -> 
G73: =IF(B73*C73=0,"",C73/((B73/100)*(B73/100))) ->  | R73: =IF(F73="","",VLOOKUP(P73,lookup!$L$2:$O$103,Data!Q73+1,FALSE)) ->  | S73: =IF(E73="","",CONCATENATE($E$5&(ROUND(V73,0)))) ->  | T73: =12*INT(E73) ->  | U73: =12*MOD(E73,1) ->  | W73: =IF(F73="","",CONCATENATE($E$5&(ROUND(Z73,0)))) ->  | X73: =12*INT(F73) -> 0 | Y73: =12*MOD(F73,1) -> 0 | Z73: 0 | AI73: =VLOOKUP(S73,lookup!$A$1:$J$483,2,FALSE) ->  | AJ73: =VLOOKUP(S73,lookup!$A$1:$J$483,3,FALSE) ->  | AK73: =VLOOKUP(S73,lookup!$A$1:$J$483,4,FALSE) ->  | AL73: =VLOOKUP(S73,lookup!$A$1:$J$483,8,FALSE) ->  | AM73: =VLOOKUP(S73,lookup!$A$1:$J$483,9,FALSE) ->  | AN73: =VLOOKUP(S73,lookup!$A$1:$J$483,10,FALSE) ->  | AO73: =VLOOKUP(S73,lookup!$A$1:$J$483,5,FALSE) ->  | AP73: =VLOOKUP(S73,lookup!$A$1:$J$483,6,FALSE) ->  | AQ73: =VLOOKUP(S73,lookup!$A$1:$J$483,7,FALSE) ->  | AR73: =VLOOKUP(W73,lookup!$A$1:$J$483,2,FALSE) ->  | AS73: =VLOOKUP(W73,lookup!$A$1:$J$483,3,FALSE) ->  | AT73: =VLOOKUP(W73,lookup!$A$1:$J$483,4,FALSE) ->  | AU73: 17.5 | AV73: =VLOOKUP(AU73,lookup!$Q$2:$W$62,2,FALSE) -> 0.5 | AW73: =VLOOKUP(AU73,lookup!$Q$2:$W$62,3,FALSE) -> 0.49 | AX73: =VLOOKUP(AU73,lookup!$Q$2:$W$62,4,FALSE) -> 0.49 | AY73: =VLOOKUP(AU73,lookup!$Q$2:$W$62,5,FALSE) -> 1 | AZ73: =VLOOKUP(AU73,lookup!$Q$2:$W$62,6,FALSE) -> 0.5 | BA73: =VLOOKUP(AU73,lookup!$Q$2:$W$62,7,FALSE) -> 0.5 | BB73: 17.5 | BC73: =VLOOKUP(BB73,lookup!$Q$2:$W$62,2,FALSE) -> 0.5 | BD73: =VLOOKUP(BB73,lookup!$Q$2:$W$62,3,FALSE) -> 0.49 | BE73: =VLOOKUP(BB73,lookup!$Q$2:$W$62,4,FALSE) -> 0.49 | BF73: =VLOOKUP(BB73,lookup!$Q$2:$W$62,5,FALSE) -> 1 | BG73: =VLOOKUP(BB73,lookup!$Q$2:$W$62,6,FALSE) -> 0.5 | BH73: =VLOOKUP(BB73,lookup!$Q$2:$W$62,7,FALSE) -> 0.5 | BV73: 0 | BW73: =VLOOKUP(BV73,lookup!$Q$2:$W$62,2,FALSE) ->  | BX73: =VLOOKUP(BV73,lookup!$Q$2:$W$62,3,FALSE) ->  | BY73: =VLOOKUP(BV73,lookup!$Q$2:$W$62,4,FALSE) ->  | BZ73: =VLOOKUP(BV73,lookup!$Q$2:$W$62,5,FALSE) ->  | CA73: =VLOOKUP(BV73,lookup!$Q$2:$W$62,6,FALSE) ->  | CB73: =VLOOKUP(BV73,lookup!$Q$2:$W$62,7,FALSE) ->  | CC73: 0 | CD73: =VLOOKUP(CC73,lookup!$Q$2:$W$62,2,FALSE) ->  | CE73: =VLOOKUP(CC73,lookup!$Q$2:$W$62,3,FALSE) ->  | CF73: =VLOOKUP(CC73,lookup!$Q$2:$W$62,4,FALSE) ->  | CG73: =VLOOKUP(CC73,lookup!$Q$2:$W$62,5,FALSE) ->  | CH73: =VLOOKUP(CC73,lookup!$Q$2:$W$62,6,FALSE) ->  | CI73: =VLOOKUP(CC73,lookup!$Q$2:$W$62,7,FALSE) ->  | CW73: 0 | CX73: 1 | CY73: 0 | CZ73: 1 | DA73: 2 | DC73: =VLOOKUP(DB73,lookup!$Q$2:$W$62,2,FALSE) ->  | DD73: =VLOOKUP(DB73,lookup!$Q$2:$W$62,3,FALSE) ->  | DE73: =VLOOKUP(DB73,lookup!$Q$2:$W$62,4,FALSE) ->  | DF73: =VLOOKUP(DB73,lookup!$Q$2:$W$62,5,FALSE) ->  | DG73: =VLOOKUP(DB73,lookup!$Q$2:$W$62,6,FALSE) ->  | DH73: =VLOOKUP(DB73,lookup!$Q$2:$W$62,7,FALSE) -> 
E74: =IF($B$3="","",IF(A74="","",(A74-$B$3)/365.25)) ->  | I74: =IF(B74<10,"",IF(AA74*AB74=0,"",ROUND(AA74,1)&" / "&ROUND(AB74,1))) ->  | J74: =IF(F74<0.1,"",IF(AG74*AH74=0,"",ROUND(AG74,1)&" / "&ROUND(AH74,1))) ->  | K74: =IF(C74<1,"",IF(AC74*AD74=0,"",ROUND(AC74,1)&" / "&ROUND(AD74,1))) ->  | L74: =IF(B74<1,"",IF(AE74*AF74=0,"",ROUND(AE74,1)&" / "&ROUND(AF74,1))) ->  | M74: =IF(F74<0.1,"",IF(Q74*R74>0,B74/R74,"")) ->  | N74: =IF(E74="","",IF(E74<2.5,"",ROUND(BU74,1)&" / "&ROUND(BT74,1))) ->  | O74: =IF(F74="","",IF(F74<2.5,"",ROUND(DP74,1)&" / "&ROUND(DO74,1))) ->  | P74: =IF(F74="","",CONCATENATE($E$5&F74)) ->  | Q74: =IF(F74="","",IF(F74-E74<-1,1,IF(F74-E74<1,2,IF(F74-E74>1,3,"error")))) ->  | R74: =IF(F74="","",VLOOKUP(P74,lookup!$L$2:$O$103,Data!Q74+1,FALSE)) ->  | V74: =SUM(T74:U74) ->  | X74: 0 | Y74: 0 | Z74: =SUM(X74:Y74) -> 0 | AA74: =IF(AB74="","",100*NORMSDIST(AB74)) ->  | AB74: =IF(AI74*AJ74*AK74=0,"",((POWER(B74/AJ74,AI74))-1)/(AI74*AK74)) ->  | AC74: =IF(AD74="","",100*NORMSDIST(AD74)) ->  | AD74: =IF(AL74*AM74*AN74=0,"",((POWER(C74/AM74,AL74))-1)/(AL74*AN74)) ->  | AE74: =IF(AF74="","",100*NORMSDIST(AF74)) ->  | AF74: =IF(AO74*AP74*AQ74=0,"",((POWER(G74/AP74,AO74))-1)/(AO74*AQ74)) ->  | AG74: =IF(AH74="","",100*NORMSDIST(AH74)) ->  | AH74: =IF(AR74*AS74*AT74=0,"",((POWER(B74/AS74,AR74))-1)/(AR74*AT74)) ->  | AI74: =VLOOKUP(S74,lookup!$A$1:$J$483,2,FALSE) ->  | AJ74: =VLOOKUP(S74,lookup!$A$1:$J$483,3,FALSE) ->  | AK74: =VLOOKUP(S74,lookup!$A$1:$J$483,4,FALSE) ->  | AL74: =VLOOKUP(S74,lookup!$A$1:$J$483,8,FALSE) ->  | AM74: =VLOOKUP(S74,lookup!$A$1:$J$483,9,FALSE) ->  | AN74: =VLOOKUP(S74,lookup!$A$1:$J$483,10,FALSE) ->  | AO74: =VLOOKUP(S74,lookup!$A$1:$J$483,5,FALSE) ->  | AP74: =VLOOKUP(S74,lookup!$A$1:$J$483,6,FALSE) ->  | AQ74: =VLOOKUP(S74,lookup!$A$1:$J$483,7,FALSE) ->  | AR74: =VLOOKUP(W74,lookup!$A$1:$J$483,2,FALSE) ->  | AS74: =VLOOKUP(W74,lookup!$A$1:$J$483,3,FALSE) ->  | AT74: =VLOOKUP(W74,lookup!$A$1:$J$483,4,FALSE) ->  | AU74: =IF(E74>17.5,17.5,FLOOR(E74,0.25)) -> 17.5 | AV74: =VLOOKUP(AU74,lookup!$Q$2:$W$62,2,FALSE) -> 0.5 | AW74: =VLOOKUP(AU74,lookup!$Q$2:$W$62,3,FALSE) -> 0.49 | AX74: =VLOOKUP(AU74,lookup!$Q$2:$W$62,4,FALSE) -> 0.49 | AY74: =VLOOKUP(AU74,lookup!$Q$2:$W$62,5,FALSE) -> 1 | AZ74: =VLOOKUP(AU74,lookup!$Q$2:$W$62,6,FALSE) -> 0.5 | BA74: =VLOOKUP(AU74,lookup!$Q$2:$W$62,7,FALSE) -> 0.5 | BB74: =IF(E74>17.5,17.5,CEILING(E74,0.25)) -> 17.5 | BC74: =VLOOKUP(BB74,lookup!$Q$2:$W$62,2,FALSE) -> 0.5 | BD74: =VLOOKUP(BB74,lookup!$Q$2:$W$62,3,FALSE) -> 0.49 | BE74: =VLOOKUP(BB74,lookup!$Q$2:$W$62,4,FALSE) -> 0.49 | BF74: =VLOOKUP(BB74,lookup!$Q$2:$W$62,5,FALSE) -> 1 | BG74: =VLOOKUP(BB74,lookup!$Q$2:$W$62,6,FALSE) -> 0.5 | BH74: =VLOOKUP(BB74,lookup!$Q$2:$W$62,7,FALSE) -> 0.5 | BI74: =(E74-AU74)/(BB74-AU74) ->  | BJ74: =(BI74*(BC74-AV74))+AV74 ->  | BK74: =(BI74*(BD74-AW74))+AW74 ->  | BL74: =(BI74*(BE74-AX74))+AX74 ->  | BM74: =(BI74*(BF74-AY74))+AY74 ->  | BN74: =(BI74*(BG74-AZ74))+AZ74 ->  | BO74: =(BI74*(BH74-BA74))+BA74 ->  | BP74: =IF(D74<BJ74,BK74,BL74) ->  | BQ74: =IF(D74<BM74,BN74,BO74) ->  | BR74: =(D74-BJ74)/BP74 ->  | BS74: =(D74-BM74)/BQ74 ->  | BT74: =IF($E$5="M",BR74,IF($E$5="F",BS74,"")) ->  | BU74: =IF(BT74="","",100*NORMSDIST(BT74)) ->  | BV74: =IF(F74>17.5,17.5,FLOOR(F74,0.25)) -> 0 | BW74: =VLOOKUP(BV74,lookup!$Q$2:$W$62,2,FALSE) ->  | BX74: =VLOOKUP(BV74,lookup!$Q$2:$W$62,3,FALSE) ->  | BY74: =VLOOKUP(BV74,lookup!$Q$2:$W$62,4,FALSE) ->  | BZ74: =VLOOKUP(BV74,lookup!$Q$2:$W$62,5,FALSE) ->  | CA74: =VLOOKUP(BV74,lookup!$Q$2:$W$62,6,FALSE) ->  | CB74: =VLOOKUP(BV74,lookup!$Q$2:$W$62,7,FALSE) ->  | CC74: =IF(F74>17.5,17.5,CEILING(F74,0.25)) -> 0 | CD74: =VLOOKUP(CC74,lookup!$Q$2:$W$62,2,FALSE) ->  | CE74: =VLOOKUP(CC74,lookup!$Q$2:$W$62,3,FALSE) ->  | CF74: =VLOOKUP(CC74,lookup!$Q$2:$W$62,4,FALSE) ->  | CG74: =VLOOKUP(CC74,lookup!$Q$2:$W$62,5,FALSE) ->  | CH74: =VLOOKUP(CC74,lookup!$Q$2:$W$62,6,FALSE) ->  | CI74: =VLOOKUP(CC74,lookup!$Q$2:$W$62,7,FALSE) ->  | CJ74: =(F74-BV74)/(CC74-BV74) ->  | CK74: =(CJ74*(CD74-BW74))+BW74 ->  | CL74: =(CJ74*(CE74-BX74))+BX74 ->  | CM74: =(CJ74*(CF74-BY74))+BY74 ->  | CN74: =(CJ74*(CG74-BZ74))+BZ74 ->  | CO74: =(CJ74*(CH74-CA74))+CA74 ->  | CP74: =(CJ74*(CI74-CB74))+CB74 ->  | CQ74: =IF(D74<CK74,CL74,CM74) ->  | CR74: =IF(D74<CN74,CO74,CP74) ->  | CS74: =(D74-CK74)/CQ74 ->  | CT74: =(D74-CN74)/CR74 ->  | CU74: =IF($E$5="M",CS74,IF($E$5="F",CT74,"")) ->  | CV74: =IF(CU74="","",100*NORMSDIST(CU74)) ->  | CW74: =F74/0.25 -> 0 | CX74: =IF(INT(CW74)=CW74,1,0) -> 1 | CY74: =IF(CW74>9.9,1,0) -> 0 | CZ74: =IF(CW74<70.1,1,0) -> 1 | DA74: =SUM(CX74:CZ74) -> 2 | DB74: =IF(DA74=3,F74,"") ->  | DC74: =VLOOKUP(DB74,lookup!$Q$2:$W$62,2,FALSE) ->  | DD74: =VLOOKUP(DB74,lookup!$Q$2:$W$62,3,FALSE) ->  | DE74: =VLOOKUP(DB74,lookup!$Q$2:$W$62,4,FALSE) ->  | DF74: =VLOOKUP(DB74,lookup!$Q$2:$W$62,5,FALSE) ->  | DG74: =VLOOKUP(DB74,lookup!$Q$2:$W$62,6,FALSE) ->  | DH74: =VLOOKUP(DB74,lookup!$Q$2:$W$62,7,FALSE) ->  | DI74: =IF(D74<DC74,DD74,DE74) ->  | DJ74: =IF(D74<DF74,DG74,DH74) ->  | DK74: =(D74-DC74)/DI74 ->  | DL74: =(D74-DF74)/DJ74 ->  | DM74: =IF($E$5="M",DK74,IF($E$5="F",DL74,"")) ->  | DN74: =IF(DM74="","",100*NORMSDIST(DM74)) ->  | DO74: =IF(DA74=3,DM74,CU74) ->  | DP74: =IF(DA74=3,DN74,CV74) -> 
D75: =IF(A75*A74*B75*B74=0,"",(365.25/(A75-A74))*(B75-B74)) ->  | H75: =IF(B75*C75=0,"",SQRT(C75*B75/3600)) ->  | R75: =IF(F75="","",VLOOKUP(P75,lookup!$L$2:$O$103,Data!Q75+1,FALSE)) ->  | X75: 0 | Y75: 0 | Z75: 0 | AI75: =VLOOKUP(S75,lookup!$A$1:$J$483,2,FALSE) ->  | AJ75: =VLOOKUP(S75,lookup!$A$1:$J$483,3,FALSE) ->  | AK75: =VLOOKUP(S75,lookup!$A$1:$J$483,4,FALSE) ->  | AL75: =VLOOKUP(S75,lookup!$A$1:$J$483,8,FALSE) ->  | AM75: =VLOOKUP(S75,lookup!$A$1:$J$483,9,FALSE) ->  | AN75: =VLOOKUP(S75,lookup!$A$1:$J$483,10,FALSE) ->  | AO75: =VLOOKUP(S75,lookup!$A$1:$J$483,5,FALSE) ->  | AP75: =VLOOKUP(S75,lookup!$A$1:$J$483,6,FALSE) ->  | AQ75: =VLOOKUP(S75,lookup!$A$1:$J$483,7,FALSE) ->  | AR75: =VLOOKUP(W75,lookup!$A$1:$J$483,2,FALSE) ->  | AS75: =VLOOKUP(W75,lookup!$A$1:$J$483,3,FALSE) ->  | AT75: =VLOOKUP(W75,lookup!$A$1:$J$483,4,FALSE) ->  | AU75: 17.5 | AV75: =VLOOKUP(AU75,lookup!$Q$2:$W$62,2,FALSE) -> 0.5 | AW75: =VLOOKUP(AU75,lookup!$Q$2:$W$62,3,FALSE) -> 0.49 | AX75: =VLOOKUP(AU75,lookup!$Q$2:$W$62,4,FALSE) -> 0.49 | AY75: =VLOOKUP(AU75,lookup!$Q$2:$W$62,5,FALSE) -> 1 | AZ75: =VLOOKUP(AU75,lookup!$Q$2:$W$62,6,FALSE) -> 0.5 | BA75: =VLOOKUP(AU75,lookup!$Q$2:$W$62,7,FALSE) -> 0.5 | BB75: 17.5 | BC75: =VLOOKUP(BB75,lookup!$Q$2:$W$62,2,FALSE) -> 0.5 | BD75: =VLOOKUP(BB75,lookup!$Q$2:$W$62,3,FALSE) -> 0.49 | BE75: =VLOOKUP(BB75,lookup!$Q$2:$W$62,4,FALSE) -> 0.49 | BF75: =VLOOKUP(BB75,lookup!$Q$2:$W$62,5,FALSE) -> 1 | BG75: =VLOOKUP(BB75,lookup!$Q$2:$W$62,6,FALSE) -> 0.5 | BH75: =VLOOKUP(BB75,lookup!$Q$2:$W$62,7,FALSE) -> 0.5 | BV75: 0 | BW75: =VLOOKUP(BV75,lookup!$Q$2:$W$62,2,FALSE) ->  | BX75: =VLOOKUP(BV75,lookup!$Q$2:$W$62,3,FALSE) ->  | BY75: =VLOOKUP(BV75,lookup!$Q$2:$W$62,4,FALSE) ->  | BZ75: =VLOOKUP(BV75,lookup!$Q$2:$W$62,5,FALSE) ->  | CA75: =VLOOKUP(BV75,lookup!$Q$2:$W$62,6,FALSE) ->  | CB75: =VLOOKUP(BV75,lookup!$Q$2:$W$62,7,FALSE) ->  | CC75: 0 | CD75: =VLOOKUP(CC75,lookup!$Q$2:$W$62,2,FALSE) ->  | CE75: =VLOOKUP(CC75,lookup!$Q$2:$W$62,3,FALSE) ->  | CF75: =VLOOKUP(CC75,lookup!$Q$2:$W$62,4,FALSE) ->  | CG75: =VLOOKUP(CC75,lookup!$Q$2:$W$62,5,FALSE) ->  | CH75: =VLOOKUP(CC75,lookup!$Q$2:$W$62,6,FALSE) ->  | CI75: =VLOOKUP(CC75,lookup!$Q$2:$W$62,7,FALSE) ->  | CW75: 0 | CX75: 1 | CY75: 0 | CZ75: 1 | DA75: 2 | DC75: =VLOOKUP(DB75,lookup!$Q$2:$W$62,2,FALSE) ->  | DD75: =VLOOKUP(DB75,lookup!$Q$2:$W$62,3,FALSE) ->  | DE75: =VLOOKUP(DB75,lookup!$Q$2:$W$62,4,FALSE) ->  | DF75: =VLOOKUP(DB75,lookup!$Q$2:$W$62,5,FALSE) ->  | DG75: =VLOOKUP(DB75,lookup!$Q$2:$W$62,6,FALSE) ->  | DH75: =VLOOKUP(DB75,lookup!$Q$2:$W$62,7,FALSE) -> 
R76: =IF(F76="","",VLOOKUP(P76,lookup!$L$2:$O$103,Data!Q76+1,FALSE)) ->  | X76: 0 | Y76: 0 | Z76: 0 | AI76: =VLOOKUP(S76,lookup!$A$1:$J$483,2,FALSE) ->  | AJ76: =VLOOKUP(S76,lookup!$A$1:$J$483,3,FALSE) ->  | AK76: =VLOOKUP(S76,lookup!$A$1:$J$483,4,FALSE) ->  | AL76: =VLOOKUP(S76,lookup!$A$1:$J$483,8,FALSE) ->  | AM76: =VLOOKUP(S76,lookup!$A$1:$J$483,9,FALSE) ->  | AN76: =VLOOKUP(S76,lookup!$A$1:$J$483,10,FALSE) ->  | AO76: =VLOOKUP(S76,lookup!$A$1:$J$483,5,FALSE) ->  | AP76: =VLOOKUP(S76,lookup!$A$1:$J$483,6,FALSE) ->  | AQ76: =VLOOKUP(S76,lookup!$A$1:$J$483,7,FALSE) ->  | AR76: =VLOOKUP(W76,lookup!$A$1:$J$483,2,FALSE) ->  | AS76: =VLOOKUP(W76,lookup!$A$1:$J$483,3,FALSE) ->  | AT76: =VLOOKUP(W76,lookup!$A$1:$J$483,4,FALSE) ->  | AU76: 17.5 | AV76: =VLOOKUP(AU76,lookup!$Q$2:$W$62,2,FALSE) -> 0.5 | AW76: =VLOOKUP(AU76,lookup!$Q$2:$W$62,3,FALSE) -> 0.49 | AX76: =VLOOKUP(AU76,lookup!$Q$2:$W$62,4,FALSE) -> 0.49 | AY76: =VLOOKUP(AU76,lookup!$Q$2:$W$62,5,FALSE) -> 1 | AZ76: =VLOOKUP(AU76,lookup!$Q$2:$W$62,6,FALSE) -> 0.5 | BA76: =VLOOKUP(AU76,lookup!$Q$2:$W$62,7,FALSE) -> 0.5 | BB76: 17.5 | BC76: =VLOOKUP(BB76,lookup!$Q$2:$W$62,2,FALSE) -> 0.5 | BD76: =VLOOKUP(BB76,lookup!$Q$2:$W$62,3,FALSE) -> 0.49 | BE76: =VLOOKUP(BB76,lookup!$Q$2:$W$62,4,FALSE) -> 0.49 | BF76: =VLOOKUP(BB76,lookup!$Q$2:$W$62,5,FALSE) -> 1 | BG76: =VLOOKUP(BB76,lookup!$Q$2:$W$62,6,FALSE) -> 0.5 | BH76: =VLOOKUP(BB76,lookup!$Q$2:$W$62,7,FALSE) -> 0.5 | BV76: 0 | BW76: =VLOOKUP(BV76,lookup!$Q$2:$W$62,2,FALSE) ->  | BX76: =VLOOKUP(BV76,lookup!$Q$2:$W$62,3,FALSE) ->  | BY76: =VLOOKUP(BV76,lookup!$Q$2:$W$62,4,FALSE) ->  | BZ76: =VLOOKUP(BV76,lookup!$Q$2:$W$62,5,FALSE) ->  | CA76: =VLOOKUP(BV76,lookup!$Q$2:$W$62,6,FALSE) ->  | CB76: =VLOOKUP(BV76,lookup!$Q$2:$W$62,7,FALSE) ->  | CC76: 0 | CD76: =VLOOKUP(CC76,lookup!$Q$2:$W$62,2,FALSE) ->  | CE76: =VLOOKUP(CC76,lookup!$Q$2:$W$62,3,FALSE) ->  | CF76: =VLOOKUP(CC76,lookup!$Q$2:$W$62,4,FALSE) ->  | CG76: =VLOOKUP(CC76,lookup!$Q$2:$W$62,5,FALSE) ->  | CH76: =VLOOKUP(CC76,lookup!$Q$2:$W$62,6,FALSE) ->  | CI76: =VLOOKUP(CC76,lookup!$Q$2:$W$62,7,FALSE) ->  | CW76: 0 | CX76: 1 | CY76: 0 | CZ76: 1 | DA76: 2 | DC76: =VLOOKUP(DB76,lookup!$Q$2:$W$62,2,FALSE) ->  | DD76: =VLOOKUP(DB76,lookup!$Q$2:$W$62,3,FALSE) ->  | DE76: =VLOOKUP(DB76,lookup!$Q$2:$W$62,4,FALSE) ->  | DF76: =VLOOKUP(DB76,lookup!$Q$2:$W$62,5,FALSE) ->  | DG76: =VLOOKUP(DB76,lookup!$Q$2:$W$62,6,FALSE) ->  | DH76: =VLOOKUP(DB76,lookup!$Q$2:$W$62,7,FALSE) -> 
R77: =IF(F77="","",VLOOKUP(P77,lookup!$L$2:$O$103,Data!Q77+1,FALSE)) ->  | X77: 0 | Y77: 0 | Z77: 0 | AI77: =VLOOKUP(S77,lookup!$A$1:$J$483,2,FALSE) ->  | AJ77: =VLOOKUP(S77,lookup!$A$1:$J$483,3,FALSE) ->  | AK77: =VLOOKUP(S77,lookup!$A$1:$J$483,4,FALSE) ->  | AL77: =VLOOKUP(S77,lookup!$A$1:$J$483,8,FALSE) ->  | AM77: =VLOOKUP(S77,lookup!$A$1:$J$483,9,FALSE) ->  | AN77: =VLOOKUP(S77,lookup!$A$1:$J$483,10,FALSE) ->  | AO77: =VLOOKUP(S77,lookup!$A$1:$J$483,5,FALSE) ->  | AP77: =VLOOKUP(S77,lookup!$A$1:$J$483,6,FALSE) ->  | AQ77: =VLOOKUP(S77,lookup!$A$1:$J$483,7,FALSE) ->  | AR77: =VLOOKUP(W77,lookup!$A$1:$J$483,2,FALSE) ->  | AS77: =VLOOKUP(W77,lookup!$A$1:$J$483,3,FALSE) ->  | AT77: =VLOOKUP(W77,lookup!$A$1:$J$483,4,FALSE) ->  | AU77: 17.5 | AV77: =VLOOKUP(AU77,lookup!$Q$2:$W$62,2,FALSE) -> 0.5 | AW77: =VLOOKUP(AU77,lookup!$Q$2:$W$62,3,FALSE) -> 0.49 | AX77: =VLOOKUP(AU77,lookup!$Q$2:$W$62,4,FALSE) -> 0.49 | AY77: =VLOOKUP(AU77,lookup!$Q$2:$W$62,5,FALSE) -> 1 | AZ77: =VLOOKUP(AU77,lookup!$Q$2:$W$62,6,FALSE) -> 0.5 | BA77: =VLOOKUP(AU77,lookup!$Q$2:$W$62,7,FALSE) -> 0.5 | BB77: 17.5 | BC77: =VLOOKUP(BB77,lookup!$Q$2:$W$62,2,FALSE) -> 0.5 | BD77: =VLOOKUP(BB77,lookup!$Q$2:$W$62,3,FALSE) -> 0.49 | BE77: =VLOOKUP(BB77,lookup!$Q$2:$W$62,4,FALSE) -> 0.49 | BF77: =VLOOKUP(BB77,lookup!$Q$2:$W$62,5,FALSE) -> 1 | BG77: =VLOOKUP(BB77,lookup!$Q$2:$W$62,6,FALSE) -> 0.5 | BH77: =VLOOKUP(BB77,lookup!$Q$2:$W$62,7,FALSE) -> 0.5 | BV77: 0 | BW77: =VLOOKUP(BV77,lookup!$Q$2:$W$62,2,FALSE) ->  | BX77: =VLOOKUP(BV77,lookup!$Q$2:$W$62,3,FALSE) ->  | BY77: =VLOOKUP(BV77,lookup!$Q$2:$W$62,4,FALSE) ->  | BZ77: =VLOOKUP(BV77,lookup!$Q$2:$W$62,5,FALSE) ->  | CA77: =VLOOKUP(BV77,lookup!$Q$2:$W$62,6,FALSE) ->  | CB77: =VLOOKUP(BV77,lookup!$Q$2:$W$62,7,FALSE) ->  | CC77: 0 | CD77: =VLOOKUP(CC77,lookup!$Q$2:$W$62,2,FALSE) ->  | CE77: =VLOOKUP(CC77,lookup!$Q$2:$W$62,3,FALSE) ->  | CF77: =VLOOKUP(CC77,lookup!$Q$2:$W$62,4,FALSE) ->  | CG77: =VLOOKUP(CC77,lookup!$Q$2:$W$62,5,FALSE) ->  | CH77: =VLOOKUP(CC77,lookup!$Q$2:$W$62,6,FALSE) ->  | CI77: =VLOOKUP(CC77,lookup!$Q$2:$W$62,7,FALSE) ->  | CW77: 0 | CX77: 1 | CY77: 0 | CZ77: 1 | DA77: 2 | DC77: =VLOOKUP(DB77,lookup!$Q$2:$W$62,2,FALSE) ->  | DD77: =VLOOKUP(DB77,lookup!$Q$2:$W$62,3,FALSE) ->  | DE77: =VLOOKUP(DB77,lookup!$Q$2:$W$62,4,FALSE) ->  | DF77: =VLOOKUP(DB77,lookup!$Q$2:$W$62,5,FALSE) ->  | DG77: =VLOOKUP(DB77,lookup!$Q$2:$W$62,6,FALSE) ->  | DH77: =VLOOKUP(DB77,lookup!$Q$2:$W$62,7,FALSE) -> 
R78: =IF(F78="","",VLOOKUP(P78,lookup!$L$2:$O$103,Data!Q78+1,FALSE)) ->  | X78: 0 | Y78: 0 | Z78: 0 | AI78: =VLOOKUP(S78,lookup!$A$1:$J$483,2,FALSE) ->  | AJ78: =VLOOKUP(S78,lookup!$A$1:$J$483,3,FALSE) ->  | AK78: =VLOOKUP(S78,lookup!$A$1:$J$483,4,FALSE) ->  | AL78: =VLOOKUP(S78,lookup!$A$1:$J$483,8,FALSE) ->  | AM78: =VLOOKUP(S78,lookup!$A$1:$J$483,9,FALSE) ->  | AN78: =VLOOKUP(S78,lookup!$A$1:$J$483,10,FALSE) ->  | AO78: =VLOOKUP(S78,lookup!$A$1:$J$483,5,FALSE) ->  | AP78: =VLOOKUP(S78,lookup!$A$1:$J$483,6,FALSE) ->  | AQ78: =VLOOKUP(S78,lookup!$A$1:$J$483,7,FALSE) ->  | AR78: =VLOOKUP(W78,lookup!$A$1:$J$483,2,FALSE) ->  | AS78: =VLOOKUP(W78,lookup!$A$1:$J$483,3,FALSE) ->  | AT78: =VLOOKUP(W78,lookup!$A$1:$J$483,4,FALSE) ->  | AU78: 17.5 | AV78: =VLOOKUP(AU78,lookup!$Q$2:$W$62,2,FALSE) -> 0.5 | AW78: =VLOOKUP(AU78,lookup!$Q$2:$W$62,3,FALSE) -> 0.49 | AX78: =VLOOKUP(AU78,lookup!$Q$2:$W$62,4,FALSE) -> 0.49 | AY78: =VLOOKUP(AU78,lookup!$Q$2:$W$62,5,FALSE) -> 1 | AZ78: =VLOOKUP(AU78,lookup!$Q$2:$W$62,6,FALSE) -> 0.5 | BA78: =VLOOKUP(AU78,lookup!$Q$2:$W$62,7,FALSE) -> 0.5 | BB78: 17.5 | BC78: =VLOOKUP(BB78,lookup!$Q$2:$W$62,2,FALSE) -> 0.5 | BD78: =VLOOKUP(BB78,lookup!$Q$2:$W$62,3,FALSE) -> 0.49 | BE78: =VLOOKUP(BB78,lookup!$Q$2:$W$62,4,FALSE) -> 0.49 | BF78: =VLOOKUP(BB78,lookup!$Q$2:$W$62,5,FALSE) -> 1 | BG78: =VLOOKUP(BB78,lookup!$Q$2:$W$62,6,FALSE) -> 0.5 | BH78: =VLOOKUP(BB78,lookup!$Q$2:$W$62,7,FALSE) -> 0.5 | BV78: 0 | BW78: =VLOOKUP(BV78,lookup!$Q$2:$W$62,2,FALSE) ->  | BX78: =VLOOKUP(BV78,lookup!$Q$2:$W$62,3,FALSE) ->  | BY78: =VLOOKUP(BV78,lookup!$Q$2:$W$62,4,FALSE) ->  | BZ78: =VLOOKUP(BV78,lookup!$Q$2:$W$62,5,FALSE) ->  | CA78: =VLOOKUP(BV78,lookup!$Q$2:$W$62,6,FALSE) ->  | CB78: =VLOOKUP(BV78,lookup!$Q$2:$W$62,7,FALSE) ->  | CC78: 0 | CD78: =VLOOKUP(CC78,lookup!$Q$2:$W$62,2,FALSE) ->  | CE78: =VLOOKUP(CC78,lookup!$Q$2:$W$62,3,FALSE) ->  | CF78: =VLOOKUP(CC78,lookup!$Q$2:$W$62,4,FALSE) ->  | CG78: =VLOOKUP(CC78,lookup!$Q$2:$W$62,5,FALSE) ->  | CH78: =VLOOKUP(CC78,lookup!$Q$2:$W$62,6,FALSE) ->  | CI78: =VLOOKUP(CC78,lookup!$Q$2:$W$62,7,FALSE) ->  | CW78: 0 | CX78: 1 | CY78: 0 | CZ78: 1 | DA78: 2 | DC78: =VLOOKUP(DB78,lookup!$Q$2:$W$62,2,FALSE) ->  | DD78: =VLOOKUP(DB78,lookup!$Q$2:$W$62,3,FALSE) ->  | DE78: =VLOOKUP(DB78,lookup!$Q$2:$W$62,4,FALSE) ->  | DF78: =VLOOKUP(DB78,lookup!$Q$2:$W$62,5,FALSE) ->  | DG78: =VLOOKUP(DB78,lookup!$Q$2:$W$62,6,FALSE) ->  | DH78: =VLOOKUP(DB78,lookup!$Q$2:$W$62,7,FALSE) -> 
R79: =IF(F79="","",VLOOKUP(P79,lookup!$L$2:$O$103,Data!Q79+1,FALSE)) ->  | X79: 0 | Y79: 0 | Z79: 0 | AI79: =VLOOKUP(S79,lookup!$A$1:$J$483,2,FALSE) ->  | AJ79: =VLOOKUP(S79,lookup!$A$1:$J$483,3,FALSE) ->  | AK79: =VLOOKUP(S79,lookup!$A$1:$J$483,4,FALSE) ->  | AL79: =VLOOKUP(S79,lookup!$A$1:$J$483,8,FALSE) ->  | AM79: =VLOOKUP(S79,lookup!$A$1:$J$483,9,FALSE) ->  | AN79: =VLOOKUP(S79,lookup!$A$1:$J$483,10,FALSE) ->  | AO79: =VLOOKUP(S79,lookup!$A$1:$J$483,5,FALSE) ->  | AP79: =VLOOKUP(S79,lookup!$A$1:$J$483,6,FALSE) ->  | AQ79: =VLOOKUP(S79,lookup!$A$1:$J$483,7,FALSE) ->  | AR79: =VLOOKUP(W79,lookup!$A$1:$J$483,2,FALSE) ->  | AS79: =VLOOKUP(W79,lookup!$A$1:$J$483,3,FALSE) ->  | AT79: =VLOOKUP(W79,lookup!$A$1:$J$483,4,FALSE) ->  | AU79: 17.5 | AV79: =VLOOKUP(AU79,lookup!$Q$2:$W$62,2,FALSE) -> 0.5 | AW79: =VLOOKUP(AU79,lookup!$Q$2:$W$62,3,FALSE) -> 0.49 | AX79: =VLOOKUP(AU79,lookup!$Q$2:$W$62,4,FALSE) -> 0.49 | AY79: =VLOOKUP(AU79,lookup!$Q$2:$W$62,5,FALSE) -> 1 | AZ79: =VLOOKUP(AU79,lookup!$Q$2:$W$62,6,FALSE) -> 0.5 | BA79: =VLOOKUP(AU79,lookup!$Q$2:$W$62,7,FALSE) -> 0.5 | BB79: 17.5 | BC79: =VLOOKUP(BB79,lookup!$Q$2:$W$62,2,FALSE) -> 0.5 | BD79: =VLOOKUP(BB79,lookup!$Q$2:$W$62,3,FALSE) -> 0.49 | BE79: =VLOOKUP(BB79,lookup!$Q$2:$W$62,4,FALSE) -> 0.49 | BF79: =VLOOKUP(BB79,lookup!$Q$2:$W$62,5,FALSE) -> 1 | BG79: =VLOOKUP(BB79,lookup!$Q$2:$W$62,6,FALSE) -> 0.5 | BH79: =VLOOKUP(BB79,lookup!$Q$2:$W$62,7,FALSE) -> 0.5 | BV79: 0 | BW79: =VLOOKUP(BV79,lookup!$Q$2:$W$62,2,FALSE) ->  | BX79: =VLOOKUP(BV79,lookup!$Q$2:$W$62,3,FALSE) ->  | BY79: =VLOOKUP(BV79,lookup!$Q$2:$W$62,4,FALSE) ->  | BZ79: =VLOOKUP(BV79,lookup!$Q$2:$W$62,5,FALSE) ->  | CA79: =VLOOKUP(BV79,lookup!$Q$2:$W$62,6,FALSE) ->  | CB79: =VLOOKUP(BV79,lookup!$Q$2:$W$62,7,FALSE) ->  | CC79: 0 | CD79: =VLOOKUP(CC79,lookup!$Q$2:$W$62,2,FALSE) ->  | CE79: =VLOOKUP(CC79,lookup!$Q$2:$W$62,3,FALSE) ->  | CF79: =VLOOKUP(CC79,lookup!$Q$2:$W$62,4,FALSE) ->  | CG79: =VLOOKUP(CC79,lookup!$Q$2:$W$62,5,FALSE) ->  | CH79: =VLOOKUP(CC79,lookup!$Q$2:$W$62,6,FALSE) ->  | CI79: =VLOOKUP(CC79,lookup!$Q$2:$W$62,7,FALSE) ->  | CW79: 0 | CX79: 1 | CY79: 0 | CZ79: 1 | DA79: 2 | DC79: =VLOOKUP(DB79,lookup!$Q$2:$W$62,2,FALSE) ->  | DD79: =VLOOKUP(DB79,lookup!$Q$2:$W$62,3,FALSE) ->  | DE79: =VLOOKUP(DB79,lookup!$Q$2:$W$62,4,FALSE) ->  | DF79: =VLOOKUP(DB79,lookup!$Q$2:$W$62,5,FALSE) ->  | DG79: =VLOOKUP(DB79,lookup!$Q$2:$W$62,6,FALSE) ->  | DH79: =VLOOKUP(DB79,lookup!$Q$2:$W$62,7,FALSE) -> 
R80: =IF(F80="","",VLOOKUP(P80,lookup!$L$2:$O$103,Data!Q80+1,FALSE)) ->  | X80: 0 | Y80: 0 | Z80: 0 | AI80: =VLOOKUP(S80,lookup!$A$1:$J$483,2,FALSE) ->  | AJ80: =VLOOKUP(S80,lookup!$A$1:$J$483,3,FALSE) ->  | AK80: =VLOOKUP(S80,lookup!$A$1:$J$483,4,FALSE) ->  | AL80: =VLOOKUP(S80,lookup!$A$1:$J$483,8,FALSE) ->  | AM80: =VLOOKUP(S80,lookup!$A$1:$J$483,9,FALSE) ->  | AN80: =VLOOKUP(S80,lookup!$A$1:$J$483,10,FALSE) ->  | AO80: =VLOOKUP(S80,lookup!$A$1:$J$483,5,FALSE) ->  | AP80: =VLOOKUP(S80,lookup!$A$1:$J$483,6,FALSE) ->  | AQ80: =VLOOKUP(S80,lookup!$A$1:$J$483,7,FALSE) ->  | AR80: =VLOOKUP(W80,lookup!$A$1:$J$483,2,FALSE) ->  | AS80: =VLOOKUP(W80,lookup!$A$1:$J$483,3,FALSE) ->  | AT80: =VLOOKUP(W80,lookup!$A$1:$J$483,4,FALSE) ->  | AU80: 17.5 | AV80: =VLOOKUP(AU80,lookup!$Q$2:$W$62,2,FALSE) -> 0.5 | AW80: =VLOOKUP(AU80,lookup!$Q$2:$W$62,3,FALSE) -> 0.49 | AX80: =VLOOKUP(AU80,lookup!$Q$2:$W$62,4,FALSE) -> 0.49 | AY80: =VLOOKUP(AU80,lookup!$Q$2:$W$62,5,FALSE) -> 1 | AZ80: =VLOOKUP(AU80,lookup!$Q$2:$W$62,6,FALSE) -> 0.5 | BA80: =VLOOKUP(AU80,lookup!$Q$2:$W$62,7,FALSE) -> 0.5 | BB80: 17.5 | BC80: =VLOOKUP(BB80,lookup!$Q$2:$W$62,2,FALSE) -> 0.5 | BD80: =VLOOKUP(BB80,lookup!$Q$2:$W$62,3,FALSE) -> 0.49 | BE80: =VLOOKUP(BB80,lookup!$Q$2:$W$62,4,FALSE) -> 0.49 | BF80: =VLOOKUP(BB80,lookup!$Q$2:$W$62,5,FALSE) -> 1 | BG80: =VLOOKUP(BB80,lookup!$Q$2:$W$62,6,FALSE) -> 0.5 | BH80: =VLOOKUP(BB80,lookup!$Q$2:$W$62,7,FALSE) -> 0.5 | BV80: 0 | BW80: =VLOOKUP(BV80,lookup!$Q$2:$W$62,2,FALSE) ->  | BX80: =VLOOKUP(BV80,lookup!$Q$2:$W$62,3,FALSE) ->  | BY80: =VLOOKUP(BV80,lookup!$Q$2:$W$62,4,FALSE) ->  | BZ80: =VLOOKUP(BV80,lookup!$Q$2:$W$62,5,FALSE) ->  | CA80: =VLOOKUP(BV80,lookup!$Q$2:$W$62,6,FALSE) ->  | CB80: =VLOOKUP(BV80,lookup!$Q$2:$W$62,7,FALSE) ->  | CC80: 0 | CD80: =VLOOKUP(CC80,lookup!$Q$2:$W$62,2,FALSE) ->  | CE80: =VLOOKUP(CC80,lookup!$Q$2:$W$62,3,FALSE) ->  | CF80: =VLOOKUP(CC80,lookup!$Q$2:$W$62,4,FALSE) ->  | CG80: =VLOOKUP(CC80,lookup!$Q$2:$W$62,5,FALSE) ->  | CH80: =VLOOKUP(CC80,lookup!$Q$2:$W$62,6,FALSE) ->  | CI80: =VLOOKUP(CC80,lookup!$Q$2:$W$62,7,FALSE) ->  | CW80: 0 | CX80: 1 | CY80: 0 | CZ80: 1 | DA80: 2 | DC80: =VLOOKUP(DB80,lookup!$Q$2:$W$62,2,FALSE) ->  | DD80: =VLOOKUP(DB80,lookup!$Q$2:$W$62,3,FALSE) ->  | DE80: =VLOOKUP(DB80,lookup!$Q$2:$W$62,4,FALSE) ->  | DF80: =VLOOKUP(DB80,lookup!$Q$2:$W$62,5,FALSE) ->  | DG80: =VLOOKUP(DB80,lookup!$Q$2:$W$62,6,FALSE) ->  | DH80: =VLOOKUP(DB80,lookup!$Q$2:$W$62,7,FALSE) -> 
R81: =IF(F81="","",VLOOKUP(P81,lookup!$L$2:$O$103,Data!Q81+1,FALSE)) ->  | X81: 0 | Y81: 0 | Z81: 0 | AI81: =VLOOKUP(S81,lookup!$A$1:$J$483,2,FALSE) ->  | AJ81: =VLOOKUP(S81,lookup!$A$1:$J$483,3,FALSE) ->  | AK81: =VLOOKUP(S81,lookup!$A$1:$J$483,4,FALSE) ->  | AL81: =VLOOKUP(S81,lookup!$A$1:$J$483,8,FALSE) ->  | AM81: =VLOOKUP(S81,lookup!$A$1:$J$483,9,FALSE) ->  | AN81: =VLOOKUP(S81,lookup!$A$1:$J$483,10,FALSE) ->  | AO81: =VLOOKUP(S81,lookup!$A$1:$J$483,5,FALSE) ->  | AP81: =VLOOKUP(S81,lookup!$A$1:$J$483,6,FALSE) ->  | AQ81: =VLOOKUP(S81,lookup!$A$1:$J$483,7,FALSE) ->  | AR81: =VLOOKUP(W81,lookup!$A$1:$J$483,2,FALSE) ->  | AS81: =VLOOKUP(W81,lookup!$A$1:$J$483,3,FALSE) ->  | AT81: =VLOOKUP(W81,lookup!$A$1:$J$483,4,FALSE) ->  | AU81: 17.5 | AV81: =VLOOKUP(AU81,lookup!$Q$2:$W$62,2,FALSE) -> 0.5 | AW81: =VLOOKUP(AU81,lookup!$Q$2:$W$62,3,FALSE) -> 0.49 | AX81: =VLOOKUP(AU81,lookup!$Q$2:$W$62,4,FALSE) -> 0.49 | AY81: =VLOOKUP(AU81,lookup!$Q$2:$W$62,5,FALSE) -> 1 | AZ81: =VLOOKUP(AU81,lookup!$Q$2:$W$62,6,FALSE) -> 0.5 | BA81: =VLOOKUP(AU81,lookup!$Q$2:$W$62,7,FALSE) -> 0.5 | BB81: 17.5 | BC81: =VLOOKUP(BB81,lookup!$Q$2:$W$62,2,FALSE) -> 0.5 | BD81: =VLOOKUP(BB81,lookup!$Q$2:$W$62,3,FALSE) -> 0.49 | BE81: =VLOOKUP(BB81,lookup!$Q$2:$W$62,4,FALSE) -> 0.49 | BF81: =VLOOKUP(BB81,lookup!$Q$2:$W$62,5,FALSE) -> 1 | BG81: =VLOOKUP(BB81,lookup!$Q$2:$W$62,6,FALSE) -> 0.5 | BH81: =VLOOKUP(BB81,lookup!$Q$2:$W$62,7,FALSE) -> 0.5 | BV81: 0 | BW81: =VLOOKUP(BV81,lookup!$Q$2:$W$62,2,FALSE) ->  | BX81: =VLOOKUP(BV81,lookup!$Q$2:$W$62,3,FALSE) ->  | BY81: =VLOOKUP(BV81,lookup!$Q$2:$W$62,4,FALSE) ->  | BZ81: =VLOOKUP(BV81,lookup!$Q$2:$W$62,5,FALSE) ->  | CA81: =VLOOKUP(BV81,lookup!$Q$2:$W$62,6,FALSE) ->  | CB81: =VLOOKUP(BV81,lookup!$Q$2:$W$62,7,FALSE) ->  | CC81: 0 | CD81: =VLOOKUP(CC81,lookup!$Q$2:$W$62,2,FALSE) ->  | CE81: =VLOOKUP(CC81,lookup!$Q$2:$W$62,3,FALSE) ->  | CF81: =VLOOKUP(CC81,lookup!$Q$2:$W$62,4,FALSE) ->  | CG81: =VLOOKUP(CC81,lookup!$Q$2:$W$62,5,FALSE) ->  | CH81: =VLOOKUP(CC81,lookup!$Q$2:$W$62,6,FALSE) ->  | CI81: =VLOOKUP(CC81,lookup!$Q$2:$W$62,7,FALSE) ->  | CW81: 0 | CX81: 1 | CY81: 0 | CZ81: 1 | DA81: 2 | DC81: =VLOOKUP(DB81,lookup!$Q$2:$W$62,2,FALSE) ->  | DD81: =VLOOKUP(DB81,lookup!$Q$2:$W$62,3,FALSE) ->  | DE81: =VLOOKUP(DB81,lookup!$Q$2:$W$62,4,FALSE) ->  | DF81: =VLOOKUP(DB81,lookup!$Q$2:$W$62,5,FALSE) ->  | DG81: =VLOOKUP(DB81,lookup!$Q$2:$W$62,6,FALSE) ->  | DH81: =VLOOKUP(DB81,lookup!$Q$2:$W$62,7,FALSE) -> 
R82: =IF(F82="","",VLOOKUP(P82,lookup!$L$2:$O$103,Data!Q82+1,FALSE)) ->  | X82: 0 | Y82: 0 | Z82: 0 | AI82: =VLOOKUP(S82,lookup!$A$1:$J$483,2,FALSE) ->  | AJ82: =VLOOKUP(S82,lookup!$A$1:$J$483,3,FALSE) ->  | AK82: =VLOOKUP(S82,lookup!$A$1:$J$483,4,FALSE) ->  | AL82: =VLOOKUP(S82,lookup!$A$1:$J$483,8,FALSE) ->  | AM82: =VLOOKUP(S82,lookup!$A$1:$J$483,9,FALSE) ->  | AN82: =VLOOKUP(S82,lookup!$A$1:$J$483,10,FALSE) ->  | AO82: =VLOOKUP(S82,lookup!$A$1:$J$483,5,FALSE) ->  | AP82: =VLOOKUP(S82,lookup!$A$1:$J$483,6,FALSE) ->  | AQ82: =VLOOKUP(S82,lookup!$A$1:$J$483,7,FALSE) ->  | AR82: =VLOOKUP(W82,lookup!$A$1:$J$483,2,FALSE) ->  | AS82: =VLOOKUP(W82,lookup!$A$1:$J$483,3,FALSE) ->  | AT82: =VLOOKUP(W82,lookup!$A$1:$J$483,4,FALSE) ->  | AU82: 17.5 | AV82: =VLOOKUP(AU82,lookup!$Q$2:$W$62,2,FALSE) -> 0.5 | AW82: =VLOOKUP(AU82,lookup!$Q$2:$W$62,3,FALSE) -> 0.49 | AX82: =VLOOKUP(AU82,lookup!$Q$2:$W$62,4,FALSE) -> 0.49 | AY82: =VLOOKUP(AU82,lookup!$Q$2:$W$62,5,FALSE) -> 1 | AZ82: =VLOOKUP(AU82,lookup!$Q$2:$W$62,6,FALSE) -> 0.5 | BA82: =VLOOKUP(AU82,lookup!$Q$2:$W$62,7,FALSE) -> 0.5 | BB82: 17.5 | BC82: =VLOOKUP(BB82,lookup!$Q$2:$W$62,2,FALSE) -> 0.5 | BD82: =VLOOKUP(BB82,lookup!$Q$2:$W$62,3,FALSE) -> 0.49 | BE82: =VLOOKUP(BB82,lookup!$Q$2:$W$62,4,FALSE) -> 0.49 | BF82: =VLOOKUP(BB82,lookup!$Q$2:$W$62,5,FALSE) -> 1 | BG82: =VLOOKUP(BB82,lookup!$Q$2:$W$62,6,FALSE) -> 0.5 | BH82: =VLOOKUP(BB82,lookup!$Q$2:$W$62,7,FALSE) -> 0.5 | BV82: 0 | BW82: =VLOOKUP(BV82,lookup!$Q$2:$W$62,2,FALSE) ->  | BX82: =VLOOKUP(BV82,lookup!$Q$2:$W$62,3,FALSE) ->  | BY82: =VLOOKUP(BV82,lookup!$Q$2:$W$62,4,FALSE) ->  | BZ82: =VLOOKUP(BV82,lookup!$Q$2:$W$62,5,FALSE) ->  | CA82: =VLOOKUP(BV82,lookup!$Q$2:$W$62,6,FALSE) ->  | CB82: =VLOOKUP(BV82,lookup!$Q$2:$W$62,7,FALSE) ->  | CC82: 0 | CD82: =VLOOKUP(CC82,lookup!$Q$2:$W$62,2,FALSE) ->  | CE82: =VLOOKUP(CC82,lookup!$Q$2:$W$62,3,FALSE) ->  | CF82: =VLOOKUP(CC82,lookup!$Q$2:$W$62,4,FALSE) ->  | CG82: =VLOOKUP(CC82,lookup!$Q$2:$W$62,5,FALSE) ->  | CH82: =VLOOKUP(CC82,lookup!$Q$2:$W$62,6,FALSE) ->  | CI82: =VLOOKUP(CC82,lookup!$Q$2:$W$62,7,FALSE) ->  | CW82: 0 | CX82: 1 | CY82: 0 | CZ82: 1 | DA82: 2 | DC82: =VLOOKUP(DB82,lookup!$Q$2:$W$62,2,FALSE) ->  | DD82: =VLOOKUP(DB82,lookup!$Q$2:$W$62,3,FALSE) ->  | DE82: =VLOOKUP(DB82,lookup!$Q$2:$W$62,4,FALSE) ->  | DF82: =VLOOKUP(DB82,lookup!$Q$2:$W$62,5,FALSE) ->  | DG82: =VLOOKUP(DB82,lookup!$Q$2:$W$62,6,FALSE) ->  | DH82: =VLOOKUP(DB82,lookup!$Q$2:$W$62,7,FALSE) -> 
R83: =IF(F83="","",VLOOKUP(P83,lookup!$L$2:$O$103,Data!Q83+1,FALSE)) ->  | X83: 0 | Y83: 0 | Z83: 0 | AI83: =VLOOKUP(S83,lookup!$A$1:$J$483,2,FALSE) ->  | AJ83: =VLOOKUP(S83,lookup!$A$1:$J$483,3,FALSE) ->  | AK83: =VLOOKUP(S83,lookup!$A$1:$J$483,4,FALSE) ->  | AL83: =VLOOKUP(S83,lookup!$A$1:$J$483,8,FALSE) ->  | AM83: =VLOOKUP(S83,lookup!$A$1:$J$483,9,FALSE) ->  | AN83: =VLOOKUP(S83,lookup!$A$1:$J$483,10,FALSE) ->  | AO83: =VLOOKUP(S83,lookup!$A$1:$J$483,5,FALSE) ->  | AP83: =VLOOKUP(S83,lookup!$A$1:$J$483,6,FALSE) ->  | AQ83: =VLOOKUP(S83,lookup!$A$1:$J$483,7,FALSE) ->  | AR83: =VLOOKUP(W83,lookup!$A$1:$J$483,2,FALSE) ->  | AS83: =VLOOKUP(W83,lookup!$A$1:$J$483,3,FALSE) ->  | AT83: =VLOOKUP(W83,lookup!$A$1:$J$483,4,FALSE) ->  | AU83: 17.5 | AV83: =VLOOKUP(AU83,lookup!$Q$2:$W$62,2,FALSE) -> 0.5 | AW83: =VLOOKUP(AU83,lookup!$Q$2:$W$62,3,FALSE) -> 0.49 | AX83: =VLOOKUP(AU83,lookup!$Q$2:$W$62,4,FALSE) -> 0.49 | AY83: =VLOOKUP(AU83,lookup!$Q$2:$W$62,5,FALSE) -> 1 | AZ83: =VLOOKUP(AU83,lookup!$Q$2:$W$62,6,FALSE) -> 0.5 | BA83: =VLOOKUP(AU83,lookup!$Q$2:$W$62,7,FALSE) -> 0.5 | BB83: 17.5 | BC83: =VLOOKUP(BB83,lookup!$Q$2:$W$62,2,FALSE) -> 0.5 | BD83: =VLOOKUP(BB83,lookup!$Q$2:$W$62,3,FALSE) -> 0.49 | BE83: =VLOOKUP(BB83,lookup!$Q$2:$W$62,4,FALSE) -> 0.49 | BF83: =VLOOKUP(BB83,lookup!$Q$2:$W$62,5,FALSE) -> 1 | BG83: =VLOOKUP(BB83,lookup!$Q$2:$W$62,6,FALSE) -> 0.5 | BH83: =VLOOKUP(BB83,lookup!$Q$2:$W$62,7,FALSE) -> 0.5 | BV83: 0 | BW83: =VLOOKUP(BV83,lookup!$Q$2:$W$62,2,FALSE) ->  | BX83: =VLOOKUP(BV83,lookup!$Q$2:$W$62,3,FALSE) ->  | BY83: =VLOOKUP(BV83,lookup!$Q$2:$W$62,4,FALSE) ->  | BZ83: =VLOOKUP(BV83,lookup!$Q$2:$W$62,5,FALSE) ->  | CA83: =VLOOKUP(BV83,lookup!$Q$2:$W$62,6,FALSE) ->  | CB83: =VLOOKUP(BV83,lookup!$Q$2:$W$62,7,FALSE) ->  | CC83: 0 | CD83: =VLOOKUP(CC83,lookup!$Q$2:$W$62,2,FALSE) ->  | CE83: =VLOOKUP(CC83,lookup!$Q$2:$W$62,3,FALSE) ->  | CF83: =VLOOKUP(CC83,lookup!$Q$2:$W$62,4,FALSE) ->  | CG83: =VLOOKUP(CC83,lookup!$Q$2:$W$62,5,FALSE) ->  | CH83: =VLOOKUP(CC83,lookup!$Q$2:$W$62,6,FALSE) ->  | CI83: =VLOOKUP(CC83,lookup!$Q$2:$W$62,7,FALSE) ->  | CW83: 0 | CX83: 1 | CY83: 0 | CZ83: 1 | DA83: 2 | DC83: =VLOOKUP(DB83,lookup!$Q$2:$W$62,2,FALSE) ->  | DD83: =VLOOKUP(DB83,lookup!$Q$2:$W$62,3,FALSE) ->  | DE83: =VLOOKUP(DB83,lookup!$Q$2:$W$62,4,FALSE) ->  | DF83: =VLOOKUP(DB83,lookup!$Q$2:$W$62,5,FALSE) ->  | DG83: =VLOOKUP(DB83,lookup!$Q$2:$W$62,6,FALSE) ->  | DH83: =VLOOKUP(DB83,lookup!$Q$2:$W$62,7,FALSE) -> 
R84: =IF(F84="","",VLOOKUP(P84,lookup!$L$2:$O$103,Data!Q84+1,FALSE)) ->  | X84: 0 | Y84: 0 | Z84: 0 | AI84: =VLOOKUP(S84,lookup!$A$1:$J$483,2,FALSE) ->  | AJ84: =VLOOKUP(S84,lookup!$A$1:$J$483,3,FALSE) ->  | AK84: =VLOOKUP(S84,lookup!$A$1:$J$483,4,FALSE) ->  | AL84: =VLOOKUP(S84,lookup!$A$1:$J$483,8,FALSE) ->  | AM84: =VLOOKUP(S84,lookup!$A$1:$J$483,9,FALSE) ->  | AN84: =VLOOKUP(S84,lookup!$A$1:$J$483,10,FALSE) ->  | AO84: =VLOOKUP(S84,lookup!$A$1:$J$483,5,FALSE) ->  | AP84: =VLOOKUP(S84,lookup!$A$1:$J$483,6,FALSE) ->  | AQ84: =VLOOKUP(S84,lookup!$A$1:$J$483,7,FALSE) ->  | AR84: =VLOOKUP(W84,lookup!$A$1:$J$483,2,FALSE) ->  | AS84: =VLOOKUP(W84,lookup!$A$1:$J$483,3,FALSE) ->  | AT84: =VLOOKUP(W84,lookup!$A$1:$J$483,4,FALSE) ->  | AU84: 17.5 | AV84: =VLOOKUP(AU84,lookup!$Q$2:$W$62,2,FALSE) -> 0.5 | AW84: =VLOOKUP(AU84,lookup!$Q$2:$W$62,3,FALSE) -> 0.49 | AX84: =VLOOKUP(AU84,lookup!$Q$2:$W$62,4,FALSE) -> 0.49 | AY84: =VLOOKUP(AU84,lookup!$Q$2:$W$62,5,FALSE) -> 1 | AZ84: =VLOOKUP(AU84,lookup!$Q$2:$W$62,6,FALSE) -> 0.5 | BA84: =VLOOKUP(AU84,lookup!$Q$2:$W$62,7,FALSE) -> 0.5 | BB84: 17.5 | BC84: =VLOOKUP(BB84,lookup!$Q$2:$W$62,2,FALSE) -> 0.5 | BD84: =VLOOKUP(BB84,lookup!$Q$2:$W$62,3,FALSE) -> 0.49 | BE84: =VLOOKUP(BB84,lookup!$Q$2:$W$62,4,FALSE) -> 0.49 | BF84: =VLOOKUP(BB84,lookup!$Q$2:$W$62,5,FALSE) -> 1 | BG84: =VLOOKUP(BB84,lookup!$Q$2:$W$62,6,FALSE) -> 0.5 | BH84: =VLOOKUP(BB84,lookup!$Q$2:$W$62,7,FALSE) -> 0.5 | BV84: 0 | BW84: =VLOOKUP(BV84,lookup!$Q$2:$W$62,2,FALSE) ->  | BX84: =VLOOKUP(BV84,lookup!$Q$2:$W$62,3,FALSE) ->  | BY84: =VLOOKUP(BV84,lookup!$Q$2:$W$62,4,FALSE) ->  | BZ84: =VLOOKUP(BV84,lookup!$Q$2:$W$62,5,FALSE) ->  | CA84: =VLOOKUP(BV84,lookup!$Q$2:$W$62,6,FALSE) ->  | CB84: =VLOOKUP(BV84,lookup!$Q$2:$W$62,7,FALSE) ->  | CC84: 0 | CD84: =VLOOKUP(CC84,lookup!$Q$2:$W$62,2,FALSE) ->  | CE84: =VLOOKUP(CC84,lookup!$Q$2:$W$62,3,FALSE) ->  | CF84: =VLOOKUP(CC84,lookup!$Q$2:$W$62,4,FALSE) ->  | CG84: =VLOOKUP(CC84,lookup!$Q$2:$W$62,5,FALSE) ->  | CH84: =VLOOKUP(CC84,lookup!$Q$2:$W$62,6,FALSE) ->  | CI84: =VLOOKUP(CC84,lookup!$Q$2:$W$62,7,FALSE) ->  | CW84: 0 | CX84: 1 | CY84: 0 | CZ84: 1 | DA84: 2 | DC84: =VLOOKUP(DB84,lookup!$Q$2:$W$62,2,FALSE) ->  | DD84: =VLOOKUP(DB84,lookup!$Q$2:$W$62,3,FALSE) ->  | DE84: =VLOOKUP(DB84,lookup!$Q$2:$W$62,4,FALSE) ->  | DF84: =VLOOKUP(DB84,lookup!$Q$2:$W$62,5,FALSE) ->  | DG84: =VLOOKUP(DB84,lookup!$Q$2:$W$62,6,FALSE) ->  | DH84: =VLOOKUP(DB84,lookup!$Q$2:$W$62,7,FALSE) -> 
R85: =IF(F85="","",VLOOKUP(P85,lookup!$L$2:$O$103,Data!Q85+1,FALSE)) ->  | X85: 0 | Y85: 0 | Z85: 0 | AI85: =VLOOKUP(S85,lookup!$A$1:$J$483,2,FALSE) ->  | AJ85: =VLOOKUP(S85,lookup!$A$1:$J$483,3,FALSE) ->  | AK85: =VLOOKUP(S85,lookup!$A$1:$J$483,4,FALSE) ->  | AL85: =VLOOKUP(S85,lookup!$A$1:$J$483,8,FALSE) ->  | AM85: =VLOOKUP(S85,lookup!$A$1:$J$483,9,FALSE) ->  | AN85: =VLOOKUP(S85,lookup!$A$1:$J$483,10,FALSE) ->  | AO85: =VLOOKUP(S85,lookup!$A$1:$J$483,5,FALSE) ->  | AP85: =VLOOKUP(S85,lookup!$A$1:$J$483,6,FALSE) ->  | AQ85: =VLOOKUP(S85,lookup!$A$1:$J$483,7,FALSE) ->  | AR85: =VLOOKUP(W85,lookup!$A$1:$J$483,2,FALSE) ->  | AS85: =VLOOKUP(W85,lookup!$A$1:$J$483,3,FALSE) ->  | AT85: =VLOOKUP(W85,lookup!$A$1:$J$483,4,FALSE) ->  | AU85: 17.5 | AV85: =VLOOKUP(AU85,lookup!$Q$2:$W$62,2,FALSE) -> 0.5 | AW85: =VLOOKUP(AU85,lookup!$Q$2:$W$62,3,FALSE) -> 0.49 | AX85: =VLOOKUP(AU85,lookup!$Q$2:$W$62,4,FALSE) -> 0.49 | AY85: =VLOOKUP(AU85,lookup!$Q$2:$W$62,5,FALSE) -> 1 | AZ85: =VLOOKUP(AU85,lookup!$Q$2:$W$62,6,FALSE) -> 0.5 | BA85: =VLOOKUP(AU85,lookup!$Q$2:$W$62,7,FALSE) -> 0.5 | BB85: 17.5 | BC85: =VLOOKUP(BB85,lookup!$Q$2:$W$62,2,FALSE) -> 0.5 | BD85: =VLOOKUP(BB85,lookup!$Q$2:$W$62,3,FALSE) -> 0.49 | BE85: =VLOOKUP(BB85,lookup!$Q$2:$W$62,4,FALSE) -> 0.49 | BF85: =VLOOKUP(BB85,lookup!$Q$2:$W$62,5,FALSE) -> 1 | BG85: =VLOOKUP(BB85,lookup!$Q$2:$W$62,6,FALSE) -> 0.5 | BH85: =VLOOKUP(BB85,lookup!$Q$2:$W$62,7,FALSE) -> 0.5 | BV85: 0 | BW85: =VLOOKUP(BV85,lookup!$Q$2:$W$62,2,FALSE) ->  | BX85: =VLOOKUP(BV85,lookup!$Q$2:$W$62,3,FALSE) ->  | BY85: =VLOOKUP(BV85,lookup!$Q$2:$W$62,4,FALSE) ->  | BZ85: =VLOOKUP(BV85,lookup!$Q$2:$W$62,5,FALSE) ->  | CA85: =VLOOKUP(BV85,lookup!$Q$2:$W$62,6,FALSE) ->  | CB85: =VLOOKUP(BV85,lookup!$Q$2:$W$62,7,FALSE) ->  | CC85: 0 | CD85: =VLOOKUP(CC85,lookup!$Q$2:$W$62,2,FALSE) ->  | CE85: =VLOOKUP(CC85,lookup!$Q$2:$W$62,3,FALSE) ->  | CF85: =VLOOKUP(CC85,lookup!$Q$2:$W$62,4,FALSE) ->  | CG85: =VLOOKUP(CC85,lookup!$Q$2:$W$62,5,FALSE) ->  | CH85: =VLOOKUP(CC85,lookup!$Q$2:$W$62,6,FALSE) ->  | CI85: =VLOOKUP(CC85,lookup!$Q$2:$W$62,7,FALSE) ->  | CW85: 0 | CX85: 1 | CY85: 0 | CZ85: 1 | DA85: 2 | DC85: =VLOOKUP(DB85,lookup!$Q$2:$W$62,2,FALSE) ->  | DD85: =VLOOKUP(DB85,lookup!$Q$2:$W$62,3,FALSE) ->  | DE85: =VLOOKUP(DB85,lookup!$Q$2:$W$62,4,FALSE) ->  | DF85: =VLOOKUP(DB85,lookup!$Q$2:$W$62,5,FALSE) ->  | DG85: =VLOOKUP(DB85,lookup!$Q$2:$W$62,6,FALSE) ->  | DH85: =VLOOKUP(DB85,lookup!$Q$2:$W$62,7,FALSE) -> 
R86: =IF(F86="","",VLOOKUP(P86,lookup!$L$2:$O$103,Data!Q86+1,FALSE)) ->  | X86: 0 | Y86: 0 | Z86: 0 | AI86: =VLOOKUP(S86,lookup!$A$1:$J$483,2,FALSE) ->  | AJ86: =VLOOKUP(S86,lookup!$A$1:$J$483,3,FALSE) ->  | AK86: =VLOOKUP(S86,lookup!$A$1:$J$483,4,FALSE) ->  | AL86: =VLOOKUP(S86,lookup!$A$1:$J$483,8,FALSE) ->  | AM86: =VLOOKUP(S86,lookup!$A$1:$J$483,9,FALSE) ->  | AN86: =VLOOKUP(S86,lookup!$A$1:$J$483,10,FALSE) ->  | AO86: =VLOOKUP(S86,lookup!$A$1:$J$483,5,FALSE) ->  | AP86: =VLOOKUP(S86,lookup!$A$1:$J$483,6,FALSE) ->  | AQ86: =VLOOKUP(S86,lookup!$A$1:$J$483,7,FALSE) ->  | AR86: =VLOOKUP(W86,lookup!$A$1:$J$483,2,FALSE) ->  | AS86: =VLOOKUP(W86,lookup!$A$1:$J$483,3,FALSE) ->  | AT86: =VLOOKUP(W86,lookup!$A$1:$J$483,4,FALSE) ->  | AU86: 17.5 | AV86: =VLOOKUP(AU86,lookup!$Q$2:$W$62,2,FALSE) -> 0.5 | AW86: =VLOOKUP(AU86,lookup!$Q$2:$W$62,3,FALSE) -> 0.49 | AX86: =VLOOKUP(AU86,lookup!$Q$2:$W$62,4,FALSE) -> 0.49 | AY86: =VLOOKUP(AU86,lookup!$Q$2:$W$62,5,FALSE) -> 1 | AZ86: =VLOOKUP(AU86,lookup!$Q$2:$W$62,6,FALSE) -> 0.5 | BA86: =VLOOKUP(AU86,lookup!$Q$2:$W$62,7,FALSE) -> 0.5 | BB86: 17.5 | BC86: =VLOOKUP(BB86,lookup!$Q$2:$W$62,2,FALSE) -> 0.5 | BD86: =VLOOKUP(BB86,lookup!$Q$2:$W$62,3,FALSE) -> 0.49 | BE86: =VLOOKUP(BB86,lookup!$Q$2:$W$62,4,FALSE) -> 0.49 | BF86: =VLOOKUP(BB86,lookup!$Q$2:$W$62,5,FALSE) -> 1 | BG86: =VLOOKUP(BB86,lookup!$Q$2:$W$62,6,FALSE) -> 0.5 | BH86: =VLOOKUP(BB86,lookup!$Q$2:$W$62,7,FALSE) -> 0.5 | BV86: 0 | BW86: =VLOOKUP(BV86,lookup!$Q$2:$W$62,2,FALSE) ->  | BX86: =VLOOKUP(BV86,lookup!$Q$2:$W$62,3,FALSE) ->  | BY86: =VLOOKUP(BV86,lookup!$Q$2:$W$62,4,FALSE) ->  | BZ86: =VLOOKUP(BV86,lookup!$Q$2:$W$62,5,FALSE) ->  | CA86: =VLOOKUP(BV86,lookup!$Q$2:$W$62,6,FALSE) ->  | CB86: =VLOOKUP(BV86,lookup!$Q$2:$W$62,7,FALSE) ->  | CC86: 0 | CD86: =VLOOKUP(CC86,lookup!$Q$2:$W$62,2,FALSE) ->  | CE86: =VLOOKUP(CC86,lookup!$Q$2:$W$62,3,FALSE) ->  | CF86: =VLOOKUP(CC86,lookup!$Q$2:$W$62,4,FALSE) ->  | CG86: =VLOOKUP(CC86,lookup!$Q$2:$W$62,5,FALSE) ->  | CH86: =VLOOKUP(CC86,lookup!$Q$2:$W$62,6,FALSE) ->  | CI86: =VLOOKUP(CC86,lookup!$Q$2:$W$62,7,FALSE) ->  | CW86: 0 | CX86: 1 | CY86: 0 | CZ86: 1 | DA86: 2 | DC86: =VLOOKUP(DB86,lookup!$Q$2:$W$62,2,FALSE) ->  | DD86: =VLOOKUP(DB86,lookup!$Q$2:$W$62,3,FALSE) ->  | DE86: =VLOOKUP(DB86,lookup!$Q$2:$W$62,4,FALSE) ->  | DF86: =VLOOKUP(DB86,lookup!$Q$2:$W$62,5,FALSE) ->  | DG86: =VLOOKUP(DB86,lookup!$Q$2:$W$62,6,FALSE) ->  | DH86: =VLOOKUP(DB86,lookup!$Q$2:$W$62,7,FALSE) -> 
R87: =IF(F87="","",VLOOKUP(P87,lookup!$L$2:$O$103,Data!Q87+1,FALSE)) ->  | X87: 0 | Y87: 0 | Z87: 0 | AI87: =VLOOKUP(S87,lookup!$A$1:$J$483,2,FALSE) ->  | AJ87: =VLOOKUP(S87,lookup!$A$1:$J$483,3,FALSE) ->  | AK87: =VLOOKUP(S87,lookup!$A$1:$J$483,4,FALSE) ->  | AL87: =VLOOKUP(S87,lookup!$A$1:$J$483,8,FALSE) ->  | AM87: =VLOOKUP(S87,lookup!$A$1:$J$483,9,FALSE) ->  | AN87: =VLOOKUP(S87,lookup!$A$1:$J$483,10,FALSE) ->  | AO87: =VLOOKUP(S87,lookup!$A$1:$J$483,5,FALSE) ->  | AP87: =VLOOKUP(S87,lookup!$A$1:$J$483,6,FALSE) ->  | AQ87: =VLOOKUP(S87,lookup!$A$1:$J$483,7,FALSE) ->  | AR87: =VLOOKUP(W87,lookup!$A$1:$J$483,2,FALSE) ->  | AS87: =VLOOKUP(W87,lookup!$A$1:$J$483,3,FALSE) ->  | AT87: =VLOOKUP(W87,lookup!$A$1:$J$483,4,FALSE) ->  | AU87: 17.5 | AV87: =VLOOKUP(AU87,lookup!$Q$2:$W$62,2,FALSE) -> 0.5 | AW87: =VLOOKUP(AU87,lookup!$Q$2:$W$62,3,FALSE) -> 0.49 | AX87: =VLOOKUP(AU87,lookup!$Q$2:$W$62,4,FALSE) -> 0.49 | AY87: =VLOOKUP(AU87,lookup!$Q$2:$W$62,5,FALSE) -> 1 | AZ87: =VLOOKUP(AU87,lookup!$Q$2:$W$62,6,FALSE) -> 0.5 | BA87: =VLOOKUP(AU87,lookup!$Q$2:$W$62,7,FALSE) -> 0.5 | BB87: 17.5 | BC87: =VLOOKUP(BB87,lookup!$Q$2:$W$62,2,FALSE) -> 0.5 | BD87: =VLOOKUP(BB87,lookup!$Q$2:$W$62,3,FALSE) -> 0.49 | BE87: =VLOOKUP(BB87,lookup!$Q$2:$W$62,4,FALSE) -> 0.49 | BF87: =VLOOKUP(BB87,lookup!$Q$2:$W$62,5,FALSE) -> 1 | BG87: =VLOOKUP(BB87,lookup!$Q$2:$W$62,6,FALSE) -> 0.5 | BH87: =VLOOKUP(BB87,lookup!$Q$2:$W$62,7,FALSE) -> 0.5 | BV87: 0 | BW87: =VLOOKUP(BV87,lookup!$Q$2:$W$62,2,FALSE) ->  | BX87: =VLOOKUP(BV87,lookup!$Q$2:$W$62,3,FALSE) ->  | BY87: =VLOOKUP(BV87,lookup!$Q$2:$W$62,4,FALSE) ->  | BZ87: =VLOOKUP(BV87,lookup!$Q$2:$W$62,5,FALSE) ->  | CA87: =VLOOKUP(BV87,lookup!$Q$2:$W$62,6,FALSE) ->  | CB87: =VLOOKUP(BV87,lookup!$Q$2:$W$62,7,FALSE) ->  | CC87: 0 | CD87: =VLOOKUP(CC87,lookup!$Q$2:$W$62,2,FALSE) ->  | CE87: =VLOOKUP(CC87,lookup!$Q$2:$W$62,3,FALSE) ->  | CF87: =VLOOKUP(CC87,lookup!$Q$2:$W$62,4,FALSE) ->  | CG87: =VLOOKUP(CC87,lookup!$Q$2:$W$62,5,FALSE) ->  | CH87: =VLOOKUP(CC87,lookup!$Q$2:$W$62,6,FALSE) ->  | CI87: =VLOOKUP(CC87,lookup!$Q$2:$W$62,7,FALSE) ->  | CW87: 0 | CX87: 1 | CY87: 0 | CZ87: 1 | DA87: 2 | DC87: =VLOOKUP(DB87,lookup!$Q$2:$W$62,2,FALSE) ->  | DD87: =VLOOKUP(DB87,lookup!$Q$2:$W$62,3,FALSE) ->  | DE87: =VLOOKUP(DB87,lookup!$Q$2:$W$62,4,FALSE) ->  | DF87: =VLOOKUP(DB87,lookup!$Q$2:$W$62,5,FALSE) ->  | DG87: =VLOOKUP(DB87,lookup!$Q$2:$W$62,6,FALSE) ->  | DH87: =VLOOKUP(DB87,lookup!$Q$2:$W$62,7,FALSE) -> 
R88: =IF(F88="","",VLOOKUP(P88,lookup!$L$2:$O$103,Data!Q88+1,FALSE)) ->  | X88: 0 | Y88: 0 | Z88: 0 | AI88: =VLOOKUP(S88,lookup!$A$1:$J$483,2,FALSE) ->  | AJ88: =VLOOKUP(S88,lookup!$A$1:$J$483,3,FALSE) ->  | AK88: =VLOOKUP(S88,lookup!$A$1:$J$483,4,FALSE) ->  | AL88: =VLOOKUP(S88,lookup!$A$1:$J$483,8,FALSE) ->  | AM88: =VLOOKUP(S88,lookup!$A$1:$J$483,9,FALSE) ->  | AN88: =VLOOKUP(S88,lookup!$A$1:$J$483,10,FALSE) ->  | AO88: =VLOOKUP(S88,lookup!$A$1:$J$483,5,FALSE) ->  | AP88: =VLOOKUP(S88,lookup!$A$1:$J$483,6,FALSE) ->  | AQ88: =VLOOKUP(S88,lookup!$A$1:$J$483,7,FALSE) ->  | AR88: =VLOOKUP(W88,lookup!$A$1:$J$483,2,FALSE) ->  | AS88: =VLOOKUP(W88,lookup!$A$1:$J$483,3,FALSE) ->  | AT88: =VLOOKUP(W88,lookup!$A$1:$J$483,4,FALSE) ->  | AU88: 17.5 | AV88: =VLOOKUP(AU88,lookup!$Q$2:$W$62,2,FALSE) -> 0.5 | AW88: =VLOOKUP(AU88,lookup!$Q$2:$W$62,3,FALSE) -> 0.49 | AX88: =VLOOKUP(AU88,lookup!$Q$2:$W$62,4,FALSE) -> 0.49 | AY88: =VLOOKUP(AU88,lookup!$Q$2:$W$62,5,FALSE) -> 1 | AZ88: =VLOOKUP(AU88,lookup!$Q$2:$W$62,6,FALSE) -> 0.5 | BA88: =VLOOKUP(AU88,lookup!$Q$2:$W$62,7,FALSE) -> 0.5 | BB88: 17.5 | BC88: =VLOOKUP(BB88,lookup!$Q$2:$W$62,2,FALSE) -> 0.5 | BD88: =VLOOKUP(BB88,lookup!$Q$2:$W$62,3,FALSE) -> 0.49 | BE88: =VLOOKUP(BB88,lookup!$Q$2:$W$62,4,FALSE) -> 0.49 | BF88: =VLOOKUP(BB88,lookup!$Q$2:$W$62,5,FALSE) -> 1 | BG88: =VLOOKUP(BB88,lookup!$Q$2:$W$62,6,FALSE) -> 0.5 | BH88: =VLOOKUP(BB88,lookup!$Q$2:$W$62,7,FALSE) -> 0.5 | BV88: 0 | BW88: =VLOOKUP(BV88,lookup!$Q$2:$W$62,2,FALSE) ->  | BX88: =VLOOKUP(BV88,lookup!$Q$2:$W$62,3,FALSE) ->  | BY88: =VLOOKUP(BV88,lookup!$Q$2:$W$62,4,FALSE) ->  | BZ88: =VLOOKUP(BV88,lookup!$Q$2:$W$62,5,FALSE) ->  | CA88: =VLOOKUP(BV88,lookup!$Q$2:$W$62,6,FALSE) ->  | CB88: =VLOOKUP(BV88,lookup!$Q$2:$W$62,7,FALSE) ->  | CC88: 0 | CD88: =VLOOKUP(CC88,lookup!$Q$2:$W$62,2,FALSE) ->  | CE88: =VLOOKUP(CC88,lookup!$Q$2:$W$62,3,FALSE) ->  | CF88: =VLOOKUP(CC88,lookup!$Q$2:$W$62,4,FALSE) ->  | CG88: =VLOOKUP(CC88,lookup!$Q$2:$W$62,5,FALSE) ->  | CH88: =VLOOKUP(CC88,lookup!$Q$2:$W$62,6,FALSE) ->  | CI88: =VLOOKUP(CC88,lookup!$Q$2:$W$62,7,FALSE) ->  | CW88: 0 | CX88: 1 | CY88: 0 | CZ88: 1 | DA88: 2 | DC88: =VLOOKUP(DB88,lookup!$Q$2:$W$62,2,FALSE) ->  | DD88: =VLOOKUP(DB88,lookup!$Q$2:$W$62,3,FALSE) ->  | DE88: =VLOOKUP(DB88,lookup!$Q$2:$W$62,4,FALSE) ->  | DF88: =VLOOKUP(DB88,lookup!$Q$2:$W$62,5,FALSE) ->  | DG88: =VLOOKUP(DB88,lookup!$Q$2:$W$62,6,FALSE) ->  | DH88: =VLOOKUP(DB88,lookup!$Q$2:$W$62,7,FALSE) -> 
R89: =IF(F89="","",VLOOKUP(P89,lookup!$L$2:$O$103,Data!Q89+1,FALSE)) ->  | X89: 0 | Y89: 0 | Z89: 0 | AI89: =VLOOKUP(S89,lookup!$A$1:$J$483,2,FALSE) ->  | AJ89: =VLOOKUP(S89,lookup!$A$1:$J$483,3,FALSE) ->  | AK89: =VLOOKUP(S89,lookup!$A$1:$J$483,4,FALSE) ->  | AL89: =VLOOKUP(S89,lookup!$A$1:$J$483,8,FALSE) ->  | AM89: =VLOOKUP(S89,lookup!$A$1:$J$483,9,FALSE) ->  | AN89: =VLOOKUP(S89,lookup!$A$1:$J$483,10,FALSE) ->  | AO89: =VLOOKUP(S89,lookup!$A$1:$J$483,5,FALSE) ->  | AP89: =VLOOKUP(S89,lookup!$A$1:$J$483,6,FALSE) ->  | AQ89: =VLOOKUP(S89,lookup!$A$1:$J$483,7,FALSE) ->  | AR89: =VLOOKUP(W89,lookup!$A$1:$J$483,2,FALSE) ->  | AS89: =VLOOKUP(W89,lookup!$A$1:$J$483,3,FALSE) ->  | AT89: =VLOOKUP(W89,lookup!$A$1:$J$483,4,FALSE) ->  | AU89: 17.5 | AV89: =VLOOKUP(AU89,lookup!$Q$2:$W$62,2,FALSE) -> 0.5 | AW89: =VLOOKUP(AU89,lookup!$Q$2:$W$62,3,FALSE) -> 0.49 | AX89: =VLOOKUP(AU89,lookup!$Q$2:$W$62,4,FALSE) -> 0.49 | AY89: =VLOOKUP(AU89,lookup!$Q$2:$W$62,5,FALSE) -> 1 | AZ89: =VLOOKUP(AU89,lookup!$Q$2:$W$62,6,FALSE) -> 0.5 | BA89: =VLOOKUP(AU89,lookup!$Q$2:$W$62,7,FALSE) -> 0.5 | BB89: 17.5 | BC89: =VLOOKUP(BB89,lookup!$Q$2:$W$62,2,FALSE) -> 0.5 | BD89: =VLOOKUP(BB89,lookup!$Q$2:$W$62,3,FALSE) -> 0.49 | BE89: =VLOOKUP(BB89,lookup!$Q$2:$W$62,4,FALSE) -> 0.49 | BF89: =VLOOKUP(BB89,lookup!$Q$2:$W$62,5,FALSE) -> 1 | BG89: =VLOOKUP(BB89,lookup!$Q$2:$W$62,6,FALSE) -> 0.5 | BH89: =VLOOKUP(BB89,lookup!$Q$2:$W$62,7,FALSE) -> 0.5 | BV89: 0 | BW89: =VLOOKUP(BV89,lookup!$Q$2:$W$62,2,FALSE) ->  | BX89: =VLOOKUP(BV89,lookup!$Q$2:$W$62,3,FALSE) ->  | BY89: =VLOOKUP(BV89,lookup!$Q$2:$W$62,4,FALSE) ->  | BZ89: =VLOOKUP(BV89,lookup!$Q$2:$W$62,5,FALSE) ->  | CA89: =VLOOKUP(BV89,lookup!$Q$2:$W$62,6,FALSE) ->  | CB89: =VLOOKUP(BV89,lookup!$Q$2:$W$62,7,FALSE) ->  | CC89: 0 | CD89: =VLOOKUP(CC89,lookup!$Q$2:$W$62,2,FALSE) ->  | CE89: =VLOOKUP(CC89,lookup!$Q$2:$W$62,3,FALSE) ->  | CF89: =VLOOKUP(CC89,lookup!$Q$2:$W$62,4,FALSE) ->  | CG89: =VLOOKUP(CC89,lookup!$Q$2:$W$62,5,FALSE) ->  | CH89: =VLOOKUP(CC89,lookup!$Q$2:$W$62,6,FALSE) ->  | CI89: =VLOOKUP(CC89,lookup!$Q$2:$W$62,7,FALSE) ->  | CW89: 0 | CX89: 1 | CY89: 0 | CZ89: 1 | DA89: 2 | DC89: =VLOOKUP(DB89,lookup!$Q$2:$W$62,2,FALSE) ->  | DD89: =VLOOKUP(DB89,lookup!$Q$2:$W$62,3,FALSE) ->  | DE89: =VLOOKUP(DB89,lookup!$Q$2:$W$62,4,FALSE) ->  | DF89: =VLOOKUP(DB89,lookup!$Q$2:$W$62,5,FALSE) ->  | DG89: =VLOOKUP(DB89,lookup!$Q$2:$W$62,6,FALSE) ->  | DH89: =VLOOKUP(DB89,lookup!$Q$2:$W$62,7,FALSE) -> 
R90: =IF(F90="","",VLOOKUP(P90,lookup!$L$2:$O$103,Data!Q90+1,FALSE)) ->  | X90: 0 | Y90: 0 | Z90: 0 | AI90: =VLOOKUP(S90,lookup!$A$1:$J$483,2,FALSE) ->  | AJ90: =VLOOKUP(S90,lookup!$A$1:$J$483,3,FALSE) ->  | AK90: =VLOOKUP(S90,lookup!$A$1:$J$483,4,FALSE) ->  | AL90: =VLOOKUP(S90,lookup!$A$1:$J$483,8,FALSE) ->  | AM90: =VLOOKUP(S90,lookup!$A$1:$J$483,9,FALSE) ->  | AN90: =VLOOKUP(S90,lookup!$A$1:$J$483,10,FALSE) ->  | AO90: =VLOOKUP(S90,lookup!$A$1:$J$483,5,FALSE) ->  | AP90: =VLOOKUP(S90,lookup!$A$1:$J$483,6,FALSE) ->  | AQ90: =VLOOKUP(S90,lookup!$A$1:$J$483,7,FALSE) ->  | AR90: =VLOOKUP(W90,lookup!$A$1:$J$483,2,FALSE) ->  | AS90: =VLOOKUP(W90,lookup!$A$1:$J$483,3,FALSE) ->  | AT90: =VLOOKUP(W90,lookup!$A$1:$J$483,4,FALSE) ->  | AU90: 17.5 | AV90: =VLOOKUP(AU90,lookup!$Q$2:$W$62,2,FALSE) -> 0.5 | AW90: =VLOOKUP(AU90,lookup!$Q$2:$W$62,3,FALSE) -> 0.49 | AX90: =VLOOKUP(AU90,lookup!$Q$2:$W$62,4,FALSE) -> 0.49 | AY90: =VLOOKUP(AU90,lookup!$Q$2:$W$62,5,FALSE) -> 1 | AZ90: =VLOOKUP(AU90,lookup!$Q$2:$W$62,6,FALSE) -> 0.5 | BA90: =VLOOKUP(AU90,lookup!$Q$2:$W$62,7,FALSE) -> 0.5 | BB90: 17.5 | BC90: =VLOOKUP(BB90,lookup!$Q$2:$W$62,2,FALSE) -> 0.5 | BD90: =VLOOKUP(BB90,lookup!$Q$2:$W$62,3,FALSE) -> 0.49 | BE90: =VLOOKUP(BB90,lookup!$Q$2:$W$62,4,FALSE) -> 0.49 | BF90: =VLOOKUP(BB90,lookup!$Q$2:$W$62,5,FALSE) -> 1 | BG90: =VLOOKUP(BB90,lookup!$Q$2:$W$62,6,FALSE) -> 0.5 | BH90: =VLOOKUP(BB90,lookup!$Q$2:$W$62,7,FALSE) -> 0.5 | BV90: 0 | BW90: =VLOOKUP(BV90,lookup!$Q$2:$W$62,2,FALSE) ->  | BX90: =VLOOKUP(BV90,lookup!$Q$2:$W$62,3,FALSE) ->  | BY90: =VLOOKUP(BV90,lookup!$Q$2:$W$62,4,FALSE) ->  | BZ90: =VLOOKUP(BV90,lookup!$Q$2:$W$62,5,FALSE) ->  | CA90: =VLOOKUP(BV90,lookup!$Q$2:$W$62,6,FALSE) ->  | CB90: =VLOOKUP(BV90,lookup!$Q$2:$W$62,7,FALSE) ->  | CC90: 0 | CD90: =VLOOKUP(CC90,lookup!$Q$2:$W$62,2,FALSE) ->  | CE90: =VLOOKUP(CC90,lookup!$Q$2:$W$62,3,FALSE) ->  | CF90: =VLOOKUP(CC90,lookup!$Q$2:$W$62,4,FALSE) ->  | CG90: =VLOOKUP(CC90,lookup!$Q$2:$W$62,5,FALSE) ->  | CH90: =VLOOKUP(CC90,lookup!$Q$2:$W$62,6,FALSE) ->  | CI90: =VLOOKUP(CC90,lookup!$Q$2:$W$62,7,FALSE) ->  | CW90: 0 | CX90: 1 | CY90: 0 | CZ90: 1 | DA90: 2 | DC90: =VLOOKUP(DB90,lookup!$Q$2:$W$62,2,FALSE) ->  | DD90: =VLOOKUP(DB90,lookup!$Q$2:$W$62,3,FALSE) ->  | DE90: =VLOOKUP(DB90,lookup!$Q$2:$W$62,4,FALSE) ->  | DF90: =VLOOKUP(DB90,lookup!$Q$2:$W$62,5,FALSE) ->  | DG90: =VLOOKUP(DB90,lookup!$Q$2:$W$62,6,FALSE) ->  | DH90: =VLOOKUP(DB90,lookup!$Q$2:$W$62,7,FALSE) -> 
R91: =IF(F91="","",VLOOKUP(P91,lookup!$L$2:$O$103,Data!Q91+1,FALSE)) ->  | X91: 0 | Y91: 0 | Z91: 0 | AI91: =VLOOKUP(S91,lookup!$A$1:$J$483,2,FALSE) ->  | AJ91: =VLOOKUP(S91,lookup!$A$1:$J$483,3,FALSE) ->  | AK91: =VLOOKUP(S91,lookup!$A$1:$J$483,4,FALSE) ->  | AL91: =VLOOKUP(S91,lookup!$A$1:$J$483,8,FALSE) ->  | AM91: =VLOOKUP(S91,lookup!$A$1:$J$483,9,FALSE) ->  | AN91: =VLOOKUP(S91,lookup!$A$1:$J$483,10,FALSE) ->  | AO91: =VLOOKUP(S91,lookup!$A$1:$J$483,5,FALSE) ->  | AP91: =VLOOKUP(S91,lookup!$A$1:$J$483,6,FALSE) ->  | AQ91: =VLOOKUP(S91,lookup!$A$1:$J$483,7,FALSE) ->  | AR91: =VLOOKUP(W91,lookup!$A$1:$J$483,2,FALSE) ->  | AS91: =VLOOKUP(W91,lookup!$A$1:$J$483,3,FALSE) ->  | AT91: =VLOOKUP(W91,lookup!$A$1:$J$483,4,FALSE) ->  | AU91: 17.5 | AV91: =VLOOKUP(AU91,lookup!$Q$2:$W$62,2,FALSE) -> 0.5 | AW91: =VLOOKUP(AU91,lookup!$Q$2:$W$62,3,FALSE) -> 0.49 | AX91: =VLOOKUP(AU91,lookup!$Q$2:$W$62,4,FALSE) -> 0.49 | AY91: =VLOOKUP(AU91,lookup!$Q$2:$W$62,5,FALSE) -> 1 | AZ91: =VLOOKUP(AU91,lookup!$Q$2:$W$62,6,FALSE) -> 0.5 | BA91: =VLOOKUP(AU91,lookup!$Q$2:$W$62,7,FALSE) -> 0.5 | BB91: 17.5 | BC91: =VLOOKUP(BB91,lookup!$Q$2:$W$62,2,FALSE) -> 0.5 | BD91: =VLOOKUP(BB91,lookup!$Q$2:$W$62,3,FALSE) -> 0.49 | BE91: =VLOOKUP(BB91,lookup!$Q$2:$W$62,4,FALSE) -> 0.49 | BF91: =VLOOKUP(BB91,lookup!$Q$2:$W$62,5,FALSE) -> 1 | BG91: =VLOOKUP(BB91,lookup!$Q$2:$W$62,6,FALSE) -> 0.5 | BH91: =VLOOKUP(BB91,lookup!$Q$2:$W$62,7,FALSE) -> 0.5 | BV91: 0 | BW91: =VLOOKUP(BV91,lookup!$Q$2:$W$62,2,FALSE) ->  | BX91: =VLOOKUP(BV91,lookup!$Q$2:$W$62,3,FALSE) ->  | BY91: =VLOOKUP(BV91,lookup!$Q$2:$W$62,4,FALSE) ->  | BZ91: =VLOOKUP(BV91,lookup!$Q$2:$W$62,5,FALSE) ->  | CA91: =VLOOKUP(BV91,lookup!$Q$2:$W$62,6,FALSE) ->  | CB91: =VLOOKUP(BV91,lookup!$Q$2:$W$62,7,FALSE) ->  | CC91: 0 | CD91: =VLOOKUP(CC91,lookup!$Q$2:$W$62,2,FALSE) ->  | CE91: =VLOOKUP(CC91,lookup!$Q$2:$W$62,3,FALSE) ->  | CF91: =VLOOKUP(CC91,lookup!$Q$2:$W$62,4,FALSE) ->  | CG91: =VLOOKUP(CC91,lookup!$Q$2:$W$62,5,FALSE) ->  | CH91: =VLOOKUP(CC91,lookup!$Q$2:$W$62,6,FALSE) ->  | CI91: =VLOOKUP(CC91,lookup!$Q$2:$W$62,7,FALSE) ->  | CW91: 0 | CX91: 1 | CY91: 0 | CZ91: 1 | DA91: 2 | DC91: =VLOOKUP(DB91,lookup!$Q$2:$W$62,2,FALSE) ->  | DD91: =VLOOKUP(DB91,lookup!$Q$2:$W$62,3,FALSE) ->  | DE91: =VLOOKUP(DB91,lookup!$Q$2:$W$62,4,FALSE) ->  | DF91: =VLOOKUP(DB91,lookup!$Q$2:$W$62,5,FALSE) ->  | DG91: =VLOOKUP(DB91,lookup!$Q$2:$W$62,6,FALSE) ->  | DH91: =VLOOKUP(DB91,lookup!$Q$2:$W$62,7,FALSE) -> 
R92: =IF(F92="","",VLOOKUP(P92,lookup!$L$2:$O$103,Data!Q92+1,FALSE)) ->  | X92: 0 | Y92: 0 | Z92: 0 | AI92: =VLOOKUP(S92,lookup!$A$1:$J$483,2,FALSE) ->  | AJ92: =VLOOKUP(S92,lookup!$A$1:$J$483,3,FALSE) ->  | AK92: =VLOOKUP(S92,lookup!$A$1:$J$483,4,FALSE) ->  | AL92: =VLOOKUP(S92,lookup!$A$1:$J$483,8,FALSE) ->  | AM92: =VLOOKUP(S92,lookup!$A$1:$J$483,9,FALSE) ->  | AN92: =VLOOKUP(S92,lookup!$A$1:$J$483,10,FALSE) ->  | AO92: =VLOOKUP(S92,lookup!$A$1:$J$483,5,FALSE) ->  | AP92: =VLOOKUP(S92,lookup!$A$1:$J$483,6,FALSE) ->  | AQ92: =VLOOKUP(S92,lookup!$A$1:$J$483,7,FALSE) ->  | AR92: =VLOOKUP(W92,lookup!$A$1:$J$483,2,FALSE) ->  | AS92: =VLOOKUP(W92,lookup!$A$1:$J$483,3,FALSE) ->  | AT92: =VLOOKUP(W92,lookup!$A$1:$J$483,4,FALSE) ->  | AU92: 17.5 | AV92: =VLOOKUP(AU92,lookup!$Q$2:$W$62,2,FALSE) -> 0.5 | AW92: =VLOOKUP(AU92,lookup!$Q$2:$W$62,3,FALSE) -> 0.49 | AX92: =VLOOKUP(AU92,lookup!$Q$2:$W$62,4,FALSE) -> 0.49 | AY92: =VLOOKUP(AU92,lookup!$Q$2:$W$62,5,FALSE) -> 1 | AZ92: =VLOOKUP(AU92,lookup!$Q$2:$W$62,6,FALSE) -> 0.5 | BA92: =VLOOKUP(AU92,lookup!$Q$2:$W$62,7,FALSE) -> 0.5 | BB92: 17.5 | BC92: =VLOOKUP(BB92,lookup!$Q$2:$W$62,2,FALSE) -> 0.5 | BD92: =VLOOKUP(BB92,lookup!$Q$2:$W$62,3,FALSE) -> 0.49 | BE92: =VLOOKUP(BB92,lookup!$Q$2:$W$62,4,FALSE) -> 0.49 | BF92: =VLOOKUP(BB92,lookup!$Q$2:$W$62,5,FALSE) -> 1 | BG92: =VLOOKUP(BB92,lookup!$Q$2:$W$62,6,FALSE) -> 0.5 | BH92: =VLOOKUP(BB92,lookup!$Q$2:$W$62,7,FALSE) -> 0.5 | BV92: 0 | BW92: =VLOOKUP(BV92,lookup!$Q$2:$W$62,2,FALSE) ->  | BX92: =VLOOKUP(BV92,lookup!$Q$2:$W$62,3,FALSE) ->  | BY92: =VLOOKUP(BV92,lookup!$Q$2:$W$62,4,FALSE) ->  | BZ92: =VLOOKUP(BV92,lookup!$Q$2:$W$62,5,FALSE) ->  | CA92: =VLOOKUP(BV92,lookup!$Q$2:$W$62,6,FALSE) ->  | CB92: =VLOOKUP(BV92,lookup!$Q$2:$W$62,7,FALSE) ->  | CC92: 0 | CD92: =VLOOKUP(CC92,lookup!$Q$2:$W$62,2,FALSE) ->  | CE92: =VLOOKUP(CC92,lookup!$Q$2:$W$62,3,FALSE) ->  | CF92: =VLOOKUP(CC92,lookup!$Q$2:$W$62,4,FALSE) ->  | CG92: =VLOOKUP(CC92,lookup!$Q$2:$W$62,5,FALSE) ->  | CH92: =VLOOKUP(CC92,lookup!$Q$2:$W$62,6,FALSE) ->  | CI92: =VLOOKUP(CC92,lookup!$Q$2:$W$62,7,FALSE) ->  | CW92: 0 | CX92: 1 | CY92: 0 | CZ92: 1 | DA92: 2 | DC92: =VLOOKUP(DB92,lookup!$Q$2:$W$62,2,FALSE) ->  | DD92: =VLOOKUP(DB92,lookup!$Q$2:$W$62,3,FALSE) ->  | DE92: =VLOOKUP(DB92,lookup!$Q$2:$W$62,4,FALSE) ->  | DF92: =VLOOKUP(DB92,lookup!$Q$2:$W$62,5,FALSE) ->  | DG92: =VLOOKUP(DB92,lookup!$Q$2:$W$62,6,FALSE) ->  | DH92: =VLOOKUP(DB92,lookup!$Q$2:$W$62,7,FALSE) -> 
R93: =IF(F93="","",VLOOKUP(P93,lookup!$L$2:$O$103,Data!Q93+1,FALSE)) ->  | X93: 0 | Y93: 0 | Z93: 0 | AI93: =VLOOKUP(S93,lookup!$A$1:$J$483,2,FALSE) ->  | AJ93: =VLOOKUP(S93,lookup!$A$1:$J$483,3,FALSE) ->  | AK93: =VLOOKUP(S93,lookup!$A$1:$J$483,4,FALSE) ->  | AL93: =VLOOKUP(S93,lookup!$A$1:$J$483,8,FALSE) ->  | AM93: =VLOOKUP(S93,lookup!$A$1:$J$483,9,FALSE) ->  | AN93: =VLOOKUP(S93,lookup!$A$1:$J$483,10,FALSE) ->  | AO93: =VLOOKUP(S93,lookup!$A$1:$J$483,5,FALSE) ->  | AP93: =VLOOKUP(S93,lookup!$A$1:$J$483,6,FALSE) ->  | AQ93: =VLOOKUP(S93,lookup!$A$1:$J$483,7,FALSE) ->  | AR93: =VLOOKUP(W93,lookup!$A$1:$J$483,2,FALSE) ->  | AS93: =VLOOKUP(W93,lookup!$A$1:$J$483,3,FALSE) ->  | AT93: =VLOOKUP(W93,lookup!$A$1:$J$483,4,FALSE) ->  | AU93: 17.5 | AV93: =VLOOKUP(AU93,lookup!$Q$2:$W$62,2,FALSE) -> 0.5 | AW93: =VLOOKUP(AU93,lookup!$Q$2:$W$62,3,FALSE) -> 0.49 | AX93: =VLOOKUP(AU93,lookup!$Q$2:$W$62,4,FALSE) -> 0.49 | AY93: =VLOOKUP(AU93,lookup!$Q$2:$W$62,5,FALSE) -> 1 | AZ93: =VLOOKUP(AU93,lookup!$Q$2:$W$62,6,FALSE) -> 0.5 | BA93: =VLOOKUP(AU93,lookup!$Q$2:$W$62,7,FALSE) -> 0.5 | BB93: 17.5 | BC93: =VLOOKUP(BB93,lookup!$Q$2:$W$62,2,FALSE) -> 0.5 | BD93: =VLOOKUP(BB93,lookup!$Q$2:$W$62,3,FALSE) -> 0.49 | BE93: =VLOOKUP(BB93,lookup!$Q$2:$W$62,4,FALSE) -> 0.49 | BF93: =VLOOKUP(BB93,lookup!$Q$2:$W$62,5,FALSE) -> 1 | BG93: =VLOOKUP(BB93,lookup!$Q$2:$W$62,6,FALSE) -> 0.5 | BH93: =VLOOKUP(BB93,lookup!$Q$2:$W$62,7,FALSE) -> 0.5 | BV93: 0 | BW93: =VLOOKUP(BV93,lookup!$Q$2:$W$62,2,FALSE) ->  | BX93: =VLOOKUP(BV93,lookup!$Q$2:$W$62,3,FALSE) ->  | BY93: =VLOOKUP(BV93,lookup!$Q$2:$W$62,4,FALSE) ->  | BZ93: =VLOOKUP(BV93,lookup!$Q$2:$W$62,5,FALSE) ->  | CA93: =VLOOKUP(BV93,lookup!$Q$2:$W$62,6,FALSE) ->  | CB93: =VLOOKUP(BV93,lookup!$Q$2:$W$62,7,FALSE) ->  | CC93: 0 | CD93: =VLOOKUP(CC93,lookup!$Q$2:$W$62,2,FALSE) ->  | CE93: =VLOOKUP(CC93,lookup!$Q$2:$W$62,3,FALSE) ->  | CF93: =VLOOKUP(CC93,lookup!$Q$2:$W$62,4,FALSE) ->  | CG93: =VLOOKUP(CC93,lookup!$Q$2:$W$62,5,FALSE) ->  | CH93: =VLOOKUP(CC93,lookup!$Q$2:$W$62,6,FALSE) ->  | CI93: =VLOOKUP(CC93,lookup!$Q$2:$W$62,7,FALSE) ->  | CW93: 0 | CX93: 1 | CY93: 0 | CZ93: 1 | DA93: 2 | DC93: =VLOOKUP(DB93,lookup!$Q$2:$W$62,2,FALSE) ->  | DD93: =VLOOKUP(DB93,lookup!$Q$2:$W$62,3,FALSE) ->  | DE93: =VLOOKUP(DB93,lookup!$Q$2:$W$62,4,FALSE) ->  | DF93: =VLOOKUP(DB93,lookup!$Q$2:$W$62,5,FALSE) ->  | DG93: =VLOOKUP(DB93,lookup!$Q$2:$W$62,6,FALSE) ->  | DH93: =VLOOKUP(DB93,lookup!$Q$2:$W$62,7,FALSE) -> 
R94: =IF(F94="","",VLOOKUP(P94,lookup!$L$2:$O$103,Data!Q94+1,FALSE)) ->  | X94: 0 | Y94: 0 | Z94: 0 | AI94: =VLOOKUP(S94,lookup!$A$1:$J$483,2,FALSE) ->  | AJ94: =VLOOKUP(S94,lookup!$A$1:$J$483,3,FALSE) ->  | AK94: =VLOOKUP(S94,lookup!$A$1:$J$483,4,FALSE) ->  | AL94: =VLOOKUP(S94,lookup!$A$1:$J$483,8,FALSE) ->  | AM94: =VLOOKUP(S94,lookup!$A$1:$J$483,9,FALSE) ->  | AN94: =VLOOKUP(S94,lookup!$A$1:$J$483,10,FALSE) ->  | AO94: =VLOOKUP(S94,lookup!$A$1:$J$483,5,FALSE) ->  | AP94: =VLOOKUP(S94,lookup!$A$1:$J$483,6,FALSE) ->  | AQ94: =VLOOKUP(S94,lookup!$A$1:$J$483,7,FALSE) ->  | AR94: =VLOOKUP(W94,lookup!$A$1:$J$483,2,FALSE) ->  | AS94: =VLOOKUP(W94,lookup!$A$1:$J$483,3,FALSE) ->  | AT94: =VLOOKUP(W94,lookup!$A$1:$J$483,4,FALSE) ->  | AU94: 17.5 | AV94: =VLOOKUP(AU94,lookup!$Q$2:$W$62,2,FALSE) -> 0.5 | AW94: =VLOOKUP(AU94,lookup!$Q$2:$W$62,3,FALSE) -> 0.49 | AX94: =VLOOKUP(AU94,lookup!$Q$2:$W$62,4,FALSE) -> 0.49 | AY94: =VLOOKUP(AU94,lookup!$Q$2:$W$62,5,FALSE) -> 1 | AZ94: =VLOOKUP(AU94,lookup!$Q$2:$W$62,6,FALSE) -> 0.5 | BA94: =VLOOKUP(AU94,lookup!$Q$2:$W$62,7,FALSE) -> 0.5 | BB94: 17.5 | BC94: =VLOOKUP(BB94,lookup!$Q$2:$W$62,2,FALSE) -> 0.5 | BD94: =VLOOKUP(BB94,lookup!$Q$2:$W$62,3,FALSE) -> 0.49 | BE94: =VLOOKUP(BB94,lookup!$Q$2:$W$62,4,FALSE) -> 0.49 | BF94: =VLOOKUP(BB94,lookup!$Q$2:$W$62,5,FALSE) -> 1 | BG94: =VLOOKUP(BB94,lookup!$Q$2:$W$62,6,FALSE) -> 0.5 | BH94: =VLOOKUP(BB94,lookup!$Q$2:$W$62,7,FALSE) -> 0.5 | BV94: 0 | BW94: =VLOOKUP(BV94,lookup!$Q$2:$W$62,2,FALSE) ->  | BX94: =VLOOKUP(BV94,lookup!$Q$2:$W$62,3,FALSE) ->  | BY94: =VLOOKUP(BV94,lookup!$Q$2:$W$62,4,FALSE) ->  | BZ94: =VLOOKUP(BV94,lookup!$Q$2:$W$62,5,FALSE) ->  | CA94: =VLOOKUP(BV94,lookup!$Q$2:$W$62,6,FALSE) ->  | CB94: =VLOOKUP(BV94,lookup!$Q$2:$W$62,7,FALSE) ->  | CC94: 0 | CD94: =VLOOKUP(CC94,lookup!$Q$2:$W$62,2,FALSE) ->  | CE94: =VLOOKUP(CC94,lookup!$Q$2:$W$62,3,FALSE) ->  | CF94: =VLOOKUP(CC94,lookup!$Q$2:$W$62,4,FALSE) ->  | CG94: =VLOOKUP(CC94,lookup!$Q$2:$W$62,5,FALSE) ->  | CH94: =VLOOKUP(CC94,lookup!$Q$2:$W$62,6,FALSE) ->  | CI94: =VLOOKUP(CC94,lookup!$Q$2:$W$62,7,FALSE) ->  | CW94: 0 | CX94: 1 | CY94: 0 | CZ94: 1 | DA94: 2 | DC94: =VLOOKUP(DB94,lookup!$Q$2:$W$62,2,FALSE) ->  | DD94: =VLOOKUP(DB94,lookup!$Q$2:$W$62,3,FALSE) ->  | DE94: =VLOOKUP(DB94,lookup!$Q$2:$W$62,4,FALSE) ->  | DF94: =VLOOKUP(DB94,lookup!$Q$2:$W$62,5,FALSE) ->  | DG94: =VLOOKUP(DB94,lookup!$Q$2:$W$62,6,FALSE) ->  | DH94: =VLOOKUP(DB94,lookup!$Q$2:$W$62,7,FALSE) -> 
R95: =IF(F95="","",VLOOKUP(P95,lookup!$L$2:$O$103,Data!Q95+1,FALSE)) ->  | X95: 0 | Y95: 0 | Z95: 0 | AI95: =VLOOKUP(S95,lookup!$A$1:$J$483,2,FALSE) ->  | AJ95: =VLOOKUP(S95,lookup!$A$1:$J$483,3,FALSE) ->  | AK95: =VLOOKUP(S95,lookup!$A$1:$J$483,4,FALSE) ->  | AL95: =VLOOKUP(S95,lookup!$A$1:$J$483,8,FALSE) ->  | AM95: =VLOOKUP(S95,lookup!$A$1:$J$483,9,FALSE) ->  | AN95: =VLOOKUP(S95,lookup!$A$1:$J$483,10,FALSE) ->  | AO95: =VLOOKUP(S95,lookup!$A$1:$J$483,5,FALSE) ->  | AP95: =VLOOKUP(S95,lookup!$A$1:$J$483,6,FALSE) ->  | AQ95: =VLOOKUP(S95,lookup!$A$1:$J$483,7,FALSE) ->  | AR95: =VLOOKUP(W95,lookup!$A$1:$J$483,2,FALSE) ->  | AS95: =VLOOKUP(W95,lookup!$A$1:$J$483,3,FALSE) ->  | AT95: =VLOOKUP(W95,lookup!$A$1:$J$483,4,FALSE) ->  | AU95: 17.5 | AV95: =VLOOKUP(AU95,lookup!$Q$2:$W$62,2,FALSE) -> 0.5 | AW95: =VLOOKUP(AU95,lookup!$Q$2:$W$62,3,FALSE) -> 0.49 | AX95: =VLOOKUP(AU95,lookup!$Q$2:$W$62,4,FALSE) -> 0.49 | AY95: =VLOOKUP(AU95,lookup!$Q$2:$W$62,5,FALSE) -> 1 | AZ95: =VLOOKUP(AU95,lookup!$Q$2:$W$62,6,FALSE) -> 0.5 | BA95: =VLOOKUP(AU95,lookup!$Q$2:$W$62,7,FALSE) -> 0.5 | BB95: 17.5 | BC95: =VLOOKUP(BB95,lookup!$Q$2:$W$62,2,FALSE) -> 0.5 | BD95: =VLOOKUP(BB95,lookup!$Q$2:$W$62,3,FALSE) -> 0.49 | BE95: =VLOOKUP(BB95,lookup!$Q$2:$W$62,4,FALSE) -> 0.49 | BF95: =VLOOKUP(BB95,lookup!$Q$2:$W$62,5,FALSE) -> 1 | BG95: =VLOOKUP(BB95,lookup!$Q$2:$W$62,6,FALSE) -> 0.5 | BH95: =VLOOKUP(BB95,lookup!$Q$2:$W$62,7,FALSE) -> 0.5 | BV95: 0 | BW95: =VLOOKUP(BV95,lookup!$Q$2:$W$62,2,FALSE) ->  | BX95: =VLOOKUP(BV95,lookup!$Q$2:$W$62,3,FALSE) ->  | BY95: =VLOOKUP(BV95,lookup!$Q$2:$W$62,4,FALSE) ->  | BZ95: =VLOOKUP(BV95,lookup!$Q$2:$W$62,5,FALSE) ->  | CA95: =VLOOKUP(BV95,lookup!$Q$2:$W$62,6,FALSE) ->  | CB95: =VLOOKUP(BV95,lookup!$Q$2:$W$62,7,FALSE) ->  | CC95: 0 | CD95: =VLOOKUP(CC95,lookup!$Q$2:$W$62,2,FALSE) ->  | CE95: =VLOOKUP(CC95,lookup!$Q$2:$W$62,3,FALSE) ->  | CF95: =VLOOKUP(CC95,lookup!$Q$2:$W$62,4,FALSE) ->  | CG95: =VLOOKUP(CC95,lookup!$Q$2:$W$62,5,FALSE) ->  | CH95: =VLOOKUP(CC95,lookup!$Q$2:$W$62,6,FALSE) ->  | CI95: =VLOOKUP(CC95,lookup!$Q$2:$W$62,7,FALSE) ->  | CW95: 0 | CX95: 1 | CY95: 0 | CZ95: 1 | DA95: 2 | DC95: =VLOOKUP(DB95,lookup!$Q$2:$W$62,2,FALSE) ->  | DD95: =VLOOKUP(DB95,lookup!$Q$2:$W$62,3,FALSE) ->  | DE95: =VLOOKUP(DB95,lookup!$Q$2:$W$62,4,FALSE) ->  | DF95: =VLOOKUP(DB95,lookup!$Q$2:$W$62,5,FALSE) ->  | DG95: =VLOOKUP(DB95,lookup!$Q$2:$W$62,6,FALSE) ->  | DH95: =VLOOKUP(DB95,lookup!$Q$2:$W$62,7,FALSE) -> 
R96: =IF(F96="","",VLOOKUP(P96,lookup!$L$2:$O$103,Data!Q96+1,FALSE)) ->  | X96: 0 | Y96: 0 | Z96: 0 | AI96: =VLOOKUP(S96,lookup!$A$1:$J$483,2,FALSE) ->  | AJ96: =VLOOKUP(S96,lookup!$A$1:$J$483,3,FALSE) ->  | AK96: =VLOOKUP(S96,lookup!$A$1:$J$483,4,FALSE) ->  | AL96: =VLOOKUP(S96,lookup!$A$1:$J$483,8,FALSE) ->  | AM96: =VLOOKUP(S96,lookup!$A$1:$J$483,9,FALSE) ->  | AN96: =VLOOKUP(S96,lookup!$A$1:$J$483,10,FALSE) ->  | AO96: =VLOOKUP(S96,lookup!$A$1:$J$483,5,FALSE) ->  | AP96: =VLOOKUP(S96,lookup!$A$1:$J$483,6,FALSE) ->  | AQ96: =VLOOKUP(S96,lookup!$A$1:$J$483,7,FALSE) ->  | AR96: =VLOOKUP(W96,lookup!$A$1:$J$483,2,FALSE) ->  | AS96: =VLOOKUP(W96,lookup!$A$1:$J$483,3,FALSE) ->  | AT96: =VLOOKUP(W96,lookup!$A$1:$J$483,4,FALSE) ->  | AU96: 17.5 | AV96: =VLOOKUP(AU96,lookup!$Q$2:$W$62,2,FALSE) -> 0.5 | AW96: =VLOOKUP(AU96,lookup!$Q$2:$W$62,3,FALSE) -> 0.49 | AX96: =VLOOKUP(AU96,lookup!$Q$2:$W$62,4,FALSE) -> 0.49 | AY96: =VLOOKUP(AU96,lookup!$Q$2:$W$62,5,FALSE) -> 1 | AZ96: =VLOOKUP(AU96,lookup!$Q$2:$W$62,6,FALSE) -> 0.5 | BA96: =VLOOKUP(AU96,lookup!$Q$2:$W$62,7,FALSE) -> 0.5 | BB96: 17.5 | BC96: =VLOOKUP(BB96,lookup!$Q$2:$W$62,2,FALSE) -> 0.5 | BD96: =VLOOKUP(BB96,lookup!$Q$2:$W$62,3,FALSE) -> 0.49 | BE96: =VLOOKUP(BB96,lookup!$Q$2:$W$62,4,FALSE) -> 0.49 | BF96: =VLOOKUP(BB96,lookup!$Q$2:$W$62,5,FALSE) -> 1 | BG96: =VLOOKUP(BB96,lookup!$Q$2:$W$62,6,FALSE) -> 0.5 | BH96: =VLOOKUP(BB96,lookup!$Q$2:$W$62,7,FALSE) -> 0.5 | BV96: 0 | BW96: =VLOOKUP(BV96,lookup!$Q$2:$W$62,2,FALSE) ->  | BX96: =VLOOKUP(BV96,lookup!$Q$2:$W$62,3,FALSE) ->  | BY96: =VLOOKUP(BV96,lookup!$Q$2:$W$62,4,FALSE) ->  | BZ96: =VLOOKUP(BV96,lookup!$Q$2:$W$62,5,FALSE) ->  | CA96: =VLOOKUP(BV96,lookup!$Q$2:$W$62,6,FALSE) ->  | CB96: =VLOOKUP(BV96,lookup!$Q$2:$W$62,7,FALSE) ->  | CC96: 0 | CD96: =VLOOKUP(CC96,lookup!$Q$2:$W$62,2,FALSE) ->  | CE96: =VLOOKUP(CC96,lookup!$Q$2:$W$62,3,FALSE) ->  | CF96: =VLOOKUP(CC96,lookup!$Q$2:$W$62,4,FALSE) ->  | CG96: =VLOOKUP(CC96,lookup!$Q$2:$W$62,5,FALSE) ->  | CH96: =VLOOKUP(CC96,lookup!$Q$2:$W$62,6,FALSE) ->  | CI96: =VLOOKUP(CC96,lookup!$Q$2:$W$62,7,FALSE) ->  | CW96: 0 | CX96: 1 | CY96: 0 | CZ96: 1 | DA96: 2 | DC96: =VLOOKUP(DB96,lookup!$Q$2:$W$62,2,FALSE) ->  | DD96: =VLOOKUP(DB96,lookup!$Q$2:$W$62,3,FALSE) ->  | DE96: =VLOOKUP(DB96,lookup!$Q$2:$W$62,4,FALSE) ->  | DF96: =VLOOKUP(DB96,lookup!$Q$2:$W$62,5,FALSE) ->  | DG96: =VLOOKUP(DB96,lookup!$Q$2:$W$62,6,FALSE) ->  | DH96: =VLOOKUP(DB96,lookup!$Q$2:$W$62,7,FALSE) -> 
R97: =IF(F97="","",VLOOKUP(P97,lookup!$L$2:$O$103,Data!Q97+1,FALSE)) ->  | X97: 0 | Y97: 0 | Z97: 0 | AI97: =VLOOKUP(S97,lookup!$A$1:$J$483,2,FALSE) ->  | AJ97: =VLOOKUP(S97,lookup!$A$1:$J$483,3,FALSE) ->  | AK97: =VLOOKUP(S97,lookup!$A$1:$J$483,4,FALSE) ->  | AL97: =VLOOKUP(S97,lookup!$A$1:$J$483,8,FALSE) ->  | AM97: =VLOOKUP(S97,lookup!$A$1:$J$483,9,FALSE) ->  | AN97: =VLOOKUP(S97,lookup!$A$1:$J$483,10,FALSE) ->  | AO97: =VLOOKUP(S97,lookup!$A$1:$J$483,5,FALSE) ->  | AP97: =VLOOKUP(S97,lookup!$A$1:$J$483,6,FALSE) ->  | AQ97: =VLOOKUP(S97,lookup!$A$1:$J$483,7,FALSE) ->  | AR97: =VLOOKUP(W97,lookup!$A$1:$J$483,2,FALSE) ->  | AS97: =VLOOKUP(W97,lookup!$A$1:$J$483,3,FALSE) ->  | AT97: =VLOOKUP(W97,lookup!$A$1:$J$483,4,FALSE) ->  | AU97: 17.5 | AV97: =VLOOKUP(AU97,lookup!$Q$2:$W$62,2,FALSE) -> 0.5 | AW97: =VLOOKUP(AU97,lookup!$Q$2:$W$62,3,FALSE) -> 0.49 | AX97: =VLOOKUP(AU97,lookup!$Q$2:$W$62,4,FALSE) -> 0.49 | AY97: =VLOOKUP(AU97,lookup!$Q$2:$W$62,5,FALSE) -> 1 | AZ97: =VLOOKUP(AU97,lookup!$Q$2:$W$62,6,FALSE) -> 0.5 | BA97: =VLOOKUP(AU97,lookup!$Q$2:$W$62,7,FALSE) -> 0.5 | BB97: 17.5 | BC97: =VLOOKUP(BB97,lookup!$Q$2:$W$62,2,FALSE) -> 0.5 | BD97: =VLOOKUP(BB97,lookup!$Q$2:$W$62,3,FALSE) -> 0.49 | BE97: =VLOOKUP(BB97,lookup!$Q$2:$W$62,4,FALSE) -> 0.49 | BF97: =VLOOKUP(BB97,lookup!$Q$2:$W$62,5,FALSE) -> 1 | BG97: =VLOOKUP(BB97,lookup!$Q$2:$W$62,6,FALSE) -> 0.5 | BH97: =VLOOKUP(BB97,lookup!$Q$2:$W$62,7,FALSE) -> 0.5 | BV97: 0 | BW97: =VLOOKUP(BV97,lookup!$Q$2:$W$62,2,FALSE) ->  | BX97: =VLOOKUP(BV97,lookup!$Q$2:$W$62,3,FALSE) ->  | BY97: =VLOOKUP(BV97,lookup!$Q$2:$W$62,4,FALSE) ->  | BZ97: =VLOOKUP(BV97,lookup!$Q$2:$W$62,5,FALSE) ->  | CA97: =VLOOKUP(BV97,lookup!$Q$2:$W$62,6,FALSE) ->  | CB97: =VLOOKUP(BV97,lookup!$Q$2:$W$62,7,FALSE) ->  | CC97: 0 | CD97: =VLOOKUP(CC97,lookup!$Q$2:$W$62,2,FALSE) ->  | CE97: =VLOOKUP(CC97,lookup!$Q$2:$W$62,3,FALSE) ->  | CF97: =VLOOKUP(CC97,lookup!$Q$2:$W$62,4,FALSE) ->  | CG97: =VLOOKUP(CC97,lookup!$Q$2:$W$62,5,FALSE) ->  | CH97: =VLOOKUP(CC97,lookup!$Q$2:$W$62,6,FALSE) ->  | CI97: =VLOOKUP(CC97,lookup!$Q$2:$W$62,7,FALSE) ->  | CW97: 0 | CX97: 1 | CY97: 0 | CZ97: 1 | DA97: 2 | DC97: =VLOOKUP(DB97,lookup!$Q$2:$W$62,2,FALSE) ->  | DD97: =VLOOKUP(DB97,lookup!$Q$2:$W$62,3,FALSE) ->  | DE97: =VLOOKUP(DB97,lookup!$Q$2:$W$62,4,FALSE) ->  | DF97: =VLOOKUP(DB97,lookup!$Q$2:$W$62,5,FALSE) ->  | DG97: =VLOOKUP(DB97,lookup!$Q$2:$W$62,6,FALSE) ->  | DH97: =VLOOKUP(DB97,lookup!$Q$2:$W$62,7,FALSE) -> 
R98: =IF(F98="","",VLOOKUP(P98,lookup!$L$2:$O$103,Data!Q98+1,FALSE)) ->  | X98: 0 | Y98: 0 | Z98: 0 | AI98: =VLOOKUP(S98,lookup!$A$1:$J$483,2,FALSE) ->  | AJ98: =VLOOKUP(S98,lookup!$A$1:$J$483,3,FALSE) ->  | AK98: =VLOOKUP(S98,lookup!$A$1:$J$483,4,FALSE) ->  | AL98: =VLOOKUP(S98,lookup!$A$1:$J$483,8,FALSE) ->  | AM98: =VLOOKUP(S98,lookup!$A$1:$J$483,9,FALSE) ->  | AN98: =VLOOKUP(S98,lookup!$A$1:$J$483,10,FALSE) ->  | AO98: =VLOOKUP(S98,lookup!$A$1:$J$483,5,FALSE) ->  | AP98: =VLOOKUP(S98,lookup!$A$1:$J$483,6,FALSE) ->  | AQ98: =VLOOKUP(S98,lookup!$A$1:$J$483,7,FALSE) ->  | AR98: =VLOOKUP(W98,lookup!$A$1:$J$483,2,FALSE) ->  | AS98: =VLOOKUP(W98,lookup!$A$1:$J$483,3,FALSE) ->  | AT98: =VLOOKUP(W98,lookup!$A$1:$J$483,4,FALSE) ->  | AU98: 17.5 | AV98: =VLOOKUP(AU98,lookup!$Q$2:$W$62,2,FALSE) -> 0.5 | AW98: =VLOOKUP(AU98,lookup!$Q$2:$W$62,3,FALSE) -> 0.49 | AX98: =VLOOKUP(AU98,lookup!$Q$2:$W$62,4,FALSE) -> 0.49 | AY98: =VLOOKUP(AU98,lookup!$Q$2:$W$62,5,FALSE) -> 1 | AZ98: =VLOOKUP(AU98,lookup!$Q$2:$W$62,6,FALSE) -> 0.5 | BA98: =VLOOKUP(AU98,lookup!$Q$2:$W$62,7,FALSE) -> 0.5 | BB98: 17.5 | BC98: =VLOOKUP(BB98,lookup!$Q$2:$W$62,2,FALSE) -> 0.5 | BD98: =VLOOKUP(BB98,lookup!$Q$2:$W$62,3,FALSE) -> 0.49 | BE98: =VLOOKUP(BB98,lookup!$Q$2:$W$62,4,FALSE) -> 0.49 | BF98: =VLOOKUP(BB98,lookup!$Q$2:$W$62,5,FALSE) -> 1 | BG98: =VLOOKUP(BB98,lookup!$Q$2:$W$62,6,FALSE) -> 0.5 | BH98: =VLOOKUP(BB98,lookup!$Q$2:$W$62,7,FALSE) -> 0.5 | BV98: 0 | BW98: =VLOOKUP(BV98,lookup!$Q$2:$W$62,2,FALSE) ->  | BX98: =VLOOKUP(BV98,lookup!$Q$2:$W$62,3,FALSE) ->  | BY98: =VLOOKUP(BV98,lookup!$Q$2:$W$62,4,FALSE) ->  | BZ98: =VLOOKUP(BV98,lookup!$Q$2:$W$62,5,FALSE) ->  | CA98: =VLOOKUP(BV98,lookup!$Q$2:$W$62,6,FALSE) ->  | CB98: =VLOOKUP(BV98,lookup!$Q$2:$W$62,7,FALSE) ->  | CC98: 0 | CD98: =VLOOKUP(CC98,lookup!$Q$2:$W$62,2,FALSE) ->  | CE98: =VLOOKUP(CC98,lookup!$Q$2:$W$62,3,FALSE) ->  | CF98: =VLOOKUP(CC98,lookup!$Q$2:$W$62,4,FALSE) ->  | CG98: =VLOOKUP(CC98,lookup!$Q$2:$W$62,5,FALSE) ->  | CH98: =VLOOKUP(CC98,lookup!$Q$2:$W$62,6,FALSE) ->  | CI98: =VLOOKUP(CC98,lookup!$Q$2:$W$62,7,FALSE) ->  | CW98: 0 | CX98: 1 | CY98: 0 | CZ98: 1 | DA98: 2 | DC98: =VLOOKUP(DB98,lookup!$Q$2:$W$62,2,FALSE) ->  | DD98: =VLOOKUP(DB98,lookup!$Q$2:$W$62,3,FALSE) ->  | DE98: =VLOOKUP(DB98,lookup!$Q$2:$W$62,4,FALSE) ->  | DF98: =VLOOKUP(DB98,lookup!$Q$2:$W$62,5,FALSE) ->  | DG98: =VLOOKUP(DB98,lookup!$Q$2:$W$62,6,FALSE) ->  | DH98: =VLOOKUP(DB98,lookup!$Q$2:$W$62,7,FALSE) -> 
R99: =IF(F99="","",VLOOKUP(P99,lookup!$L$2:$O$103,Data!Q99+1,FALSE)) ->  | X99: 0 | Y99: 0 | Z99: 0 | AI99: =VLOOKUP(S99,lookup!$A$1:$J$483,2,FALSE) ->  | AJ99: =VLOOKUP(S99,lookup!$A$1:$J$483,3,FALSE) ->  | AK99: =VLOOKUP(S99,lookup!$A$1:$J$483,4,FALSE) ->  | AL99: =VLOOKUP(S99,lookup!$A$1:$J$483,8,FALSE) ->  | AM99: =VLOOKUP(S99,lookup!$A$1:$J$483,9,FALSE) ->  | AN99: =VLOOKUP(S99,lookup!$A$1:$J$483,10,FALSE) ->  | AO99: =VLOOKUP(S99,lookup!$A$1:$J$483,5,FALSE) ->  | AP99: =VLOOKUP(S99,lookup!$A$1:$J$483,6,FALSE) ->  | AQ99: =VLOOKUP(S99,lookup!$A$1:$J$483,7,FALSE) ->  | AR99: =VLOOKUP(W99,lookup!$A$1:$J$483,2,FALSE) ->  | AS99: =VLOOKUP(W99,lookup!$A$1:$J$483,3,FALSE) ->  | AT99: =VLOOKUP(W99,lookup!$A$1:$J$483,4,FALSE) ->  | AU99: 17.5 | AV99: =VLOOKUP(AU99,lookup!$Q$2:$W$62,2,FALSE) -> 0.5 | AW99: =VLOOKUP(AU99,lookup!$Q$2:$W$62,3,FALSE) -> 0.49 | AX99: =VLOOKUP(AU99,lookup!$Q$2:$W$62,4,FALSE) -> 0.49 | AY99: =VLOOKUP(AU99,lookup!$Q$2:$W$62,5,FALSE) -> 1 | AZ99: =VLOOKUP(AU99,lookup!$Q$2:$W$62,6,FALSE) -> 0.5 | BA99: =VLOOKUP(AU99,lookup!$Q$2:$W$62,7,FALSE) -> 0.5 | BB99: 17.5 | BC99: =VLOOKUP(BB99,lookup!$Q$2:$W$62,2,FALSE) -> 0.5 | BD99: =VLOOKUP(BB99,lookup!$Q$2:$W$62,3,FALSE) -> 0.49 | BE99: =VLOOKUP(BB99,lookup!$Q$2:$W$62,4,FALSE) -> 0.49 | BF99: =VLOOKUP(BB99,lookup!$Q$2:$W$62,5,FALSE) -> 1 | BG99: =VLOOKUP(BB99,lookup!$Q$2:$W$62,6,FALSE) -> 0.5 | BH99: =VLOOKUP(BB99,lookup!$Q$2:$W$62,7,FALSE) -> 0.5 | BV99: 0 | BW99: =VLOOKUP(BV99,lookup!$Q$2:$W$62,2,FALSE) ->  | BX99: =VLOOKUP(BV99,lookup!$Q$2:$W$62,3,FALSE) ->  | BY99: =VLOOKUP(BV99,lookup!$Q$2:$W$62,4,FALSE) ->  | BZ99: =VLOOKUP(BV99,lookup!$Q$2:$W$62,5,FALSE) ->  | CA99: =VLOOKUP(BV99,lookup!$Q$2:$W$62,6,FALSE) ->  | CB99: =VLOOKUP(BV99,lookup!$Q$2:$W$62,7,FALSE) ->  | CC99: 0 | CD99: =VLOOKUP(CC99,lookup!$Q$2:$W$62,2,FALSE) ->  | CE99: =VLOOKUP(CC99,lookup!$Q$2:$W$62,3,FALSE) ->  | CF99: =VLOOKUP(CC99,lookup!$Q$2:$W$62,4,FALSE) ->  | CG99: =VLOOKUP(CC99,lookup!$Q$2:$W$62,5,FALSE) ->  | CH99: =VLOOKUP(CC99,lookup!$Q$2:$W$62,6,FALSE) ->  | CI99: =VLOOKUP(CC99,lookup!$Q$2:$W$62,7,FALSE) ->  | CW99: 0 | CX99: 1 | CY99: 0 | CZ99: 1 | DA99: 2 | DC99: =VLOOKUP(DB99,lookup!$Q$2:$W$62,2,FALSE) ->  | DD99: =VLOOKUP(DB99,lookup!$Q$2:$W$62,3,FALSE) ->  | DE99: =VLOOKUP(DB99,lookup!$Q$2:$W$62,4,FALSE) ->  | DF99: =VLOOKUP(DB99,lookup!$Q$2:$W$62,5,FALSE) ->  | DG99: =VLOOKUP(DB99,lookup!$Q$2:$W$62,6,FALSE) ->  | DH99: =VLOOKUP(DB99,lookup!$Q$2:$W$62,7,FALSE) -> 
R100: =IF(F100="","",VLOOKUP(P100,lookup!$L$2:$O$103,Data!Q100+1,FALSE)) ->  | X100: 0 | Y100: 0 | Z100: 0 | AI100: =VLOOKUP(S100,lookup!$A$1:$J$483,2,FALSE) ->  | AJ100: =VLOOKUP(S100,lookup!$A$1:$J$483,3,FALSE) ->  | AK100: =VLOOKUP(S100,lookup!$A$1:$J$483,4,FALSE) ->  | AL100: =VLOOKUP(S100,lookup!$A$1:$J$483,8,FALSE) ->  | AM100: =VLOOKUP(S100,lookup!$A$1:$J$483,9,FALSE) ->  | AN100: =VLOOKUP(S100,lookup!$A$1:$J$483,10,FALSE) ->  | AO100: =VLOOKUP(S100,lookup!$A$1:$J$483,5,FALSE) ->  | AP100: =VLOOKUP(S100,lookup!$A$1:$J$483,6,FALSE) ->  | AQ100: =VLOOKUP(S100,lookup!$A$1:$J$483,7,FALSE) ->  | AR100: =VLOOKUP(W100,lookup!$A$1:$J$483,2,FALSE) ->  | AS100: =VLOOKUP(W100,lookup!$A$1:$J$483,3,FALSE) ->  | AT100: =VLOOKUP(W100,lookup!$A$1:$J$483,4,FALSE) ->  | AU100: 17.5 | AV100: =VLOOKUP(AU100,lookup!$Q$2:$W$62,2,FALSE) -> 0.5 | AW100: =VLOOKUP(AU100,lookup!$Q$2:$W$62,3,FALSE) -> 0.49 | AX100: =VLOOKUP(AU100,lookup!$Q$2:$W$62,4,FALSE) -> 0.49 | AY100: =VLOOKUP(AU100,lookup!$Q$2:$W$62,5,FALSE) -> 1 | AZ100: =VLOOKUP(AU100,lookup!$Q$2:$W$62,6,FALSE) -> 0.5 | BA100: =VLOOKUP(AU100,lookup!$Q$2:$W$62,7,FALSE) -> 0.5 | BB100: 17.5 | BC100: =VLOOKUP(BB100,lookup!$Q$2:$W$62,2,FALSE) -> 0.5 | BD100: =VLOOKUP(BB100,lookup!$Q$2:$W$62,3,FALSE) -> 0.49 | BE100: =VLOOKUP(BB100,lookup!$Q$2:$W$62,4,FALSE) -> 0.49 | BF100: =VLOOKUP(BB100,lookup!$Q$2:$W$62,5,FALSE) -> 1 | BG100: =VLOOKUP(BB100,lookup!$Q$2:$W$62,6,FALSE) -> 0.5 | BH100: =VLOOKUP(BB100,lookup!$Q$2:$W$62,7,FALSE) -> 0.5 | BV100: 0 | BW100: =VLOOKUP(BV100,lookup!$Q$2:$W$62,2,FALSE) ->  | BX100: =VLOOKUP(BV100,lookup!$Q$2:$W$62,3,FALSE) ->  | BY100: =VLOOKUP(BV100,lookup!$Q$2:$W$62,4,FALSE) ->  | BZ100: =VLOOKUP(BV100,lookup!$Q$2:$W$62,5,FALSE) ->  | CA100: =VLOOKUP(BV100,lookup!$Q$2:$W$62,6,FALSE) ->  | CB100: =VLOOKUP(BV100,lookup!$Q$2:$W$62,7,FALSE) ->  | CC100: 0 | CD100: =VLOOKUP(CC100,lookup!$Q$2:$W$62,2,FALSE) ->  | CE100: =VLOOKUP(CC100,lookup!$Q$2:$W$62,3,FALSE) ->  | CF100: =VLOOKUP(CC100,lookup!$Q$2:$W$62,4,FALSE) ->  | CG100: =VLOOKUP(CC100,lookup!$Q$2:$W$62,5,FALSE) ->  | CH100: =VLOOKUP(CC100,lookup!$Q$2:$W$62,6,FALSE) ->  | CI100: =VLOOKUP(CC100,lookup!$Q$2:$W$62,7,FALSE) ->  | CW100: 0 | CX100: 1 | CY100: 0 | CZ100: 1 | DA100: 2 | DC100: =VLOOKUP(DB100,lookup!$Q$2:$W$62,2,FALSE) ->  | DD100: =VLOOKUP(DB100,lookup!$Q$2:$W$62,3,FALSE) ->  | DE100: =VLOOKUP(DB100,lookup!$Q$2:$W$62,4,FALSE) ->  | DF100: =VLOOKUP(DB100,lookup!$Q$2:$W$62,5,FALSE) ->  | DG100: =VLOOKUP(DB100,lookup!$Q$2:$W$62,6,FALSE) ->  | DH100: =VLOOKUP(DB100,lookup!$Q$2:$W$62,7,FALSE) -> 
R101: =IF(F101="","",VLOOKUP(P101,lookup!$L$2:$O$103,Data!Q101+1,FALSE)) ->  | X101: 0 | Y101: 0 | Z101: 0 | AI101: =VLOOKUP(S101,lookup!$A$1:$J$483,2,FALSE) ->  | AJ101: =VLOOKUP(S101,lookup!$A$1:$J$483,3,FALSE) ->  | AK101: =VLOOKUP(S101,lookup!$A$1:$J$483,4,FALSE) ->  | AL101: =VLOOKUP(S101,lookup!$A$1:$J$483,8,FALSE) ->  | AM101: =VLOOKUP(S101,lookup!$A$1:$J$483,9,FALSE) ->  | AN101: =VLOOKUP(S101,lookup!$A$1:$J$483,10,FALSE) ->  | AO101: =VLOOKUP(S101,lookup!$A$1:$J$483,5,FALSE) ->  | AP101: =VLOOKUP(S101,lookup!$A$1:$J$483,6,FALSE) ->  | AQ101: =VLOOKUP(S101,lookup!$A$1:$J$483,7,FALSE) ->  | AR101: =VLOOKUP(W101,lookup!$A$1:$J$483,2,FALSE) ->  | AS101: =VLOOKUP(W101,lookup!$A$1:$J$483,3,FALSE) ->  | AT101: =VLOOKUP(W101,lookup!$A$1:$J$483,4,FALSE) ->  | AU101: 17.5 | AV101: =VLOOKUP(AU101,lookup!$Q$2:$W$62,2,FALSE) -> 0.5 | AW101: =VLOOKUP(AU101,lookup!$Q$2:$W$62,3,FALSE) -> 0.49 | AX101: =VLOOKUP(AU101,lookup!$Q$2:$W$62,4,FALSE) -> 0.49 | AY101: =VLOOKUP(AU101,lookup!$Q$2:$W$62,5,FALSE) -> 1 | AZ101: =VLOOKUP(AU101,lookup!$Q$2:$W$62,6,FALSE) -> 0.5 | BA101: =VLOOKUP(AU101,lookup!$Q$2:$W$62,7,FALSE) -> 0.5 | BB101: 17.5 | BC101: =VLOOKUP(BB101,lookup!$Q$2:$W$62,2,FALSE) -> 0.5 | BD101: =VLOOKUP(BB101,lookup!$Q$2:$W$62,3,FALSE) -> 0.49 | BE101: =VLOOKUP(BB101,lookup!$Q$2:$W$62,4,FALSE) -> 0.49 | BF101: =VLOOKUP(BB101,lookup!$Q$2:$W$62,5,FALSE) -> 1 | BG101: =VLOOKUP(BB101,lookup!$Q$2:$W$62,6,FALSE) -> 0.5 | BH101: =VLOOKUP(BB101,lookup!$Q$2:$W$62,7,FALSE) -> 0.5 | BV101: 0 | BW101: =VLOOKUP(BV101,lookup!$Q$2:$W$62,2,FALSE) ->  | BX101: =VLOOKUP(BV101,lookup!$Q$2:$W$62,3,FALSE) ->  | BY101: =VLOOKUP(BV101,lookup!$Q$2:$W$62,4,FALSE) ->  | BZ101: =VLOOKUP(BV101,lookup!$Q$2:$W$62,5,FALSE) ->  | CA101: =VLOOKUP(BV101,lookup!$Q$2:$W$62,6,FALSE) ->  | CB101: =VLOOKUP(BV101,lookup!$Q$2:$W$62,7,FALSE) ->  | CC101: 0 | CD101: =VLOOKUP(CC101,lookup!$Q$2:$W$62,2,FALSE) ->  | CE101: =VLOOKUP(CC101,lookup!$Q$2:$W$62,3,FALSE) ->  | CF101: =VLOOKUP(CC101,lookup!$Q$2:$W$62,4,FALSE) ->  | CG101: =VLOOKUP(CC101,lookup!$Q$2:$W$62,5,FALSE) ->  | CH101: =VLOOKUP(CC101,lookup!$Q$2:$W$62,6,FALSE) ->  | CI101: =VLOOKUP(CC101,lookup!$Q$2:$W$62,7,FALSE) ->  | CW101: 0 | CX101: 1 | CY101: 0 | CZ101: 1 | DA101: 2 | DC101: =VLOOKUP(DB101,lookup!$Q$2:$W$62,2,FALSE) ->  | DD101: =VLOOKUP(DB101,lookup!$Q$2:$W$62,3,FALSE) ->  | DE101: =VLOOKUP(DB101,lookup!$Q$2:$W$62,4,FALSE) ->  | DF101: =VLOOKUP(DB101,lookup!$Q$2:$W$62,5,FALSE) ->  | DG101: =VLOOKUP(DB101,lookup!$Q$2:$W$62,6,FALSE) ->  | DH101: =VLOOKUP(DB101,lookup!$Q$2:$W$62,7,FALSE) -> 
R102: =IF(F102="","",VLOOKUP(P102,lookup!$L$2:$O$103,Data!Q102+1,FALSE)) ->  | X102: 0 | Y102: 0 | Z102: 0 | AI102: =VLOOKUP(S102,lookup!$A$1:$J$483,2,FALSE) ->  | AJ102: =VLOOKUP(S102,lookup!$A$1:$J$483,3,FALSE) ->  | AK102: =VLOOKUP(S102,lookup!$A$1:$J$483,4,FALSE) ->  | AL102: =VLOOKUP(S102,lookup!$A$1:$J$483,8,FALSE) ->  | AM102: =VLOOKUP(S102,lookup!$A$1:$J$483,9,FALSE) ->  | AN102: =VLOOKUP(S102,lookup!$A$1:$J$483,10,FALSE) ->  | AO102: =VLOOKUP(S102,lookup!$A$1:$J$483,5,FALSE) ->  | AP102: =VLOOKUP(S102,lookup!$A$1:$J$483,6,FALSE) ->  | AQ102: =VLOOKUP(S102,lookup!$A$1:$J$483,7,FALSE) ->  | AR102: =VLOOKUP(W102,lookup!$A$1:$J$483,2,FALSE) ->  | AS102: =VLOOKUP(W102,lookup!$A$1:$J$483,3,FALSE) ->  | AT102: =VLOOKUP(W102,lookup!$A$1:$J$483,4,FALSE) ->  | AU102: 17.5 | AV102: =VLOOKUP(AU102,lookup!$Q$2:$W$62,2,FALSE) -> 0.5 | AW102: =VLOOKUP(AU102,lookup!$Q$2:$W$62,3,FALSE) -> 0.49 | AX102: =VLOOKUP(AU102,lookup!$Q$2:$W$62,4,FALSE) -> 0.49 | AY102: =VLOOKUP(AU102,lookup!$Q$2:$W$62,5,FALSE) -> 1 | AZ102: =VLOOKUP(AU102,lookup!$Q$2:$W$62,6,FALSE) -> 0.5 | BA102: =VLOOKUP(AU102,lookup!$Q$2:$W$62,7,FALSE) -> 0.5 | BB102: 17.5 | BC102: =VLOOKUP(BB102,lookup!$Q$2:$W$62,2,FALSE) -> 0.5 | BD102: =VLOOKUP(BB102,lookup!$Q$2:$W$62,3,FALSE) -> 0.49 | BE102: =VLOOKUP(BB102,lookup!$Q$2:$W$62,4,FALSE) -> 0.49 | BF102: =VLOOKUP(BB102,lookup!$Q$2:$W$62,5,FALSE) -> 1 | BG102: =VLOOKUP(BB102,lookup!$Q$2:$W$62,6,FALSE) -> 0.5 | BH102: =VLOOKUP(BB102,lookup!$Q$2:$W$62,7,FALSE) -> 0.5 | BV102: 0 | BW102: =VLOOKUP(BV102,lookup!$Q$2:$W$62,2,FALSE) ->  | BX102: =VLOOKUP(BV102,lookup!$Q$2:$W$62,3,FALSE) ->  | BY102: =VLOOKUP(BV102,lookup!$Q$2:$W$62,4,FALSE) ->  | BZ102: =VLOOKUP(BV102,lookup!$Q$2:$W$62,5,FALSE) ->  | CA102: =VLOOKUP(BV102,lookup!$Q$2:$W$62,6,FALSE) ->  | CB102: =VLOOKUP(BV102,lookup!$Q$2:$W$62,7,FALSE) ->  | CC102: 0 | CD102: =VLOOKUP(CC102,lookup!$Q$2:$W$62,2,FALSE) ->  | CE102: =VLOOKUP(CC102,lookup!$Q$2:$W$62,3,FALSE) ->  | CF102: =VLOOKUP(CC102,lookup!$Q$2:$W$62,4,FALSE) ->  | CG102: =VLOOKUP(CC102,lookup!$Q$2:$W$62,5,FALSE) ->  | CH102: =VLOOKUP(CC102,lookup!$Q$2:$W$62,6,FALSE) ->  | CI102: =VLOOKUP(CC102,lookup!$Q$2:$W$62,7,FALSE) ->  | CW102: 0 | CX102: 1 | CY102: 0 | CZ102: 1 | DA102: 2 | DC102: =VLOOKUP(DB102,lookup!$Q$2:$W$62,2,FALSE) ->  | DD102: =VLOOKUP(DB102,lookup!$Q$2:$W$62,3,FALSE) ->  | DE102: =VLOOKUP(DB102,lookup!$Q$2:$W$62,4,FALSE) ->  | DF102: =VLOOKUP(DB102,lookup!$Q$2:$W$62,5,FALSE) ->  | DG102: =VLOOKUP(DB102,lookup!$Q$2:$W$62,6,FALSE) ->  | DH102: =VLOOKUP(DB102,lookup!$Q$2:$W$62,7,FALSE) -> 
R103: =IF(F103="","",VLOOKUP(P103,lookup!$L$2:$O$103,Data!Q103+1,FALSE)) ->  | X103: 0 | Y103: 0 | Z103: 0 | AI103: =VLOOKUP(S103,lookup!$A$1:$J$483,2,FALSE) ->  | AJ103: =VLOOKUP(S103,lookup!$A$1:$J$483,3,FALSE) ->  | AK103: =VLOOKUP(S103,lookup!$A$1:$J$483,4,FALSE) ->  | AL103: =VLOOKUP(S103,lookup!$A$1:$J$483,8,FALSE) ->  | AM103: =VLOOKUP(S103,lookup!$A$1:$J$483,9,FALSE) ->  | AN103: =VLOOKUP(S103,lookup!$A$1:$J$483,10,FALSE) ->  | AO103: =VLOOKUP(S103,lookup!$A$1:$J$483,5,FALSE) ->  | AP103: =VLOOKUP(S103,lookup!$A$1:$J$483,6,FALSE) ->  | AQ103: =VLOOKUP(S103,lookup!$A$1:$J$483,7,FALSE) ->  | AR103: =VLOOKUP(W103,lookup!$A$1:$J$483,2,FALSE) ->  | AS103: =VLOOKUP(W103,lookup!$A$1:$J$483,3,FALSE) ->  | AT103: =VLOOKUP(W103,lookup!$A$1:$J$483,4,FALSE) ->  | AU103: 17.5 | AV103: =VLOOKUP(AU103,lookup!$Q$2:$W$62,2,FALSE) -> 0.5 | AW103: =VLOOKUP(AU103,lookup!$Q$2:$W$62,3,FALSE) -> 0.49 | AX103: =VLOOKUP(AU103,lookup!$Q$2:$W$62,4,FALSE) -> 0.49 | AY103: =VLOOKUP(AU103,lookup!$Q$2:$W$62,5,FALSE) -> 1 | AZ103: =VLOOKUP(AU103,lookup!$Q$2:$W$62,6,FALSE) -> 0.5 | BA103: =VLOOKUP(AU103,lookup!$Q$2:$W$62,7,FALSE) -> 0.5 | BB103: 17.5 | BC103: =VLOOKUP(BB103,lookup!$Q$2:$W$62,2,FALSE) -> 0.5 | BD103: =VLOOKUP(BB103,lookup!$Q$2:$W$62,3,FALSE) -> 0.49 | BE103: =VLOOKUP(BB103,lookup!$Q$2:$W$62,4,FALSE) -> 0.49 | BF103: =VLOOKUP(BB103,lookup!$Q$2:$W$62,5,FALSE) -> 1 | BG103: =VLOOKUP(BB103,lookup!$Q$2:$W$62,6,FALSE) -> 0.5 | BH103: =VLOOKUP(BB103,lookup!$Q$2:$W$62,7,FALSE) -> 0.5 | BV103: 0 | BW103: =VLOOKUP(BV103,lookup!$Q$2:$W$62,2,FALSE) ->  | BX103: =VLOOKUP(BV103,lookup!$Q$2:$W$62,3,FALSE) ->  | BY103: =VLOOKUP(BV103,lookup!$Q$2:$W$62,4,FALSE) ->  | BZ103: =VLOOKUP(BV103,lookup!$Q$2:$W$62,5,FALSE) ->  | CA103: =VLOOKUP(BV103,lookup!$Q$2:$W$62,6,FALSE) ->  | CB103: =VLOOKUP(BV103,lookup!$Q$2:$W$62,7,FALSE) ->  | CC103: 0 | CD103: =VLOOKUP(CC103,lookup!$Q$2:$W$62,2,FALSE) ->  | CE103: =VLOOKUP(CC103,lookup!$Q$2:$W$62,3,FALSE) ->  | CF103: =VLOOKUP(CC103,lookup!$Q$2:$W$62,4,FALSE) ->  | CG103: =VLOOKUP(CC103,lookup!$Q$2:$W$62,5,FALSE) ->  | CH103: =VLOOKUP(CC103,lookup!$Q$2:$W$62,6,FALSE) ->  | CI103: =VLOOKUP(CC103,lookup!$Q$2:$W$62,7,FALSE) ->  | CW103: 0 | CX103: 1 | CY103: 0 | CZ103: 1 | DA103: 2 | DC103: =VLOOKUP(DB103,lookup!$Q$2:$W$62,2,FALSE) ->  | DD103: =VLOOKUP(DB103,lookup!$Q$2:$W$62,3,FALSE) ->  | DE103: =VLOOKUP(DB103,lookup!$Q$2:$W$62,4,FALSE) ->  | DF103: =VLOOKUP(DB103,lookup!$Q$2:$W$62,5,FALSE) ->  | DG103: =VLOOKUP(DB103,lookup!$Q$2:$W$62,6,FALSE) ->  | DH103: =VLOOKUP(DB103,lookup!$Q$2:$W$62,7,FALSE) -> 
R104: =IF(F104="","",VLOOKUP(P104,lookup!$L$2:$O$103,Data!Q104+1,FALSE)) ->  | X104: 0 | Y104: 0 | Z104: 0 | AI104: =VLOOKUP(S104,lookup!$A$1:$J$483,2,FALSE) ->  | AJ104: =VLOOKUP(S104,lookup!$A$1:$J$483,3,FALSE) ->  | AK104: =VLOOKUP(S104,lookup!$A$1:$J$483,4,FALSE) ->  | AL104: =VLOOKUP(S104,lookup!$A$1:$J$483,8,FALSE) ->  | AM104: =VLOOKUP(S104,lookup!$A$1:$J$483,9,FALSE) ->  | AN104: =VLOOKUP(S104,lookup!$A$1:$J$483,10,FALSE) ->  | AO104: =VLOOKUP(S104,lookup!$A$1:$J$483,5,FALSE) ->  | AP104: =VLOOKUP(S104,lookup!$A$1:$J$483,6,FALSE) ->  | AQ104: =VLOOKUP(S104,lookup!$A$1:$J$483,7,FALSE) ->  | AR104: =VLOOKUP(W104,lookup!$A$1:$J$483,2,FALSE) ->  | AS104: =VLOOKUP(W104,lookup!$A$1:$J$483,3,FALSE) ->  | AT104: =VLOOKUP(W104,lookup!$A$1:$J$483,4,FALSE) ->  | AU104: 17.5 | AV104: =VLOOKUP(AU104,lookup!$Q$2:$W$62,2,FALSE) -> 0.5 | AW104: =VLOOKUP(AU104,lookup!$Q$2:$W$62,3,FALSE) -> 0.49 | AX104: =VLOOKUP(AU104,lookup!$Q$2:$W$62,4,FALSE) -> 0.49 | AY104: =VLOOKUP(AU104,lookup!$Q$2:$W$62,5,FALSE) -> 1 | AZ104: =VLOOKUP(AU104,lookup!$Q$2:$W$62,6,FALSE) -> 0.5 | BA104: =VLOOKUP(AU104,lookup!$Q$2:$W$62,7,FALSE) -> 0.5 | BB104: 17.5 | BC104: =VLOOKUP(BB104,lookup!$Q$2:$W$62,2,FALSE) -> 0.5 | BD104: =VLOOKUP(BB104,lookup!$Q$2:$W$62,3,FALSE) -> 0.49 | BE104: =VLOOKUP(BB104,lookup!$Q$2:$W$62,4,FALSE) -> 0.49 | BF104: =VLOOKUP(BB104,lookup!$Q$2:$W$62,5,FALSE) -> 1 | BG104: =VLOOKUP(BB104,lookup!$Q$2:$W$62,6,FALSE) -> 0.5 | BH104: =VLOOKUP(BB104,lookup!$Q$2:$W$62,7,FALSE) -> 0.5 | BV104: 0 | BW104: =VLOOKUP(BV104,lookup!$Q$2:$W$62,2,FALSE) ->  | BX104: =VLOOKUP(BV104,lookup!$Q$2:$W$62,3,FALSE) ->  | BY104: =VLOOKUP(BV104,lookup!$Q$2:$W$62,4,FALSE) ->  | BZ104: =VLOOKUP(BV104,lookup!$Q$2:$W$62,5,FALSE) ->  | CA104: =VLOOKUP(BV104,lookup!$Q$2:$W$62,6,FALSE) ->  | CB104: =VLOOKUP(BV104,lookup!$Q$2:$W$62,7,FALSE) ->  | CC104: 0 | CD104: =VLOOKUP(CC104,lookup!$Q$2:$W$62,2,FALSE) ->  | CE104: =VLOOKUP(CC104,lookup!$Q$2:$W$62,3,FALSE) ->  | CF104: =VLOOKUP(CC104,lookup!$Q$2:$W$62,4,FALSE) ->  | CG104: =VLOOKUP(CC104,lookup!$Q$2:$W$62,5,FALSE) ->  | CH104: =VLOOKUP(CC104,lookup!$Q$2:$W$62,6,FALSE) ->  | CI104: =VLOOKUP(CC104,lookup!$Q$2:$W$62,7,FALSE) ->  | CW104: 0 | CX104: 1 | CY104: 0 | CZ104: 1 | DA104: 2 | DC104: =VLOOKUP(DB104,lookup!$Q$2:$W$62,2,FALSE) ->  | DD104: =VLOOKUP(DB104,lookup!$Q$2:$W$62,3,FALSE) ->  | DE104: =VLOOKUP(DB104,lookup!$Q$2:$W$62,4,FALSE) ->  | DF104: =VLOOKUP(DB104,lookup!$Q$2:$W$62,5,FALSE) ->  | DG104: =VLOOKUP(DB104,lookup!$Q$2:$W$62,6,FALSE) ->  | DH104: =VLOOKUP(DB104,lookup!$Q$2:$W$62,7,FALSE) -> 
R105: =IF(F105="","",VLOOKUP(P105,lookup!$L$2:$O$103,Data!Q105+1,FALSE)) ->  | X105: 0 | Y105: 0 | Z105: 0 | AI105: =VLOOKUP(S105,lookup!$A$1:$J$483,2,FALSE) ->  | AJ105: =VLOOKUP(S105,lookup!$A$1:$J$483,3,FALSE) ->  | AK105: =VLOOKUP(S105,lookup!$A$1:$J$483,4,FALSE) ->  | AL105: =VLOOKUP(S105,lookup!$A$1:$J$483,8,FALSE) ->  | AM105: =VLOOKUP(S105,lookup!$A$1:$J$483,9,FALSE) ->  | AN105: =VLOOKUP(S105,lookup!$A$1:$J$483,10,FALSE) ->  | AO105: =VLOOKUP(S105,lookup!$A$1:$J$483,5,FALSE) ->  | AP105: =VLOOKUP(S105,lookup!$A$1:$J$483,6,FALSE) ->  | AQ105: =VLOOKUP(S105,lookup!$A$1:$J$483,7,FALSE) ->  | AR105: =VLOOKUP(W105,lookup!$A$1:$J$483,2,FALSE) ->  | AS105: =VLOOKUP(W105,lookup!$A$1:$J$483,3,FALSE) ->  | AT105: =VLOOKUP(W105,lookup!$A$1:$J$483,4,FALSE) ->  | AU105: 17.5 | AV105: =VLOOKUP(AU105,lookup!$Q$2:$W$62,2,FALSE) -> 0.5 | AW105: =VLOOKUP(AU105,lookup!$Q$2:$W$62,3,FALSE) -> 0.49 | AX105: =VLOOKUP(AU105,lookup!$Q$2:$W$62,4,FALSE) -> 0.49 | AY105: =VLOOKUP(AU105,lookup!$Q$2:$W$62,5,FALSE) -> 1 | AZ105: =VLOOKUP(AU105,lookup!$Q$2:$W$62,6,FALSE) -> 0.5 | BA105: =VLOOKUP(AU105,lookup!$Q$2:$W$62,7,FALSE) -> 0.5 | BB105: 17.5 | BC105: =VLOOKUP(BB105,lookup!$Q$2:$W$62,2,FALSE) -> 0.5 | BD105: =VLOOKUP(BB105,lookup!$Q$2:$W$62,3,FALSE) -> 0.49 | BE105: =VLOOKUP(BB105,lookup!$Q$2:$W$62,4,FALSE) -> 0.49 | BF105: =VLOOKUP(BB105,lookup!$Q$2:$W$62,5,FALSE) -> 1 | BG105: =VLOOKUP(BB105,lookup!$Q$2:$W$62,6,FALSE) -> 0.5 | BH105: =VLOOKUP(BB105,lookup!$Q$2:$W$62,7,FALSE) -> 0.5 | BV105: 0 | BW105: =VLOOKUP(BV105,lookup!$Q$2:$W$62,2,FALSE) ->  | BX105: =VLOOKUP(BV105,lookup!$Q$2:$W$62,3,FALSE) ->  | BY105: =VLOOKUP(BV105,lookup!$Q$2:$W$62,4,FALSE) ->  | BZ105: =VLOOKUP(BV105,lookup!$Q$2:$W$62,5,FALSE) ->  | CA105: =VLOOKUP(BV105,lookup!$Q$2:$W$62,6,FALSE) ->  | CB105: =VLOOKUP(BV105,lookup!$Q$2:$W$62,7,FALSE) ->  | CC105: 0 | CD105: =VLOOKUP(CC105,lookup!$Q$2:$W$62,2,FALSE) ->  | CE105: =VLOOKUP(CC105,lookup!$Q$2:$W$62,3,FALSE) ->  | CF105: =VLOOKUP(CC105,lookup!$Q$2:$W$62,4,FALSE) ->  | CG105: =VLOOKUP(CC105,lookup!$Q$2:$W$62,5,FALSE) ->  | CH105: =VLOOKUP(CC105,lookup!$Q$2:$W$62,6,FALSE) ->  | CI105: =VLOOKUP(CC105,lookup!$Q$2:$W$62,7,FALSE) ->  | CW105: 0 | CX105: 1 | CY105: 0 | CZ105: 1 | DA105: 2 | DC105: =VLOOKUP(DB105,lookup!$Q$2:$W$62,2,FALSE) ->  | DD105: =VLOOKUP(DB105,lookup!$Q$2:$W$62,3,FALSE) ->  | DE105: =VLOOKUP(DB105,lookup!$Q$2:$W$62,4,FALSE) ->  | DF105: =VLOOKUP(DB105,lookup!$Q$2:$W$62,5,FALSE) ->  | DG105: =VLOOKUP(DB105,lookup!$Q$2:$W$62,6,FALSE) ->  | DH105: =VLOOKUP(DB105,lookup!$Q$2:$W$62,7,FALSE) -> 
R106: =IF(F106="","",VLOOKUP(P106,lookup!$L$2:$O$103,Data!Q106+1,FALSE)) ->  | X106: 0 | Y106: 0 | Z106: 0 | AI106: =VLOOKUP(S106,lookup!$A$1:$J$483,2,FALSE) ->  | AJ106: =VLOOKUP(S106,lookup!$A$1:$J$483,3,FALSE) ->  | AK106: =VLOOKUP(S106,lookup!$A$1:$J$483,4,FALSE) ->  | AL106: =VLOOKUP(S106,lookup!$A$1:$J$483,8,FALSE) ->  | AM106: =VLOOKUP(S106,lookup!$A$1:$J$483,9,FALSE) ->  | AN106: =VLOOKUP(S106,lookup!$A$1:$J$483,10,FALSE) ->  | AO106: =VLOOKUP(S106,lookup!$A$1:$J$483,5,FALSE) ->  | AP106: =VLOOKUP(S106,lookup!$A$1:$J$483,6,FALSE) ->  | AQ106: =VLOOKUP(S106,lookup!$A$1:$J$483,7,FALSE) ->  | AR106: =VLOOKUP(W106,lookup!$A$1:$J$483,2,FALSE) ->  | AS106: =VLOOKUP(W106,lookup!$A$1:$J$483,3,FALSE) ->  | AT106: =VLOOKUP(W106,lookup!$A$1:$J$483,4,FALSE) ->  | AU106: 17.5 | AV106: =VLOOKUP(AU106,lookup!$Q$2:$W$62,2,FALSE) -> 0.5 | AW106: =VLOOKUP(AU106,lookup!$Q$2:$W$62,3,FALSE) -> 0.49 | AX106: =VLOOKUP(AU106,lookup!$Q$2:$W$62,4,FALSE) -> 0.49 | AY106: =VLOOKUP(AU106,lookup!$Q$2:$W$62,5,FALSE) -> 1 | AZ106: =VLOOKUP(AU106,lookup!$Q$2:$W$62,6,FALSE) -> 0.5 | BA106: =VLOOKUP(AU106,lookup!$Q$2:$W$62,7,FALSE) -> 0.5 | BB106: 17.5 | BC106: =VLOOKUP(BB106,lookup!$Q$2:$W$62,2,FALSE) -> 0.5 | BD106: =VLOOKUP(BB106,lookup!$Q$2:$W$62,3,FALSE) -> 0.49 | BE106: =VLOOKUP(BB106,lookup!$Q$2:$W$62,4,FALSE) -> 0.49 | BF106: =VLOOKUP(BB106,lookup!$Q$2:$W$62,5,FALSE) -> 1 | BG106: =VLOOKUP(BB106,lookup!$Q$2:$W$62,6,FALSE) -> 0.5 | BH106: =VLOOKUP(BB106,lookup!$Q$2:$W$62,7,FALSE) -> 0.5 | BV106: 0 | BW106: =VLOOKUP(BV106,lookup!$Q$2:$W$62,2,FALSE) ->  | BX106: =VLOOKUP(BV106,lookup!$Q$2:$W$62,3,FALSE) ->  | BY106: =VLOOKUP(BV106,lookup!$Q$2:$W$62,4,FALSE) ->  | BZ106: =VLOOKUP(BV106,lookup!$Q$2:$W$62,5,FALSE) ->  | CA106: =VLOOKUP(BV106,lookup!$Q$2:$W$62,6,FALSE) ->  | CB106: =VLOOKUP(BV106,lookup!$Q$2:$W$62,7,FALSE) ->  | CC106: 0 | CD106: =VLOOKUP(CC106,lookup!$Q$2:$W$62,2,FALSE) ->  | CE106: =VLOOKUP(CC106,lookup!$Q$2:$W$62,3,FALSE) ->  | CF106: =VLOOKUP(CC106,lookup!$Q$2:$W$62,4,FALSE) ->  | CG106: =VLOOKUP(CC106,lookup!$Q$2:$W$62,5,FALSE) ->  | CH106: =VLOOKUP(CC106,lookup!$Q$2:$W$62,6,FALSE) ->  | CI106: =VLOOKUP(CC106,lookup!$Q$2:$W$62,7,FALSE) ->  | CW106: 0 | CX106: 1 | CY106: 0 | CZ106: 1 | DA106: 2 | DC106: =VLOOKUP(DB106,lookup!$Q$2:$W$62,2,FALSE) ->  | DD106: =VLOOKUP(DB106,lookup!$Q$2:$W$62,3,FALSE) ->  | DE106: =VLOOKUP(DB106,lookup!$Q$2:$W$62,4,FALSE) ->  | DF106: =VLOOKUP(DB106,lookup!$Q$2:$W$62,5,FALSE) ->  | DG106: =VLOOKUP(DB106,lookup!$Q$2:$W$62,6,FALSE) ->  | DH106: =VLOOKUP(DB106,lookup!$Q$2:$W$62,7,FALSE) -> 
R107: =IF(F107="","",VLOOKUP(P107,lookup!$L$2:$O$103,Data!Q107+1,FALSE)) ->  | X107: 0 | Y107: 0 | Z107: 0 | AI107: =VLOOKUP(S107,lookup!$A$1:$J$483,2,FALSE) ->  | AJ107: =VLOOKUP(S107,lookup!$A$1:$J$483,3,FALSE) ->  | AK107: =VLOOKUP(S107,lookup!$A$1:$J$483,4,FALSE) ->  | AL107: =VLOOKUP(S107,lookup!$A$1:$J$483,8,FALSE) ->  | AM107: =VLOOKUP(S107,lookup!$A$1:$J$483,9,FALSE) ->  | AN107: =VLOOKUP(S107,lookup!$A$1:$J$483,10,FALSE) ->  | AO107: =VLOOKUP(S107,lookup!$A$1:$J$483,5,FALSE) ->  | AP107: =VLOOKUP(S107,lookup!$A$1:$J$483,6,FALSE) ->  | AQ107: =VLOOKUP(S107,lookup!$A$1:$J$483,7,FALSE) ->  | AR107: =VLOOKUP(W107,lookup!$A$1:$J$483,2,FALSE) ->  | AS107: =VLOOKUP(W107,lookup!$A$1:$J$483,3,FALSE) ->  | AT107: =VLOOKUP(W107,lookup!$A$1:$J$483,4,FALSE) ->  | AU107: 17.5 | AV107: =VLOOKUP(AU107,lookup!$Q$2:$W$62,2,FALSE) -> 0.5 | AW107: =VLOOKUP(AU107,lookup!$Q$2:$W$62,3,FALSE) -> 0.49 | AX107: =VLOOKUP(AU107,lookup!$Q$2:$W$62,4,FALSE) -> 0.49 | AY107: =VLOOKUP(AU107,lookup!$Q$2:$W$62,5,FALSE) -> 1 | AZ107: =VLOOKUP(AU107,lookup!$Q$2:$W$62,6,FALSE) -> 0.5 | BA107: =VLOOKUP(AU107,lookup!$Q$2:$W$62,7,FALSE) -> 0.5 | BB107: 17.5 | BC107: =VLOOKUP(BB107,lookup!$Q$2:$W$62,2,FALSE) -> 0.5 | BD107: =VLOOKUP(BB107,lookup!$Q$2:$W$62,3,FALSE) -> 0.49 | BE107: =VLOOKUP(BB107,lookup!$Q$2:$W$62,4,FALSE) -> 0.49 | BF107: =VLOOKUP(BB107,lookup!$Q$2:$W$62,5,FALSE) -> 1 | BG107: =VLOOKUP(BB107,lookup!$Q$2:$W$62,6,FALSE) -> 0.5 | BH107: =VLOOKUP(BB107,lookup!$Q$2:$W$62,7,FALSE) -> 0.5 | BV107: 0 | BW107: =VLOOKUP(BV107,lookup!$Q$2:$W$62,2,FALSE) ->  | BX107: =VLOOKUP(BV107,lookup!$Q$2:$W$62,3,FALSE) ->  | BY107: =VLOOKUP(BV107,lookup!$Q$2:$W$62,4,FALSE) ->  | BZ107: =VLOOKUP(BV107,lookup!$Q$2:$W$62,5,FALSE) ->  | CA107: =VLOOKUP(BV107,lookup!$Q$2:$W$62,6,FALSE) ->  | CB107: =VLOOKUP(BV107,lookup!$Q$2:$W$62,7,FALSE) ->  | CC107: 0 | CD107: =VLOOKUP(CC107,lookup!$Q$2:$W$62,2,FALSE) ->  | CE107: =VLOOKUP(CC107,lookup!$Q$2:$W$62,3,FALSE) ->  | CF107: =VLOOKUP(CC107,lookup!$Q$2:$W$62,4,FALSE) ->  | CG107: =VLOOKUP(CC107,lookup!$Q$2:$W$62,5,FALSE) ->  | CH107: =VLOOKUP(CC107,lookup!$Q$2:$W$62,6,FALSE) ->  | CI107: =VLOOKUP(CC107,lookup!$Q$2:$W$62,7,FALSE) ->  | CW107: 0 | CX107: 1 | CY107: 0 | CZ107: 1 | DA107: 2 | DC107: =VLOOKUP(DB107,lookup!$Q$2:$W$62,2,FALSE) ->  | DD107: =VLOOKUP(DB107,lookup!$Q$2:$W$62,3,FALSE) ->  | DE107: =VLOOKUP(DB107,lookup!$Q$2:$W$62,4,FALSE) ->  | DF107: =VLOOKUP(DB107,lookup!$Q$2:$W$62,5,FALSE) ->  | DG107: =VLOOKUP(DB107,lookup!$Q$2:$W$62,6,FALSE) ->  | DH107: =VLOOKUP(DB107,lookup!$Q$2:$W$62,7,FALSE) -> 
R108: =IF(F108="","",VLOOKUP(P108,lookup!$L$2:$O$103,Data!Q108+1,FALSE)) ->  | X108: 0 | Y108: 0 | Z108: 0 | AI108: =VLOOKUP(S108,lookup!$A$1:$J$483,2,FALSE) ->  | AJ108: =VLOOKUP(S108,lookup!$A$1:$J$483,3,FALSE) ->  | AK108: =VLOOKUP(S108,lookup!$A$1:$J$483,4,FALSE) ->  | AL108: =VLOOKUP(S108,lookup!$A$1:$J$483,8,FALSE) ->  | AM108: =VLOOKUP(S108,lookup!$A$1:$J$483,9,FALSE) ->  | AN108: =VLOOKUP(S108,lookup!$A$1:$J$483,10,FALSE) ->  | AO108: =VLOOKUP(S108,lookup!$A$1:$J$483,5,FALSE) ->  | AP108: =VLOOKUP(S108,lookup!$A$1:$J$483,6,FALSE) ->  | AQ108: =VLOOKUP(S108,lookup!$A$1:$J$483,7,FALSE) ->  | AR108: =VLOOKUP(W108,lookup!$A$1:$J$483,2,FALSE) ->  | AS108: =VLOOKUP(W108,lookup!$A$1:$J$483,3,FALSE) ->  | AT108: =VLOOKUP(W108,lookup!$A$1:$J$483,4,FALSE) ->  | AU108: 17.5 | AV108: =VLOOKUP(AU108,lookup!$Q$2:$W$62,2,FALSE) -> 0.5 | AW108: =VLOOKUP(AU108,lookup!$Q$2:$W$62,3,FALSE) -> 0.49 | AX108: =VLOOKUP(AU108,lookup!$Q$2:$W$62,4,FALSE) -> 0.49 | AY108: =VLOOKUP(AU108,lookup!$Q$2:$W$62,5,FALSE) -> 1 | AZ108: =VLOOKUP(AU108,lookup!$Q$2:$W$62,6,FALSE) -> 0.5 | BA108: =VLOOKUP(AU108,lookup!$Q$2:$W$62,7,FALSE) -> 0.5 | BB108: 17.5 | BC108: =VLOOKUP(BB108,lookup!$Q$2:$W$62,2,FALSE) -> 0.5 | BD108: =VLOOKUP(BB108,lookup!$Q$2:$W$62,3,FALSE) -> 0.49 | BE108: =VLOOKUP(BB108,lookup!$Q$2:$W$62,4,FALSE) -> 0.49 | BF108: =VLOOKUP(BB108,lookup!$Q$2:$W$62,5,FALSE) -> 1 | BG108: =VLOOKUP(BB108,lookup!$Q$2:$W$62,6,FALSE) -> 0.5 | BH108: =VLOOKUP(BB108,lookup!$Q$2:$W$62,7,FALSE) -> 0.5 | BV108: 0 | BW108: =VLOOKUP(BV108,lookup!$Q$2:$W$62,2,FALSE) ->  | BX108: =VLOOKUP(BV108,lookup!$Q$2:$W$62,3,FALSE) ->  | BY108: =VLOOKUP(BV108,lookup!$Q$2:$W$62,4,FALSE) ->  | BZ108: =VLOOKUP(BV108,lookup!$Q$2:$W$62,5,FALSE) ->  | CA108: =VLOOKUP(BV108,lookup!$Q$2:$W$62,6,FALSE) ->  | CB108: =VLOOKUP(BV108,lookup!$Q$2:$W$62,7,FALSE) ->  | CC108: 0 | CD108: =VLOOKUP(CC108,lookup!$Q$2:$W$62,2,FALSE) ->  | CE108: =VLOOKUP(CC108,lookup!$Q$2:$W$62,3,FALSE) ->  | CF108: =VLOOKUP(CC108,lookup!$Q$2:$W$62,4,FALSE) ->  | CG108: =VLOOKUP(CC108,lookup!$Q$2:$W$62,5,FALSE) ->  | CH108: =VLOOKUP(CC108,lookup!$Q$2:$W$62,6,FALSE) ->  | CI108: =VLOOKUP(CC108,lookup!$Q$2:$W$62,7,FALSE) ->  | CW108: 0 | CX108: 1 | CY108: 0 | CZ108: 1 | DA108: 2 | DC108: =VLOOKUP(DB108,lookup!$Q$2:$W$62,2,FALSE) ->  | DD108: =VLOOKUP(DB108,lookup!$Q$2:$W$62,3,FALSE) ->  | DE108: =VLOOKUP(DB108,lookup!$Q$2:$W$62,4,FALSE) ->  | DF108: =VLOOKUP(DB108,lookup!$Q$2:$W$62,5,FALSE) ->  | DG108: =VLOOKUP(DB108,lookup!$Q$2:$W$62,6,FALSE) ->  | DH108: =VLOOKUP(DB108,lookup!$Q$2:$W$62,7,FALSE) -> 
R109: =IF(F109="","",VLOOKUP(P109,lookup!$L$2:$O$103,Data!Q109+1,FALSE)) ->  | X109: 0 | Y109: 0 | Z109: 0 | AI109: =VLOOKUP(S109,lookup!$A$1:$J$483,2,FALSE) ->  | AJ109: =VLOOKUP(S109,lookup!$A$1:$J$483,3,FALSE) ->  | AK109: =VLOOKUP(S109,lookup!$A$1:$J$483,4,FALSE) ->  | AL109: =VLOOKUP(S109,lookup!$A$1:$J$483,8,FALSE) ->  | AM109: =VLOOKUP(S109,lookup!$A$1:$J$483,9,FALSE) ->  | AN109: =VLOOKUP(S109,lookup!$A$1:$J$483,10,FALSE) ->  | AO109: =VLOOKUP(S109,lookup!$A$1:$J$483,5,FALSE) ->  | AP109: =VLOOKUP(S109,lookup!$A$1:$J$483,6,FALSE) ->  | AQ109: =VLOOKUP(S109,lookup!$A$1:$J$483,7,FALSE) ->  | AR109: =VLOOKUP(W109,lookup!$A$1:$J$483,2,FALSE) ->  | AS109: =VLOOKUP(W109,lookup!$A$1:$J$483,3,FALSE) ->  | AT109: =VLOOKUP(W109,lookup!$A$1:$J$483,4,FALSE) ->  | AU109: 17.5 | AV109: =VLOOKUP(AU109,lookup!$Q$2:$W$62,2,FALSE) -> 0.5 | AW109: =VLOOKUP(AU109,lookup!$Q$2:$W$62,3,FALSE) -> 0.49 | AX109: =VLOOKUP(AU109,lookup!$Q$2:$W$62,4,FALSE) -> 0.49 | AY109: =VLOOKUP(AU109,lookup!$Q$2:$W$62,5,FALSE) -> 1 | AZ109: =VLOOKUP(AU109,lookup!$Q$2:$W$62,6,FALSE) -> 0.5 | BA109: =VLOOKUP(AU109,lookup!$Q$2:$W$62,7,FALSE) -> 0.5 | BB109: 17.5 | BC109: =VLOOKUP(BB109,lookup!$Q$2:$W$62,2,FALSE) -> 0.5 | BD109: =VLOOKUP(BB109,lookup!$Q$2:$W$62,3,FALSE) -> 0.49 | BE109: =VLOOKUP(BB109,lookup!$Q$2:$W$62,4,FALSE) -> 0.49 | BF109: =VLOOKUP(BB109,lookup!$Q$2:$W$62,5,FALSE) -> 1 | BG109: =VLOOKUP(BB109,lookup!$Q$2:$W$62,6,FALSE) -> 0.5 | BH109: =VLOOKUP(BB109,lookup!$Q$2:$W$62,7,FALSE) -> 0.5 | BV109: 0 | BW109: =VLOOKUP(BV109,lookup!$Q$2:$W$62,2,FALSE) ->  | BX109: =VLOOKUP(BV109,lookup!$Q$2:$W$62,3,FALSE) ->  | BY109: =VLOOKUP(BV109,lookup!$Q$2:$W$62,4,FALSE) ->  | BZ109: =VLOOKUP(BV109,lookup!$Q$2:$W$62,5,FALSE) ->  | CA109: =VLOOKUP(BV109,lookup!$Q$2:$W$62,6,FALSE) ->  | CB109: =VLOOKUP(BV109,lookup!$Q$2:$W$62,7,FALSE) ->  | CC109: 0 | CD109: =VLOOKUP(CC109,lookup!$Q$2:$W$62,2,FALSE) ->  | CE109: =VLOOKUP(CC109,lookup!$Q$2:$W$62,3,FALSE) ->  | CF109: =VLOOKUP(CC109,lookup!$Q$2:$W$62,4,FALSE) ->  | CG109: =VLOOKUP(CC109,lookup!$Q$2:$W$62,5,FALSE) ->  | CH109: =VLOOKUP(CC109,lookup!$Q$2:$W$62,6,FALSE) ->  | CI109: =VLOOKUP(CC109,lookup!$Q$2:$W$62,7,FALSE) ->  | CW109: 0 | CX109: 1 | CY109: 0 | CZ109: 1 | DA109: 2 | DC109: =VLOOKUP(DB109,lookup!$Q$2:$W$62,2,FALSE) ->  | DD109: =VLOOKUP(DB109,lookup!$Q$2:$W$62,3,FALSE) ->  | DE109: =VLOOKUP(DB109,lookup!$Q$2:$W$62,4,FALSE) ->  | DF109: =VLOOKUP(DB109,lookup!$Q$2:$W$62,5,FALSE) ->  | DG109: =VLOOKUP(DB109,lookup!$Q$2:$W$62,6,FALSE) ->  | DH109: =VLOOKUP(DB109,lookup!$Q$2:$W$62,7,FALSE) -> 
R110: =IF(F110="","",VLOOKUP(P110,lookup!$L$2:$O$103,Data!Q110+1,FALSE)) ->  | X110: 0 | Y110: 0 | Z110: 0 | AI110: =VLOOKUP(S110,lookup!$A$1:$J$483,2,FALSE) ->  | AJ110: =VLOOKUP(S110,lookup!$A$1:$J$483,3,FALSE) ->  | AK110: =VLOOKUP(S110,lookup!$A$1:$J$483,4,FALSE) ->  | AL110: =VLOOKUP(S110,lookup!$A$1:$J$483,8,FALSE) ->  | AM110: =VLOOKUP(S110,lookup!$A$1:$J$483,9,FALSE) ->  | AN110: =VLOOKUP(S110,lookup!$A$1:$J$483,10,FALSE) ->  | AO110: =VLOOKUP(S110,lookup!$A$1:$J$483,5,FALSE) ->  | AP110: =VLOOKUP(S110,lookup!$A$1:$J$483,6,FALSE) ->  | AQ110: =VLOOKUP(S110,lookup!$A$1:$J$483,7,FALSE) ->  | AR110: =VLOOKUP(W110,lookup!$A$1:$J$483,2,FALSE) ->  | AS110: =VLOOKUP(W110,lookup!$A$1:$J$483,3,FALSE) ->  | AT110: =VLOOKUP(W110,lookup!$A$1:$J$483,4,FALSE) ->  | AU110: 17.5 | AV110: =VLOOKUP(AU110,lookup!$Q$2:$W$62,2,FALSE) -> 0.5 | AW110: =VLOOKUP(AU110,lookup!$Q$2:$W$62,3,FALSE) -> 0.49 | AX110: =VLOOKUP(AU110,lookup!$Q$2:$W$62,4,FALSE) -> 0.49 | AY110: =VLOOKUP(AU110,lookup!$Q$2:$W$62,5,FALSE) -> 1 | AZ110: =VLOOKUP(AU110,lookup!$Q$2:$W$62,6,FALSE) -> 0.5 | BA110: =VLOOKUP(AU110,lookup!$Q$2:$W$62,7,FALSE) -> 0.5 | BB110: 17.5 | BC110: =VLOOKUP(BB110,lookup!$Q$2:$W$62,2,FALSE) -> 0.5 | BD110: =VLOOKUP(BB110,lookup!$Q$2:$W$62,3,FALSE) -> 0.49 | BE110: =VLOOKUP(BB110,lookup!$Q$2:$W$62,4,FALSE) -> 0.49 | BF110: =VLOOKUP(BB110,lookup!$Q$2:$W$62,5,FALSE) -> 1 | BG110: =VLOOKUP(BB110,lookup!$Q$2:$W$62,6,FALSE) -> 0.5 | BH110: =VLOOKUP(BB110,lookup!$Q$2:$W$62,7,FALSE) -> 0.5 | BV110: 0 | BW110: =VLOOKUP(BV110,lookup!$Q$2:$W$62,2,FALSE) ->  | BX110: =VLOOKUP(BV110,lookup!$Q$2:$W$62,3,FALSE) ->  | BY110: =VLOOKUP(BV110,lookup!$Q$2:$W$62,4,FALSE) ->  | BZ110: =VLOOKUP(BV110,lookup!$Q$2:$W$62,5,FALSE) ->  | CA110: =VLOOKUP(BV110,lookup!$Q$2:$W$62,6,FALSE) ->  | CB110: =VLOOKUP(BV110,lookup!$Q$2:$W$62,7,FALSE) ->  | CC110: 0 | CD110: =VLOOKUP(CC110,lookup!$Q$2:$W$62,2,FALSE) ->  | CE110: =VLOOKUP(CC110,lookup!$Q$2:$W$62,3,FALSE) ->  | CF110: =VLOOKUP(CC110,lookup!$Q$2:$W$62,4,FALSE) ->  | CG110: =VLOOKUP(CC110,lookup!$Q$2:$W$62,5,FALSE) ->  | CH110: =VLOOKUP(CC110,lookup!$Q$2:$W$62,6,FALSE) ->  | CI110: =VLOOKUP(CC110,lookup!$Q$2:$W$62,7,FALSE) ->  | CW110: 0 | CX110: 1 | CY110: 0 | CZ110: 1 | DA110: 2 | DC110: =VLOOKUP(DB110,lookup!$Q$2:$W$62,2,FALSE) ->  | DD110: =VLOOKUP(DB110,lookup!$Q$2:$W$62,3,FALSE) ->  | DE110: =VLOOKUP(DB110,lookup!$Q$2:$W$62,4,FALSE) ->  | DF110: =VLOOKUP(DB110,lookup!$Q$2:$W$62,5,FALSE) ->  | DG110: =VLOOKUP(DB110,lookup!$Q$2:$W$62,6,FALSE) ->  | DH110: =VLOOKUP(DB110,lookup!$Q$2:$W$62,7,FALSE) -> 
R111: =IF(F111="","",VLOOKUP(P111,lookup!$L$2:$O$103,Data!Q111+1,FALSE)) ->  | X111: 0 | Y111: 0 | Z111: 0 | AI111: =VLOOKUP(S111,lookup!$A$1:$J$483,2,FALSE) ->  | AJ111: =VLOOKUP(S111,lookup!$A$1:$J$483,3,FALSE) ->  | AK111: =VLOOKUP(S111,lookup!$A$1:$J$483,4,FALSE) ->  | AL111: =VLOOKUP(S111,lookup!$A$1:$J$483,8,FALSE) ->  | AM111: =VLOOKUP(S111,lookup!$A$1:$J$483,9,FALSE) ->  | AN111: =VLOOKUP(S111,lookup!$A$1:$J$483,10,FALSE) ->  | AO111: =VLOOKUP(S111,lookup!$A$1:$J$483,5,FALSE) ->  | AP111: =VLOOKUP(S111,lookup!$A$1:$J$483,6,FALSE) ->  | AQ111: =VLOOKUP(S111,lookup!$A$1:$J$483,7,FALSE) ->  | AR111: =VLOOKUP(W111,lookup!$A$1:$J$483,2,FALSE) ->  | AS111: =VLOOKUP(W111,lookup!$A$1:$J$483,3,FALSE) ->  | AT111: =VLOOKUP(W111,lookup!$A$1:$J$483,4,FALSE) ->  | AU111: 17.5 | AV111: =VLOOKUP(AU111,lookup!$Q$2:$W$62,2,FALSE) -> 0.5 | AW111: =VLOOKUP(AU111,lookup!$Q$2:$W$62,3,FALSE) -> 0.49 | AX111: =VLOOKUP(AU111,lookup!$Q$2:$W$62,4,FALSE) -> 0.49 | AY111: =VLOOKUP(AU111,lookup!$Q$2:$W$62,5,FALSE) -> 1 | AZ111: =VLOOKUP(AU111,lookup!$Q$2:$W$62,6,FALSE) -> 0.5 | BA111: =VLOOKUP(AU111,lookup!$Q$2:$W$62,7,FALSE) -> 0.5 | BB111: 17.5 | BC111: =VLOOKUP(BB111,lookup!$Q$2:$W$62,2,FALSE) -> 0.5 | BD111: =VLOOKUP(BB111,lookup!$Q$2:$W$62,3,FALSE) -> 0.49 | BE111: =VLOOKUP(BB111,lookup!$Q$2:$W$62,4,FALSE) -> 0.49 | BF111: =VLOOKUP(BB111,lookup!$Q$2:$W$62,5,FALSE) -> 1 | BG111: =VLOOKUP(BB111,lookup!$Q$2:$W$62,6,FALSE) -> 0.5 | BH111: =VLOOKUP(BB111,lookup!$Q$2:$W$62,7,FALSE) -> 0.5 | BV111: 0 | BW111: =VLOOKUP(BV111,lookup!$Q$2:$W$62,2,FALSE) ->  | BX111: =VLOOKUP(BV111,lookup!$Q$2:$W$62,3,FALSE) ->  | BY111: =VLOOKUP(BV111,lookup!$Q$2:$W$62,4,FALSE) ->  | BZ111: =VLOOKUP(BV111,lookup!$Q$2:$W$62,5,FALSE) ->  | CA111: =VLOOKUP(BV111,lookup!$Q$2:$W$62,6,FALSE) ->  | CB111: =VLOOKUP(BV111,lookup!$Q$2:$W$62,7,FALSE) ->  | CC111: 0 | CD111: =VLOOKUP(CC111,lookup!$Q$2:$W$62,2,FALSE) ->  | CE111: =VLOOKUP(CC111,lookup!$Q$2:$W$62,3,FALSE) ->  | CF111: =VLOOKUP(CC111,lookup!$Q$2:$W$62,4,FALSE) ->  | CG111: =VLOOKUP(CC111,lookup!$Q$2:$W$62,5,FALSE) ->  | CH111: =VLOOKUP(CC111,lookup!$Q$2:$W$62,6,FALSE) ->  | CI111: =VLOOKUP(CC111,lookup!$Q$2:$W$62,7,FALSE) ->  | CW111: 0 | CX111: 1 | CY111: 0 | CZ111: 1 | DA111: 2 | DC111: =VLOOKUP(DB111,lookup!$Q$2:$W$62,2,FALSE) ->  | DD111: =VLOOKUP(DB111,lookup!$Q$2:$W$62,3,FALSE) ->  | DE111: =VLOOKUP(DB111,lookup!$Q$2:$W$62,4,FALSE) ->  | DF111: =VLOOKUP(DB111,lookup!$Q$2:$W$62,5,FALSE) ->  | DG111: =VLOOKUP(DB111,lookup!$Q$2:$W$62,6,FALSE) ->  | DH111: =VLOOKUP(DB111,lookup!$Q$2:$W$62,7,FALSE) -> 
R112: =IF(F112="","",VLOOKUP(P112,lookup!$L$2:$O$103,Data!Q112+1,FALSE)) ->  | X112: 0 | Y112: 0 | Z112: 0 | AI112: =VLOOKUP(S112,lookup!$A$1:$J$483,2,FALSE) ->  | AJ112: =VLOOKUP(S112,lookup!$A$1:$J$483,3,FALSE) ->  | AK112: =VLOOKUP(S112,lookup!$A$1:$J$483,4,FALSE) ->  | AL112: =VLOOKUP(S112,lookup!$A$1:$J$483,8,FALSE) ->  | AM112: =VLOOKUP(S112,lookup!$A$1:$J$483,9,FALSE) ->  | AN112: =VLOOKUP(S112,lookup!$A$1:$J$483,10,FALSE) ->  | AO112: =VLOOKUP(S112,lookup!$A$1:$J$483,5,FALSE) ->  | AP112: =VLOOKUP(S112,lookup!$A$1:$J$483,6,FALSE) ->  | AQ112: =VLOOKUP(S112,lookup!$A$1:$J$483,7,FALSE) ->  | AR112: =VLOOKUP(W112,lookup!$A$1:$J$483,2,FALSE) ->  | AS112: =VLOOKUP(W112,lookup!$A$1:$J$483,3,FALSE) ->  | AT112: =VLOOKUP(W112,lookup!$A$1:$J$483,4,FALSE) ->  | AU112: 17.5 | AV112: =VLOOKUP(AU112,lookup!$Q$2:$W$62,2,FALSE) -> 0.5 | AW112: =VLOOKUP(AU112,lookup!$Q$2:$W$62,3,FALSE) -> 0.49 | AX112: =VLOOKUP(AU112,lookup!$Q$2:$W$62,4,FALSE) -> 0.49 | AY112: =VLOOKUP(AU112,lookup!$Q$2:$W$62,5,FALSE) -> 1 | AZ112: =VLOOKUP(AU112,lookup!$Q$2:$W$62,6,FALSE) -> 0.5 | BA112: =VLOOKUP(AU112,lookup!$Q$2:$W$62,7,FALSE) -> 0.5 | BB112: 17.5 | BC112: =VLOOKUP(BB112,lookup!$Q$2:$W$62,2,FALSE) -> 0.5 | BD112: =VLOOKUP(BB112,lookup!$Q$2:$W$62,3,FALSE) -> 0.49 | BE112: =VLOOKUP(BB112,lookup!$Q$2:$W$62,4,FALSE) -> 0.49 | BF112: =VLOOKUP(BB112,lookup!$Q$2:$W$62,5,FALSE) -> 1 | BG112: =VLOOKUP(BB112,lookup!$Q$2:$W$62,6,FALSE) -> 0.5 | BH112: =VLOOKUP(BB112,lookup!$Q$2:$W$62,7,FALSE) -> 0.5 | BV112: 0 | BW112: =VLOOKUP(BV112,lookup!$Q$2:$W$62,2,FALSE) ->  | BX112: =VLOOKUP(BV112,lookup!$Q$2:$W$62,3,FALSE) ->  | BY112: =VLOOKUP(BV112,lookup!$Q$2:$W$62,4,FALSE) ->  | BZ112: =VLOOKUP(BV112,lookup!$Q$2:$W$62,5,FALSE) ->  | CA112: =VLOOKUP(BV112,lookup!$Q$2:$W$62,6,FALSE) ->  | CB112: =VLOOKUP(BV112,lookup!$Q$2:$W$62,7,FALSE) ->  | CC112: 0 | CD112: =VLOOKUP(CC112,lookup!$Q$2:$W$62,2,FALSE) ->  | CE112: =VLOOKUP(CC112,lookup!$Q$2:$W$62,3,FALSE) ->  | CF112: =VLOOKUP(CC112,lookup!$Q$2:$W$62,4,FALSE) ->  | CG112: =VLOOKUP(CC112,lookup!$Q$2:$W$62,5,FALSE) ->  | CH112: =VLOOKUP(CC112,lookup!$Q$2:$W$62,6,FALSE) ->  | CI112: =VLOOKUP(CC112,lookup!$Q$2:$W$62,7,FALSE) ->  | CW112: 0 | CX112: 1 | CY112: 0 | CZ112: 1 | DA112: 2 | DC112: =VLOOKUP(DB112,lookup!$Q$2:$W$62,2,FALSE) ->  | DD112: =VLOOKUP(DB112,lookup!$Q$2:$W$62,3,FALSE) ->  | DE112: =VLOOKUP(DB112,lookup!$Q$2:$W$62,4,FALSE) ->  | DF112: =VLOOKUP(DB112,lookup!$Q$2:$W$62,5,FALSE) ->  | DG112: =VLOOKUP(DB112,lookup!$Q$2:$W$62,6,FALSE) ->  | DH112: =VLOOKUP(DB112,lookup!$Q$2:$W$62,7,FALSE) -> 
R113: =IF(F113="","",VLOOKUP(P113,lookup!$L$2:$O$103,Data!Q113+1,FALSE)) ->  | X113: 0 | Y113: 0 | Z113: 0 | AI113: =VLOOKUP(S113,lookup!$A$1:$J$483,2,FALSE) ->  | AJ113: =VLOOKUP(S113,lookup!$A$1:$J$483,3,FALSE) ->  | AK113: =VLOOKUP(S113,lookup!$A$1:$J$483,4,FALSE) ->  | AL113: =VLOOKUP(S113,lookup!$A$1:$J$483,8,FALSE) ->  | AM113: =VLOOKUP(S113,lookup!$A$1:$J$483,9,FALSE) ->  | AN113: =VLOOKUP(S113,lookup!$A$1:$J$483,10,FALSE) ->  | AO113: =VLOOKUP(S113,lookup!$A$1:$J$483,5,FALSE) ->  | AP113: =VLOOKUP(S113,lookup!$A$1:$J$483,6,FALSE) ->  | AQ113: =VLOOKUP(S113,lookup!$A$1:$J$483,7,FALSE) ->  | AR113: =VLOOKUP(W113,lookup!$A$1:$J$483,2,FALSE) ->  | AS113: =VLOOKUP(W113,lookup!$A$1:$J$483,3,FALSE) ->  | AT113: =VLOOKUP(W113,lookup!$A$1:$J$483,4,FALSE) ->  | AU113: 17.5 | AV113: =VLOOKUP(AU113,lookup!$Q$2:$W$62,2,FALSE) -> 0.5 | AW113: =VLOOKUP(AU113,lookup!$Q$2:$W$62,3,FALSE) -> 0.49 | AX113: =VLOOKUP(AU113,lookup!$Q$2:$W$62,4,FALSE) -> 0.49 | AY113: =VLOOKUP(AU113,lookup!$Q$2:$W$62,5,FALSE) -> 1 | AZ113: =VLOOKUP(AU113,lookup!$Q$2:$W$62,6,FALSE) -> 0.5 | BA113: =VLOOKUP(AU113,lookup!$Q$2:$W$62,7,FALSE) -> 0.5 | BB113: 17.5 | BC113: =VLOOKUP(BB113,lookup!$Q$2:$W$62,2,FALSE) -> 0.5 | BD113: =VLOOKUP(BB113,lookup!$Q$2:$W$62,3,FALSE) -> 0.49 | BE113: =VLOOKUP(BB113,lookup!$Q$2:$W$62,4,FALSE) -> 0.49 | BF113: =VLOOKUP(BB113,lookup!$Q$2:$W$62,5,FALSE) -> 1 | BG113: =VLOOKUP(BB113,lookup!$Q$2:$W$62,6,FALSE) -> 0.5 | BH113: =VLOOKUP(BB113,lookup!$Q$2:$W$62,7,FALSE) -> 0.5 | BV113: 0 | BW113: =VLOOKUP(BV113,lookup!$Q$2:$W$62,2,FALSE) ->  | BX113: =VLOOKUP(BV113,lookup!$Q$2:$W$62,3,FALSE) ->  | BY113: =VLOOKUP(BV113,lookup!$Q$2:$W$62,4,FALSE) ->  | BZ113: =VLOOKUP(BV113,lookup!$Q$2:$W$62,5,FALSE) ->  | CA113: =VLOOKUP(BV113,lookup!$Q$2:$W$62,6,FALSE) ->  | CB113: =VLOOKUP(BV113,lookup!$Q$2:$W$62,7,FALSE) ->  | CC113: 0 | CD113: =VLOOKUP(CC113,lookup!$Q$2:$W$62,2,FALSE) ->  | CE113: =VLOOKUP(CC113,lookup!$Q$2:$W$62,3,FALSE) ->  | CF113: =VLOOKUP(CC113,lookup!$Q$2:$W$62,4,FALSE) ->  | CG113: =VLOOKUP(CC113,lookup!$Q$2:$W$62,5,FALSE) ->  | CH113: =VLOOKUP(CC113,lookup!$Q$2:$W$62,6,FALSE) ->  | CI113: =VLOOKUP(CC113,lookup!$Q$2:$W$62,7,FALSE) ->  | CW113: 0 | CX113: 1 | CY113: 0 | CZ113: 1 | DA113: 2 | DC113: =VLOOKUP(DB113,lookup!$Q$2:$W$62,2,FALSE) ->  | DD113: =VLOOKUP(DB113,lookup!$Q$2:$W$62,3,FALSE) ->  | DE113: =VLOOKUP(DB113,lookup!$Q$2:$W$62,4,FALSE) ->  | DF113: =VLOOKUP(DB113,lookup!$Q$2:$W$62,5,FALSE) ->  | DG113: =VLOOKUP(DB113,lookup!$Q$2:$W$62,6,FALSE) ->  | DH113: =VLOOKUP(DB113,lookup!$Q$2:$W$62,7,FALSE) -> 
R114: =IF(F114="","",VLOOKUP(P114,lookup!$L$2:$O$103,Data!Q114+1,FALSE)) ->  | X114: 0 | Y114: 0 | Z114: 0 | AI114: =VLOOKUP(S114,lookup!$A$1:$J$483,2,FALSE) ->  | AJ114: =VLOOKUP(S114,lookup!$A$1:$J$483,3,FALSE) ->  | AK114: =VLOOKUP(S114,lookup!$A$1:$J$483,4,FALSE) ->  | AL114: =VLOOKUP(S114,lookup!$A$1:$J$483,8,FALSE) ->  | AM114: =VLOOKUP(S114,lookup!$A$1:$J$483,9,FALSE) ->  | AN114: =VLOOKUP(S114,lookup!$A$1:$J$483,10,FALSE) ->  | AO114: =VLOOKUP(S114,lookup!$A$1:$J$483,5,FALSE) ->  | AP114: =VLOOKUP(S114,lookup!$A$1:$J$483,6,FALSE) ->  | AQ114: =VLOOKUP(S114,lookup!$A$1:$J$483,7,FALSE) ->  | AR114: =VLOOKUP(W114,lookup!$A$1:$J$483,2,FALSE) ->  | AS114: =VLOOKUP(W114,lookup!$A$1:$J$483,3,FALSE) ->  | AT114: =VLOOKUP(W114,lookup!$A$1:$J$483,4,FALSE) ->  | AU114: 17.5 | AV114: =VLOOKUP(AU114,lookup!$Q$2:$W$62,2,FALSE) -> 0.5 | AW114: =VLOOKUP(AU114,lookup!$Q$2:$W$62,3,FALSE) -> 0.49 | AX114: =VLOOKUP(AU114,lookup!$Q$2:$W$62,4,FALSE) -> 0.49 | AY114: =VLOOKUP(AU114,lookup!$Q$2:$W$62,5,FALSE) -> 1 | AZ114: =VLOOKUP(AU114,lookup!$Q$2:$W$62,6,FALSE) -> 0.5 | BA114: =VLOOKUP(AU114,lookup!$Q$2:$W$62,7,FALSE) -> 0.5 | BB114: 17.5 | BC114: =VLOOKUP(BB114,lookup!$Q$2:$W$62,2,FALSE) -> 0.5 | BD114: =VLOOKUP(BB114,lookup!$Q$2:$W$62,3,FALSE) -> 0.49 | BE114: =VLOOKUP(BB114,lookup!$Q$2:$W$62,4,FALSE) -> 0.49 | BF114: =VLOOKUP(BB114,lookup!$Q$2:$W$62,5,FALSE) -> 1 | BG114: =VLOOKUP(BB114,lookup!$Q$2:$W$62,6,FALSE) -> 0.5 | BH114: =VLOOKUP(BB114,lookup!$Q$2:$W$62,7,FALSE) -> 0.5 | BV114: 0 | BW114: =VLOOKUP(BV114,lookup!$Q$2:$W$62,2,FALSE) ->  | BX114: =VLOOKUP(BV114,lookup!$Q$2:$W$62,3,FALSE) ->  | BY114: =VLOOKUP(BV114,lookup!$Q$2:$W$62,4,FALSE) ->  | BZ114: =VLOOKUP(BV114,lookup!$Q$2:$W$62,5,FALSE) ->  | CA114: =VLOOKUP(BV114,lookup!$Q$2:$W$62,6,FALSE) ->  | CB114: =VLOOKUP(BV114,lookup!$Q$2:$W$62,7,FALSE) ->  | CC114: 0 | CD114: =VLOOKUP(CC114,lookup!$Q$2:$W$62,2,FALSE) ->  | CE114: =VLOOKUP(CC114,lookup!$Q$2:$W$62,3,FALSE) ->  | CF114: =VLOOKUP(CC114,lookup!$Q$2:$W$62,4,FALSE) ->  | CG114: =VLOOKUP(CC114,lookup!$Q$2:$W$62,5,FALSE) ->  | CH114: =VLOOKUP(CC114,lookup!$Q$2:$W$62,6,FALSE) ->  | CI114: =VLOOKUP(CC114,lookup!$Q$2:$W$62,7,FALSE) ->  | CW114: 0 | CX114: 1 | CY114: 0 | CZ114: 1 | DA114: 2 | DC114: =VLOOKUP(DB114,lookup!$Q$2:$W$62,2,FALSE) ->  | DD114: =VLOOKUP(DB114,lookup!$Q$2:$W$62,3,FALSE) ->  | DE114: =VLOOKUP(DB114,lookup!$Q$2:$W$62,4,FALSE) ->  | DF114: =VLOOKUP(DB114,lookup!$Q$2:$W$62,5,FALSE) ->  | DG114: =VLOOKUP(DB114,lookup!$Q$2:$W$62,6,FALSE) ->  | DH114: =VLOOKUP(DB114,lookup!$Q$2:$W$62,7,FALSE) -> 
R115: =IF(F115="","",VLOOKUP(P115,lookup!$L$2:$O$103,Data!Q115+1,FALSE)) ->  | X115: 0 | Y115: 0 | Z115: 0 | AI115: =VLOOKUP(S115,lookup!$A$1:$J$483,2,FALSE) ->  | AJ115: =VLOOKUP(S115,lookup!$A$1:$J$483,3,FALSE) ->  | AK115: =VLOOKUP(S115,lookup!$A$1:$J$483,4,FALSE) ->  | AL115: =VLOOKUP(S115,lookup!$A$1:$J$483,8,FALSE) ->  | AM115: =VLOOKUP(S115,lookup!$A$1:$J$483,9,FALSE) ->  | AN115: =VLOOKUP(S115,lookup!$A$1:$J$483,10,FALSE) ->  | AO115: =VLOOKUP(S115,lookup!$A$1:$J$483,5,FALSE) ->  | AP115: =VLOOKUP(S115,lookup!$A$1:$J$483,6,FALSE) ->  | AQ115: =VLOOKUP(S115,lookup!$A$1:$J$483,7,FALSE) ->  | AR115: =VLOOKUP(W115,lookup!$A$1:$J$483,2,FALSE) ->  | AS115: =VLOOKUP(W115,lookup!$A$1:$J$483,3,FALSE) ->  | AT115: =VLOOKUP(W115,lookup!$A$1:$J$483,4,FALSE) ->  | AU115: 17.5 | AV115: =VLOOKUP(AU115,lookup!$Q$2:$W$62,2,FALSE) -> 0.5 | AW115: =VLOOKUP(AU115,lookup!$Q$2:$W$62,3,FALSE) -> 0.49 | AX115: =VLOOKUP(AU115,lookup!$Q$2:$W$62,4,FALSE) -> 0.49 | AY115: =VLOOKUP(AU115,lookup!$Q$2:$W$62,5,FALSE) -> 1 | AZ115: =VLOOKUP(AU115,lookup!$Q$2:$W$62,6,FALSE) -> 0.5 | BA115: =VLOOKUP(AU115,lookup!$Q$2:$W$62,7,FALSE) -> 0.5 | BB115: 17.5 | BC115: =VLOOKUP(BB115,lookup!$Q$2:$W$62,2,FALSE) -> 0.5 | BD115: =VLOOKUP(BB115,lookup!$Q$2:$W$62,3,FALSE) -> 0.49 | BE115: =VLOOKUP(BB115,lookup!$Q$2:$W$62,4,FALSE) -> 0.49 | BF115: =VLOOKUP(BB115,lookup!$Q$2:$W$62,5,FALSE) -> 1 | BG115: =VLOOKUP(BB115,lookup!$Q$2:$W$62,6,FALSE) -> 0.5 | BH115: =VLOOKUP(BB115,lookup!$Q$2:$W$62,7,FALSE) -> 0.5 | BV115: 0 | BW115: =VLOOKUP(BV115,lookup!$Q$2:$W$62,2,FALSE) ->  | BX115: =VLOOKUP(BV115,lookup!$Q$2:$W$62,3,FALSE) ->  | BY115: =VLOOKUP(BV115,lookup!$Q$2:$W$62,4,FALSE) ->  | BZ115: =VLOOKUP(BV115,lookup!$Q$2:$W$62,5,FALSE) ->  | CA115: =VLOOKUP(BV115,lookup!$Q$2:$W$62,6,FALSE) ->  | CB115: =VLOOKUP(BV115,lookup!$Q$2:$W$62,7,FALSE) ->  | CC115: 0 | CD115: =VLOOKUP(CC115,lookup!$Q$2:$W$62,2,FALSE) ->  | CE115: =VLOOKUP(CC115,lookup!$Q$2:$W$62,3,FALSE) ->  | CF115: =VLOOKUP(CC115,lookup!$Q$2:$W$62,4,FALSE) ->  | CG115: =VLOOKUP(CC115,lookup!$Q$2:$W$62,5,FALSE) ->  | CH115: =VLOOKUP(CC115,lookup!$Q$2:$W$62,6,FALSE) ->  | CI115: =VLOOKUP(CC115,lookup!$Q$2:$W$62,7,FALSE) ->  | CW115: 0 | CX115: 1 | CY115: 0 | CZ115: 1 | DA115: 2 | DC115: =VLOOKUP(DB115,lookup!$Q$2:$W$62,2,FALSE) ->  | DD115: =VLOOKUP(DB115,lookup!$Q$2:$W$62,3,FALSE) ->  | DE115: =VLOOKUP(DB115,lookup!$Q$2:$W$62,4,FALSE) ->  | DF115: =VLOOKUP(DB115,lookup!$Q$2:$W$62,5,FALSE) ->  | DG115: =VLOOKUP(DB115,lookup!$Q$2:$W$62,6,FALSE) ->  | DH115: =VLOOKUP(DB115,lookup!$Q$2:$W$62,7,FALSE) -> 
R116: =IF(F116="","",VLOOKUP(P116,lookup!$L$2:$O$103,Data!Q116+1,FALSE)) ->  | X116: 0 | Y116: 0 | Z116: 0 | AI116: =VLOOKUP(S116,lookup!$A$1:$J$483,2,FALSE) ->  | AJ116: =VLOOKUP(S116,lookup!$A$1:$J$483,3,FALSE) ->  | AK116: =VLOOKUP(S116,lookup!$A$1:$J$483,4,FALSE) ->  | AL116: =VLOOKUP(S116,lookup!$A$1:$J$483,8,FALSE) ->  | AM116: =VLOOKUP(S116,lookup!$A$1:$J$483,9,FALSE) ->  | AN116: =VLOOKUP(S116,lookup!$A$1:$J$483,10,FALSE) ->  | AO116: =VLOOKUP(S116,lookup!$A$1:$J$483,5,FALSE) ->  | AP116: =VLOOKUP(S116,lookup!$A$1:$J$483,6,FALSE) ->  | AQ116: =VLOOKUP(S116,lookup!$A$1:$J$483,7,FALSE) ->  | AR116: =VLOOKUP(W116,lookup!$A$1:$J$483,2,FALSE) ->  | AS116: =VLOOKUP(W116,lookup!$A$1:$J$483,3,FALSE) ->  | AT116: =VLOOKUP(W116,lookup!$A$1:$J$483,4,FALSE) ->  | AU116: 17.5 | AV116: =VLOOKUP(AU116,lookup!$Q$2:$W$62,2,FALSE) -> 0.5 | AW116: =VLOOKUP(AU116,lookup!$Q$2:$W$62,3,FALSE) -> 0.49 | AX116: =VLOOKUP(AU116,lookup!$Q$2:$W$62,4,FALSE) -> 0.49 | AY116: =VLOOKUP(AU116,lookup!$Q$2:$W$62,5,FALSE) -> 1 | AZ116: =VLOOKUP(AU116,lookup!$Q$2:$W$62,6,FALSE) -> 0.5 | BA116: =VLOOKUP(AU116,lookup!$Q$2:$W$62,7,FALSE) -> 0.5 | BB116: 17.5 | BC116: =VLOOKUP(BB116,lookup!$Q$2:$W$62,2,FALSE) -> 0.5 | BD116: =VLOOKUP(BB116,lookup!$Q$2:$W$62,3,FALSE) -> 0.49 | BE116: =VLOOKUP(BB116,lookup!$Q$2:$W$62,4,FALSE) -> 0.49 | BF116: =VLOOKUP(BB116,lookup!$Q$2:$W$62,5,FALSE) -> 1 | BG116: =VLOOKUP(BB116,lookup!$Q$2:$W$62,6,FALSE) -> 0.5 | BH116: =VLOOKUP(BB116,lookup!$Q$2:$W$62,7,FALSE) -> 0.5 | BV116: 0 | BW116: =VLOOKUP(BV116,lookup!$Q$2:$W$62,2,FALSE) ->  | BX116: =VLOOKUP(BV116,lookup!$Q$2:$W$62,3,FALSE) ->  | BY116: =VLOOKUP(BV116,lookup!$Q$2:$W$62,4,FALSE) ->  | BZ116: =VLOOKUP(BV116,lookup!$Q$2:$W$62,5,FALSE) ->  | CA116: =VLOOKUP(BV116,lookup!$Q$2:$W$62,6,FALSE) ->  | CB116: =VLOOKUP(BV116,lookup!$Q$2:$W$62,7,FALSE) ->  | CC116: 0 | CD116: =VLOOKUP(CC116,lookup!$Q$2:$W$62,2,FALSE) ->  | CE116: =VLOOKUP(CC116,lookup!$Q$2:$W$62,3,FALSE) ->  | CF116: =VLOOKUP(CC116,lookup!$Q$2:$W$62,4,FALSE) ->  | CG116: =VLOOKUP(CC116,lookup!$Q$2:$W$62,5,FALSE) ->  | CH116: =VLOOKUP(CC116,lookup!$Q$2:$W$62,6,FALSE) ->  | CI116: =VLOOKUP(CC116,lookup!$Q$2:$W$62,7,FALSE) ->  | CW116: 0 | CX116: 1 | CY116: 0 | CZ116: 1 | DA116: 2 | DC116: =VLOOKUP(DB116,lookup!$Q$2:$W$62,2,FALSE) ->  | DD116: =VLOOKUP(DB116,lookup!$Q$2:$W$62,3,FALSE) ->  | DE116: =VLOOKUP(DB116,lookup!$Q$2:$W$62,4,FALSE) ->  | DF116: =VLOOKUP(DB116,lookup!$Q$2:$W$62,5,FALSE) ->  | DG116: =VLOOKUP(DB116,lookup!$Q$2:$W$62,6,FALSE) ->  | DH116: =VLOOKUP(DB116,lookup!$Q$2:$W$62,7,FALSE) -> 
R117: =IF(F117="","",VLOOKUP(P117,lookup!$L$2:$O$103,Data!Q117+1,FALSE)) ->  | X117: 0 | Y117: 0 | Z117: 0 | AI117: =VLOOKUP(S117,lookup!$A$1:$J$483,2,FALSE) ->  | AJ117: =VLOOKUP(S117,lookup!$A$1:$J$483,3,FALSE) ->  | AK117: =VLOOKUP(S117,lookup!$A$1:$J$483,4,FALSE) ->  | AL117: =VLOOKUP(S117,lookup!$A$1:$J$483,8,FALSE) ->  | AM117: =VLOOKUP(S117,lookup!$A$1:$J$483,9,FALSE) ->  | AN117: =VLOOKUP(S117,lookup!$A$1:$J$483,10,FALSE) ->  | AO117: =VLOOKUP(S117,lookup!$A$1:$J$483,5,FALSE) ->  | AP117: =VLOOKUP(S117,lookup!$A$1:$J$483,6,FALSE) ->  | AQ117: =VLOOKUP(S117,lookup!$A$1:$J$483,7,FALSE) ->  | AR117: =VLOOKUP(W117,lookup!$A$1:$J$483,2,FALSE) ->  | AS117: =VLOOKUP(W117,lookup!$A$1:$J$483,3,FALSE) ->  | AT117: =VLOOKUP(W117,lookup!$A$1:$J$483,4,FALSE) ->  | AU117: 17.5 | AV117: =VLOOKUP(AU117,lookup!$Q$2:$W$62,2,FALSE) -> 0.5 | AW117: =VLOOKUP(AU117,lookup!$Q$2:$W$62,3,FALSE) -> 0.49 | AX117: =VLOOKUP(AU117,lookup!$Q$2:$W$62,4,FALSE) -> 0.49 | AY117: =VLOOKUP(AU117,lookup!$Q$2:$W$62,5,FALSE) -> 1 | AZ117: =VLOOKUP(AU117,lookup!$Q$2:$W$62,6,FALSE) -> 0.5 | BA117: =VLOOKUP(AU117,lookup!$Q$2:$W$62,7,FALSE) -> 0.5 | BB117: 17.5 | BC117: =VLOOKUP(BB117,lookup!$Q$2:$W$62,2,FALSE) -> 0.5 | BD117: =VLOOKUP(BB117,lookup!$Q$2:$W$62,3,FALSE) -> 0.49 | BE117: =VLOOKUP(BB117,lookup!$Q$2:$W$62,4,FALSE) -> 0.49 | BF117: =VLOOKUP(BB117,lookup!$Q$2:$W$62,5,FALSE) -> 1 | BG117: =VLOOKUP(BB117,lookup!$Q$2:$W$62,6,FALSE) -> 0.5 | BH117: =VLOOKUP(BB117,lookup!$Q$2:$W$62,7,FALSE) -> 0.5 | BV117: 0 | BW117: =VLOOKUP(BV117,lookup!$Q$2:$W$62,2,FALSE) ->  | BX117: =VLOOKUP(BV117,lookup!$Q$2:$W$62,3,FALSE) ->  | BY117: =VLOOKUP(BV117,lookup!$Q$2:$W$62,4,FALSE) ->  | BZ117: =VLOOKUP(BV117,lookup!$Q$2:$W$62,5,FALSE) ->  | CA117: =VLOOKUP(BV117,lookup!$Q$2:$W$62,6,FALSE) ->  | CB117: =VLOOKUP(BV117,lookup!$Q$2:$W$62,7,FALSE) ->  | CC117: 0 | CD117: =VLOOKUP(CC117,lookup!$Q$2:$W$62,2,FALSE) ->  | CE117: =VLOOKUP(CC117,lookup!$Q$2:$W$62,3,FALSE) ->  | CF117: =VLOOKUP(CC117,lookup!$Q$2:$W$62,4,FALSE) ->  | CG117: =VLOOKUP(CC117,lookup!$Q$2:$W$62,5,FALSE) ->  | CH117: =VLOOKUP(CC117,lookup!$Q$2:$W$62,6,FALSE) ->  | CI117: =VLOOKUP(CC117,lookup!$Q$2:$W$62,7,FALSE) ->  | CW117: 0 | CX117: 1 | CY117: 0 | CZ117: 1 | DA117: 2 | DC117: =VLOOKUP(DB117,lookup!$Q$2:$W$62,2,FALSE) ->  | DD117: =VLOOKUP(DB117,lookup!$Q$2:$W$62,3,FALSE) ->  | DE117: =VLOOKUP(DB117,lookup!$Q$2:$W$62,4,FALSE) ->  | DF117: =VLOOKUP(DB117,lookup!$Q$2:$W$62,5,FALSE) ->  | DG117: =VLOOKUP(DB117,lookup!$Q$2:$W$62,6,FALSE) ->  | DH117: =VLOOKUP(DB117,lookup!$Q$2:$W$62,7,FALSE) -> 
R118: =IF(F118="","",VLOOKUP(P118,lookup!$L$2:$O$103,Data!Q118+1,FALSE)) ->  | X118: 0 | Y118: 0 | Z118: 0 | AI118: =VLOOKUP(S118,lookup!$A$1:$J$483,2,FALSE) ->  | AJ118: =VLOOKUP(S118,lookup!$A$1:$J$483,3,FALSE) ->  | AK118: =VLOOKUP(S118,lookup!$A$1:$J$483,4,FALSE) ->  | AL118: =VLOOKUP(S118,lookup!$A$1:$J$483,8,FALSE) ->  | AM118: =VLOOKUP(S118,lookup!$A$1:$J$483,9,FALSE) ->  | AN118: =VLOOKUP(S118,lookup!$A$1:$J$483,10,FALSE) ->  | AO118: =VLOOKUP(S118,lookup!$A$1:$J$483,5,FALSE) ->  | AP118: =VLOOKUP(S118,lookup!$A$1:$J$483,6,FALSE) ->  | AQ118: =VLOOKUP(S118,lookup!$A$1:$J$483,7,FALSE) ->  | AR118: =VLOOKUP(W118,lookup!$A$1:$J$483,2,FALSE) ->  | AS118: =VLOOKUP(W118,lookup!$A$1:$J$483,3,FALSE) ->  | AT118: =VLOOKUP(W118,lookup!$A$1:$J$483,4,FALSE) ->  | AU118: 17.5 | AV118: =VLOOKUP(AU118,lookup!$Q$2:$W$62,2,FALSE) -> 0.5 | AW118: =VLOOKUP(AU118,lookup!$Q$2:$W$62,3,FALSE) -> 0.49 | AX118: =VLOOKUP(AU118,lookup!$Q$2:$W$62,4,FALSE) -> 0.49 | AY118: =VLOOKUP(AU118,lookup!$Q$2:$W$62,5,FALSE) -> 1 | AZ118: =VLOOKUP(AU118,lookup!$Q$2:$W$62,6,FALSE) -> 0.5 | BA118: =VLOOKUP(AU118,lookup!$Q$2:$W$62,7,FALSE) -> 0.5 | BB118: 17.5 | BC118: =VLOOKUP(BB118,lookup!$Q$2:$W$62,2,FALSE) -> 0.5 | BD118: =VLOOKUP(BB118,lookup!$Q$2:$W$62,3,FALSE) -> 0.49 | BE118: =VLOOKUP(BB118,lookup!$Q$2:$W$62,4,FALSE) -> 0.49 | BF118: =VLOOKUP(BB118,lookup!$Q$2:$W$62,5,FALSE) -> 1 | BG118: =VLOOKUP(BB118,lookup!$Q$2:$W$62,6,FALSE) -> 0.5 | BH118: =VLOOKUP(BB118,lookup!$Q$2:$W$62,7,FALSE) -> 0.5 | BV118: 0 | BW118: =VLOOKUP(BV118,lookup!$Q$2:$W$62,2,FALSE) ->  | BX118: =VLOOKUP(BV118,lookup!$Q$2:$W$62,3,FALSE) ->  | BY118: =VLOOKUP(BV118,lookup!$Q$2:$W$62,4,FALSE) ->  | BZ118: =VLOOKUP(BV118,lookup!$Q$2:$W$62,5,FALSE) ->  | CA118: =VLOOKUP(BV118,lookup!$Q$2:$W$62,6,FALSE) ->  | CB118: =VLOOKUP(BV118,lookup!$Q$2:$W$62,7,FALSE) ->  | CC118: 0 | CD118: =VLOOKUP(CC118,lookup!$Q$2:$W$62,2,FALSE) ->  | CE118: =VLOOKUP(CC118,lookup!$Q$2:$W$62,3,FALSE) ->  | CF118: =VLOOKUP(CC118,lookup!$Q$2:$W$62,4,FALSE) ->  | CG118: =VLOOKUP(CC118,lookup!$Q$2:$W$62,5,FALSE) ->  | CH118: =VLOOKUP(CC118,lookup!$Q$2:$W$62,6,FALSE) ->  | CI118: =VLOOKUP(CC118,lookup!$Q$2:$W$62,7,FALSE) ->  | CW118: 0 | CX118: 1 | CY118: 0 | CZ118: 1 | DA118: 2 | DC118: =VLOOKUP(DB118,lookup!$Q$2:$W$62,2,FALSE) ->  | DD118: =VLOOKUP(DB118,lookup!$Q$2:$W$62,3,FALSE) ->  | DE118: =VLOOKUP(DB118,lookup!$Q$2:$W$62,4,FALSE) ->  | DF118: =VLOOKUP(DB118,lookup!$Q$2:$W$62,5,FALSE) ->  | DG118: =VLOOKUP(DB118,lookup!$Q$2:$W$62,6,FALSE) ->  | DH118: =VLOOKUP(DB118,lookup!$Q$2:$W$62,7,FALSE) -> 
R119: =IF(F119="","",VLOOKUP(P119,lookup!$L$2:$O$103,Data!Q119+1,FALSE)) ->  | X119: 0 | Y119: 0 | Z119: 0 | AI119: =VLOOKUP(S119,lookup!$A$1:$J$483,2,FALSE) ->  | AJ119: =VLOOKUP(S119,lookup!$A$1:$J$483,3,FALSE) ->  | AK119: =VLOOKUP(S119,lookup!$A$1:$J$483,4,FALSE) ->  | AL119: =VLOOKUP(S119,lookup!$A$1:$J$483,8,FALSE) ->  | AM119: =VLOOKUP(S119,lookup!$A$1:$J$483,9,FALSE) ->  | AN119: =VLOOKUP(S119,lookup!$A$1:$J$483,10,FALSE) ->  | AO119: =VLOOKUP(S119,lookup!$A$1:$J$483,5,FALSE) ->  | AP119: =VLOOKUP(S119,lookup!$A$1:$J$483,6,FALSE) ->  | AQ119: =VLOOKUP(S119,lookup!$A$1:$J$483,7,FALSE) ->  | AR119: =VLOOKUP(W119,lookup!$A$1:$J$483,2,FALSE) ->  | AS119: =VLOOKUP(W119,lookup!$A$1:$J$483,3,FALSE) ->  | AT119: =VLOOKUP(W119,lookup!$A$1:$J$483,4,FALSE) ->  | AU119: 17.5 | AV119: =VLOOKUP(AU119,lookup!$Q$2:$W$62,2,FALSE) -> 0.5 | AW119: =VLOOKUP(AU119,lookup!$Q$2:$W$62,3,FALSE) -> 0.49 | AX119: =VLOOKUP(AU119,lookup!$Q$2:$W$62,4,FALSE) -> 0.49 | AY119: =VLOOKUP(AU119,lookup!$Q$2:$W$62,5,FALSE) -> 1 | AZ119: =VLOOKUP(AU119,lookup!$Q$2:$W$62,6,FALSE) -> 0.5 | BA119: =VLOOKUP(AU119,lookup!$Q$2:$W$62,7,FALSE) -> 0.5 | BB119: 17.5 | BC119: =VLOOKUP(BB119,lookup!$Q$2:$W$62,2,FALSE) -> 0.5 | BD119: =VLOOKUP(BB119,lookup!$Q$2:$W$62,3,FALSE) -> 0.49 | BE119: =VLOOKUP(BB119,lookup!$Q$2:$W$62,4,FALSE) -> 0.49 | BF119: =VLOOKUP(BB119,lookup!$Q$2:$W$62,5,FALSE) -> 1 | BG119: =VLOOKUP(BB119,lookup!$Q$2:$W$62,6,FALSE) -> 0.5 | BH119: =VLOOKUP(BB119,lookup!$Q$2:$W$62,7,FALSE) -> 0.5 | BV119: 0 | BW119: =VLOOKUP(BV119,lookup!$Q$2:$W$62,2,FALSE) ->  | BX119: =VLOOKUP(BV119,lookup!$Q$2:$W$62,3,FALSE) ->  | BY119: =VLOOKUP(BV119,lookup!$Q$2:$W$62,4,FALSE) ->  | BZ119: =VLOOKUP(BV119,lookup!$Q$2:$W$62,5,FALSE) ->  | CA119: =VLOOKUP(BV119,lookup!$Q$2:$W$62,6,FALSE) ->  | CB119: =VLOOKUP(BV119,lookup!$Q$2:$W$62,7,FALSE) ->  | CC119: 0 | CD119: =VLOOKUP(CC119,lookup!$Q$2:$W$62,2,FALSE) ->  | CE119: =VLOOKUP(CC119,lookup!$Q$2:$W$62,3,FALSE) ->  | CF119: =VLOOKUP(CC119,lookup!$Q$2:$W$62,4,FALSE) ->  | CG119: =VLOOKUP(CC119,lookup!$Q$2:$W$62,5,FALSE) ->  | CH119: =VLOOKUP(CC119,lookup!$Q$2:$W$62,6,FALSE) ->  | CI119: =VLOOKUP(CC119,lookup!$Q$2:$W$62,7,FALSE) ->  | CW119: 0 | CX119: 1 | CY119: 0 | CZ119: 1 | DA119: 2 | DC119: =VLOOKUP(DB119,lookup!$Q$2:$W$62,2,FALSE) ->  | DD119: =VLOOKUP(DB119,lookup!$Q$2:$W$62,3,FALSE) ->  | DE119: =VLOOKUP(DB119,lookup!$Q$2:$W$62,4,FALSE) ->  | DF119: =VLOOKUP(DB119,lookup!$Q$2:$W$62,5,FALSE) ->  | DG119: =VLOOKUP(DB119,lookup!$Q$2:$W$62,6,FALSE) ->  | DH119: =VLOOKUP(DB119,lookup!$Q$2:$W$62,7,FALSE) -> 
R120: =IF(F120="","",VLOOKUP(P120,lookup!$L$2:$O$103,Data!Q120+1,FALSE)) ->  | X120: 0 | Y120: 0 | Z120: 0 | AI120: =VLOOKUP(S120,lookup!$A$1:$J$483,2,FALSE) ->  | AJ120: =VLOOKUP(S120,lookup!$A$1:$J$483,3,FALSE) ->  | AK120: =VLOOKUP(S120,lookup!$A$1:$J$483,4,FALSE) ->  | AL120: =VLOOKUP(S120,lookup!$A$1:$J$483,8,FALSE) ->  | AM120: =VLOOKUP(S120,lookup!$A$1:$J$483,9,FALSE) ->  | AN120: =VLOOKUP(S120,lookup!$A$1:$J$483,10,FALSE) ->  | AO120: =VLOOKUP(S120,lookup!$A$1:$J$483,5,FALSE) ->  | AP120: =VLOOKUP(S120,lookup!$A$1:$J$483,6,FALSE) ->  | AQ120: =VLOOKUP(S120,lookup!$A$1:$J$483,7,FALSE) ->  | AR120: =VLOOKUP(W120,lookup!$A$1:$J$483,2,FALSE) ->  | AS120: =VLOOKUP(W120,lookup!$A$1:$J$483,3,FALSE) ->  | AT120: =VLOOKUP(W120,lookup!$A$1:$J$483,4,FALSE) ->  | AU120: 17.5 | AV120: =VLOOKUP(AU120,lookup!$Q$2:$W$62,2,FALSE) -> 0.5 | AW120: =VLOOKUP(AU120,lookup!$Q$2:$W$62,3,FALSE) -> 0.49 | AX120: =VLOOKUP(AU120,lookup!$Q$2:$W$62,4,FALSE) -> 0.49 | AY120: =VLOOKUP(AU120,lookup!$Q$2:$W$62,5,FALSE) -> 1 | AZ120: =VLOOKUP(AU120,lookup!$Q$2:$W$62,6,FALSE) -> 0.5 | BA120: =VLOOKUP(AU120,lookup!$Q$2:$W$62,7,FALSE) -> 0.5 | BB120: 17.5 | BC120: =VLOOKUP(BB120,lookup!$Q$2:$W$62,2,FALSE) -> 0.5 | BD120: =VLOOKUP(BB120,lookup!$Q$2:$W$62,3,FALSE) -> 0.49 | BE120: =VLOOKUP(BB120,lookup!$Q$2:$W$62,4,FALSE) -> 0.49 | BF120: =VLOOKUP(BB120,lookup!$Q$2:$W$62,5,FALSE) -> 1 | BG120: =VLOOKUP(BB120,lookup!$Q$2:$W$62,6,FALSE) -> 0.5 | BH120: =VLOOKUP(BB120,lookup!$Q$2:$W$62,7,FALSE) -> 0.5 | BV120: 0 | BW120: =VLOOKUP(BV120,lookup!$Q$2:$W$62,2,FALSE) ->  | BX120: =VLOOKUP(BV120,lookup!$Q$2:$W$62,3,FALSE) ->  | BY120: =VLOOKUP(BV120,lookup!$Q$2:$W$62,4,FALSE) ->  | BZ120: =VLOOKUP(BV120,lookup!$Q$2:$W$62,5,FALSE) ->  | CA120: =VLOOKUP(BV120,lookup!$Q$2:$W$62,6,FALSE) ->  | CB120: =VLOOKUP(BV120,lookup!$Q$2:$W$62,7,FALSE) ->  | CC120: 0 | CD120: =VLOOKUP(CC120,lookup!$Q$2:$W$62,2,FALSE) ->  | CE120: =VLOOKUP(CC120,lookup!$Q$2:$W$62,3,FALSE) ->  | CF120: =VLOOKUP(CC120,lookup!$Q$2:$W$62,4,FALSE) ->  | CG120: =VLOOKUP(CC120,lookup!$Q$2:$W$62,5,FALSE) ->  | CH120: =VLOOKUP(CC120,lookup!$Q$2:$W$62,6,FALSE) ->  | CI120: =VLOOKUP(CC120,lookup!$Q$2:$W$62,7,FALSE) ->  | CW120: 0 | CX120: 1 | CY120: 0 | CZ120: 1 | DA120: 2 | DC120: =VLOOKUP(DB120,lookup!$Q$2:$W$62,2,FALSE) ->  | DD120: =VLOOKUP(DB120,lookup!$Q$2:$W$62,3,FALSE) ->  | DE120: =VLOOKUP(DB120,lookup!$Q$2:$W$62,4,FALSE) ->  | DF120: =VLOOKUP(DB120,lookup!$Q$2:$W$62,5,FALSE) ->  | DG120: =VLOOKUP(DB120,lookup!$Q$2:$W$62,6,FALSE) ->  | DH120: =VLOOKUP(DB120,lookup!$Q$2:$W$62,7,FALSE) -> 
R121: =IF(F121="","",VLOOKUP(P121,lookup!$L$2:$O$103,Data!Q121+1,FALSE)) ->  | X121: 0 | Y121: 0 | Z121: 0 | AI121: =VLOOKUP(S121,lookup!$A$1:$J$483,2,FALSE) ->  | AJ121: =VLOOKUP(S121,lookup!$A$1:$J$483,3,FALSE) ->  | AK121: =VLOOKUP(S121,lookup!$A$1:$J$483,4,FALSE) ->  | AL121: =VLOOKUP(S121,lookup!$A$1:$J$483,8,FALSE) ->  | AM121: =VLOOKUP(S121,lookup!$A$1:$J$483,9,FALSE) ->  | AN121: =VLOOKUP(S121,lookup!$A$1:$J$483,10,FALSE) ->  | AO121: =VLOOKUP(S121,lookup!$A$1:$J$483,5,FALSE) ->  | AP121: =VLOOKUP(S121,lookup!$A$1:$J$483,6,FALSE) ->  | AQ121: =VLOOKUP(S121,lookup!$A$1:$J$483,7,FALSE) ->  | AR121: =VLOOKUP(W121,lookup!$A$1:$J$483,2,FALSE) ->  | AS121: =VLOOKUP(W121,lookup!$A$1:$J$483,3,FALSE) ->  | AT121: =VLOOKUP(W121,lookup!$A$1:$J$483,4,FALSE) ->  | AU121: 17.5 | AV121: =VLOOKUP(AU121,lookup!$Q$2:$W$62,2,FALSE) -> 0.5 | AW121: =VLOOKUP(AU121,lookup!$Q$2:$W$62,3,FALSE) -> 0.49 | AX121: =VLOOKUP(AU121,lookup!$Q$2:$W$62,4,FALSE) -> 0.49 | AY121: =VLOOKUP(AU121,lookup!$Q$2:$W$62,5,FALSE) -> 1 | AZ121: =VLOOKUP(AU121,lookup!$Q$2:$W$62,6,FALSE) -> 0.5 | BA121: =VLOOKUP(AU121,lookup!$Q$2:$W$62,7,FALSE) -> 0.5 | BB121: 17.5 | BC121: =VLOOKUP(BB121,lookup!$Q$2:$W$62,2,FALSE) -> 0.5 | BD121: =VLOOKUP(BB121,lookup!$Q$2:$W$62,3,FALSE) -> 0.49 | BE121: =VLOOKUP(BB121,lookup!$Q$2:$W$62,4,FALSE) -> 0.49 | BF121: =VLOOKUP(BB121,lookup!$Q$2:$W$62,5,FALSE) -> 1 | BG121: =VLOOKUP(BB121,lookup!$Q$2:$W$62,6,FALSE) -> 0.5 | BH121: =VLOOKUP(BB121,lookup!$Q$2:$W$62,7,FALSE) -> 0.5 | BV121: 0 | BW121: =VLOOKUP(BV121,lookup!$Q$2:$W$62,2,FALSE) ->  | BX121: =VLOOKUP(BV121,lookup!$Q$2:$W$62,3,FALSE) ->  | BY121: =VLOOKUP(BV121,lookup!$Q$2:$W$62,4,FALSE) ->  | BZ121: =VLOOKUP(BV121,lookup!$Q$2:$W$62,5,FALSE) ->  | CA121: =VLOOKUP(BV121,lookup!$Q$2:$W$62,6,FALSE) ->  | CB121: =VLOOKUP(BV121,lookup!$Q$2:$W$62,7,FALSE) ->  | CC121: 0 | CD121: =VLOOKUP(CC121,lookup!$Q$2:$W$62,2,FALSE) ->  | CE121: =VLOOKUP(CC121,lookup!$Q$2:$W$62,3,FALSE) ->  | CF121: =VLOOKUP(CC121,lookup!$Q$2:$W$62,4,FALSE) ->  | CG121: =VLOOKUP(CC121,lookup!$Q$2:$W$62,5,FALSE) ->  | CH121: =VLOOKUP(CC121,lookup!$Q$2:$W$62,6,FALSE) ->  | CI121: =VLOOKUP(CC121,lookup!$Q$2:$W$62,7,FALSE) ->  | CW121: 0 | CX121: 1 | CY121: 0 | CZ121: 1 | DA121: 2 | DC121: =VLOOKUP(DB121,lookup!$Q$2:$W$62,2,FALSE) ->  | DD121: =VLOOKUP(DB121,lookup!$Q$2:$W$62,3,FALSE) ->  | DE121: =VLOOKUP(DB121,lookup!$Q$2:$W$62,4,FALSE) ->  | DF121: =VLOOKUP(DB121,lookup!$Q$2:$W$62,5,FALSE) ->  | DG121: =VLOOKUP(DB121,lookup!$Q$2:$W$62,6,FALSE) ->  | DH121: =VLOOKUP(DB121,lookup!$Q$2:$W$62,7,FALSE) -> 
R122: =IF(F122="","",VLOOKUP(P122,lookup!$L$2:$O$103,Data!Q122+1,FALSE)) ->  | X122: 0 | Y122: 0 | Z122: 0 | AI122: =VLOOKUP(S122,lookup!$A$1:$J$483,2,FALSE) ->  | AJ122: =VLOOKUP(S122,lookup!$A$1:$J$483,3,FALSE) ->  | AK122: =VLOOKUP(S122,lookup!$A$1:$J$483,4,FALSE) ->  | AL122: =VLOOKUP(S122,lookup!$A$1:$J$483,8,FALSE) ->  | AM122: =VLOOKUP(S122,lookup!$A$1:$J$483,9,FALSE) ->  | AN122: =VLOOKUP(S122,lookup!$A$1:$J$483,10,FALSE) ->  | AO122: =VLOOKUP(S122,lookup!$A$1:$J$483,5,FALSE) ->  | AP122: =VLOOKUP(S122,lookup!$A$1:$J$483,6,FALSE) ->  | AQ122: =VLOOKUP(S122,lookup!$A$1:$J$483,7,FALSE) ->  | AR122: =VLOOKUP(W122,lookup!$A$1:$J$483,2,FALSE) ->  | AS122: =VLOOKUP(W122,lookup!$A$1:$J$483,3,FALSE) ->  | AT122: =VLOOKUP(W122,lookup!$A$1:$J$483,4,FALSE) ->  | AU122: 17.5 | AV122: =VLOOKUP(AU122,lookup!$Q$2:$W$62,2,FALSE) -> 0.5 | AW122: =VLOOKUP(AU122,lookup!$Q$2:$W$62,3,FALSE) -> 0.49 | AX122: =VLOOKUP(AU122,lookup!$Q$2:$W$62,4,FALSE) -> 0.49 | AY122: =VLOOKUP(AU122,lookup!$Q$2:$W$62,5,FALSE) -> 1 | AZ122: =VLOOKUP(AU122,lookup!$Q$2:$W$62,6,FALSE) -> 0.5 | BA122: =VLOOKUP(AU122,lookup!$Q$2:$W$62,7,FALSE) -> 0.5 | BB122: 17.5 | BC122: =VLOOKUP(BB122,lookup!$Q$2:$W$62,2,FALSE) -> 0.5 | BD122: =VLOOKUP(BB122,lookup!$Q$2:$W$62,3,FALSE) -> 0.49 | BE122: =VLOOKUP(BB122,lookup!$Q$2:$W$62,4,FALSE) -> 0.49 | BF122: =VLOOKUP(BB122,lookup!$Q$2:$W$62,5,FALSE) -> 1 | BG122: =VLOOKUP(BB122,lookup!$Q$2:$W$62,6,FALSE) -> 0.5 | BH122: =VLOOKUP(BB122,lookup!$Q$2:$W$62,7,FALSE) -> 0.5 | BV122: 0 | BW122: =VLOOKUP(BV122,lookup!$Q$2:$W$62,2,FALSE) ->  | BX122: =VLOOKUP(BV122,lookup!$Q$2:$W$62,3,FALSE) ->  | BY122: =VLOOKUP(BV122,lookup!$Q$2:$W$62,4,FALSE) ->  | BZ122: =VLOOKUP(BV122,lookup!$Q$2:$W$62,5,FALSE) ->  | CA122: =VLOOKUP(BV122,lookup!$Q$2:$W$62,6,FALSE) ->  | CB122: =VLOOKUP(BV122,lookup!$Q$2:$W$62,7,FALSE) ->  | CC122: 0 | CD122: =VLOOKUP(CC122,lookup!$Q$2:$W$62,2,FALSE) ->  | CE122: =VLOOKUP(CC122,lookup!$Q$2:$W$62,3,FALSE) ->  | CF122: =VLOOKUP(CC122,lookup!$Q$2:$W$62,4,FALSE) ->  | CG122: =VLOOKUP(CC122,lookup!$Q$2:$W$62,5,FALSE) ->  | CH122: =VLOOKUP(CC122,lookup!$Q$2:$W$62,6,FALSE) ->  | CI122: =VLOOKUP(CC122,lookup!$Q$2:$W$62,7,FALSE) ->  | CW122: 0 | CX122: 1 | CY122: 0 | CZ122: 1 | DA122: 2 | DC122: =VLOOKUP(DB122,lookup!$Q$2:$W$62,2,FALSE) ->  | DD122: =VLOOKUP(DB122,lookup!$Q$2:$W$62,3,FALSE) ->  | DE122: =VLOOKUP(DB122,lookup!$Q$2:$W$62,4,FALSE) ->  | DF122: =VLOOKUP(DB122,lookup!$Q$2:$W$62,5,FALSE) ->  | DG122: =VLOOKUP(DB122,lookup!$Q$2:$W$62,6,FALSE) ->  | DH122: =VLOOKUP(DB122,lookup!$Q$2:$W$62,7,FALSE) -> 
